Workbook

Sheet Disclaimer

Sheet Model Overview
A1: =RIGHT(CELL("filename",D2),LEN(CELL("filename",D2))-FIND("]",CELL("filename",D2))) -> Model Overview
D3: Date model last revised | G3: =TODAY( ) -> 2024-01-16
B5: Model Use
D8: Model type: | G8: This model has been constructed to use as a financial assessment tool that will provide farmers with the information they need to understand the economic viability of using agricultural residues for energy-on-farm, via pyrolysis or gasification, such as the potential energy cost savings. This model is a financial sensitivity tool that incorporates the market value of energy, value of displacement, nutrient replacement value, operational maintenance costs, CapEx, and all costs and benefits associated with operating a facility annually at a farm and precinct scale. The feasibility assessment tool enables Agriculture Victoria, service providers of primary producers, and relevant experts to assess if a full business case should be pursued for individual farms for onsite gasification and pyrolysis of agricultural residues or wood waste.
D10: Model purpose: | G10: The tool allows users to input operational parameters which then will produce a scenario-based breakdown of the costs and benefits of advanced thermal treatment operations. The focus of the tool is to assess the commercial viability of pyrolysis or gasification technologies for a farm or a precinct of farms. In order to get the most out of this tool, users should consult with their financial advisor / accountant to fully understand the implications for farm operations.
D12: Model overview: | G12: The main outputs can be viewed in the "Dashboard" tab, where sensitivities can be assessed to determine the main drivers of cost. The user can input key parameters directly into the Dashboard such as the feedstock volume for each month and the market values of the products as a result of the gasification/pyrolysis conversion pathway. User's should only make changes to the model where specifically directed to in the "User Guide" tab to ensure the integrity of the model is maintained. Note, if user finds computations slow, the tool calculations should be set to manual. This can be done by going to the Formulas tab on the Excel ribbon, go to Calculation Options and select Manual. To update calculations, user should press F9 or press the "Compute" button in the "Dashboard" tab.
B14: Model Overview
D16: The information flow through the model is described below, starting with the input sheet and moving through the calculation sheets to the primary outputs of the model. The flow of the logic and details in each sheet are described below, as well as the methodology that should be utilised by users of the model.
D18: Worksheet:
D20: User Guide | G20: The User Guide provides a step by step instruction of how to utilise the tool to understand what the potential benefits may be to the farmer. It highlights where to input farm specific data and how to run different scenario's.
D23: Process flow | G23: The Process flow tab illustrates the flow of how the model is built. It is a visual representation that illustrates the sequence of steps and the flow of feedstocks, energy content, conversion factors for each stage of the gasification/pyrolysis process. First stage includes gasification/pyrolysis including clean up and then the second stage is the gas engine (where syngas is further converted into useful heat and electricity). It provides a high-level overview of the process, highlighting the major components, interactions, and relationships involved.
D26: Dashboard | G26: The dashboard allows the user to visualise the results of the model in a meaningful way by adding in inputs to analyse the financial sensitivities of different options. The dashboard is considered as the main interface where the user can input key project characteristics such as volumes of feedstock available per month and the market price of the by-products. The main inputs included to run scenario's are the conversion pathways: Gasification, Fast pyrolysis and Slow pyrolysis. The dashboard illustrates the key metrics important for a projects which include capex costs, operational costs (over the lifetime), total savings (or revenue generated), Return on investment (ROI) %, Debt service cashflows. It also shows the project KPIs: TCO (total cost of ownership), funding split, make up of revenue, and total opex breakdown. A sensitivity analysis graph is available to test sensitivities (+/- 10 %) on the ROI and understand the key drivers.
D28: InpTable | G28: The inpTable is where the inputs for the different conversion pathways are included: Gasification, Fast pyrolysis and Slow pyrolysis. It contains the technical parameters that can be modified such as the yield %, net calorific value (NCV) of the feedstocks and by-products including the gas engine efficiency parameters. This table can be used when the user wants to input or modify specific technical parameters.
D31: InpC | G31: The Inputs Sheet (InpC) is where all the inputs that remain constant and are driving the timing, cash flows and volume flows in the model are presented. It also includes the scenario manager which should be use for running scenarios using different conversion pathways (gasification, slow pyrolysis and fast pyrolysis). - Inputs: in columns K,L and M the inputs for the three pathways and are highlighted in yellow (see key below). Column H includes any relevant comments / notes about the inputs, how they were derived or stores key information, while column G includes the sources of the information relied upon in the analysis. - Add New Scenario: to include a new scenario in the scenario manager (i.e. InpC sheet) copy column J (or other scenario which is to be used as the reference case) and paste into a new column to the right. The inputs you wish to change (e.g. to run a sensitivity on) should then replace the reference case numbers that have been copied across from column J to a new column and highlighted in green (see key below). The name of the new scenario should be input row 6 column N onwards. - Scenario chooser: cell E5 should be used to switch between the scenario's to the right of Column J, inclusive. However, we should note that only users with a financial modelling background should utilise this functionality of the tool to help avoid user errors.
D35: T&E | G35: The T&E sheet is the first calculation sheet (see key below) and has all Time & Escalation (T&E) calculations used to create the various profiles that drive the model. This includes the model timeline, construction and operational flags, as well as inflation indices.
D38: Volumes | G38: This sheet includes the calculations associated with the volume of feedstock available (according to different feedstock types) and its associated energy content. The volume of by-products produced from the conversion process and the calculation for sizing the gas engine for syngas is also calculated here. The total volumes of feedstock are assumed to be fed into the gasifier evenly over the year to ensure a reasonable utilisation of gasifier. Therefore, some storage solution may also be required.
D41: Construction | G41: This sheet includes the calculations associated with capital costs (Capex) required for the gasification process and gas engine. This also includes the development costs (Devex) and the funding required for during the construction process.
D44: Operations | G44: This sheet includes the calculations associated with the operational costs and lifecycle costs for the gasification and gas engine. The operational costs includes three categories: pre-treatment costs (Includes collection costs, transport, storage and pre-treatment), fixed operational & maintenance (O&M) and variable O&M (includes consumables, electricity, disposal costs, labour costs). Operations also consists of the revenue calculation from the by-products of the processes and relative cashflow after debt service (CFADS).
D47: Funding | G47: This sheet includes the calculations associated with the overall funding requirement and sizing the debt and equity to fund the project.
D50: Debt | G50: This sheet includes the calculations associated with the debt drawdown required to fund the project. The debt percentage will determine the debt contribution.
D53: Equity | G53: This sheet calculates the equity requirement for the project based on the capital requirements and financing assumptions. The equity percentage will determine the equity contribution.
D56: Accounting | G56: This sheet calculates the accounting related to the financial statements bringing together the revenue, cost of goods sold (COGS), operating expenses and depreciation to generate an income statement for the non-current asset base.
D59: Tax | G59: This sheet calculates the tax liability or tax expense for this project. It takes into account the tax depreciation, tax losses and corporate tax.
D62: Cashflow waterfall | G62: This sheet tracks and allocates the cash flows of the project taking into account the cash flow available for debt service (CFADS), cash flow available for share capital redemption and the net cash flow.
D65: Financial statements | G65: This sheet calculates the income statement (P&L) and the balance sheet which includes the assets, liabilities and shareholder's equity.
D68: Key outputs | G68: This sheet calculates the key metrics and produces graphs for the debt service, revenue, operating expenses, cashflows, Return on Investment (ROI), Net Present Value (NPV) and Internal Rate of Return (IRR).
D71: Sensitivities | G71: This sheet calculates the impact of varying key inputs or assumptions on the financial outputs such as the Return on Investment (ROI). The assumptions assessed for sensitivity are the feedstock quantity (throughput), capex, opex, revenues, yield %, net calorific values, gas engine availability and the plant capacity sizing. A + / - 10% sensitivity is taken into consideration.
B75: Key
C77: Sheet tab colours and fonts
D79: White font | G79: Disclaimer & Guide sheets
D81: Black font | G81: Input sheets
D83: White font | G83: Calculation sheets
D85: Black font | G85: Graphs and Outputs sheets
C87: Cell font colours
D89: Blue font | G89: Import from another sheet (except to presentational sheets)
D91: Red font | G91: Export to another sheet (except from Input sheets)
C93: Cell shading and borders
G95: Inputs
G97: Calculations in the InpC sheet
G99: Changes to the base case in the scenario manger
G101: Non-changeable inputs
C103: Fonts
D105: 5000 | G105: Currency, numbers and text
D107: 2019-04-01 | G107: Dates
D109: 0.05 | G109: Percentages
G111: Blank row
B113: End of sheet

Sheet Process flow
A1: Key:
C2: Input
C3: Output
C4: Unit
C5: Selector
C6: Process step
A8: VOLUMES
B10: Gasification and Clean-up process | U10: Gas engine (CHP)
H12: x | I12: Yield | J12: = | K12: Biochar | L12: x | M12: Net CV | N12: = | O12: Biochar | W12: x | X12: Conversion factor (3.6) | Y12: = | Z12: Electrical energy available | AA12: x | AB12: Gas engine efficiency | AC12: = | AD12: Electrical output | AE12: / | AF12: Plant availability | AG12: = | AH12: Plant capacity sizing
I13: % | K13: GJ | M13: GJ / t | O13: tonnes | X13: MWh / GJ | Z13: MWh | AB13: percentage | AD13: MWh | AF13: percentage | AH13: MW
B14: Feedstock | D14: Net CV | F14: = | G14: Feedstock
B15: tonnes | C15: x | D15: GJ / t | G15: GJ | H15: x | I15: Yield | J15: = | K15: Syngas | V15: Engine / Heat Recovery Option | AA15: x | AB15: Yield | AC15: = | AD15: Heat
I16: % | K16: GJ | V16: Selector | AB16: % | AD16: GJ
H18: x | I18: Yield | J18: = | K18: Bio-oil | L18: x | M18: Net CV | N18: = | O18: Bio-oil (raw) | P18: x | Q18: Bio-oil (refining process) | R18: = | S18: Bio-oil (refined) (aka wood vinegar) | AA18: x | AB18: Losses | AC18: = | AD18: Losses
I19: % | K19: GJ | M19: GJ / t | O19: tonnes | Q19: factor | S19: tonnes | AB19: % | AD19: GJ
I21: Efficiency loss | J21: = | K21: Losses | S21: Bio-oil (losses)
I22: % | K22: GJ | S22: tonnes
A26: CASHFLOWS
B28: Capex | M28: Opex | V28: Revenue / savings | AC28: Key Viability Metrics:
B31: Pre-treatment, Gasification & Clean-up | E31: Feedstock | F31: x | G31: Capex benchmark | H31: = | I31: Gasification capex | M31: Pre-treatment costs | N31: x | O31: Gasifier capex | P31: = | Q31: Pre-treatment costs | V31: Biochar | W31: x | X31: Market price of biochar | Y31: = | Z31: Biochar sales | AD31: Payback period (years) | AH31: Water reduction potential
E32: tonnes | G32: $/tonne | I32: $ | M32: % of capex | O32: $ | Q32: $ / tonne | V32: tonnes | X32: $ / tonne | Z32: $ | AD32: years | AH32: kL / year
M34: Fixed O&M | N34: x | O34: Gasifier capex | P34: = | Q34: Fixed O&M
M35: % of capex | O35: $ | Q35: % of capex | V35: Bio-oil | W35: x | X35: Market price of bio-oil | Y35: = | Z35: Bio-oil sales | AD35: Return on Investment (ROI) | AH35: Emissions Abated
K36: + | T36: + | V36: tonnes | X36: $ / tonne | Z36: $ | AB36: = | AD36: percentage | AH36: CO2.t / year
M37: Variable O&M | N37: x | O37: Operational hours | P37: = | Q37: Variable O&M
M38: $ / hour | O38: hours | Q38: $ / MWh
AD39: NPV | AH39: Diesel reduction
V40: Electrical output | W40: x | X40: Current cost of electricity | Z40: Electricity savings | AD40: $ | AH40: kL / year
M41: Fixed O&M - Gas engine | N41: x | O41: Gas engine capex | P41: = | Q41: Fixed O&M - Gas engine | V41: MWh | X41: $ / MWh | Z41: $
M42: % of capex | O42: $ | Q42: % of capex
B44: Gas Engine / Heat Recovery Option | E44: Plant capacity sizing | F44: x | G44: Capex benchmark | H44: = | I44: Engine / Heat Recovery Option capex | M44: Variable O&M - Gas engine | N44: x | O44: Electrical output | P44: = | Q44: O&M - Gasification | V44: Useful heat | W44: x | X44: Price of heat | Y44: = | Z44: Heat savings | AD44: Potential gearing | AH44: Soil improvement
E45: MW | G45: $ / MW | I45: $ | M45: $ / MWh | O45: MWh | Q45: $ | V45: GJ | X45: $ / GJ | Z45: $ | AD45: percentage | AH45: KPI
A50: END OF SHEET

Sheet User Guide
A1: =RIGHT(CELL("filename",D2),LEN(CELL("filename",D2))-FIND("]",CELL("filename",D2))) -> User Guide
B3: STEP 1: INPUTS
D6: Step 1: Inputs | G6: A standard set of assumptions have been included within the template model tool. Where available, these should be updated / confirmed with project specific values. The minimum input data required by the user relates to feedstock volumes, along with electricity prices and heat prices, as highlighted in Column Q. If the user changes the input assumptions, the original default value can be seen in the note of each input cell. | M6: Minimum input data required by user
D8: a. Feedstock | E8: i. | G8: Go to tab “InpTable”.
E10: ii. | G10: Input expected monthly feedstock volumes for the different feedstock types in cells E6 to P12, highlighted by the yellow input cell colour. It should be noted that the gas engine is sized assuming that all available feedstock is utilised evenly throughout the year to ensure a reasonable utilisation of the asset. Therefore, some storage for feedstock may be required. | M10: Feedstock volumes
E12: iii. | G12: Update the expected Net Calorific Value (NCV) in column R6 to R12 for each of the expected feedstocks.
E14: iv. | G14: Check that the standard set of assumptions regarding the yield for each feedstock is inline with expectations for Gasification (cell S6 to V12), Fast Pyrolysis (cell Z6 to AG12) and Slow Pyrolysis (cell AL6 to AT12).
E16: v. | G16: Update the gas engine efficiency and useful heat produced by the Combined Heat & Power (CHP) unit if user has had more recent quotes or conversations with suppliers in cell AX6 and AY6, respectively. Note, where the user would like to consider a heat only scenario, the gas engine efficiency should be set to zero, with appropriate changes made to the gas engine capex, opex and any other parameter required for the specific scenario.
E18: vi. | G18: Input average monthly electricity consumption (in MWh), electricity cost (in AUD), gas consumption (in GJ) and gas cost (in AUD) into cells E16 to P19, respectively. This will provide an overview of the user's current annual electricity and gas consumption and costs, the average $/MWh and $/GJ rates currently paid, which is compared to the potential savings in the "Dashboard" tab.
D20: b. Timing | E20: i. | G20: Got to Tab “Dashboard”
E22: ii. | G22: Input Model Start date to cell C9. This should be set as the start of the first calendar year the project starts to be developed.
E24: iii. | G24: Input Development period to cell C10 in months.
E26: iv. | G26: Input expected Construction period to cell C11 in months.
E28: v. | G28: Input expected Asset Life to cell C12 in years. If the asset life is changed to greater than 20 years, the timeline (number of years) on the Opex, Savings and Feedstock graphs will need to be updated as well.
D30: c. Costs | E30: i. | G30: Assumed development costs should be included as a percentage of capex in tab “Dashboard”, cell C15.
E32: ii. | G32: Pre-treatment feedstock costs (e.g. for delivery of straw to the gasifier) should be included in tab “Dashboard”, cell C16 on a $ per tonne basis.
E34: iii. | G34: Capex for the gasification and clean-up equipment should be included in tab “Dashboard”, cell C17 on a $’000/ktpa capacity basis. Where quotes from suppliers are provided for certain sizes of equipment, the $’000/ktpa value should be calculated by the user.
E36: iv. | G36: Capex for the gas engine equipment should be included in tab “Dashboard”, cell C18 on a $’000/MW capacity basis. Where quotes from suppliers are provided for certain sizes of equipment, the $’000/ktpa value should be calculated by the user.
G38: If the project has visibility on other operational costs relating to the gasifier and / or gas engine, the base line assumptions can be updated by going to the “InpC” tab as follows:
E40: v. | G40: Gas Engine availability is a key driver and can be updated in the “Dashboard” tab cell C19.
E42: vi. | G42: Gasifier fixed opex, variable opex and availability can be updated for each of the three process considered (i.e. Gasification, Fast Pyrolysis and Slow Pyrolysis) in the yellow inputs cells in tab “InpC” cells K403 to M405.
E44: vii. | G44: Gas Engine fixed opex and variable opex can be updated for each of the three process in the yellow inputs cells in tab “InpC” cells K410 to M411.
E46: viii. | G46: Total allowance for lifecycle costs should be updated in the “InpC” tab, cells K418 to M148 for each of the three processes.
D48: d. Financing Assumptions | E48: i | G48: Input maximum gearing the user is likely to apply, based on risk appetite, in tab “Dashboard” cell C25.
E50: ii. | G50: Input the project target IRR in tab “Dashboard” cell C26. This should reflect the users hurdle rate for the project.
E52: iii. | G52: All other financing assumptions for debt interest, depreciation and tax rate can be updated from the base case in the tab “InpC”, cells K459 to M493.
D54: e. Market Prices | G54: A standard benchmark has been used for the product market price (as of July 2023). However, these should be updated to reflect latest market conditions or specific user commercial arrangements.
E56: i | G56: Bio-char sales – a benchmark figure has been utilised. This can be updated in tab “Dashboard”, cell C51.
E58: ii. | G58: Bio-oil sales (raw) – a benchmark figure has been utilised. This can be updated in tab “Dashboard”, cell C52.
E60: iii. | G60: Bio-oil sales (pyrolysis) – the refined bio-oil sales is only utilised for fast and slow pyrolysis, where a benchmark figure has been utilised. This can be updated in tab “Dashboard”, cell C53.
E62: iv. | G62: Wood vinegar sales – is only utilised for fast and slow pyrolysis, where a benchmark figure has been utilised. This can be updated in tab “Dashboard”, cell C54.
E64: v. | G64: Electricity savings – the user should input the average $/MWh unit rate they are currently paying for electricity, as this represents the cost avoided from any electricity supplied by the gasification project. This can be updated in tab “Dashboard”, cell C55. Where the user anticipates additional network services may be provided, the average $/MWh should be utilised. | M64: Electricity price
E66: vi. | G66: Heat savings – the user should input the average $/GJ unit rate they are currently paying for heat, as this represents the costs avoided form any heat supplied by the gasification project. This can be updated in tab “Dashboard”, cell C56. | M66: Heat price
B68: STEP 2: RUNNING SCENARIO'S
D70: Step 2: Running scenario's | G70: Three key technologies have been included in this tool which can be run as individual scenarios. Additional sensitivities have also been performed. This should be calculated automatically. However, if the user finds computations slow, the tool calculations should be set to manual. This can be done by going to the Formulas tab on the Excel ribbon, go to 'Calculation Options' and select the 'Manual' option. To update calculations in manual mode, user should press F9 or the "Compute" button on the "Dashboard" tab cell D4 (this should take around 10 seconds to finishing solving all the sensitivities).
D72: a. Changing technology type | E72: i. | G72: The user can switch between scenario’s in tab "Dashboard" in cell C4 using the drop down menu. The default scenario utilises the Gasification technology, along with a Combined Heat & Power (CHP) gas engine.
D74: b. Running sensitivities | E74: i. | G74: Sensitivities for the case being run are presented in the "Dashboard" tab cell AD3 to AL39. This should be calculated automatically. However, if the user finds computations slow, the tool calculations should be set to manual. This can be done by going to the Formulas tab on the Excel ribbon, go to 'Calculation Options' and select the 'Manual' option. To update calculations in manual mode, user should press F9.
B76: STEP 3: OUTPUTS
D78: Step 2: Interpreting outputs | G78: The key outputs can be viewed in the "Dashboard" tab. The intention of these outputs is to give the user a high level understanding of the potential benefits and financial returns of a gasification project, given a specific set of parameters. The definition of some of the key outputs presented in the "Dashboard" tab are highlighted below.
D80: a. Key financial metrics | E80: i. | G80: In cell C22 on the "Dashboard" tab, the Payback Period is calculated by dividing the total construction costs by the average annual net savings to determine the number of years required to recover the initial investment. The payback period is the number of years from the start of operations. The simple payback period from the start of development can also be seen in the "Key outputs" tab, cell E95, along with the payback period from the start of operations in cell E114 of the "Key outputs" tab. The payback period from the start of operations considers the average net cashflow over the debt period only.
E82: ii. | G82: The Return on Investment (ROI) in cell C23 of the "Dashboard" tab, is calculated as the cumulative net cash flows to equity at the end of the project life. This reflects the total net cashflows divided by the initial equity investment. The graphs shown in the "Dashboard" highlight the ROI at years 5, 10, 15 and 20.
E84: iii. | G84: Potential gearing shown in cell C24 of the "Dashboard" tab indicates the ratio of debt to equity that the project cash flows can support.
E86: iv. | G86: The Internal Rate of Return (IRR) (actual) in cell C27 of the "Dashboard" tab, indicates the IRR based on the actual project cashflows. If the IRR (actual) is greater than the IRR (target) in cell C26 of the "Dashboard" tab, the project should be considered further development.
E88: v. | G88: The Net Present Value (NPV) in cell C28 of the "Dashboard" tab, is the present value of all future project cash flows, discounted at the users target rate of return (i.e. IRR (target)). If the NPV is positive the project should be considered for further development. The IRR (target) should be considered as the users hurdle rate, whereby if the NPV is negative, this indicates that the initial equity investment required by the user, may be able to generate a better return if invested in other projects.
D90: b. TCO | E90: i. | G90: The Total Cost of Ownership (TCO) presented in cell C33 of the "Dashboard" tab is the total capex and opex over the project life (e.g. a 20 year period).
D92: c. Average costs | E92: i. | G92: The average capex and opex in cell C36 and C37 of the "Dashboard" tab, respectively presents the capex and opex on a $ / ktpa (1000 tonnes per annum) basis. This allows the overall costs to be compared to other projects on a like for like basis.
D94: d. Average annual opex | E94: i. | G94: The annual opex in cell C24 of the "Dashboard" tab indicates the total annual opex associated with operating and maintaining both the gasifier and the gas engine technology.
D96: e. Funding sources and uses | E96: i. | G96: The total sources in cell C48 of the "Dashboard" tab includes a high level breakdown of the potential sources of funding, including equity (from the user), debt and any subsidies that might be secured.
E98: ii. | G98: The total sources in cell E48 of the "Dashboard" tab includes a high level breakdown of the uses of funding, which includes the costs associated with construction of the gasifier and gas engine technology, as well as any development costs incurred (e.g. permitting and consenting).
D100: f. Project outputs | E100: i. | G100: The total savings in cell E57 of the "Dashboard" tab, represents the total potential revenue from the various outputs of the gasifier project.
E102: ii. | G102: The average emissions abated (tCO2e / year) is provided in cell E58 of the "Dashboard" tab and is estimated by multiplying the volume of electricity generated by a typical grid emissions factor, as this reflects the emissions associated with energy derived from the grid which have been avoided.
D104: g. Current consumption | E104: i. | G104: The current consumption table in cells C61 to C66 in the "Dashboard" tab, highlights the total annual electricity and gas currently consumed by a user and the cost associated with them. This is used as a baseline to compare the potential savings and energy generated by the gasifier project.
A106: End of sheet
B163: End of sheet

Sheet Dashboard
A1: =RIGHT(CELL("filename",D2),LEN(CELL("filename",D2))-FIND("]",CELL("filename",D2))) -> Dashboard
B3: Key Project Characteristics: | E3: Capex ($'000) | L3: Opex ($'000) | U3: Debt service ($'000) | AD3: Sensitivity Analysis | Impact on payback period (years) (+/-10%)
B4: Conversion Pathway
B5: Throughput capacity required (ktpa) | C5: =InpC!E$30 -> 15.6
B6: Gas engine capacity (MW) | C6: =InpC!E$36 -> 1.805161684
B8: Timing | C8: Input
B9: Model start date (date) | C9: 2024-01-01
B10: Development period (months) | C10: 12
B11: Construction period (months) | C11: 24
B12: Asset life (years) | C12: 20
B14: Key Cost Inputs: | C14: Values
B15: Devex (% of capex) | C15: 0.05
B16: Feedstock pre-treatment costs ($/tonne) | C16: 50
B17: Gasification and clean-up capex ($'000/ktpa) | C17: 500
B18: Gas engine capex ($'000/MW) | C18: 300
B19: Gas engine availability | C19: 0.93
B21: Key Financial Viability Metrics: | C21: Values
B22: Payback period (years) | C22: ='Key outputs'!E$114 -> 6.761648647
B23: Return on Investment (ROI) | C23: ='Key outputs'!E$176 -> 4.349876347 | E23: Savings ($'000) | L23: Return on Investment (ROI) (percentage) (over 20 years) | U23: Feedstock (tonnes)
B24: Potential gearing | C24: =Funding!E$53 -> 1.101671735
B25: Applied gearing | C25: 0.5
B26: IRR (target) | C26: 0.08
B27: IRR (actual) | C27: ='Key outputs'!E$185 -> 0.1263588011
B28: NPV ($'000) | C28: ='Key outputs'!E$227 -> 2716.67248
B30: Total Cost of Ownership (TCO): | C30: $'000
B31: Capex | C31: =InpC!E$46 -> 8758.625931
B32: Opex | C32: =( Operations!E244 + Operations!E260 ) * ( Operations!E253 / Operations!E254 ) -> 34336.79191
B33: TCO | C33: =SUM(C31:C32) -> 43095.41784
B35: Average Costs: | C35: $'000 / ktpa
B36: Capex | C36: =C31 / C5 -> 561.4503802
B37: Opex | C37: =C42 / C5 -> 110.0538202
B39: Average Annual Opex: | C39: $'000 / year
B40: =InpC!D$55 -> Total opex - GASIFICATION | C40: =InpC!E$55 -> 1605.6012
B41: =InpC!D$61 -> Total opex - GAS ENGINE | C41: =InpC!E$61 -> 111.2383954 | G41: Project Key Performance Indicators (KPIs):
B42: Annual Opex | C42: =SUM(C40:C41) -> 1716.839595
G43: TCO | N43: Funding | U43: Revenue breakdown | AD43: Total opex breakdown
B44: Funding Sources: | D44: Funding Uses
B45: Debt | C45: =Funding!E$70 -> 4379.312965 | D45: =InpC!D$43 -> Capex - GASIFICATION | E45: =InpC!E$43 -> 7800
B46: Equity | C46: =Funding!E$82 -> 4379.312965 | D46: =InpC!D$44 -> Capex - GAS ENGINE | E46: =InpC!E$44 -> 541.5485053
B47: Subsidies | C47: 0 | D47: =InpC!D$45 -> Devex | E47: =InpC!E$45 -> 417.0774253
B48: Total Sources: | C48: =SUM( C45:C47) -> 8758.625931 | D48: Total Uses | E48: =SUM( E45:E47) -> 8758.625931
B50: Project Outputs (unit): | C50: Product Market Values ($ / unit) | D50: Annual Outputs | E50: Potential Revenues ($'000 / year)
B51: Bio-char sales (tonnes) | C51: 100 | D51: =E51 * 1000 / C51 -> 958.08 | E51: =Operations!E$278 -> 95.808
B52: Bio-oil sales (raw) (tonnes) | C52: 50 | D52: 815.2 | E52: =Operations!E$279 -> 40.76
B53: Bio-oil sales (pyrolysis) (tonnes) | C53: 400 | D53: 0 | E53: =Operations!E$282 -> 0
B54: Wood vinegar sales (tonnes) | C54: 150 | D54: 0 | E54: =Operations!E$283 -> 0
B55: Electricity savings (MWh) | C55: 150 | D55: 14666 | E55: =Operations!E$280 -> 2199.9
B56: Heat savings (GJ) | C56: 10 | D56: 105595.2 | E56: =Operations!E$281 -> 1055.952
B57: Total savings | E57: =SUM(E51:E56) -> 3392.42
B58: Average emissions abated (tCO2e / year) | E58: =Volumes!E971 * InpC!E509 -> 281587.2
B60: Current consumption: | C60: Average annual output | E60: Electricity Production vs Electricity Consumption | M60: Electricity Costs vs Electricity Revenue | V60: Gas Production vs Gas Consumption | AD60: Gas Costs vs Gas Revenue
B61: Electricity consumption (MWh) | C61: =InpTable!R$16 -> 2197.717
B62: Electricity rate ($/MWh) | C62: ='Key outputs'!E$238 -> 249.9998362
B63: Potential electricity production vs consumption | C63: ='Key outputs'!E$261 -> 6.67328869
B64: Gas consumption (GJ) | C64: =InpTable!R$18 -> 10793.07
B65: Gas rate ($/GJ) | C65: ='Key outputs'!E$247 -> 15
B66: Potential gas production vs consumption | C66: ='Key outputs'!E$282 -> 1.113848391
A83: END OF SHEET

Sheet InpTable
A1: Input table:
E3: Feedstock Volumes | R3: Gasification | Z3: Fast Pyrolysis | AF3: Fractional condensation after pyrolysis | AL3: Slow Pyrolysis | AR3: Fractional condensation after pyrolysis | AX3: Gas engine efficiency
B4: Feedstock category | C4: Feedstock type | E4: January | F4: February | G4: March | H4: April | I4: May | J4: June | K4: July | L4: August | M4: September | N4: October | O4: November | P4: December | R4: NCV of feedstock | S4: Syngas | T4: Bio-char | U4: Bio-oil | V4: Losses | W4: NCV of Bio-char | X4: NCV of Bio-oil | Z4: Syngas | AA4: Bio-char | AB4: Bio-oil (raw) | AC4: Losses | AD4: NCV of Bio-char | AE4: NCV of Pyrolysis liquid | AF4: Bio-oil (refined) | AG4: Wood vinegar | AH4: Losses | AI4: NCV of Bio-oil | AJ4: NCV of Wood vinegar | AL4: Syngas | AM4: Bio-char | AN4: Bio-oil (raw) | AO4: Losses | AP4: NCV of Bio-char | AQ4: NCV of Pyrolysis liquid | AR4: Bio-oil (refined) | AS4: Wood vinegar | AT4: Losses | AU4: NCV of Bio-oil | AV4: NCV of Wood vinegar | AX4: Gas engine efficiency | AY4: Useful heat | AZ4: Losses | BA4: Conversion factor
B5: tonnes | C5: tonnes | E5: tonnes | F5: tonnes | G5: tonnes | H5: tonnes | I5: tonnes | J5: tonnes | K5: tonnes | L5: tonnes | M5: tonnes | N5: tonnes | O5: tonnes | P5: tonnes | R5: GJ/tonne | S5: Yield (%) | T5: Yield (%) | U5: Yield (%) | V5: Yield (%) | W5: GJ/tonne | X5: GJ/tonne | Z5: Yield (%) | AA5: Yield (%) | AB5: Yield (%) | AC5: Yield (%) | AD5: GJ/tonne | AE5: GJ/tonne | AF5: Yield (%) | AG5: Yield (%) | AH5: Yield (%) | AI5: GJ/tonne | AJ5: GJ/tonne | AL5: Yield (%) | AM5: Yield (%) | AN5: Yield (%) | AO5: Yield (%) | AP5: GJ/tonne | AQ5: GJ/tonne | AR5: Yield (%) | AS5: Yield (%) | AT5: Yield (%) | AU5: GJ/tonne | AV5: GJ/tonne | AX5: % | AY5: % | AZ5: % | BA5: MWh / GJ
B6: Agricultural residue | C6: Straw | E6: 300 | F6: 300 | G6: 300 | H6: 300 | I6: 300 | J6: 300 | K6: 300 | L6: 300 | M6: 300 | N6: 300 | O6: 300 | P6: 300 | R6: 14 | S6: 0.73 | T6: 0.13 | U6: 0.07 | V6: 0.07 | W6: 25 | X6: 15 | Z6: 0.05 | AA6: 0.25 | AB6: 0.67 | AC6: 0.03 | AD6: 25 | AE6: 15 | AF6: 0.6 | AG6: 0.3 | AH6: 0.1 | AI6: 20 | AJ6: 5 | AL6: 0.3 | AM6: 0.5 | AN6: 0.15 | AO6: 0.05 | AP6: 25 | AQ6: 15 | AR6: 0.6 | AS6: 0.3 | AT6: 0.1 | AU6: 20 | AV6: 5 | AX6: 0.3 | AY6: 0.6 | AZ6: =1 - AX6 - AY6 -> 0.1 | BA6: 3.6
B7: Woody biomass | C7: Wood waste | E7: 1000 | F7: 1000 | G7: 1000 | H7: 1000 | I7: 1000 | J7: 1000 | K7: 1000 | L7: 1000 | M7: 1000 | N7: 1000 | O7: 1000 | P7: 1000 | R7: 14.5 | S7: 0.8 | T7: 0.1 | U7: 0.05 | V7: 0.05 | W7: =W$6 -> 25 | X7: =X$6 -> 15 | Z7: 0.05 | AA7: 0.25 | AB7: 0.67 | AC7: 0.03 | AD7: =AD$6 -> 25 | AE7: 15 | AF7: 0.6 | AG7: 0.3 | AH7: 0.1 | AI7: =AI$6 -> 20 | AJ7: 5 | AL7: 0.32 | AM7: 0.5 | AN7: 0.15 | AO7: 0.03 | AP7: =AP$6 -> 25 | AQ7: 15 | AR7: 0.6 | AS7: 0.3 | AT7: 0.1 | AU7: =AU$6 -> 20 | AV7: 5 | AX7: =AX6 -> 0.3 | AY7: =AY6 -> 0.6 | AZ7: =AZ6 -> 0.1 | BA7: =BA6 -> 3.6
B8: Horticultural residue | C8: Olive pits | E8: 0 | F8: 0 | G8: 0 | H8: 0 | I8: 0 | J8: 0 | K8: 0 | L8: 0 | M8: 0 | N8: 0 | O8: 0 | P8: 0 | R8: 15.5 | S8: 0.8 | T8: 0.1 | U8: 0.05 | V8: 0.05 | W8: =W$6 -> 25 | X8: 15 | Z8: 0.05 | AA8: 0.25 | AB8: 0.67 | AC8: 0.03 | AD8: 25 | AE8: 15 | AF8: 0.7 | AG8: 0.2 | AH8: 0.1 | AI8: 20 | AJ8: 5 | AL8: 0.32 | AM8: 0.5 | AN8: 0.15 | AO8: 0.03 | AP8: 25 | AQ8: 15 | AR8: 0.7 | AS8: 0.2 | AT8: 0.1 | AU8: 20 | AV8: 5 | AX8: =AX7 -> 0.3 | AY8: 0.6 | AZ8: 0.1 | BA8: 3.6
C9: Almond husks | E9: 0 | F9: 0 | G9: 0 | H9: 0 | I9: 0 | J9: 0 | K9: 0 | L9: 0 | M9: 0 | N9: 0 | O9: 0 | P9: 0 | R9: 19 | S9: 0.8 | T9: 0.1 | U9: 0.05 | V9: 0.05 | W9: 25 | X9: 15 | Z9: 0.05 | AA9: 0.25 | AB9: 0.67 | AC9: 0.03 | AD9: 25 | AE9: 15 | AF9: 0.7 | AG9: 0.2 | AH9: 0.1 | AI9: 20 | AJ9: 5 | AL9: 0.32 | AM9: 0.5 | AN9: 0.15 | AO9: 0.03 | AP9: 25 | AQ9: 15 | AR9: 0.7 | AS9: 0.2 | AT9: 0.1 | AU9: 20 | AV9: 5 | AX9: 0.3 | AY9: 0.6 | AZ9: 0.1 | BA9: 3.6
C10: Grape marc | E10: 0 | F10: 0 | G10: 0 | H10: 0 | I10: 0 | J10: 0 | K10: 0 | L10: 0 | M10: 0 | N10: 0 | O10: 0 | P10: 0 | R10: 19.7 | S10: 0.8 | T10: 0.1 | U10: 0.05 | V10: 0.05 | W10: 25 | X10: 15 | Z10: 0.05 | AA10: 0.25 | AB10: 0.67 | AC10: 0.03 | AD10: 25 | AE10: 15 | AF10: 0.7 | AG10: 0.2 | AH10: 0.1 | AI10: 20 | AJ10: 5 | AL10: 0.32 | AM10: 0.5 | AN10: 0.15 | AO10: 0.03 | AP10: 25 | AQ10: 15 | AR10: 0.7 | AS10: 0.2 | AT10: 0.1 | AU10: 20 | AV10: 5 | AX10: 0.3 | AY10: 0.6 | AZ10: 0.1 | BA10: 3.6
C11: Stone fruit pits | E11: 0 | F11: 0 | G11: 0 | H11: 0 | I11: 0 | J11: 0 | K11: 0 | L11: 0 | M11: 0 | N11: 0 | O11: 0 | P11: 0
C12: Sawdust | E12: 0 | F12: 0 | G12: 0 | H12: 0 | I12: 0 | J12: 0 | K12: 0 | L12: 0 | M12: 0 | N12: 0 | O12: 0 | P12: 0
E14: Energy Consumption
B15: Input | C15: Unit | E15: January | F15: February | G15: March | H15: April | I15: May | J15: June | K15: July | L15: August | M15: September | N15: October | O15: November | P15: December | R15: Total
B16: Electricity consumption | C16: MWh | E16: 199.763 | F16: 198.422 | G16: 177.092 | H16: 176.041 | I16: 188.053 | J16: 178.293 | K16: 200.299 | L16: 174.025 | M16: 177.751 | N16: 166.51 | O16: 176.875 | P16: 184.593 | R16: =SUM( E16:P16) -> 2197.717
B17: Electricity cost | C17: $ | E17: 49940.25 | F17: 49605.62 | G17: 44272.9 | H17: 44010.3 | I17: 47013.31 | J17: 44573.24 | K17: 50074.75 | L17: 43506.28 | M17: 44437.72 | N17: 41627.47 | O17: 44218.84 | P17: 46148.21 | R17: =SUM( E17:P17) -> 549428.89
B18: Gas consumption | C18: GJ | E18: 1442.81 | F18: 1340.5 | G18: 1091.15 | H18: 811.23 | I18: 632.21 | J18: 606.87 | K18: 551.45 | L18: 481.44 | M18: 577.75 | N18: 762.61 | O18: 1111.3 | P18: 1383.75 | R18: =SUM( E18:P18) -> 10793.07
B19: Gas cost | C19: $ | E19: 21642.15 | F19: 20107.5 | G19: 16367.25 | H19: 12168.45 | I19: 9483.15 | J19: 9103.05 | K19: 8271.75 | L19: 7221.6 | M19: 8666.25 | N19: 11439.15 | O19: 16669.5 | P19: 20756.25 | R19: =SUM( E19:P19) -> 161896.05
A21: END OF SHEET

Sheet InpC
A1: =RIGHT(CELL("filename",D2),LEN(CELL("filename",D2))-FIND("]",CELL("filename",D2))) -> InpC
C3: Scenario
D5: Scenario chooser | E5: 1 | H5: This refers to the current scenario selected. Scenario's can be selected via the dashboard. | K5: =J5 + 1 -> 1 | L5: =K5 + 1 -> 2 | M5: =L5 + 1 -> 3
D6: Scenario name | E6: =INDEX( J6:N6, , Scenario + 1 ) -> Gasification | F6: name | K6: Gasification | L6: Fast Pyrolysis | M6: Slow Pyrolysis
D8: Input | E8: Constant | F8: Unit | G8: Source | H8: Comment | I8: Total
A10: GLOBAL INPUTS
D12: Model start date | E12: =Dashboard!$C$9 -> 2024-01-01 | F12: date
D13: Months per period | E13: 12 | F13: months
D14: Months in year | E14: 12 | F14: months
D15: Days in year | E15: 365 | F15: days
D16: Hours in a day | E16: 24 | F16: hours
D17: Minutes in hour | E17: 60 | F17: minutes
D18: Cost base | E18: 2021 | F18: year
D19: thousands | E19: 1000 | F19: units
D20: millions | E20: 1000000 | F20: units
D21: bar to kPa | E21: 100 | F21: conversion
D22: kg to lb | E22: 2.20462 | F22: conversion
D23: Model period divisor | E23: =E14 / E13 -> 1 | F23: model periods / year
D24: Debt day count convention | E24: 365 | F24: days
A26: KEY OUTPUTS
B28: VOLUMES
D30: =Volumes!D$172 -> Total annual feedstock available - summary | E30: =Volumes!E$172 -> 15.6 | F30: =Volumes!F$172 -> ktpa
D31: =Volumes!D$959 -> Total energy content of feedstock | E31: =Volumes!E$959 -> 224400 | F31: =Volumes!F$959 -> GJ / year
D32: =Volumes!D$960 -> Total syngas produced | E32: =Volumes!E$960 -> 175992 | F32: =Volumes!F$960 -> GJ / year
D33: =Volumes!D$961 -> Total biochar product | E33: =Volumes!E$961 -> 958.08 | F33: =Volumes!F$961 -> tonnes / year
D34: =Volumes!D$962 -> Total bio-oil product | E34: =Volumes!E$962 -> 815.2 | F34: =Volumes!F$962 -> tonnes / year
D35: =Volumes!D$963 -> Total losses | E35: =Volumes!E$963 -> 12228 | F35: =Volumes!F$963 -> GJ / year
D36: =Volumes!D$972 -> Plant capacity required | E36: =Volumes!E$972 -> 1.805161684 | F36: =Volumes!F$972 -> MW
D37: =Volumes!D$980 -> Maximum electrical output | E37: =Volumes!E$980 -> 14666 | F37: =Volumes!F$980 -> MWh / year
D38: =Volumes!D$981 -> Useful heat produced | E38: =Volumes!E$981 -> 105595.2 | F38: =Volumes!F$981 -> GJ / year
D39: =Volumes!D$982 -> Losses from gas engine | E39: =Volumes!E$982 -> 17599.2 | F39: =Volumes!F$982 -> GJ / year
B41: CONSTRUCTION
D43: =Construction!D$92 -> Capex - GASIFICATION | E43: =Construction!E$92 -> 7800 | F43: =Construction!F$92 -> $'000
D44: =Construction!D$93 -> Capex - GAS ENGINE | E44: =Construction!E$93 -> 541.5485053 | F44: =Construction!F$93 -> $'000
D45: =Construction!D$94 -> Devex | E45: =Construction!E$94 -> 417.0774253 | F45: =Construction!F$94 -> $'000
D46: =Construction!D$96 -> Total funding requirement | E46: =Construction!E$96 -> 8758.625931 | F46: =Construction!F$96 -> $'000
B48: OPERATIONS
D50: Opex - gasification
D51: =Operations!D$240 -> Pre-treatment costs - GASIFICATION | E51: =Operations!E$240 -> 780 | F51: =Operations!F$240 -> $'000 / year
D52: =Operations!D$241 -> Fixed O&M - GASIFICATION | E52: =Operations!E$241 -> 507 | F52: =Operations!F$241 -> $'000 / year
D53: =Operations!D$242 -> Variable O&M - GASIFICATION | E53: =Operations!E$242 -> 162.6012 | F53: =Operations!F$242 -> $'000 / year
D54: =Operations!D$243 -> Lifecyle costs - GASIFICATION | E54: =Operations!E$243 -> 156 | F54: =Operations!F$243 -> $'000 / year
D55: =Operations!D$244 -> Total opex - GASIFICATION | E55: =Operations!E$244 -> 1605.6012 | F55: =Operations!F$244 -> $'000 / year
D57: Opex - gas engine
D58: =Operations!D$257 -> Fixed O&M - GAS ENGINE | E58: =Operations!E$257 -> 27.07742526 | F58: =Operations!F$257 -> $'000 / year
D59: =Operations!D$258 -> Variable O&M - GAS ENGINE | E59: =Operations!E$258 -> 73.33 | F59: =Operations!F$258 -> $'000 / year
D60: =Operations!D$259 -> Lifecyle costs - GAS ENGINE | E60: =Operations!E$259 -> 10.83097011 | F60: =Operations!F$259 -> $'000 / year
D61: =Operations!D$260 -> Total opex - GAS ENGINE | E61: =Operations!E$260 -> 111.2383954 | F61: =Operations!F$260 -> $'000 / year
D63: Opex
D64: =Operations!D$244 -> Total opex - GASIFICATION | E64: =Operations!E$244 -> 1605.6012 | F64: =Operations!F$244 -> $'000 / year
D65: =Operations!D$260 -> Total opex - GAS ENGINE | E65: =Operations!E$260 -> 111.2383954 | F65: =Operations!F$260 -> $'000 / year
D66: Opex | E66: =SUM(E64:E65) -> 1716.839595 | F66: $'000 / year
D68: Revenue
D69: =Operations!D$278 -> Bio-char sales | E69: =Operations!E$278 -> 95.808 | F69: =Operations!F$278 -> $'000 / year
D70: =Operations!D$279 -> Bio-oil sales | E70: =Operations!E$279 -> 40.76 | F70: =Operations!F$279 -> $'000 / year
D71: =Operations!D$280 -> Electricity savings | E71: =Operations!E$280 -> 2199.9 | F71: =Operations!F$280 -> $'000 / year
D72: =Operations!D$281 -> Heat savings | E72: =Operations!E$281 -> 1055.952 | F72: =Operations!F$281 -> $'000 / year
D73: =Operations!D$284 -> Total revenue | E73: =Operations!E$284 -> 3392.42 | F73: =Operations!F$284 -> $'000 / year
A75: KEY DATES
B77: DEVELOPMENT PERIOD
C79: Development dates
D81: Development phase
D82: Development start | E82: =INDEX( J82:N82, , Scenario + 1 ) -> 2024-01-01 | F82: date | K82: =$E$12 -> 2024-01-01 | L82: =$E$12 -> 2024-01-01 | M82: 2024-01-01
D83: Development period | E83: =INDEX( J83:N83, , Scenario + 1 ) -> 12 | F83: months | K83: =Dashboard!$C$10 -> 12 | L83: =Dashboard!$C$10 -> 12 | M83: =Dashboard!$C$10 -> 12
D84: Development end | E84: =INDEX( J84:N84, , Scenario + 1 ) -> 2024-12-31 | F84: date | K84: =IF( K83 = 0, K82, EDATE( K82, K83) -1 ) -> 2024-12-31 | L84: =IF( L83 = 0, L82, EDATE( L82, L83) -1 ) -> 2024-12-31 | M84: =IF( M83 = 0, M82, EDATE( M82, M83) -1 ) -> 2024-12-31
B86: CONSTRUCTION
C88: Construction dates
D90: Construction phase
D91: Construction start | E91: =INDEX( J91:N91, , Scenario + 1 ) -> 2025-01-01 | F91: date | K91: =IF( K83 = 0, K84, K84 + 1 ) -> 2025-01-01 | L91: =IF( L83 = 0, L84, L84 + 1 ) -> 2025-01-01 | M91: =IF( M83 = 0, M84, M84 + 1 ) -> 2025-01-01
D92: Construction period | E92: =INDEX( J92:N92, , Scenario + 1 ) -> 24 | F92: months | K92: =Dashboard!$C$11 -> 24 | L92: =Dashboard!$C$11 -> 24 | M92: =Dashboard!$C$11 -> 24
D93: Construction end | E93: =INDEX( J93:N93, , Scenario + 1 ) -> 2026-12-31 | F93: date | K93: =IF( K92 = 0, K91, EDATE( K91, K92) -1 ) -> 2026-12-31 | L93: =IF( L92 = 0, L91, EDATE( L91, L92) -1 ) -> 2026-12-31 | M93: =IF( M92 = 0, M91, EDATE( M91, M92) -1 ) -> 2026-12-31
B95: OPERATION
C97: Operation dates
D99: Operation phase
D100: Operation start | E100: =INDEX( J100:N100, , Scenario + 1 ) -> 2027-01-01 | F100: date | K100: =IF( K92 = 0, K93, K93 + 1 ) -> 2027-01-01 | L100: =IF( L92 = 0, L93, L93 + 1 ) -> 2027-01-01 | M100: =IF( M92 = 0, M93, M93 + 1 ) -> 2027-01-01
D101: Operation period | E101: =INDEX( J101:N101, , Scenario + 1 ) -> 240 | F101: months | H101: Assume equivalent to asset life. | K101: =$E$14 * K105 -> 240 | L101: =$E$14 * L105 -> 240 | M101: =$E$14 * M105 -> 240
D102: Operation end | E102: =INDEX( J102:N102, , Scenario + 1 ) -> 2046-12-31 | F102: date | K102: =IF( K101 = 0, K100, EDATE( K100, K101) -1 ) -> 2046-12-31 | L102: =IF( L101 = 0, L100, EDATE( L100, L101) -1 ) -> 2046-12-31 | M102: =IF( M101 = 0, M100, EDATE( M100, M101) -1 ) -> 2046-12-31
D104: Asset life
D105: Asset life | E105: =INDEX( J105:N105, , Scenario + 1 ) -> 20 | F105: years | K105: =Dashboard!$C$12 -> 20 | L105: =Dashboard!$C$12 -> 20 | M105: =Dashboard!$C$12 -> 20
B107: DEBT REPAYMENT PERIOD
C109: Debt repayment
D111: Debt repayment
D112: Debt repayment start | E112: =INDEX( J112:N112, , Scenario + 1 ) -> 2027-01-01 | F112: date | K112: =K463 + 1 -> 2027-01-01 | L112: =L463 + 1 -> 2027-01-01 | M112: =M463 + 1 -> 2027-01-01
D113: Debt repayment end | E113: =INDEX( J113:N113, , Scenario + 1 ) -> 2041-12-31 | F113: date | K113: =IF( K464 = 0, K112, EDATE( K112, K464 * 12 ) -1 ) -> 2041-12-31 | L113: =IF( L464 = 0, L112, EDATE( L112, L464 * 12 ) -1 ) -> 2041-12-31 | M113: =IF( M464 = 0, M112, EDATE( M112, M464 * 12 ) -1 ) -> 2041-12-31
A115: FEEDSTOCK
B117: VOLUMES
C119: On-farm
D121: ="Available feedstock - " & InpTable!$C$6 -> Available feedstock - Straw | H121: Quantity of straw available.
D122: January | E122: =INDEX( J122:N122, , Scenario + 1 ) * ( 1 + Sensitivities!$D$16) -> 300 | F122: tonnes | K122: =InpTable!$E$6 -> 300 | L122: =InpTable!$E$6 -> 300 | M122: =InpTable!$E$6 -> 300
D123: February | E123: =INDEX( J123:N123, , Scenario + 1 ) * ( 1 + Sensitivities!$D$16) -> 300 | F123: tonnes | K123: =InpTable!$F$6 -> 300 | L123: =InpTable!$F$6 -> 300 | M123: =InpTable!$F$6 -> 300
D124: March | E124: =INDEX( J124:N124, , Scenario + 1 ) * ( 1 + Sensitivities!$D$16) -> 300 | F124: tonnes | K124: =InpTable!$G$6 -> 300 | L124: =InpTable!$G$6 -> 300 | M124: =InpTable!$G$6 -> 300
D125: April | E125: =INDEX( J125:N125, , Scenario + 1 ) * ( 1 + Sensitivities!$D$16) -> 300 | F125: tonnes | K125: =InpTable!$H$6 -> 300 | L125: =InpTable!$H$6 -> 300 | M125: =InpTable!$H$6 -> 300
D126: May | E126: =INDEX( J126:N126, , Scenario + 1 ) * ( 1 + Sensitivities!$D$16) -> 300 | F126: tonnes | K126: =InpTable!$I$6 -> 300 | L126: =InpTable!$I$6 -> 300 | M126: =InpTable!$I$6 -> 300
D127: June | E127: =INDEX( J127:N127, , Scenario + 1 ) * ( 1 + Sensitivities!$D$16) -> 300 | F127: tonnes | K127: =InpTable!$J$6 -> 300 | L127: =InpTable!$J$6 -> 300 | M127: =InpTable!$J$6 -> 300
D128: July | E128: =INDEX( J128:N128, , Scenario + 1 ) * ( 1 + Sensitivities!$D$16) -> 300 | F128: tonnes | K128: =InpTable!$K$6 -> 300 | L128: =InpTable!$K$6 -> 300 | M128: =InpTable!$K$6 -> 300
D129: August | E129: =INDEX( J129:N129, , Scenario + 1 ) * ( 1 + Sensitivities!$D$16) -> 300 | F129: tonnes | K129: =InpTable!$L$6 -> 300 | L129: =InpTable!$L$6 -> 300 | M129: =InpTable!$L$6 -> 300
D130: September | E130: =INDEX( J130:N130, , Scenario + 1 ) * ( 1 + Sensitivities!$D$16) -> 300 | F130: tonnes | K130: =InpTable!$M$6 -> 300 | L130: =InpTable!$M$6 -> 300 | M130: =InpTable!$M$6 -> 300
D131: October | E131: =INDEX( J131:N131, , Scenario + 1 ) * ( 1 + Sensitivities!$D$16) -> 300 | F131: tonnes | K131: =InpTable!$N$6 -> 300 | L131: =InpTable!$N$6 -> 300 | M131: =InpTable!$N$6 -> 300
D132: November | E132: =INDEX( J132:N132, , Scenario + 1 ) * ( 1 + Sensitivities!$D$16) -> 300 | F132: tonnes | K132: =InpTable!$O$6 -> 300 | L132: =InpTable!$O$6 -> 300 | M132: =InpTable!$O$6 -> 300
D133: December | E133: =INDEX( J133:N133, , Scenario + 1 ) * ( 1 + Sensitivities!$D$16) -> 300 | F133: tonnes | K133: =InpTable!$P$6 -> 300 | L133: =InpTable!$P$6 -> 300 | M133: =InpTable!$P$6 -> 300
D134: =D121 -> Available feedstock - Straw | E134: =SUM(E122:E133) -> 3600 | F134: tonnes
D136: ="Available feedstock - " & InpTable!$C$7 -> Available feedstock - Wood waste | H136: Quantity of timber available.
D137: January | E137: =INDEX( J137:N137, , Scenario + 1 ) * ( 1 + Sensitivities!$D$16) -> 1000 | F137: tonnes | K137: =InpTable!$E$7 -> 1000 | L137: =InpTable!$E$7 -> 1000 | M137: =InpTable!$E$7 -> 1000
D138: February | E138: =INDEX( J138:N138, , Scenario + 1 ) * ( 1 + Sensitivities!$D$16) -> 1000 | F138: tonnes | K138: =InpTable!$F$7 -> 1000 | L138: =InpTable!$F$7 -> 1000 | M138: =InpTable!$F$7 -> 1000
D139: March | E139: =INDEX( J139:N139, , Scenario + 1 ) * ( 1 + Sensitivities!$D$16) -> 1000 | F139: tonnes | K139: =InpTable!$G$7 -> 1000 | L139: =InpTable!$G$7 -> 1000 | M139: =InpTable!$G$7 -> 1000
D140: April | E140: =INDEX( J140:N140, , Scenario + 1 ) * ( 1 + Sensitivities!$D$16) -> 1000 | F140: tonnes | K140: =InpTable!$H$7 -> 1000 | L140: =InpTable!$H$7 -> 1000 | M140: =InpTable!$H$7 -> 1000
D141: May | E141: =INDEX( J141:N141, , Scenario + 1 ) * ( 1 + Sensitivities!$D$16) -> 1000 | F141: tonnes | K141: =InpTable!$I$7 -> 1000 | L141: =InpTable!$I$7 -> 1000 | M141: =InpTable!$I$7 -> 1000
D142: June | E142: =INDEX( J142:N142, , Scenario + 1 ) * ( 1 + Sensitivities!$D$16) -> 1000 | F142: tonnes | K142: =InpTable!$J$7 -> 1000 | L142: =InpTable!$J$7 -> 1000 | M142: =InpTable!$J$7 -> 1000
D143: July | E143: =INDEX( J143:N143, , Scenario + 1 ) * ( 1 + Sensitivities!$D$16) -> 1000 | F143: tonnes | K143: =InpTable!$K$7 -> 1000 | L143: =InpTable!$K$7 -> 1000 | M143: =InpTable!$K$7 -> 1000
D144: August | E144: =INDEX( J144:N144, , Scenario + 1 ) * ( 1 + Sensitivities!$D$16) -> 1000 | F144: tonnes | K144: =InpTable!$L$7 -> 1000 | L144: =InpTable!$L$7 -> 1000 | M144: =InpTable!$L$7 -> 1000
D145: September | E145: =INDEX( J145:N145, , Scenario + 1 ) * ( 1 + Sensitivities!$D$16) -> 1000 | F145: tonnes | K145: =InpTable!$M$7 -> 1000 | L145: =InpTable!$M$7 -> 1000 | M145: =InpTable!$M$7 -> 1000
D146: October | E146: =INDEX( J146:N146, , Scenario + 1 ) * ( 1 + Sensitivities!$D$16) -> 1000 | F146: tonnes | K146: =InpTable!$N$7 -> 1000 | L146: =InpTable!$N$7 -> 1000 | M146: =InpTable!$N$7 -> 1000
D147: November | E147: =INDEX( J147:N147, , Scenario + 1 ) * ( 1 + Sensitivities!$D$16) -> 1000 | F147: tonnes | K147: =InpTable!$O$7 -> 1000 | L147: =InpTable!$O$7 -> 1000 | M147: =InpTable!$O$7 -> 1000
D148: December | E148: =INDEX( J148:N148, , Scenario + 1 ) * ( 1 + Sensitivities!$D$16) -> 1000 | F148: tonnes | K148: =InpTable!$P$7 -> 1000 | L148: =InpTable!$P$7 -> 1000 | M148: =InpTable!$P$7 -> 1000
D149: =D136 -> Available feedstock - Wood waste | E149: =SUM(E137:E148) -> 12000 | F149: tonnes
D151: ="Available feedstock - " & InpTable!$C$8 -> Available feedstock - Olive pits | H151: Quantity of horticulture residue (grapes) available.
D152: January | E152: =INDEX( J152:N152, , Scenario + 1 ) * ( 1 + Sensitivities!$D$16) -> 0 | F152: tonnes | K152: =InpTable!$E$8 -> 0 | L152: =InpTable!$E$8 -> 0 | M152: =InpTable!$E$8 -> 0
D153: February | E153: =INDEX( J153:N153, , Scenario + 1 ) * ( 1 + Sensitivities!$D$16) -> 0 | F153: tonnes | K153: =InpTable!$F$8 -> 0 | L153: =InpTable!$F$8 -> 0 | M153: =InpTable!$F$8 -> 0
D154: March | E154: =INDEX( J154:N154, , Scenario + 1 ) * ( 1 + Sensitivities!$D$16) -> 0 | F154: tonnes | K154: =InpTable!$G$8 -> 0 | L154: =InpTable!$G$8 -> 0 | M154: =InpTable!$G$8 -> 0
D155: April | E155: =INDEX( J155:N155, , Scenario + 1 ) * ( 1 + Sensitivities!$D$16) -> 0 | F155: tonnes | K155: =InpTable!$H$8 -> 0 | L155: =InpTable!$H$8 -> 0 | M155: =InpTable!$H$8 -> 0
D156: May | E156: =INDEX( J156:N156, , Scenario + 1 ) * ( 1 + Sensitivities!$D$16) -> 0 | F156: tonnes | K156: =InpTable!$I$8 -> 0 | L156: =InpTable!$I$8 -> 0 | M156: =InpTable!$I$8 -> 0
D157: June | E157: =INDEX( J157:N157, , Scenario + 1 ) * ( 1 + Sensitivities!$D$16) -> 0 | F157: tonnes | K157: =InpTable!$J$8 -> 0 | L157: =InpTable!$J$8 -> 0 | M157: =InpTable!$J$8 -> 0
D158: July | E158: =INDEX( J158:N158, , Scenario + 1 ) * ( 1 + Sensitivities!$D$16) -> 0 | F158: tonnes | K158: =InpTable!$K$8 -> 0 | L158: =InpTable!$K$8 -> 0 | M158: =InpTable!$K$8 -> 0
D159: August | E159: =INDEX( J159:N159, , Scenario + 1 ) * ( 1 + Sensitivities!$D$16) -> 0 | F159: tonnes | K159: =InpTable!$L$8 -> 0 | L159: =InpTable!$L$8 -> 0 | M159: =InpTable!$L$8 -> 0
D160: September | E160: =INDEX( J160:N160, , Scenario + 1 ) * ( 1 + Sensitivities!$D$16) -> 0 | F160: tonnes | K160: =InpTable!$M$8 -> 0 | L160: =InpTable!$M$8 -> 0 | M160: =InpTable!$M$8 -> 0
D161: October | E161: =INDEX( J161:N161, , Scenario + 1 ) * ( 1 + Sensitivities!$D$16) -> 0 | F161: tonnes | K161: =InpTable!$N$8 -> 0 | L161: =InpTable!$N$8 -> 0 | M161: =InpTable!$N$8 -> 0
D162: November | E162: =INDEX( J162:N162, , Scenario + 1 ) * ( 1 + Sensitivities!$D$16) -> 0 | F162: tonnes | K162: =InpTable!$O$8 -> 0 | L162: =InpTable!$O$8 -> 0 | M162: =InpTable!$O$8 -> 0
D163: December | E163: =INDEX( J163:N163, , Scenario + 1 ) * ( 1 + Sensitivities!$D$16) -> 0 | F163: tonnes | K163: =InpTable!$P$8 -> 0 | L163: =InpTable!$P$8 -> 0 | M163: =InpTable!$P$8 -> 0
D164: =D151 -> Available feedstock - Olive pits | E164: =SUM(E152:E163) -> 0 | F164: tonnes
D166: ="Available feedstock - " & InpTable!$C$9 -> Available feedstock - Almond husks | H166: Quantity of Horticulture residue (olives) available.
D167: January | E167: =INDEX( J167:N167, , Scenario + 1 ) * ( 1 + Sensitivities!$D$16) -> 0 | F167: tonnes | K167: =InpTable!$E$9 -> 0 | L167: =InpTable!$E$9 -> 0 | M167: =InpTable!$E$9 -> 0
D168: February | E168: =INDEX( J168:N168, , Scenario + 1 ) * ( 1 + Sensitivities!$D$16) -> 0 | F168: tonnes | K168: =InpTable!$F$9 -> 0 | L168: =InpTable!$F$9 -> 0 | M168: =InpTable!$F$9 -> 0
D169: March | E169: =INDEX( J169:N169, , Scenario + 1 ) * ( 1 + Sensitivities!$D$16) -> 0 | F169: tonnes | K169: =InpTable!$G$9 -> 0 | L169: =InpTable!$G$9 -> 0 | M169: =InpTable!$G$9 -> 0
D170: April | E170: =INDEX( J170:N170, , Scenario + 1 ) * ( 1 + Sensitivities!$D$16) -> 0 | F170: tonnes | K170: =InpTable!$H$9 -> 0 | L170: =InpTable!$H$9 -> 0 | M170: =InpTable!$H$9 -> 0
D171: May | E171: =INDEX( J171:N171, , Scenario + 1 ) * ( 1 + Sensitivities!$D$16) -> 0 | F171: tonnes | K171: =InpTable!$I$9 -> 0 | L171: =InpTable!$I$9 -> 0 | M171: =InpTable!$I$9 -> 0
D172: June | E172: =INDEX( J172:N172, , Scenario + 1 ) * ( 1 + Sensitivities!$D$16) -> 0 | F172: tonnes | K172: =InpTable!$J$9 -> 0 | L172: =InpTable!$J$9 -> 0 | M172: =InpTable!$J$9 -> 0
D173: July | E173: =INDEX( J173:N173, , Scenario + 1 ) * ( 1 + Sensitivities!$D$16) -> 0 | F173: tonnes | K173: =InpTable!$K$9 -> 0 | L173: =InpTable!$K$9 -> 0 | M173: =InpTable!$K$9 -> 0
D174: August | E174: =INDEX( J174:N174, , Scenario + 1 ) * ( 1 + Sensitivities!$D$16) -> 0 | F174: tonnes | K174: =InpTable!$L$9 -> 0 | L174: =InpTable!$L$9 -> 0 | M174: =InpTable!$L$9 -> 0
D175: September | E175: =INDEX( J175:N175, , Scenario + 1 ) * ( 1 + Sensitivities!$D$16) -> 0 | F175: tonnes | K175: =InpTable!$M$9 -> 0 | L175: =InpTable!$M$9 -> 0 | M175: =InpTable!$M$9 -> 0
D176: October | E176: =INDEX( J176:N176, , Scenario + 1 ) * ( 1 + Sensitivities!$D$16) -> 0 | F176: tonnes | K176: =InpTable!$N$9 -> 0 | L176: =InpTable!$N$9 -> 0 | M176: =InpTable!$N$9 -> 0
D177: November | E177: =INDEX( J177:N177, , Scenario + 1 ) * ( 1 + Sensitivities!$D$16) -> 0 | F177: tonnes | K177: =InpTable!$O$9 -> 0 | L177: =InpTable!$O$9 -> 0 | M177: =InpTable!$O$9 -> 0
D178: December | E178: =INDEX( J178:N178, , Scenario + 1 ) * ( 1 + Sensitivities!$D$16) -> 0 | F178: tonnes | K178: =InpTable!$P$9 -> 0 | L178: =InpTable!$P$9 -> 0 | M178: =InpTable!$P$9 -> 0
D179: =D166 -> Available feedstock - Almond husks | E179: =SUM(E167:E178) -> 0 | F179: tonnes
D181: ="Available feedstock - " & InpTable!$C$10 -> Available feedstock - Grape marc | H181: Quantity of Horticulture residue (apple) available.
D182: January | E182: =INDEX( J182:N182, , Scenario + 1 ) * ( 1 + Sensitivities!$D$16) -> 0 | F182: tonnes | K182: =InpTable!$E$10 -> 0 | L182: =InpTable!$E$10 -> 0 | M182: =InpTable!$E$10 -> 0
D183: February | E183: =INDEX( J183:N183, , Scenario + 1 ) * ( 1 + Sensitivities!$D$16) -> 0 | F183: tonnes | K183: =InpTable!$F$10 -> 0 | L183: =InpTable!$F$10 -> 0 | M183: =InpTable!$F$10 -> 0
D184: March | E184: =INDEX( J184:N184, , Scenario + 1 ) * ( 1 + Sensitivities!$D$16) -> 0 | F184: tonnes | K184: =InpTable!$G$10 -> 0 | L184: =InpTable!$G$10 -> 0 | M184: =InpTable!$G$10 -> 0
D185: April | E185: =INDEX( J185:N185, , Scenario + 1 ) * ( 1 + Sensitivities!$D$16) -> 0 | F185: tonnes | K185: =InpTable!$H$10 -> 0 | L185: =InpTable!$H$10 -> 0 | M185: =InpTable!$H$10 -> 0
D186: May | E186: =INDEX( J186:N186, , Scenario + 1 ) * ( 1 + Sensitivities!$D$16) -> 0 | F186: tonnes | K186: =InpTable!$I$10 -> 0 | L186: =InpTable!$I$10 -> 0 | M186: =InpTable!$I$10 -> 0
D187: June | E187: =INDEX( J187:N187, , Scenario + 1 ) * ( 1 + Sensitivities!$D$16) -> 0 | F187: tonnes | K187: =InpTable!$J$10 -> 0 | L187: =InpTable!$J$10 -> 0 | M187: =InpTable!$J$10 -> 0
D188: July | E188: =INDEX( J188:N188, , Scenario + 1 ) * ( 1 + Sensitivities!$D$16) -> 0 | F188: tonnes | K188: =InpTable!$K$10 -> 0 | L188: =InpTable!$K$10 -> 0 | M188: =InpTable!$K$10 -> 0
D189: August | E189: =INDEX( J189:N189, , Scenario + 1 ) * ( 1 + Sensitivities!$D$16) -> 0 | F189: tonnes | K189: =InpTable!$L$10 -> 0 | L189: =InpTable!$L$10 -> 0 | M189: =InpTable!$L$10 -> 0
D190: September | E190: =INDEX( J190:N190, , Scenario + 1 ) * ( 1 + Sensitivities!$D$16) -> 0 | F190: tonnes | K190: =InpTable!$M$10 -> 0 | L190: =InpTable!$M$10 -> 0 | M190: =InpTable!$M$10 -> 0
D191: October | E191: =INDEX( J191:N191, , Scenario + 1 ) * ( 1 + Sensitivities!$D$16) -> 0 | F191: tonnes | K191: =InpTable!$N$10 -> 0 | L191: =InpTable!$N$10 -> 0 | M191: =InpTable!$N$10 -> 0
D192: November | E192: =INDEX( J192:N192, , Scenario + 1 ) * ( 1 + Sensitivities!$D$16) -> 0 | F192: tonnes | K192: =InpTable!$O$10 -> 0 | L192: =InpTable!$O$10 -> 0 | M192: =InpTable!$O$10 -> 0
D193: December | E193: =INDEX( J193:N193, , Scenario + 1 ) * ( 1 + Sensitivities!$D$16) -> 0 | F193: tonnes | K193: =InpTable!$P$10 -> 0 | L193: =InpTable!$P$10 -> 0 | M193: =InpTable!$P$10 -> 0
D194: =D181 -> Available feedstock - Grape marc | E194: =SUM(E182:E193) -> 0 | F194: tonnes
D196: ="Available feedstock - " & InpTable!$C$11 -> Available feedstock - Stone fruit pits
D197: January | E197: =INDEX( J197:N197, , Scenario + 1 ) * ( 1 + Sensitivities!$D$16) -> 0 | F197: tonnes | K197: =InpTable!$E$11 -> 0 | L197: =InpTable!$E$11 -> 0 | M197: =InpTable!$E$11 -> 0
D198: February | E198: =INDEX( J198:N198, , Scenario + 1 ) * ( 1 + Sensitivities!$D$16) -> 0 | F198: tonnes | K198: =InpTable!$F$11 -> 0 | L198: =InpTable!$F$11 -> 0 | M198: =InpTable!$F$11 -> 0
D199: March | E199: =INDEX( J199:N199, , Scenario + 1 ) * ( 1 + Sensitivities!$D$16) -> 0 | F199: tonnes | K199: =InpTable!$G$11 -> 0 | L199: =InpTable!$G$11 -> 0 | M199: =InpTable!$G$11 -> 0
D200: April | E200: =INDEX( J200:N200, , Scenario + 1 ) * ( 1 + Sensitivities!$D$16) -> 0 | F200: tonnes | K200: =InpTable!$H$11 -> 0 | L200: =InpTable!$H$11 -> 0 | M200: =InpTable!$H$11 -> 0
D201: May | E201: =INDEX( J201:N201, , Scenario + 1 ) * ( 1 + Sensitivities!$D$16) -> 0 | F201: tonnes | K201: =InpTable!$I$11 -> 0 | L201: =InpTable!$I$11 -> 0 | M201: =InpTable!$I$11 -> 0
D202: June | E202: =INDEX( J202:N202, , Scenario + 1 ) * ( 1 + Sensitivities!$D$16) -> 0 | F202: tonnes | K202: =InpTable!$J$11 -> 0 | L202: =InpTable!$J$11 -> 0 | M202: =InpTable!$J$11 -> 0
D203: July | E203: =INDEX( J203:N203, , Scenario + 1 ) * ( 1 + Sensitivities!$D$16) -> 0 | F203: tonnes | K203: =InpTable!$K$11 -> 0 | L203: =InpTable!$K$11 -> 0 | M203: =InpTable!$K$11 -> 0
D204: August | E204: =INDEX( J204:N204, , Scenario + 1 ) * ( 1 + Sensitivities!$D$16) -> 0 | F204: tonnes | K204: =InpTable!$L$11 -> 0 | L204: =InpTable!$L$11 -> 0 | M204: =InpTable!$L$11 -> 0
D205: September | E205: =INDEX( J205:N205, , Scenario + 1 ) * ( 1 + Sensitivities!$D$16) -> 0 | F205: tonnes | K205: =InpTable!$M$11 -> 0 | L205: =InpTable!$M$11 -> 0 | M205: =InpTable!$M$11 -> 0
D206: October | E206: =INDEX( J206:N206, , Scenario + 1 ) * ( 1 + Sensitivities!$D$16) -> 0 | F206: tonnes | K206: =InpTable!$N$11 -> 0 | L206: =InpTable!$N$11 -> 0 | M206: =InpTable!$N$11 -> 0
D207: November | E207: =INDEX( J207:N207, , Scenario + 1 ) * ( 1 + Sensitivities!$D$16) -> 0 | F207: tonnes | K207: =InpTable!$O$11 -> 0 | L207: =InpTable!$O$11 -> 0 | M207: =InpTable!$O$11 -> 0
D208: December | E208: =INDEX( J208:N208, , Scenario + 1 ) * ( 1 + Sensitivities!$D$16) -> 0 | F208: tonnes | K208: =InpTable!$P$11 -> 0 | L208: =InpTable!$P$11 -> 0 | M208: =InpTable!$P$11 -> 0
D209: =D196 -> Available feedstock - Stone fruit pits | E209: =SUM(E197:E208) -> 0 | F209: tonnes
D211: ="Available feedstock - " & InpTable!$C$12 -> Available feedstock - Sawdust
D212: January | E212: =INDEX( J212:N212, , Scenario + 1 ) * ( 1 + Sensitivities!$D$16) -> 0 | F212: tonnes | K212: =InpTable!$E$12 -> 0 | L212: =InpTable!$E$12 -> 0 | M212: =InpTable!$E$12 -> 0
D213: February | E213: =INDEX( J213:N213, , Scenario + 1 ) * ( 1 + Sensitivities!$D$16) -> 0 | F213: tonnes | K213: =InpTable!$F$12 -> 0 | L213: =InpTable!$F$12 -> 0 | M213: =InpTable!$F$12 -> 0
D214: March | E214: =INDEX( J214:N214, , Scenario + 1 ) * ( 1 + Sensitivities!$D$16) -> 0 | F214: tonnes | K214: =InpTable!$G$12 -> 0 | L214: =InpTable!$G$12 -> 0 | M214: =InpTable!$G$12 -> 0
D215: April | E215: =INDEX( J215:N215, , Scenario + 1 ) * ( 1 + Sensitivities!$D$16) -> 0 | F215: tonnes | K215: =InpTable!$H$12 -> 0 | L215: =InpTable!$H$12 -> 0 | M215: =InpTable!$H$12 -> 0
D216: May | E216: =INDEX( J216:N216, , Scenario + 1 ) * ( 1 + Sensitivities!$D$16) -> 0 | F216: tonnes | K216: =InpTable!$I$12 -> 0 | L216: =InpTable!$I$12 -> 0 | M216: =InpTable!$I$12 -> 0
D217: June | E217: =INDEX( J217:N217, , Scenario + 1 ) * ( 1 + Sensitivities!$D$16) -> 0 | F217: tonnes | K217: =InpTable!$J$12 -> 0 | L217: =InpTable!$J$12 -> 0 | M217: =InpTable!$J$12 -> 0
D218: July | E218: =INDEX( J218:N218, , Scenario + 1 ) * ( 1 + Sensitivities!$D$16) -> 0 | F218: tonnes | K218: =InpTable!$K$12 -> 0 | L218: =InpTable!$K$12 -> 0 | M218: =InpTable!$K$12 -> 0
D219: August | E219: =INDEX( J219:N219, , Scenario + 1 ) * ( 1 + Sensitivities!$D$16) -> 0 | F219: tonnes | K219: =InpTable!$L$12 -> 0 | L219: =InpTable!$L$12 -> 0 | M219: =InpTable!$L$12 -> 0
D220: September | E220: =INDEX( J220:N220, , Scenario + 1 ) * ( 1 + Sensitivities!$D$16) -> 0 | F220: tonnes | K220: =InpTable!$M$12 -> 0 | L220: =InpTable!$M$12 -> 0 | M220: =InpTable!$M$12 -> 0
D221: October | E221: =INDEX( J221:N221, , Scenario + 1 ) * ( 1 + Sensitivities!$D$16) -> 0 | F221: tonnes | K221: =InpTable!$N$12 -> 0 | L221: =InpTable!$N$12 -> 0 | M221: =InpTable!$N$12 -> 0
D222: November | E222: =INDEX( J222:N222, , Scenario + 1 ) * ( 1 + Sensitivities!$D$16) -> 0 | F222: tonnes | K222: =InpTable!$O$12 -> 0 | L222: =InpTable!$O$12 -> 0 | M222: =InpTable!$O$12 -> 0
D223: December | E223: =INDEX( J223:N223, , Scenario + 1 ) * ( 1 + Sensitivities!$D$16) -> 0 | F223: tonnes | K223: =InpTable!$P$12 -> 0 | L223: =InpTable!$P$12 -> 0 | M223: =InpTable!$P$12 -> 0
D224: =D211 -> Available feedstock - Sawdust | E224: =SUM(E212:E223) -> 0 | F224: tonnes
A226: PRODUCTION
B228: ENERGY CONVERSION
C230: Net Calorific Values (CV)
D232: Straw
D233: ="Net CV - " & InpTable!C6 -> Net CV - Straw | E233: =INDEX( J233:N233, , Scenario + 1 ) * ( 1 + Sensitivities!$D$46 ) -> 14 | F233: GJ / tonnes | K233: =InpTable!$R$6 -> 14 | L233: =InpTable!$R$6 -> 14 | M233: =InpTable!$R$6 -> 14
D234: ="Net CV - " & InpTable!C7 -> Net CV - Wood waste | E234: =INDEX( J234:N234, , Scenario + 1 ) * ( 1 + Sensitivities!$D$46 ) -> 14.5 | F234: GJ / tonnes | K234: =InpTable!$R$7 -> 14.5 | L234: =InpTable!$R$7 -> 14.5 | M234: =InpTable!$R$7 -> 14.5
D235: ="Net CV - " & InpTable!C8 -> Net CV - Olive pits | E235: =INDEX( J235:N235, , Scenario + 1 ) * ( 1 + Sensitivities!$D$46 ) -> 15.5 | F235: GJ / tonnes | K235: =InpTable!$R$8 -> 15.5 | L235: =InpTable!$R$8 -> 15.5 | M235: =InpTable!$R$8 -> 15.5
D236: ="Net CV - " & InpTable!C9 -> Net CV - Almond husks | E236: =INDEX( J236:N236, , Scenario + 1 ) * ( 1 + Sensitivities!$D$46 ) -> 19 | F236: GJ / tonnes | K236: =InpTable!$R$9 -> 19 | L236: =InpTable!$R$9 -> 19 | M236: =InpTable!$R$9 -> 19
D237: ="Net CV - " & InpTable!C10 -> Net CV - Grape marc | E237: =INDEX( J237:N237, , Scenario + 1 ) * ( 1 + Sensitivities!$D$46 ) -> 19.7 | F237: GJ / tonnes | K237: =InpTable!$R$10 -> 19.7 | L237: =InpTable!$R$10 -> 19.7 | M237: =InpTable!$R$10 -> 19.7
D238: ="Net CV - " & InpTable!C11 -> Net CV - Stone fruit pits | E238: =INDEX( J238:N238, , Scenario + 1 ) * ( 1 + Sensitivities!$D$46 ) -> 0 | F238: GJ / tonnes | K238: =InpTable!$R$11 -> 0 | L238: =InpTable!$R$11 -> 0 | M238: =InpTable!$R$11 -> 0
D239: ="Net CV - " & InpTable!C12 -> Net CV - Sawdust | E239: =INDEX( J239:N239, , Scenario + 1 ) * ( 1 + Sensitivities!$D$46 ) -> 0 | F239: GJ / tonnes | K239: =InpTable!$R$12 -> 0 | L239: =InpTable!$R$12 -> 0 | M239: =InpTable!$R$12 -> 0
D241: Bio-char
D242: Net CV - bio-char | E242: =INDEX( J242:N242, , Scenario + 1 ) * ( 1 + Sensitivities!$D$46 ) -> 25 | F242: GJ / tonnes | H242: Assuming biochar and bio-oil CV are the same. | K242: =InpTable!$W$6 -> 25 | L242: =InpTable!$W$6 -> 25 | M242: =InpTable!$W$6 -> 25
D244: Bio-oil
D245: Net CV - bio-oil (raw) | E245: =INDEX( J245:N245, , Scenario + 1 ) * ( 1 + Sensitivities!$D$46 ) -> 15 | F245: GJ / tonnes | K245: =InpTable!$X$6 -> 15 | L245: =InpTable!$AE$6 -> 15 | M245: =InpTable!$AQ$6 -> 15
... 192 more rows

Sheet T&E
A1: =RIGHT(CELL("filename",D2),LEN(CELL("filename",D2))-FIND("]",CELL("filename",D2))) -> T&E
D3: =D$26 -> Model period beginning | E3: =E$26 -> 0 | F3: date | G3: 0 | H3: 0 | I3: 0 | J3: 0 | K3: 2024-01-01 | L3: 2025-01-01 | M3: 2026-01-01 | N3: 2027-01-01 | O3: 2028-01-01 | P3: 2029-01-01 | Q3: 2030-01-01 | R3: 2031-01-01 | S3: 2032-01-01 | T3: 2033-01-01 | U3: 2034-01-01 | V3: 2035-01-01 | W3: 2036-01-01 | X3: 2037-01-01 | Y3: 2038-01-01 | Z3: 2039-01-01 | AA3: 2040-01-01 | AB3: 2041-01-01 | AC3: 2042-01-01 | AD3: 2043-01-01 | AE3: 2044-01-01 | AF3: 2045-01-01 | AG3: 2046-01-01 | AH3: 2047-01-01 | AI3: 2048-01-01 | AJ3: 2049-01-01 | AK3: 2050-01-01 | AL3: 2051-01-01 | AM3: 2052-01-01 | AN3: 2053-01-01 | AO3: 2054-01-01 | AP3: 2055-01-01 | AQ3: 2056-01-01 | AR3: 2057-01-01 | AS3: 2058-01-01 | AT3: 2059-01-01 | AU3: 2060-01-01 | AV3: 2061-01-01 | AW3: 2062-01-01 | AX3: 2063-01-01 | AY3: 2064-01-01 | AZ3: 2065-01-01 | BA3: 2066-01-01 | BB3: 2067-01-01 | BC3: 2068-01-01 | BD3: 2069-01-01 | BE3: 2070-01-01 | BF3: 2071-01-01 | BG3: 2072-01-01 | BH3: 2073-01-01 | BI3: 2074-01-01 | BJ3: 2075-01-01 | BK3: 2076-01-01 | BL3: 2077-01-01 | BM3: 2078-01-01 | BN3: 2079-01-01 | BO3: 2080-01-01 | BP3: 2081-01-01 | BQ3: =BQ$26 -> 2082-01-01 | BR3: 2083-01-01 | BS3: 2084-01-01 | BT3: 2085-01-01 | BU3: 2086-01-01 | BV3: 2087-01-01 | BW3: 2088-01-01 | BX3: 2089-01-01 | BY3: 2090-01-01 | BZ3: 2091-01-01 | CA3: 2092-01-01 | CB3: 2093-01-01 | CC3: 2094-01-01 | CD3: 2095-01-01 | CE3: 2096-01-01 | CF3: 2097-01-01 | CG3: 2098-01-01 | CH3: 2099-01-01 | CI3: 2100-01-01 | CJ3: 2101-01-01 | CK3: 2102-01-01 | CL3: 2103-01-01 | CM3: 2104-01-01 | CN3: 2105-01-01 | CO3: 2106-01-01 | CP3: 2107-01-01 | CQ3: 2108-01-01 | CR3: 2109-01-01 | CS3: 2110-01-01 | CT3: 2111-01-01 | CU3: 2112-01-01 | CV3: 2113-01-01 | CW3: 2114-01-01 | CX3: 2115-01-01 | CY3: 2116-01-01 | CZ3: 2117-01-01 | DA3: 2118-01-01 | DB3: 2119-01-01 | DC3: 2120-01-01 | DD3: 2121-01-01 | DE3: 2122-01-01 | DF3: 2123-01-01 | DG3: 2124-01-01 | DH3: 2125-01-01 | DI3: 2126-01-01 | DJ3: 2127-01-01 | DK3: 2128-01-01 | DL3: 2129-01-01 | DM3: 2130-01-01 | DN3: 2131-01-01 | DO3: 2132-01-01 | DP3: 2133-01-01 | DQ3: 2134-01-01 | DR3: 2135-01-01 | DS3: 2136-01-01 | DT3: 2137-01-01 | DU3: 2138-01-01 | DV3: 2139-01-01 | DW3: 2140-01-01 | DX3: 2141-01-01 | DY3: 2142-01-01 | DZ3: 2143-01-01 | EA3: 2144-01-01 | EB3: 2145-01-01 | EC3: =EC$26 -> 2146-01-01 | ED3: 2147-01-01 | EE3: 2148-01-01 | EF3: 2149-01-01 | EG3: 2150-01-01 | EH3: 2151-01-01 | EI3: 2152-01-01 | EJ3: 2153-01-01 | EK3: 2154-01-01 | EL3: 2155-01-01 | EM3: 2156-01-01 | EN3: 2157-01-01 | EO3: 2158-01-01 | EP3: 2159-01-01 | EQ3: 2160-01-01 | ER3: 2161-01-01 | ES3: 2162-01-01 | ET3: 2163-01-01 | EU3: 2164-01-01 | EV3: 2165-01-01 | EW3: 2166-01-01 | EX3: 2167-01-01 | EY3: 2168-01-01 | EZ3: 2169-01-01 | FA3: 2170-01-01 | FB3: 2171-01-01 | FC3: 2172-01-01 | FD3: 2173-01-01 | FE3: 2174-01-01 | FF3: 2175-01-01 | FG3: 2176-01-01 | FH3: 2177-01-01 | FI3: 2178-01-01 | FJ3: 2179-01-01 | FK3: 2180-01-01 | FL3: 2181-01-01 | FM3: 2182-01-01 | FN3: 2183-01-01 | FO3: 2184-01-01 | FP3: 2185-01-01 | FQ3: 2186-01-01 | FR3: 2187-01-01 | FS3: 2188-01-01 | FT3: 2189-01-01 | FU3: 2190-01-01 | FV3: 2191-01-01 | FW3: 2192-01-01 | FX3: 2193-01-01 | FY3: 2194-01-01 | FZ3: 2195-01-01 | GA3: 2196-01-01 | GB3: 2197-01-01 | GC3: 2198-01-01 | GD3: 2199-01-01 | GE3: 2200-01-01 | GF3: 2201-01-01 | GG3: 2202-01-01 | GH3: 2203-01-01 | GI3: 2204-01-01 | GJ3: 2205-01-01 | GK3: 2206-01-01 | GL3: 2207-01-01 | GM3: 2208-01-01 | GN3: 2209-01-01 | GO3: =GO$26 -> 2210-01-01 | GP3: 2211-01-01 | GQ3: 2212-01-01 | GR3: 2213-01-01 | GS3: 2214-01-01 | GT3: 2215-01-01 | GU3: 2216-01-01 | GV3: 2217-01-01 | GW3: 2218-01-01 | GX3: 2219-01-01 | GY3: 2220-01-01 | GZ3: 2221-01-01 | HA3: 2222-01-01 | HB3: 2223-01-01 | HC3: 2224-01-01 | HD3: 2225-01-01 | HE3: 2226-01-01 | HF3: 2227-01-01 | HG3: 2228-01-01 | HH3: 2229-01-01 | HI3: 2230-01-01 | HJ3: 2231-01-01 | HK3: 2232-01-01 | HL3: 2233-01-01 | HM3: 2234-01-01 | HN3: 2235-01-01 | HO3: 2236-01-01 | HP3: 2237-01-01 | HQ3: 2238-01-01 | HR3: 2239-01-01 | HS3: 2240-01-01 | HT3: 2241-01-01 | HU3: 2242-01-01 | HV3: 2243-01-01 | HW3: 2244-01-01 | HX3: 2245-01-01 | HY3: 2246-01-01 | HZ3: 2247-01-01 | IA3: 2248-01-01 | IB3: 2249-01-01 | IC3: 2250-01-01 | ID3: 2251-01-01 | IE3: 2252-01-01 | IF3: 2253-01-01 | IG3: 2254-01-01 | IH3: 2255-01-01 | II3: 2256-01-01 | IJ3: 2257-01-01 | IK3: 2258-01-01 | IL3: 2259-01-01 | IM3: 2260-01-01 | IN3: 2261-01-01 | IO3: 2262-01-01 | IP3: 2263-01-01 | IQ3: 2264-01-01 | IR3: 2265-01-01 | IS3: 2266-01-01 | IT3: 2267-01-01 | IU3: 2268-01-01 | IV3: 2269-01-01 | IW3: 2270-01-01 | IX3: 2271-01-01 | IY3: 2272-01-01 | IZ3: 2273-01-01 | JA3: =JA$26 -> 2274-01-01 | JB3: 2275-01-01 | JC3: 2276-01-01 | JD3: 2277-01-01 | JE3: 2278-01-01 | JF3: 2279-01-01 | JG3: 2280-01-01 | JH3: 2281-01-01 | JI3: 2282-01-01 | JJ3: 2283-01-01 | JK3: 2284-01-01 | JL3: 2285-01-01 | JM3: 2286-01-01 | JN3: 2287-01-01 | JO3: 2288-01-01 | JP3: 2289-01-01 | JQ3: 2290-01-01 | JR3: 2291-01-01 | JS3: 2292-01-01 | JT3: 2293-01-01 | JU3: 2294-01-01 | JV3: 2295-01-01 | JW3: 2296-01-01 | JX3: 2297-01-01 | JY3: 2298-01-01 | JZ3: 2299-01-01 | KA3: 2300-01-01 | KB3: 2301-01-01 | KC3: 2302-01-01 | KD3: 2303-01-01 | KE3: 2304-01-01 | KF3: 2305-01-01 | KG3: 2306-01-01 | KH3: 2307-01-01 | KI3: 2308-01-01 | KJ3: 2309-01-01 | KK3: 2310-01-01 | KL3: 2311-01-01 | KM3: 2312-01-01 | KN3: 2313-01-01 | KO3: 2314-01-01 | KP3: 2315-01-01 | KQ3: 2316-01-01 | KR3: 2317-01-01 | KS3: 2318-01-01 | KT3: 2319-01-01 | KU3: 2320-01-01 | KV3: 2321-01-01 | KW3: 2322-01-01 | KX3: 2323-01-01 | KY3: 2324-01-01 | KZ3: 2325-01-01 | LA3: 2326-01-01 | LB3: 2327-01-01 | LC3: 2328-01-01 | LD3: 2329-01-01 | LE3: 2330-01-01 | LF3: 2331-01-01 | LG3: 2332-01-01 | LH3: 2333-01-01 | LI3: 2334-01-01 | LJ3: 2335-01-01 | LK3: 2336-01-01 | LL3: 2337-01-01 | LM3: =LM$26 -> 2338-01-01 | LN3: 2339-01-01 | LO3: 2340-01-01 | LP3: 2341-01-01 | LQ3: 2342-01-01 | LR3: 2343-01-01 | LS3: 2344-01-01 | LT3: 2345-01-01 | LU3: 2346-01-01 | LV3: 2347-01-01 | LW3: 2348-01-01 | LX3: 2349-01-01 | LY3: 2350-01-01 | LZ3: 2351-01-01 | MA3: 2352-01-01 | MB3: 2353-01-01 | MC3: 2354-01-01 | MD3: 2355-01-01 | ME3: 2356-01-01 | MF3: 2357-01-01 | MG3: 2358-01-01 | MH3: 2359-01-01 | MI3: 2360-01-01 | MJ3: 2361-01-01 | MK3: 2362-01-01 | ML3: 2363-01-01 | MM3: 2364-01-01 | MN3: 2365-01-01 | MO3: 2366-01-01 | MP3: 2367-01-01 | MQ3: 2368-01-01 | MR3: 2369-01-01 | MS3: 2370-01-01 | MT3: 2371-01-01 | MU3: 2372-01-01 | MV3: 2373-01-01 | MW3: 2374-01-01 | MX3: 2375-01-01 | MY3: 2376-01-01 | MZ3: 2377-01-01 | NA3: 2378-01-01 | NB3: 2379-01-01 | NC3: 2380-01-01 | ND3: 2381-01-01 | NE3: 2382-01-01 | NF3: 2383-01-01 | NG3: 2384-01-01 | NH3: 2385-01-01 | NI3: 2386-01-01 | NJ3: 2387-01-01 | NK3: 2388-01-01 | NL3: 2389-01-01 | NM3: 2390-01-01 | NN3: 2391-01-01 | NO3: 2392-01-01 | NP3: 2393-01-01 | NQ3: 2394-01-01 | NR3: 2395-01-01 | NS3: 2396-01-01 | NT3: 2397-01-01 | NU3: 2398-01-01 | NV3: 2399-01-01 | NW3: 2400-01-01 | NX3: 2401-01-01 | NY3: =NY$26 -> 2402-01-01 | NZ3: 2403-01-01 | OA3: 2404-01-01 | OB3: 2405-01-01 | OC3: 2406-01-01 | OD3: 2407-01-01 | OE3: 2408-01-01 | OF3: 2409-01-01 | OG3: 2410-01-01 | OH3: 2411-01-01 | OI3: 2412-01-01 | OJ3: 2413-01-01 | OK3: 2414-01-01 | OL3: 2415-01-01 | OM3: 2416-01-01 | ON3: 2417-01-01 | OO3: 2418-01-01 | OP3: 2419-01-01 | OQ3: 2420-01-01 | OR3: 2421-01-01 | OS3: 2422-01-01 | OT3: 2423-01-01 | OU3: 2424-01-01 | OV3: 2425-01-01 | OW3: 2426-01-01 | OX3: 2427-01-01 | OY3: 2428-01-01 | OZ3: 2429-01-01 | PA3: 2430-01-01 | PB3: 2431-01-01 | PC3: 2432-01-01 | PD3: 2433-01-01 | PE3: 2434-01-01 | PF3: 2435-01-01 | PG3: 2436-01-01 | PH3: 2437-01-01 | PI3: 2438-01-01 | PJ3: 2439-01-01 | PK3: 2440-01-01 | PL3: 2441-01-01 | PM3: 2442-01-01 | PN3: 2443-01-01 | PO3: 2444-01-01 | PP3: 2445-01-01 | PQ3: 2446-01-01 | PR3: 2447-01-01 | PS3: 2448-01-01 | PT3: 2449-01-01 | PU3: 2450-01-01 | PV3: 2451-01-01 | PW3: 2452-01-01 | PX3: 2453-01-01 | PY3: 2454-01-01 | PZ3: 2455-01-01 | QA3: 2456-01-01 | QB3: 2457-01-01 | QC3: 2458-01-01 | QD3: 2459-01-01 | QE3: 2460-01-01 | QF3: 2461-01-01 | QG3: 2462-01-01 | QH3: 2463-01-01 | QI3: 2464-01-01 | QJ3: 2465-01-01 | QK3: =QK$26 -> 2466-01-01 | QL3: 2467-01-01 | QM3: 2468-01-01 | QN3: 2469-01-01 | QO3: 2470-01-01 | QP3: 2471-01-01 | QQ3: 2472-01-01 | QR3: 2473-01-01 | QS3: 2474-01-01 | QT3: 2475-01-01 | QU3: 2476-01-01 | QV3: 2477-01-01 | QW3: 2478-01-01 | QX3: 2479-01-01 | QY3: 2480-01-01 | QZ3: 2481-01-01 | RA3: 2482-01-01 | RB3: 2483-01-01 | RC3: 2484-01-01 | RD3: 2485-01-01 | RE3: 2486-01-01 | RF3: 2487-01-01 | RG3: 2488-01-01 | RH3: 2489-01-01 | RI3: 2490-01-01 | RJ3: 2491-01-01 | RK3: 2492-01-01 | RL3: 2493-01-01 | RM3: 2494-01-01 | RN3: 2495-01-01 | RO3: 2496-01-01 | RP3: 2497-01-01 | RQ3: 2498-01-01 | RR3: 2499-01-01 | RS3: 2500-01-01 | RT3: 2501-01-01 | RU3: 2502-01-01 | RV3: 2503-01-01 | RW3: 2504-01-01 | RX3: 2505-01-01 | RY3: 2506-01-01 | RZ3: 2507-01-01 | SA3: 2508-01-01 | SB3: 2509-01-01 | SC3: 2510-01-01 | SD3: 2511-01-01 | SE3: 2512-01-01 | SF3: 2513-01-01 | SG3: 2514-01-01 | SH3: 2515-01-01 | SI3: 2516-01-01 | SJ3: 2517-01-01 | SK3: 2518-01-01 | SL3: 2519-01-01 | SM3: 2520-01-01 | SN3: 2521-01-01 | SO3: 2522-01-01 | SP3: 2523-01-01 | SQ3: 2524-01-01 | SR3: 2525-01-01 | SS3: 2526-01-01 | ST3: 2527-01-01 | SU3: 2528-01-01 | SV3: 2529-01-01 | SW3: =SW$26 -> 2530-01-01 | SX3: 2531-01-01 | SY3: 2532-01-01 | SZ3: 2533-01-01 | TA3: 2534-01-01 | TB3: 2535-01-01 | TC3: 2536-01-01 | TD3: 2537-01-01 | TE3: 2538-01-01 | TF3: 2539-01-01 | TG3: 2540-01-01 | TH3: 2541-01-01 | TI3: 2542-01-01 | TJ3: 2543-01-01 | TK3: 2544-01-01 | TL3: 2545-01-01 | TM3: 2546-01-01 | TN3: 2547-01-01 | TO3: 2548-01-01 | TP3: 2549-01-01 | TQ3: 2550-01-01 | TR3: 2551-01-01 | TS3: 2552-01-01 | TT3: 2553-01-01 | TU3: 2554-01-01 | TV3: 2555-01-01 | TW3: 2556-01-01 | TX3: 2557-01-01 | TY3: 2558-01-01 | TZ3: 2559-01-01 | UA3: 2560-01-01 | UB3: 2561-01-01 | UC3: 2562-01-01 | UD3: 2563-01-01 | UE3: 2564-01-01 | UF3: 2565-01-01 | UG3: 2566-01-01 | UH3: 2567-01-01 | UI3: 2568-01-01 | UJ3: 2569-01-01 | UK3: 2570-01-01 | UL3: 2571-01-01 | UM3: 2572-01-01 | UN3: 2573-01-01 | UO3: 2574-01-01 | UP3: 2575-01-01 | UQ3: 2576-01-01 | UR3: 2577-01-01 | US3: 2578-01-01 | UT3: 2579-01-01 | UU3: 2580-01-01 | UV3: 2581-01-01 | UW3: 2582-01-01 | UX3: 2583-01-01 | UY3: 2584-01-01 | UZ3: 2585-01-01 | VA3: 2586-01-01 | VB3: 2587-01-01 | VC3: 2588-01-01 | VD3: 2589-01-01 | VE3: 2590-01-01 | VF3: 2591-01-01 | VG3: 2592-01-01 | VH3: 2593-01-01 | VI3: =VI$26 -> 2594-01-01 | VJ3: 2595-01-01 | VK3: 2596-01-01 | VL3: 2597-01-01 | VM3: 2598-01-01 | VN3: 2599-01-01 | VO3: 2600-01-01 | VP3: 2601-01-01 | VQ3: 2602-01-01 | VR3: 2603-01-01 | VS3: 2604-01-01 | VT3: 2605-01-01 | VU3: 2606-01-01 | VV3: 2607-01-01 | VW3: 2608-01-01 | VX3: 2609-01-01 | VY3: 2610-01-01 | VZ3: 2611-01-01 | WA3: 2612-01-01 | WB3: 2613-01-01 | WC3: 2614-01-01 | WD3: 2615-01-01 | WE3: 2616-01-01 | WF3: 2617-01-01 | WG3: 2618-01-01 | WH3: 2619-01-01 | WI3: 2620-01-01 | WJ3: 2621-01-01 | WK3: 2622-01-01 | WL3: 2623-01-01 | WM3: 2624-01-01 | WN3: 2625-01-01 | WO3: 2626-01-01 | WP3: 2627-01-01 | WQ3: 2628-01-01 | WR3: 2629-01-01 | WS3: 2630-01-01 | WT3: 2631-01-01 | WU3: 2632-01-01 | WV3: 2633-01-01 | WW3: 2634-01-01 | WX3: 2635-01-01 | WY3: 2636-01-01 | WZ3: 2637-01-01 | XA3: 2638-01-01 | XB3: 2639-01-01 | XC3: 2640-01-01 | XD3: 2641-01-01 | XE3: 2642-01-01 | XF3: 2643-01-01 | XG3: 2644-01-01 | XH3: 2645-01-01 | XI3: 2646-01-01 | XJ3: 2647-01-01 | XK3: 2648-01-01 | XL3: 2649-01-01 | XM3: 2650-01-01 | XN3: 2651-01-01 | XO3: 2652-01-01 | XP3: 2653-01-01 | XQ3: 2654-01-01 | XR3: 2655-01-01 | XS3: 2656-01-01 | XT3: 2657-01-01 | XU3: =XU$26 -> 2658-01-01 | XV3: 2659-01-01 | XW3: 2660-01-01 | XX3: 2661-01-01 | XY3: 2662-01-01 | XZ3: 2663-01-01 | YA3: 2664-01-01 | YB3: 2665-01-01 | YC3: 2666-01-01 | YD3: 2667-01-01 | YE3: 2668-01-01 | YF3: 2669-01-01 | YG3: 2670-01-01 | YH3: 2671-01-01 | YI3: 2672-01-01 | YJ3: 2673-01-01 | YK3: 2674-01-01 | YL3: 2675-01-01 | YM3: 2676-01-01 | YN3: 2677-01-01 | YO3: 2678-01-01 | YP3: 2679-01-01 | YQ3: 2680-01-01 | YR3: 2681-01-01 | YS3: 2682-01-01 | YT3: 2683-01-01 | YU3: 2684-01-01 | YV3: 2685-01-01 | YW3: 2686-01-01 | YX3: 2687-01-01 | YY3: 2688-01-01 | YZ3: 2689-01-01 | ZA3: 2690-01-01 | ZB3: 2691-01-01 | ZC3: 2692-01-01 | ZD3: 2693-01-01 | ZE3: 2694-01-01 | ZF3: 2695-01-01 | ZG3: 2696-01-01 | ZH3: 2697-01-01 | ZI3: 2698-01-01 | ZJ3: 2699-01-01 | ZK3: 2700-01-01 | ZL3: 2701-01-01 | ZM3: 2702-01-01 | ZN3: 2703-01-01 | ZO3: 2704-01-01 | ZP3: 2705-01-01 | ZQ3: 2706-01-01 | ZR3: 2707-01-01 | ZS3: 2708-01-01 | ZT3: 2709-01-01 | ZU3: 2710-01-01 | ZV3: 2711-01-01 | ZW3: 2712-01-01 | ZX3: 2713-01-01 | ZY3: 2714-01-01 | ZZ3: 2715-01-01 | AAA3: 2716-01-01 | AAB3: 2717-01-01 | AAC3: 2718-01-01 | AAD3: 2719-01-01 | AAE3: 2720-01-01 | AAF3: 2721-01-01 | AAG3: =AAG$26 -> 2722-01-01 | AAH3: 2723-01-01 | AAI3: 2724-01-01 | AAJ3: 2725-01-01 | AAK3: 2726-01-01 | AAL3: 2727-01-01 | AAM3: 2728-01-01 | AAN3: 2729-01-01 | AAO3: 2730-01-01 | AAP3: 2731-01-01 | AAQ3: 2732-01-01 | AAR3: 2733-01-01 | AAS3: 2734-01-01 | AAT3: 2735-01-01 | AAU3: 2736-01-01 | AAV3: 2737-01-01 | AAW3: 2738-01-01 | AAX3: 2739-01-01 | AAY3: 2740-01-01 | AAZ3: 2741-01-01 | ABA3: 2742-01-01 | ABB3: 2743-01-01 | ABC3: 2744-01-01 | ABD3: 2745-01-01 | ABE3: 2746-01-01 | ABF3: 2747-01-01 | ABG3: 2748-01-01 | ABH3: 2749-01-01 | ABI3: 2750-01-01 | ABJ3: 2751-01-01 | ABK3: 2752-01-01 | ABL3: 2753-01-01 | ABM3: 2754-01-01 | ABN3: 2755-01-01 | ABO3: 2756-01-01 | ABP3: 2757-01-01 | ABQ3: 2758-01-01 | ABR3: 2759-01-01 | ABS3: 2760-01-01 | ABT3: 2761-01-01 | ABU3: 2762-01-01 | ABV3: 2763-01-01 | ABW3: 2764-01-01 | ABX3: 2765-01-01 | ABY3: 2766-01-01 | ABZ3: 2767-01-01 | ACA3: 2768-01-01 | ACB3: 2769-01-01 | ACC3: 2770-01-01 | ACD3: 2771-01-01 | ACE3: 2772-01-01 | ACF3: 2773-01-01 | ACG3: 2774-01-01 | ACH3: 2775-01-01 | ACI3: 2776-01-01 | ACJ3: 2777-01-01 | ACK3: 2778-01-01 | ACL3: 2779-01-01 | ACM3: 2780-01-01 | ACN3: 2781-01-01 | ACO3: 2782-01-01 | ACP3: 2783-01-01 | ACQ3: 2784-01-01 | ACR3: 2785-01-01 | ACS3: =ACS$26 -> 2786-01-01 | ACT3: 2787-01-01 | ACU3: 2788-01-01 | ACV3: 2789-01-01 | ACW3: 2790-01-01 | ACX3: 2791-01-01 | ACY3: 2792-01-01 | ACZ3: 2793-01-01 | ADA3: 2794-01-01 | ADB3: 2795-01-01 | ADC3: 2796-01-01 | ADD3: 2797-01-01 | ADE3: 2798-01-01 | ADF3: 2799-01-01 | ADG3: 2800-01-01 | ADH3: 2801-01-01 | ADI3: 2802-01-01 | ADJ3: 2803-01-01 | ADK3: 2804-01-01 | ADL3: 2805-01-01 | ADM3: 2806-01-01 | ADN3: 2807-01-01 | ADO3: 2808-01-01 | ADP3: 2809-01-01 | ADQ3: 2810-01-01 | ADR3: 2811-01-01 | ADS3: 2812-01-01 | ADT3: 2813-01-01 | ADU3: 2814-01-01 | ADV3: 2815-01-01 | ADW3: 2816-01-01 | ADX3: 2817-01-01 | ADY3: 2818-01-01 | ADZ3: 2819-01-01 | AEA3: 2820-01-01 | AEB3: 2821-01-01 | AEC3: 2822-01-01 | AED3: 2823-01-01 | AEE3: 2824-01-01 | AEF3: 2825-01-01 | AEG3: 2826-01-01 | AEH3: 2827-01-01 | AEI3: 2828-01-01 | AEJ3: 2829-01-01 | AEK3: 2830-01-01 | AEL3: 2831-01-01 | AEM3: 2832-01-01 | AEN3: 2833-01-01 | AEO3: 2834-01-01 | AEP3: 2835-01-01 | AEQ3: 2836-01-01 | AER3: 2837-01-01 | AES3: 2838-01-01 | AET3: 2839-01-01 | AEU3: 2840-01-01 | AEV3: 2841-01-01 | AEW3: 2842-01-01 | AEX3: 2843-01-01 | AEY3: 2844-01-01 | AEZ3: 2845-01-01 | AFA3: 2846-01-01 | AFB3: 2847-01-01 | AFC3: 2848-01-01 | AFD3: 2849-01-01 | AFE3: =AFE$26 -> 2850-01-01 | AFF3: 2851-01-01 | AFG3: 2852-01-01 | AFH3: 2853-01-01 | AFI3: 2854-01-01 | AFJ3: 2855-01-01 | AFK3: 2856-01-01 | AFL3: 2857-01-01 | AFM3: 2858-01-01 | AFN3: 2859-01-01 | AFO3: 2860-01-01 | AFP3: 2861-01-01 | AFQ3: 2862-01-01 | AFR3: 2863-01-01 | AFS3: 2864-01-01 | AFT3: 2865-01-01 | AFU3: 2866-01-01 | AFV3: 2867-01-01 | AFW3: 2868-01-01 | AFX3: 2869-01-01 | AFY3: 2870-01-01 | AFZ3: 2871-01-01 | AGA3: 2872-01-01 | AGB3: 2873-01-01 | AGC3: 2874-01-01 | AGD3: 2875-01-01 | AGE3: 2876-01-01 | AGF3: 2877-01-01 | AGG3: 2878-01-01 | AGH3: 2879-01-01 | AGI3: 2880-01-01 | AGJ3: 2881-01-01 | AGK3: 2882-01-01 | AGL3: 2883-01-01 | AGM3: 2884-01-01 | AGN3: 2885-01-01 | AGO3: 2886-01-01 | AGP3: 2887-01-01 | AGQ3: 2888-01-01 | AGR3: 2889-01-01 | AGS3: 2890-01-01 | AGT3: 2891-01-01 | AGU3: 2892-01-01 | AGV3: 2893-01-01 | AGW3: 2894-01-01 | AGX3: 2895-01-01 | AGY3: 2896-01-01 | AGZ3: 2897-01-01 | AHA3: 2898-01-01 | AHB3: 2899-01-01 | AHC3: 2900-01-01 | AHD3: 2901-01-01 | AHE3: 2902-01-01 | AHF3: 2903-01-01 | AHG3: 2904-01-01 | AHH3: 2905-01-01 | AHI3: 2906-01-01 | AHJ3: 2907-01-01 | AHK3: 2908-01-01 | AHL3: 2909-01-01 | AHM3: 2910-01-01 | AHN3: 2911-01-01 | AHO3: 2912-01-01 | AHP3: 2913-01-01 | AHQ3: =AHQ$26 -> 2914-01-01 | AHR3: 2915-01-01 | AHS3: 2916-01-01 | AHT3: 2917-01-01 | AHU3: 2918-01-01 | AHV3: 2919-01-01 | AHW3: 2920-01-01 | AHX3: 2921-01-01 | AHY3: 2922-01-01 | AHZ3: 2923-01-01 | AIA3: 2924-01-01 | AIB3: 2925-01-01 | AIC3: 2926-01-01 | AID3: 2927-01-01 | AIE3: 2928-01-01 | AIF3: 2929-01-01 | AIG3: 2930-01-01 | AIH3: 2931-01-01 | AII3: 2932-01-01 | AIJ3: 2933-01-01 | AIK3: 2934-01-01 | AIL3: 2935-01-01 | AIM3: 2936-01-01 | AIN3: 2937-01-01 | AIO3: 2938-01-01 | AIP3: 2939-01-01 | AIQ3: 2940-01-01 | AIR3: 2941-01-01 | AIS3: 2942-01-01 | AIT3: 2943-01-01 | AIU3: 2944-01-01 | AIV3: 2945-01-01 | AIW3: 2946-01-01 | AIX3: 2947-01-01 | AIY3: 2948-01-01 | AIZ3: 2949-01-01 | AJA3: 2950-01-01 | AJB3: 2951-01-01 | AJC3: 2952-01-01 | AJD3: 2953-01-01 | AJE3: 2954-01-01 | AJF3: 2955-01-01 | AJG3: 2956-01-01 | AJH3: 2957-01-01 | AJI3: 2958-01-01 | AJJ3: 2959-01-01 | AJK3: 2960-01-01 | AJL3: 2961-01-01 | AJM3: 2962-01-01 | AJN3: 2963-01-01 | AJO3: 2964-01-01 | AJP3: 2965-01-01 | AJQ3: 2966-01-01 | AJR3: 2967-01-01 | AJS3: 2968-01-01 | AJT3: 2969-01-01 | AJU3: 2970-01-01 | AJV3: 2971-01-01 | AJW3: 2972-01-01 | AJX3: 2973-01-01 | AJY3: 2974-01-01 | AJZ3: 2975-01-01 | AKA3: 2976-01-01 | AKB3: 2977-01-01 | AKC3: =AKC$26 -> 2978-01-01 | AKD3: 2979-01-01 | AKE3: 2980-01-01 | AKF3: 2981-01-01 | AKG3: 2982-01-01 | AKH3: 2983-01-01
D4: =D$31 -> Model period ending | E4: =E$31 -> 0 | F4: date | G4: 0 | H4: 0 | I4: 0 | J4: 0 | K4: 2024-12-31 | L4: 2025-12-31 | M4: 2026-12-31 | N4: 2027-12-31 | O4: 2028-12-31 | P4: 2029-12-31 | Q4: 2030-12-31 | R4: 2031-12-31 | S4: 2032-12-31 | T4: 2033-12-31 | U4: 2034-12-31 | V4: 2035-12-31 | W4: 2036-12-31 | X4: 2037-12-31 | Y4: 2038-12-31 | Z4: 2039-12-31 | AA4: 2040-12-31 | AB4: 2041-12-31 | AC4: 2042-12-31 | AD4: 2043-12-31 | AE4: 2044-12-31 | AF4: 2045-12-31 | AG4: 2046-12-31 | AH4: 2047-12-31 | AI4: 2048-12-31 | AJ4: 2049-12-31 | AK4: 2050-12-31 | AL4: 2051-12-31 | AM4: 2052-12-31 | AN4: 2053-12-31 | AO4: 2054-12-31 | AP4: 2055-12-31 | AQ4: 2056-12-31 | AR4: 2057-12-31 | AS4: 2058-12-31 | AT4: 2059-12-31 | AU4: 2060-12-31 | AV4: 2061-12-31 | AW4: 2062-12-31 | AX4: 2063-12-31 | AY4: 2064-12-31 | AZ4: 2065-12-31 | BA4: 2066-12-31 | BB4: 2067-12-31 | BC4: 2068-12-31 | BD4: 2069-12-31 | BE4: 2070-12-31 | BF4: 2071-12-31 | BG4: 2072-12-31 | BH4: 2073-12-31 | BI4: 2074-12-31 | BJ4: 2075-12-31 | BK4: 2076-12-31 | BL4: 2077-12-31 | BM4: 2078-12-31 | BN4: 2079-12-31 | BO4: 2080-12-31 | BP4: 2081-12-31 | BQ4: =BQ$31 -> 2082-12-31 | BR4: 2083-12-31 | BS4: 2084-12-31 | BT4: 2085-12-31 | BU4: 2086-12-31 | BV4: 2087-12-31 | BW4: 2088-12-31 | BX4: 2089-12-31 | BY4: 2090-12-31 | BZ4: 2091-12-31 | CA4: 2092-12-31 | CB4: 2093-12-31 | CC4: 2094-12-31 | CD4: 2095-12-31 | CE4: 2096-12-31 | CF4: 2097-12-31 | CG4: 2098-12-31 | CH4: 2099-12-31 | CI4: 2100-12-31 | CJ4: 2101-12-31 | CK4: 2102-12-31 | CL4: 2103-12-31 | CM4: 2104-12-31 | CN4: 2105-12-31 | CO4: 2106-12-31 | CP4: 2107-12-31 | CQ4: 2108-12-31 | CR4: 2109-12-31 | CS4: 2110-12-31 | CT4: 2111-12-31 | CU4: 2112-12-31 | CV4: 2113-12-31 | CW4: 2114-12-31 | CX4: 2115-12-31 | CY4: 2116-12-31 | CZ4: 2117-12-31 | DA4: 2118-12-31 | DB4: 2119-12-31 | DC4: 2120-12-31 | DD4: 2121-12-31 | DE4: 2122-12-31 | DF4: 2123-12-31 | DG4: 2124-12-31 | DH4: 2125-12-31 | DI4: 2126-12-31 | DJ4: 2127-12-31 | DK4: 2128-12-31 | DL4: 2129-12-31 | DM4: 2130-12-31 | DN4: 2131-12-31 | DO4: 2132-12-31 | DP4: 2133-12-31 | DQ4: 2134-12-31 | DR4: 2135-12-31 | DS4: 2136-12-31 | DT4: 2137-12-31 | DU4: 2138-12-31 | DV4: 2139-12-31 | DW4: 2140-12-31 | DX4: 2141-12-31 | DY4: 2142-12-31 | DZ4: 2143-12-31 | EA4: 2144-12-31 | EB4: 2145-12-31 | EC4: =EC$31 -> 2146-12-31 | ED4: 2147-12-31 | EE4: 2148-12-31 | EF4: 2149-12-31 | EG4: 2150-12-31 | EH4: 2151-12-31 | EI4: 2152-12-31 | EJ4: 2153-12-31 | EK4: 2154-12-31 | EL4: 2155-12-31 | EM4: 2156-12-31 | EN4: 2157-12-31 | EO4: 2158-12-31 | EP4: 2159-12-31 | EQ4: 2160-12-31 | ER4: 2161-12-31 | ES4: 2162-12-31 | ET4: 2163-12-31 | EU4: 2164-12-31 | EV4: 2165-12-31 | EW4: 2166-12-31 | EX4: 2167-12-31 | EY4: 2168-12-31 | EZ4: 2169-12-31 | FA4: 2170-12-31 | FB4: 2171-12-31 | FC4: 2172-12-31 | FD4: 2173-12-31 | FE4: 2174-12-31 | FF4: 2175-12-31 | FG4: 2176-12-31 | FH4: 2177-12-31 | FI4: 2178-12-31 | FJ4: 2179-12-31 | FK4: 2180-12-31 | FL4: 2181-12-31 | FM4: 2182-12-31 | FN4: 2183-12-31 | FO4: 2184-12-31 | FP4: 2185-12-31 | FQ4: 2186-12-31 | FR4: 2187-12-31 | FS4: 2188-12-31 | FT4: 2189-12-31 | FU4: 2190-12-31 | FV4: 2191-12-31 | FW4: 2192-12-31 | FX4: 2193-12-31 | FY4: 2194-12-31 | FZ4: 2195-12-31 | GA4: 2196-12-31 | GB4: 2197-12-31 | GC4: 2198-12-31 | GD4: 2199-12-31 | GE4: 2200-12-31 | GF4: 2201-12-31 | GG4: 2202-12-31 | GH4: 2203-12-31 | GI4: 2204-12-31 | GJ4: 2205-12-31 | GK4: 2206-12-31 | GL4: 2207-12-31 | GM4: 2208-12-31 | GN4: 2209-12-31 | GO4: =GO$31 -> 2210-12-31 | GP4: 2211-12-31 | GQ4: 2212-12-31 | GR4: 2213-12-31 | GS4: 2214-12-31 | GT4: 2215-12-31 | GU4: 2216-12-31 | GV4: 2217-12-31 | GW4: 2218-12-31 | GX4: 2219-12-31 | GY4: 2220-12-31 | GZ4: 2221-12-31 | HA4: 2222-12-31 | HB4: 2223-12-31 | HC4: 2224-12-31 | HD4: 2225-12-31 | HE4: 2226-12-31 | HF4: 2227-12-31 | HG4: 2228-12-31 | HH4: 2229-12-31 | HI4: 2230-12-31 | HJ4: 2231-12-31 | HK4: 2232-12-31 | HL4: 2233-12-31 | HM4: 2234-12-31 | HN4: 2235-12-31 | HO4: 2236-12-31 | HP4: 2237-12-31 | HQ4: 2238-12-31 | HR4: 2239-12-31 | HS4: 2240-12-31 | HT4: 2241-12-31 | HU4: 2242-12-31 | HV4: 2243-12-31 | HW4: 2244-12-31 | HX4: 2245-12-31 | HY4: 2246-12-31 | HZ4: 2247-12-31 | IA4: 2248-12-31 | IB4: 2249-12-31 | IC4: 2250-12-31 | ID4: 2251-12-31 | IE4: 2252-12-31 | IF4: 2253-12-31 | IG4: 2254-12-31 | IH4: 2255-12-31 | II4: 2256-12-31 | IJ4: 2257-12-31 | IK4: 2258-12-31 | IL4: 2259-12-31 | IM4: 2260-12-31 | IN4: 2261-12-31 | IO4: 2262-12-31 | IP4: 2263-12-31 | IQ4: 2264-12-31 | IR4: 2265-12-31 | IS4: 2266-12-31 | IT4: 2267-12-31 | IU4: 2268-12-31 | IV4: 2269-12-31 | IW4: 2270-12-31 | IX4: 2271-12-31 | IY4: 2272-12-31 | IZ4: 2273-12-31 | JA4: =JA$31 -> 2274-12-31 | JB4: 2275-12-31 | JC4: 2276-12-31 | JD4: 2277-12-31 | JE4: 2278-12-31 | JF4: 2279-12-31 | JG4: 2280-12-31 | JH4: 2281-12-31 | JI4: 2282-12-31 | JJ4: 2283-12-31 | JK4: 2284-12-31 | JL4: 2285-12-31 | JM4: 2286-12-31 | JN4: 2287-12-31 | JO4: 2288-12-31 | JP4: 2289-12-31 | JQ4: 2290-12-31 | JR4: 2291-12-31 | JS4: 2292-12-31 | JT4: 2293-12-31 | JU4: 2294-12-31 | JV4: 2295-12-31 | JW4: 2296-12-31 | JX4: 2297-12-31 | JY4: 2298-12-31 | JZ4: 2299-12-31 | KA4: 2300-12-31 | KB4: 2301-12-31 | KC4: 2302-12-31 | KD4: 2303-12-31 | KE4: 2304-12-31 | KF4: 2305-12-31 | KG4: 2306-12-31 | KH4: 2307-12-31 | KI4: 2308-12-31 | KJ4: 2309-12-31 | KK4: 2310-12-31 | KL4: 2311-12-31 | KM4: 2312-12-31 | KN4: 2313-12-31 | KO4: 2314-12-31 | KP4: 2315-12-31 | KQ4: 2316-12-31 | KR4: 2317-12-31 | KS4: 2318-12-31 | KT4: 2319-12-31 | KU4: 2320-12-31 | KV4: 2321-12-31 | KW4: 2322-12-31 | KX4: 2323-12-31 | KY4: 2324-12-31 | KZ4: 2325-12-31 | LA4: 2326-12-31 | LB4: 2327-12-31 | LC4: 2328-12-31 | LD4: 2329-12-31 | LE4: 2330-12-31 | LF4: 2331-12-31 | LG4: 2332-12-31 | LH4: 2333-12-31 | LI4: 2334-12-31 | LJ4: 2335-12-31 | LK4: 2336-12-31 | LL4: 2337-12-31 | LM4: =LM$31 -> 2338-12-31 | LN4: 2339-12-31 | LO4: 2340-12-31 | LP4: 2341-12-31 | LQ4: 2342-12-31 | LR4: 2343-12-31 | LS4: 2344-12-31 | LT4: 2345-12-31 | LU4: 2346-12-31 | LV4: 2347-12-31 | LW4: 2348-12-31 | LX4: 2349-12-31 | LY4: 2350-12-31 | LZ4: 2351-12-31 | MA4: 2352-12-31 | MB4: 2353-12-31 | MC4: 2354-12-31 | MD4: 2355-12-31 | ME4: 2356-12-31 | MF4: 2357-12-31 | MG4: 2358-12-31 | MH4: 2359-12-31 | MI4: 2360-12-31 | MJ4: 2361-12-31 | MK4: 2362-12-31 | ML4: 2363-12-31 | MM4: 2364-12-31 | MN4: 2365-12-31 | MO4: 2366-12-31 | MP4: 2367-12-31 | MQ4: 2368-12-31 | MR4: 2369-12-31 | MS4: 2370-12-31 | MT4: 2371-12-31 | MU4: 2372-12-31 | MV4: 2373-12-31 | MW4: 2374-12-31 | MX4: 2375-12-31 | MY4: 2376-12-31 | MZ4: 2377-12-31 | NA4: 2378-12-31 | NB4: 2379-12-31 | NC4: 2380-12-31 | ND4: 2381-12-31 | NE4: 2382-12-31 | NF4: 2383-12-31 | NG4: 2384-12-31 | NH4: 2385-12-31 | NI4: 2386-12-31 | NJ4: 2387-12-31 | NK4: 2388-12-31 | NL4: 2389-12-31 | NM4: 2390-12-31 | NN4: 2391-12-31 | NO4: 2392-12-31 | NP4: 2393-12-31 | NQ4: 2394-12-31 | NR4: 2395-12-31 | NS4: 2396-12-31 | NT4: 2397-12-31 | NU4: 2398-12-31 | NV4: 2399-12-31 | NW4: 2400-12-31 | NX4: 2401-12-31 | NY4: =NY$31 -> 2402-12-31 | NZ4: 2403-12-31 | OA4: 2404-12-31 | OB4: 2405-12-31 | OC4: 2406-12-31 | OD4: 2407-12-31 | OE4: 2408-12-31 | OF4: 2409-12-31 | OG4: 2410-12-31 | OH4: 2411-12-31 | OI4: 2412-12-31 | OJ4: 2413-12-31 | OK4: 2414-12-31 | OL4: 2415-12-31 | OM4: 2416-12-31 | ON4: 2417-12-31 | OO4: 2418-12-31 | OP4: 2419-12-31 | OQ4: 2420-12-31 | OR4: 2421-12-31 | OS4: 2422-12-31 | OT4: 2423-12-31 | OU4: 2424-12-31 | OV4: 2425-12-31 | OW4: 2426-12-31 | OX4: 2427-12-31 | OY4: 2428-12-31 | OZ4: 2429-12-31 | PA4: 2430-12-31 | PB4: 2431-12-31 | PC4: 2432-12-31 | PD4: 2433-12-31 | PE4: 2434-12-31 | PF4: 2435-12-31 | PG4: 2436-12-31 | PH4: 2437-12-31 | PI4: 2438-12-31 | PJ4: 2439-12-31 | PK4: 2440-12-31 | PL4: 2441-12-31 | PM4: 2442-12-31 | PN4: 2443-12-31 | PO4: 2444-12-31 | PP4: 2445-12-31 | PQ4: 2446-12-31 | PR4: 2447-12-31 | PS4: 2448-12-31 | PT4: 2449-12-31 | PU4: 2450-12-31 | PV4: 2451-12-31 | PW4: 2452-12-31 | PX4: 2453-12-31 | PY4: 2454-12-31 | PZ4: 2455-12-31 | QA4: 2456-12-31 | QB4: 2457-12-31 | QC4: 2458-12-31 | QD4: 2459-12-31 | QE4: 2460-12-31 | QF4: 2461-12-31 | QG4: 2462-12-31 | QH4: 2463-12-31 | QI4: 2464-12-31 | QJ4: 2465-12-31 | QK4: =QK$31 -> 2466-12-31 | QL4: 2467-12-31 | QM4: 2468-12-31 | QN4: 2469-12-31 | QO4: 2470-12-31 | QP4: 2471-12-31 | QQ4: 2472-12-31 | QR4: 2473-12-31 | QS4: 2474-12-31 | QT4: 2475-12-31 | QU4: 2476-12-31 | QV4: 2477-12-31 | QW4: 2478-12-31 | QX4: 2479-12-31 | QY4: 2480-12-31 | QZ4: 2481-12-31 | RA4: 2482-12-31 | RB4: 2483-12-31 | RC4: 2484-12-31 | RD4: 2485-12-31 | RE4: 2486-12-31 | RF4: 2487-12-31 | RG4: 2488-12-31 | RH4: 2489-12-31 | RI4: 2490-12-31 | RJ4: 2491-12-31 | RK4: 2492-12-31 | RL4: 2493-12-31 | RM4: 2494-12-31 | RN4: 2495-12-31 | RO4: 2496-12-31 | RP4: 2497-12-31 | RQ4: 2498-12-31 | RR4: 2499-12-31 | RS4: 2500-12-31 | RT4: 2501-12-31 | RU4: 2502-12-31 | RV4: 2503-12-31 | RW4: 2504-12-31 | RX4: 2505-12-31 | RY4: 2506-12-31 | RZ4: 2507-12-31 | SA4: 2508-12-31 | SB4: 2509-12-31 | SC4: 2510-12-31 | SD4: 2511-12-31 | SE4: 2512-12-31 | SF4: 2513-12-31 | SG4: 2514-12-31 | SH4: 2515-12-31 | SI4: 2516-12-31 | SJ4: 2517-12-31 | SK4: 2518-12-31 | SL4: 2519-12-31 | SM4: 2520-12-31 | SN4: 2521-12-31 | SO4: 2522-12-31 | SP4: 2523-12-31 | SQ4: 2524-12-31 | SR4: 2525-12-31 | SS4: 2526-12-31 | ST4: 2527-12-31 | SU4: 2528-12-31 | SV4: 2529-12-31 | SW4: =SW$31 -> 2530-12-31 | SX4: 2531-12-31 | SY4: 2532-12-31 | SZ4: 2533-12-31 | TA4: 2534-12-31 | TB4: 2535-12-31 | TC4: 2536-12-31 | TD4: 2537-12-31 | TE4: 2538-12-31 | TF4: 2539-12-31 | TG4: 2540-12-31 | TH4: 2541-12-31 | TI4: 2542-12-31 | TJ4: 2543-12-31 | TK4: 2544-12-31 | TL4: 2545-12-31 | TM4: 2546-12-31 | TN4: 2547-12-31 | TO4: 2548-12-31 | TP4: 2549-12-31 | TQ4: 2550-12-31 | TR4: 2551-12-31 | TS4: 2552-12-31 | TT4: 2553-12-31 | TU4: 2554-12-31 | TV4: 2555-12-31 | TW4: 2556-12-31 | TX4: 2557-12-31 | TY4: 2558-12-31 | TZ4: 2559-12-31 | UA4: 2560-12-31 | UB4: 2561-12-31 | UC4: 2562-12-31 | UD4: 2563-12-31 | UE4: 2564-12-31 | UF4: 2565-12-31 | UG4: 2566-12-31 | UH4: 2567-12-31 | UI4: 2568-12-31 | UJ4: 2569-12-31 | UK4: 2570-12-31 | UL4: 2571-12-31 | UM4: 2572-12-31 | UN4: 2573-12-31 | UO4: 2574-12-31 | UP4: 2575-12-31 | UQ4: 2576-12-31 | UR4: 2577-12-31 | US4: 2578-12-31 | UT4: 2579-12-31 | UU4: 2580-12-31 | UV4: 2581-12-31 | UW4: 2582-12-31 | UX4: 2583-12-31 | UY4: 2584-12-31 | UZ4: 2585-12-31 | VA4: 2586-12-31 | VB4: 2587-12-31 | VC4: 2588-12-31 | VD4: 2589-12-31 | VE4: 2590-12-31 | VF4: 2591-12-31 | VG4: 2592-12-31 | VH4: 2593-12-31 | VI4: =VI$31 -> 2594-12-31 | VJ4: 2595-12-31 | VK4: 2596-12-31 | VL4: 2597-12-31 | VM4: 2598-12-31 | VN4: 2599-12-31 | VO4: 2600-12-31 | VP4: 2601-12-31 | VQ4: 2602-12-31 | VR4: 2603-12-31 | VS4: 2604-12-31 | VT4: 2605-12-31 | VU4: 2606-12-31 | VV4: 2607-12-31 | VW4: 2608-12-31 | VX4: 2609-12-31 | VY4: 2610-12-31 | VZ4: 2611-12-31 | WA4: 2612-12-31 | WB4: 2613-12-31 | WC4: 2614-12-31 | WD4: 2615-12-31 | WE4: 2616-12-31 | WF4: 2617-12-31 | WG4: 2618-12-31 | WH4: 2619-12-31 | WI4: 2620-12-31 | WJ4: 2621-12-31 | WK4: 2622-12-31 | WL4: 2623-12-31 | WM4: 2624-12-31 | WN4: 2625-12-31 | WO4: 2626-12-31 | WP4: 2627-12-31 | WQ4: 2628-12-31 | WR4: 2629-12-31 | WS4: 2630-12-31 | WT4: 2631-12-31 | WU4: 2632-12-31 | WV4: 2633-12-31 | WW4: 2634-12-31 | WX4: 2635-12-31 | WY4: 2636-12-31 | WZ4: 2637-12-31 | XA4: 2638-12-31 | XB4: 2639-12-31 | XC4: 2640-12-31 | XD4: 2641-12-31 | XE4: 2642-12-31 | XF4: 2643-12-31 | XG4: 2644-12-31 | XH4: 2645-12-31 | XI4: 2646-12-31 | XJ4: 2647-12-31 | XK4: 2648-12-31 | XL4: 2649-12-31 | XM4: 2650-12-31 | XN4: 2651-12-31 | XO4: 2652-12-31 | XP4: 2653-12-31 | XQ4: 2654-12-31 | XR4: 2655-12-31 | XS4: 2656-12-31 | XT4: 2657-12-31 | XU4: =XU$31 -> 2658-12-31 | XV4: 2659-12-31 | XW4: 2660-12-31 | XX4: 2661-12-31 | XY4: 2662-12-31 | XZ4: 2663-12-31 | YA4: 2664-12-31 | YB4: 2665-12-31 | YC4: 2666-12-31 | YD4: 2667-12-31 | YE4: 2668-12-31 | YF4: 2669-12-31 | YG4: 2670-12-31 | YH4: 2671-12-31 | YI4: 2672-12-31 | YJ4: 2673-12-31 | YK4: 2674-12-31 | YL4: 2675-12-31 | YM4: 2676-12-31 | YN4: 2677-12-31 | YO4: 2678-12-31 | YP4: 2679-12-31 | YQ4: 2680-12-31 | YR4: 2681-12-31 | YS4: 2682-12-31 | YT4: 2683-12-31 | YU4: 2684-12-31 | YV4: 2685-12-31 | YW4: 2686-12-31 | YX4: 2687-12-31 | YY4: 2688-12-31 | YZ4: 2689-12-31 | ZA4: 2690-12-31 | ZB4: 2691-12-31 | ZC4: 2692-12-31 | ZD4: 2693-12-31 | ZE4: 2694-12-31 | ZF4: 2695-12-31 | ZG4: 2696-12-31 | ZH4: 2697-12-31 | ZI4: 2698-12-31 | ZJ4: 2699-12-31 | ZK4: 2700-12-31 | ZL4: 2701-12-31 | ZM4: 2702-12-31 | ZN4: 2703-12-31 | ZO4: 2704-12-31 | ZP4: 2705-12-31 | ZQ4: 2706-12-31 | ZR4: 2707-12-31 | ZS4: 2708-12-31 | ZT4: 2709-12-31 | ZU4: 2710-12-31 | ZV4: 2711-12-31 | ZW4: 2712-12-31 | ZX4: 2713-12-31 | ZY4: 2714-12-31 | ZZ4: 2715-12-31 | AAA4: 2716-12-31 | AAB4: 2717-12-31 | AAC4: 2718-12-31 | AAD4: 2719-12-31 | AAE4: 2720-12-31 | AAF4: 2721-12-31 | AAG4: =AAG$31 -> 2722-12-31 | AAH4: 2723-12-31 | AAI4: 2724-12-31 | AAJ4: 2725-12-31 | AAK4: 2726-12-31 | AAL4: 2727-12-31 | AAM4: 2728-12-31 | AAN4: 2729-12-31 | AAO4: 2730-12-31 | AAP4: 2731-12-31 | AAQ4: 2732-12-31 | AAR4: 2733-12-31 | AAS4: 2734-12-31 | AAT4: 2735-12-31 | AAU4: 2736-12-31 | AAV4: 2737-12-31 | AAW4: 2738-12-31 | AAX4: 2739-12-31 | AAY4: 2740-12-31 | AAZ4: 2741-12-31 | ABA4: 2742-12-31 | ABB4: 2743-12-31 | ABC4: 2744-12-31 | ABD4: 2745-12-31 | ABE4: 2746-12-31 | ABF4: 2747-12-31 | ABG4: 2748-12-31 | ABH4: 2749-12-31 | ABI4: 2750-12-31 | ABJ4: 2751-12-31 | ABK4: 2752-12-31 | ABL4: 2753-12-31 | ABM4: 2754-12-31 | ABN4: 2755-12-31 | ABO4: 2756-12-31 | ABP4: 2757-12-31 | ABQ4: 2758-12-31 | ABR4: 2759-12-31 | ABS4: 2760-12-31 | ABT4: 2761-12-31 | ABU4: 2762-12-31 | ABV4: 2763-12-31 | ABW4: 2764-12-31 | ABX4: 2765-12-31 | ABY4: 2766-12-31 | ABZ4: 2767-12-31 | ACA4: 2768-12-31 | ACB4: 2769-12-31 | ACC4: 2770-12-31 | ACD4: 2771-12-31 | ACE4: 2772-12-31 | ACF4: 2773-12-31 | ACG4: 2774-12-31 | ACH4: 2775-12-31 | ACI4: 2776-12-31 | ACJ4: 2777-12-31 | ACK4: 2778-12-31 | ACL4: 2779-12-31 | ACM4: 2780-12-31 | ACN4: 2781-12-31 | ACO4: 2782-12-31 | ACP4: 2783-12-31 | ACQ4: 2784-12-31 | ACR4: 2785-12-31 | ACS4: =ACS$31 -> 2786-12-31 | ACT4: 2787-12-31 | ACU4: 2788-12-31 | ACV4: 2789-12-31 | ACW4: 2790-12-31 | ACX4: 2791-12-31 | ACY4: 2792-12-31 | ACZ4: 2793-12-31 | ADA4: 2794-12-31 | ADB4: 2795-12-31 | ADC4: 2796-12-31 | ADD4: 2797-12-31 | ADE4: 2798-12-31 | ADF4: 2799-12-31 | ADG4: 2800-12-31 | ADH4: 2801-12-31 | ADI4: 2802-12-31 | ADJ4: 2803-12-31 | ADK4: 2804-12-31 | ADL4: 2805-12-31 | ADM4: 2806-12-31 | ADN4: 2807-12-31 | ADO4: 2808-12-31 | ADP4: 2809-12-31 | ADQ4: 2810-12-31 | ADR4: 2811-12-31 | ADS4: 2812-12-31 | ADT4: 2813-12-31 | ADU4: 2814-12-31 | ADV4: 2815-12-31 | ADW4: 2816-12-31 | ADX4: 2817-12-31 | ADY4: 2818-12-31 | ADZ4: 2819-12-31 | AEA4: 2820-12-31 | AEB4: 2821-12-31 | AEC4: 2822-12-31 | AED4: 2823-12-31 | AEE4: 2824-12-31 | AEF4: 2825-12-31 | AEG4: 2826-12-31 | AEH4: 2827-12-31 | AEI4: 2828-12-31 | AEJ4: 2829-12-31 | AEK4: 2830-12-31 | AEL4: 2831-12-31 | AEM4: 2832-12-31 | AEN4: 2833-12-31 | AEO4: 2834-12-31 | AEP4: 2835-12-31 | AEQ4: 2836-12-31 | AER4: 2837-12-31 | AES4: 2838-12-31 | AET4: 2839-12-31 | AEU4: 2840-12-31 | AEV4: 2841-12-31 | AEW4: 2842-12-31 | AEX4: 2843-12-31 | AEY4: 2844-12-31 | AEZ4: 2845-12-31 | AFA4: 2846-12-31 | AFB4: 2847-12-31 | AFC4: 2848-12-31 | AFD4: 2849-12-31 | AFE4: =AFE$31 -> 2850-12-31 | AFF4: 2851-12-31 | AFG4: 2852-12-31 | AFH4: 2853-12-31 | AFI4: 2854-12-31 | AFJ4: 2855-12-31 | AFK4: 2856-12-31 | AFL4: 2857-12-31 | AFM4: 2858-12-31 | AFN4: 2859-12-31 | AFO4: 2860-12-31 | AFP4: 2861-12-31 | AFQ4: 2862-12-31 | AFR4: 2863-12-31 | AFS4: 2864-12-31 | AFT4: 2865-12-31 | AFU4: 2866-12-31 | AFV4: 2867-12-31 | AFW4: 2868-12-31 | AFX4: 2869-12-31 | AFY4: 2870-12-31 | AFZ4: 2871-12-31 | AGA4: 2872-12-31 | AGB4: 2873-12-31 | AGC4: 2874-12-31 | AGD4: 2875-12-31 | AGE4: 2876-12-31 | AGF4: 2877-12-31 | AGG4: 2878-12-31 | AGH4: 2879-12-31 | AGI4: 2880-12-31 | AGJ4: 2881-12-31 | AGK4: 2882-12-31 | AGL4: 2883-12-31 | AGM4: 2884-12-31 | AGN4: 2885-12-31 | AGO4: 2886-12-31 | AGP4: 2887-12-31 | AGQ4: 2888-12-31 | AGR4: 2889-12-31 | AGS4: 2890-12-31 | AGT4: 2891-12-31 | AGU4: 2892-12-31 | AGV4: 2893-12-31 | AGW4: 2894-12-31 | AGX4: 2895-12-31 | AGY4: 2896-12-31 | AGZ4: 2897-12-31 | AHA4: 2898-12-31 | AHB4: 2899-12-31 | AHC4: 2900-12-31 | AHD4: 2901-12-31 | AHE4: 2902-12-31 | AHF4: 2903-12-31 | AHG4: 2904-12-31 | AHH4: 2905-12-31 | AHI4: 2906-12-31 | AHJ4: 2907-12-31 | AHK4: 2908-12-31 | AHL4: 2909-12-31 | AHM4: 2910-12-31 | AHN4: 2911-12-31 | AHO4: 2912-12-31 | AHP4: 2913-12-31 | AHQ4: =AHQ$31 -> 2914-12-31 | AHR4: 2915-12-31 | AHS4: 2916-12-31 | AHT4: 2917-12-31 | AHU4: 2918-12-31 | AHV4: 2919-12-31 | AHW4: 2920-12-31 | AHX4: 2921-12-31 | AHY4: 2922-12-31 | AHZ4: 2923-12-31 | AIA4: 2924-12-31 | AIB4: 2925-12-31 | AIC4: 2926-12-31 | AID4: 2927-12-31 | AIE4: 2928-12-31 | AIF4: 2929-12-31 | AIG4: 2930-12-31 | AIH4: 2931-12-31 | AII4: 2932-12-31 | AIJ4: 2933-12-31 | AIK4: 2934-12-31 | AIL4: 2935-12-31 | AIM4: 2936-12-31 | AIN4: 2937-12-31 | AIO4: 2938-12-31 | AIP4: 2939-12-31 | AIQ4: 2940-12-31 | AIR4: 2941-12-31 | AIS4: 2942-12-31 | AIT4: 2943-12-31 | AIU4: 2944-12-31 | AIV4: 2945-12-31 | AIW4: 2946-12-31 | AIX4: 2947-12-31 | AIY4: 2948-12-31 | AIZ4: 2949-12-31 | AJA4: 2950-12-31 | AJB4: 2951-12-31 | AJC4: 2952-12-31 | AJD4: 2953-12-31 | AJE4: 2954-12-31 | AJF4: 2955-12-31 | AJG4: 2956-12-31 | AJH4: 2957-12-31 | AJI4: 2958-12-31 | AJJ4: 2959-12-31 | AJK4: 2960-12-31 | AJL4: 2961-12-31 | AJM4: 2962-12-31 | AJN4: 2963-12-31 | AJO4: 2964-12-31 | AJP4: 2965-12-31 | AJQ4: 2966-12-31 | AJR4: 2967-12-31 | AJS4: 2968-12-31 | AJT4: 2969-12-31 | AJU4: 2970-12-31 | AJV4: 2971-12-31 | AJW4: 2972-12-31 | AJX4: 2973-12-31 | AJY4: 2974-12-31 | AJZ4: 2975-12-31 | AKA4: 2976-12-31 | AKB4: 2977-12-31 | AKC4: =AKC$31 -> 2978-12-31 | AKD4: 2979-12-31 | AKE4: 2980-12-31 | AKF4: 2981-12-31 | AKG4: 2982-12-31 | AKH4: 2983-12-31
D5: =D$40 -> Model period year | E5: =E$40 -> 0 | F5: year | G5: 0 | H5: 0 | I5: 0 | J5: 0 | K5: 2024 | L5: 2025 | M5: 2026 | N5: 2027 | O5: 2028 | P5: 2029 | Q5: 2030 | R5: 2031 | S5: 2032 | T5: 2033 | U5: 2034 | V5: 2035 | W5: 2036 | X5: 2037 | Y5: 2038 | Z5: 2039 | AA5: 2040 | AB5: 2041 | AC5: 2042 | AD5: 2043 | AE5: 2044 | AF5: 2045 | AG5: 2046 | AH5: 2047 | AI5: 2048 | AJ5: 2049 | AK5: 2050 | AL5: 2051 | AM5: 2052 | AN5: 2053 | AO5: 2054 | AP5: 2055 | AQ5: 2056 | AR5: 2057 | AS5: 2058 | AT5: 2059 | AU5: 2060 | AV5: 2061 | AW5: 2062 | AX5: 2063 | AY5: 2064 | AZ5: 2065 | BA5: 2066 | BB5: 2067 | BC5: 2068 | BD5: 2069 | BE5: 2070 | BF5: 2071 | BG5: 2072 | BH5: 2073 | BI5: 2074 | BJ5: 2075 | BK5: 2076 | BL5: 2077 | BM5: 2078 | BN5: 2079 | BO5: 2080 | BP5: 2081 | BQ5: =BQ$40 -> 2082 | BR5: 2083 | BS5: 2084 | BT5: 2085 | BU5: 2086 | BV5: 2087 | BW5: 2088 | BX5: 2089 | BY5: 2090 | BZ5: 2091 | CA5: 2092 | CB5: 2093 | CC5: 2094 | CD5: 2095 | CE5: 2096 | CF5: 2097 | CG5: 2098 | CH5: 2099 | CI5: 2100 | CJ5: 2101 | CK5: 2102 | CL5: 2103 | CM5: 2104 | CN5: 2105 | CO5: 2106 | CP5: 2107 | CQ5: 2108 | CR5: 2109 | CS5: 2110 | CT5: 2111 | CU5: 2112 | CV5: 2113 | CW5: 2114 | CX5: 2115 | CY5: 2116 | CZ5: 2117 | DA5: 2118 | DB5: 2119 | DC5: 2120 | DD5: 2121 | DE5: 2122 | DF5: 2123 | DG5: 2124 | DH5: 2125 | DI5: 2126 | DJ5: 2127 | DK5: 2128 | DL5: 2129 | DM5: 2130 | DN5: 2131 | DO5: 2132 | DP5: 2133 | DQ5: 2134 | DR5: 2135 | DS5: 2136 | DT5: 2137 | DU5: 2138 | DV5: 2139 | DW5: 2140 | DX5: 2141 | DY5: 2142 | DZ5: 2143 | EA5: 2144 | EB5: 2145 | EC5: =EC$40 -> 2146 | ED5: 2147 | EE5: 2148 | EF5: 2149 | EG5: 2150 | EH5: 2151 | EI5: 2152 | EJ5: 2153 | EK5: 2154 | EL5: 2155 | EM5: 2156 | EN5: 2157 | EO5: 2158 | EP5: 2159 | EQ5: 2160 | ER5: 2161 | ES5: 2162 | ET5: 2163 | EU5: 2164 | EV5: 2165 | EW5: 2166 | EX5: 2167 | EY5: 2168 | EZ5: 2169 | FA5: 2170 | FB5: 2171 | FC5: 2172 | FD5: 2173 | FE5: 2174 | FF5: 2175 | FG5: 2176 | FH5: 2177 | FI5: 2178 | FJ5: 2179 | FK5: 2180 | FL5: 2181 | FM5: 2182 | FN5: 2183 | FO5: 2184 | FP5: 2185 | FQ5: 2186 | FR5: 2187 | FS5: 2188 | FT5: 2189 | FU5: 2190 | FV5: 2191 | FW5: 2192 | FX5: 2193 | FY5: 2194 | FZ5: 2195 | GA5: 2196 | GB5: 2197 | GC5: 2198 | GD5: 2199 | GE5: 2200 | GF5: 2201 | GG5: 2202 | GH5: 2203 | GI5: 2204 | GJ5: 2205 | GK5: 2206 | GL5: 2207 | GM5: 2208 | GN5: 2209 | GO5: =GO$40 -> 2210 | GP5: 2211 | GQ5: 2212 | GR5: 2213 | GS5: 2214 | GT5: 2215 | GU5: 2216 | GV5: 2217 | GW5: 2218 | GX5: 2219 | GY5: 2220 | GZ5: 2221 | HA5: 2222 | HB5: 2223 | HC5: 2224 | HD5: 2225 | HE5: 2226 | HF5: 2227 | HG5: 2228 | HH5: 2229 | HI5: 2230 | HJ5: 2231 | HK5: 2232 | HL5: 2233 | HM5: 2234 | HN5: 2235 | HO5: 2236 | HP5: 2237 | HQ5: 2238 | HR5: 2239 | HS5: 2240 | HT5: 2241 | HU5: 2242 | HV5: 2243 | HW5: 2244 | HX5: 2245 | HY5: 2246 | HZ5: 2247 | IA5: 2248 | IB5: 2249 | IC5: 2250 | ID5: 2251 | IE5: 2252 | IF5: 2253 | IG5: 2254 | IH5: 2255 | II5: 2256 | IJ5: 2257 | IK5: 2258 | IL5: 2259 | IM5: 2260 | IN5: 2261 | IO5: 2262 | IP5: 2263 | IQ5: 2264 | IR5: 2265 | IS5: 2266 | IT5: 2267 | IU5: 2268 | IV5: 2269 | IW5: 2270 | IX5: 2271 | IY5: 2272 | IZ5: 2273 | JA5: =JA$40 -> 2274 | JB5: 2275 | JC5: 2276 | JD5: 2277 | JE5: 2278 | JF5: 2279 | JG5: 2280 | JH5: 2281 | JI5: 2282 | JJ5: 2283 | JK5: 2284 | JL5: 2285 | JM5: 2286 | JN5: 2287 | JO5: 2288 | JP5: 2289 | JQ5: 2290 | JR5: 2291 | JS5: 2292 | JT5: 2293 | JU5: 2294 | JV5: 2295 | JW5: 2296 | JX5: 2297 | JY5: 2298 | JZ5: 2299 | KA5: 2300 | KB5: 2301 | KC5: 2302 | KD5: 2303 | KE5: 2304 | KF5: 2305 | KG5: 2306 | KH5: 2307 | KI5: 2308 | KJ5: 2309 | KK5: 2310 | KL5: 2311 | KM5: 2312 | KN5: 2313 | KO5: 2314 | KP5: 2315 | KQ5: 2316 | KR5: 2317 | KS5: 2318 | KT5: 2319 | KU5: 2320 | KV5: 2321 | KW5: 2322 | KX5: 2323 | KY5: 2324 | KZ5: 2325 | LA5: 2326 | LB5: 2327 | LC5: 2328 | LD5: 2329 | LE5: 2330 | LF5: 2331 | LG5: 2332 | LH5: 2333 | LI5: 2334 | LJ5: 2335 | LK5: 2336 | LL5: 2337 | LM5: =LM$40 -> 2338 | LN5: 2339 | LO5: 2340 | LP5: 2341 | LQ5: 2342 | LR5: 2343 | LS5: 2344 | LT5: 2345 | LU5: 2346 | LV5: 2347 | LW5: 2348 | LX5: 2349 | LY5: 2350 | LZ5: 2351 | MA5: 2352 | MB5: 2353 | MC5: 2354 | MD5: 2355 | ME5: 2356 | MF5: 2357 | MG5: 2358 | MH5: 2359 | MI5: 2360 | MJ5: 2361 | MK5: 2362 | ML5: 2363 | MM5: 2364 | MN5: 2365 | MO5: 2366 | MP5: 2367 | MQ5: 2368 | MR5: 2369 | MS5: 2370 | MT5: 2371 | MU5: 2372 | MV5: 2373 | MW5: 2374 | MX5: 2375 | MY5: 2376 | MZ5: 2377 | NA5: 2378 | NB5: 2379 | NC5: 2380 | ND5: 2381 | NE5: 2382 | NF5: 2383 | NG5: 2384 | NH5: 2385 | NI5: 2386 | NJ5: 2387 | NK5: 2388 | NL5: 2389 | NM5: 2390 | NN5: 2391 | NO5: 2392 | NP5: 2393 | NQ5: 2394 | NR5: 2395 | NS5: 2396 | NT5: 2397 | NU5: 2398 | NV5: 2399 | NW5: 2400 | NX5: 2401 | NY5: =NY$40 -> 2402 | NZ5: 2403 | OA5: 2404 | OB5: 2405 | OC5: 2406 | OD5: 2407 | OE5: 2408 | OF5: 2409 | OG5: 2410 | OH5: 2411 | OI5: 2412 | OJ5: 2413 | OK5: 2414 | OL5: 2415 | OM5: 2416 | ON5: 2417 | OO5: 2418 | OP5: 2419 | OQ5: 2420 | OR5: 2421 | OS5: 2422 | OT5: 2423 | OU5: 2424 | OV5: 2425 | OW5: 2426 | OX5: 2427 | OY5: 2428 | OZ5: 2429 | PA5: 2430 | PB5: 2431 | PC5: 2432 | PD5: 2433 | PE5: 2434 | PF5: 2435 | PG5: 2436 | PH5: 2437 | PI5: 2438 | PJ5: 2439 | PK5: 2440 | PL5: 2441 | PM5: 2442 | PN5: 2443 | PO5: 2444 | PP5: 2445 | PQ5: 2446 | PR5: 2447 | PS5: 2448 | PT5: 2449 | PU5: 2450 | PV5: 2451 | PW5: 2452 | PX5: 2453 | PY5: 2454 | PZ5: 2455 | QA5: 2456 | QB5: 2457 | QC5: 2458 | QD5: 2459 | QE5: 2460 | QF5: 2461 | QG5: 2462 | QH5: 2463 | QI5: 2464 | QJ5: 2465 | QK5: =QK$40 -> 2466 | QL5: 2467 | QM5: 2468 | QN5: 2469 | QO5: 2470 | QP5: 2471 | QQ5: 2472 | QR5: 2473 | QS5: 2474 | QT5: 2475 | QU5: 2476 | QV5: 2477 | QW5: 2478 | QX5: 2479 | QY5: 2480 | QZ5: 2481 | RA5: 2482 | RB5: 2483 | RC5: 2484 | RD5: 2485 | RE5: 2486 | RF5: 2487 | RG5: 2488 | RH5: 2489 | RI5: 2490 | RJ5: 2491 | RK5: 2492 | RL5: 2493 | RM5: 2494 | RN5: 2495 | RO5: 2496 | RP5: 2497 | RQ5: 2498 | RR5: 2499 | RS5: 2500 | RT5: 2501 | RU5: 2502 | RV5: 2503 | RW5: 2504 | RX5: 2505 | RY5: 2506 | RZ5: 2507 | SA5: 2508 | SB5: 2509 | SC5: 2510 | SD5: 2511 | SE5: 2512 | SF5: 2513 | SG5: 2514 | SH5: 2515 | SI5: 2516 | SJ5: 2517 | SK5: 2518 | SL5: 2519 | SM5: 2520 | SN5: 2521 | SO5: 2522 | SP5: 2523 | SQ5: 2524 | SR5: 2525 | SS5: 2526 | ST5: 2527 | SU5: 2528 | SV5: 2529 | SW5: =SW$40 -> 2530 | SX5: 2531 | SY5: 2532 | SZ5: 2533 | TA5: 2534 | TB5: 2535 | TC5: 2536 | TD5: 2537 | TE5: 2538 | TF5: 2539 | TG5: 2540 | TH5: 2541 | TI5: 2542 | TJ5: 2543 | TK5: 2544 | TL5: 2545 | TM5: 2546 | TN5: 2547 | TO5: 2548 | TP5: 2549 | TQ5: 2550 | TR5: 2551 | TS5: 2552 | TT5: 2553 | TU5: 2554 | TV5: 2555 | TW5: 2556 | TX5: 2557 | TY5: 2558 | TZ5: 2559 | UA5: 2560 | UB5: 2561 | UC5: 2562 | UD5: 2563 | UE5: 2564 | UF5: 2565 | UG5: 2566 | UH5: 2567 | UI5: 2568 | UJ5: 2569 | UK5: 2570 | UL5: 2571 | UM5: 2572 | UN5: 2573 | UO5: 2574 | UP5: 2575 | UQ5: 2576 | UR5: 2577 | US5: 2578 | UT5: 2579 | UU5: 2580 | UV5: 2581 | UW5: 2582 | UX5: 2583 | UY5: 2584 | UZ5: 2585 | VA5: 2586 | VB5: 2587 | VC5: 2588 | VD5: 2589 | VE5: 2590 | VF5: 2591 | VG5: 2592 | VH5: 2593 | VI5: =VI$40 -> 2594 | VJ5: 2595 | VK5: 2596 | VL5: 2597 | VM5: 2598 | VN5: 2599 | VO5: 2600 | VP5: 2601 | VQ5: 2602 | VR5: 2603 | VS5: 2604 | VT5: 2605 | VU5: 2606 | VV5: 2607 | VW5: 2608 | VX5: 2609 | VY5: 2610 | VZ5: 2611 | WA5: 2612 | WB5: 2613 | WC5: 2614 | WD5: 2615 | WE5: 2616 | WF5: 2617 | WG5: 2618 | WH5: 2619 | WI5: 2620 | WJ5: 2621 | WK5: 2622 | WL5: 2623 | WM5: 2624 | WN5: 2625 | WO5: 2626 | WP5: 2627 | WQ5: 2628 | WR5: 2629 | WS5: 2630 | WT5: 2631 | WU5: 2632 | WV5: 2633 | WW5: 2634 | WX5: 2635 | WY5: 2636 | WZ5: 2637 | XA5: 2638 | XB5: 2639 | XC5: 2640 | XD5: 2641 | XE5: 2642 | XF5: 2643 | XG5: 2644 | XH5: 2645 | XI5: 2646 | XJ5: 2647 | XK5: 2648 | XL5: 2649 | XM5: 2650 | XN5: 2651 | XO5: 2652 | XP5: 2653 | XQ5: 2654 | XR5: 2655 | XS5: 2656 | XT5: 2657 | XU5: =XU$40 -> 2658 | XV5: 2659 | XW5: 2660 | XX5: 2661 | XY5: 2662 | XZ5: 2663 | YA5: 2664 | YB5: 2665 | YC5: 2666 | YD5: 2667 | YE5: 2668 | YF5: 2669 | YG5: 2670 | YH5: 2671 | YI5: 2672 | YJ5: 2673 | YK5: 2674 | YL5: 2675 | YM5: 2676 | YN5: 2677 | YO5: 2678 | YP5: 2679 | YQ5: 2680 | YR5: 2681 | YS5: 2682 | YT5: 2683 | YU5: 2684 | YV5: 2685 | YW5: 2686 | YX5: 2687 | YY5: 2688 | YZ5: 2689 | ZA5: 2690 | ZB5: 2691 | ZC5: 2692 | ZD5: 2693 | ZE5: 2694 | ZF5: 2695 | ZG5: 2696 | ZH5: 2697 | ZI5: 2698 | ZJ5: 2699 | ZK5: 2700 | ZL5: 2701 | ZM5: 2702 | ZN5: 2703 | ZO5: 2704 | ZP5: 2705 | ZQ5: 2706 | ZR5: 2707 | ZS5: 2708 | ZT5: 2709 | ZU5: 2710 | ZV5: 2711 | ZW5: 2712 | ZX5: 2713 | ZY5: 2714 | ZZ5: 2715 | AAA5: 2716 | AAB5: 2717 | AAC5: 2718 | AAD5: 2719 | AAE5: 2720 | AAF5: 2721 | AAG5: =AAG$40 -> 2722 | AAH5: 2723 | AAI5: 2724 | AAJ5: 2725 | AAK5: 2726 | AAL5: 2727 | AAM5: 2728 | AAN5: 2729 | AAO5: 2730 | AAP5: 2731 | AAQ5: 2732 | AAR5: 2733 | AAS5: 2734 | AAT5: 2735 | AAU5: 2736 | AAV5: 2737 | AAW5: 2738 | AAX5: 2739 | AAY5: 2740 | AAZ5: 2741 | ABA5: 2742 | ABB5: 2743 | ABC5: 2744 | ABD5: 2745 | ABE5: 2746 | ABF5: 2747 | ABG5: 2748 | ABH5: 2749 | ABI5: 2750 | ABJ5: 2751 | ABK5: 2752 | ABL5: 2753 | ABM5: 2754 | ABN5: 2755 | ABO5: 2756 | ABP5: 2757 | ABQ5: 2758 | ABR5: 2759 | ABS5: 2760 | ABT5: 2761 | ABU5: 2762 | ABV5: 2763 | ABW5: 2764 | ABX5: 2765 | ABY5: 2766 | ABZ5: 2767 | ACA5: 2768 | ACB5: 2769 | ACC5: 2770 | ACD5: 2771 | ACE5: 2772 | ACF5: 2773 | ACG5: 2774 | ACH5: 2775 | ACI5: 2776 | ACJ5: 2777 | ACK5: 2778 | ACL5: 2779 | ACM5: 2780 | ACN5: 2781 | ACO5: 2782 | ACP5: 2783 | ACQ5: 2784 | ACR5: 2785 | ACS5: =ACS$40 -> 2786 | ACT5: 2787 | ACU5: 2788 | ACV5: 2789 | ACW5: 2790 | ACX5: 2791 | ACY5: 2792 | ACZ5: 2793 | ADA5: 2794 | ADB5: 2795 | ADC5: 2796 | ADD5: 2797 | ADE5: 2798 | ADF5: 2799 | ADG5: 2800 | ADH5: 2801 | ADI5: 2802 | ADJ5: 2803 | ADK5: 2804 | ADL5: 2805 | ADM5: 2806 | ADN5: 2807 | ADO5: 2808 | ADP5: 2809 | ADQ5: 2810 | ADR5: 2811 | ADS5: 2812 | ADT5: 2813 | ADU5: 2814 | ADV5: 2815 | ADW5: 2816 | ADX5: 2817 | ADY5: 2818 | ADZ5: 2819 | AEA5: 2820 | AEB5: 2821 | AEC5: 2822 | AED5: 2823 | AEE5: 2824 | AEF5: 2825 | AEG5: 2826 | AEH5: 2827 | AEI5: 2828 | AEJ5: 2829 | AEK5: 2830 | AEL5: 2831 | AEM5: 2832 | AEN5: 2833 | AEO5: 2834 | AEP5: 2835 | AEQ5: 2836 | AER5: 2837 | AES5: 2838 | AET5: 2839 | AEU5: 2840 | AEV5: 2841 | AEW5: 2842 | AEX5: 2843 | AEY5: 2844 | AEZ5: 2845 | AFA5: 2846 | AFB5: 2847 | AFC5: 2848 | AFD5: 2849 | AFE5: =AFE$40 -> 2850 | AFF5: 2851 | AFG5: 2852 | AFH5: 2853 | AFI5: 2854 | AFJ5: 2855 | AFK5: 2856 | AFL5: 2857 | AFM5: 2858 | AFN5: 2859 | AFO5: 2860 | AFP5: 2861 | AFQ5: 2862 | AFR5: 2863 | AFS5: 2864 | AFT5: 2865 | AFU5: 2866 | AFV5: 2867 | AFW5: 2868 | AFX5: 2869 | AFY5: 2870 | AFZ5: 2871 | AGA5: 2872 | AGB5: 2873 | AGC5: 2874 | AGD5: 2875 | AGE5: 2876 | AGF5: 2877 | AGG5: 2878 | AGH5: 2879 | AGI5: 2880 | AGJ5: 2881 | AGK5: 2882 | AGL5: 2883 | AGM5: 2884 | AGN5: 2885 | AGO5: 2886 | AGP5: 2887 | AGQ5: 2888 | AGR5: 2889 | AGS5: 2890 | AGT5: 2891 | AGU5: 2892 | AGV5: 2893 | AGW5: 2894 | AGX5: 2895 | AGY5: 2896 | AGZ5: 2897 | AHA5: 2898 | AHB5: 2899 | AHC5: 2900 | AHD5: 2901 | AHE5: 2902 | AHF5: 2903 | AHG5: 2904 | AHH5: 2905 | AHI5: 2906 | AHJ5: 2907 | AHK5: 2908 | AHL5: 2909 | AHM5: 2910 | AHN5: 2911 | AHO5: 2912 | AHP5: 2913 | AHQ5: =AHQ$40 -> 2914 | AHR5: 2915 | AHS5: 2916 | AHT5: 2917 | AHU5: 2918 | AHV5: 2919 | AHW5: 2920 | AHX5: 2921 | AHY5: 2922 | AHZ5: 2923 | AIA5: 2924 | AIB5: 2925 | AIC5: 2926 | AID5: 2927 | AIE5: 2928 | AIF5: 2929 | AIG5: 2930 | AIH5: 2931 | AII5: 2932 | AIJ5: 2933 | AIK5: 2934 | AIL5: 2935 | AIM5: 2936 | AIN5: 2937 | AIO5: 2938 | AIP5: 2939 | AIQ5: 2940 | AIR5: 2941 | AIS5: 2942 | AIT5: 2943 | AIU5: 2944 | AIV5: 2945 | AIW5: 2946 | AIX5: 2947 | AIY5: 2948 | AIZ5: 2949 | AJA5: 2950 | AJB5: 2951 | AJC5: 2952 | AJD5: 2953 | AJE5: 2954 | AJF5: 2955 | AJG5: 2956 | AJH5: 2957 | AJI5: 2958 | AJJ5: 2959 | AJK5: 2960 | AJL5: 2961 | AJM5: 2962 | AJN5: 2963 | AJO5: 2964 | AJP5: 2965 | AJQ5: 2966 | AJR5: 2967 | AJS5: 2968 | AJT5: 2969 | AJU5: 2970 | AJV5: 2971 | AJW5: 2972 | AJX5: 2973 | AJY5: 2974 | AJZ5: 2975 | AKA5: 2976 | AKB5: 2977 | AKC5: =AKC$40 -> 2978 | AKD5: 2979 | AKE5: 2980 | AKF5: 2981 | AKG5: 2982 | AKH5: 2983
D6: =D$17 -> Model column counter | E6: =E$17 -> 0 | F6: counter | G6: 0 | H6: 0 | I6: 0 | J6: 0 | K6: 1 | L6: 2 | M6: 3 | N6: 4 | O6: 5 | P6: 6 | Q6: 7 | R6: 8 | S6: 9 | T6: 10 | U6: 11 | V6: 12 | W6: 13 | X6: 14 | Y6: 15 | Z6: 16 | AA6: 17 | AB6: 18 | AC6: 19 | AD6: 20 | AE6: 21 | AF6: 22 | AG6: 23 | AH6: 24 | AI6: 25 | AJ6: 26 | AK6: 27 | AL6: 28 | AM6: 29 | AN6: 30 | AO6: 31 | AP6: 32 | AQ6: 33 | AR6: 34 | AS6: 35 | AT6: 36 | AU6: 37 | AV6: 38 | AW6: 39 | AX6: 40 | AY6: 41 | AZ6: 42 | BA6: 43 | BB6: 44 | BC6: 45 | BD6: 46 | BE6: 47 | BF6: 48 | BG6: 49 | BH6: 50 | BI6: 51 | BJ6: 52 | BK6: 53 | BL6: 54 | BM6: 55 | BN6: 56 | BO6: 57 | BP6: 58 | BQ6: =BQ$17 -> 59 | BR6: 60 | BS6: 61 | BT6: 62 | BU6: 63 | BV6: 64 | BW6: 65 | BX6: 66 | BY6: 67 | BZ6: 68 | CA6: 69 | CB6: 70 | CC6: 71 | CD6: 72 | CE6: 73 | CF6: 74 | CG6: 75 | CH6: 76 | CI6: 77 | CJ6: 78 | CK6: 79 | CL6: 80 | CM6: 81 | CN6: 82 | CO6: 83 | CP6: 84 | CQ6: 85 | CR6: 86 | CS6: 87 | CT6: 88 | CU6: 89 | CV6: 90 | CW6: 91 | CX6: 92 | CY6: 93 | CZ6: 94 | DA6: 95 | DB6: 96 | DC6: 97 | DD6: 98 | DE6: 99 | DF6: 100 | DG6: 101 | DH6: 102 | DI6: 103 | DJ6: 104 | DK6: 105 | DL6: 106 | DM6: 107 | DN6: 108 | DO6: 109 | DP6: 110 | DQ6: 111 | DR6: 112 | DS6: 113 | DT6: 114 | DU6: 115 | DV6: 116 | DW6: 117 | DX6: 118 | DY6: 119 | DZ6: 120 | EA6: 121 | EB6: 122 | EC6: =EC$17 -> 123 | ED6: 124 | EE6: 125 | EF6: 126 | EG6: 127 | EH6: 128 | EI6: 129 | EJ6: 130 | EK6: 131 | EL6: 132 | EM6: 133 | EN6: 134 | EO6: 135 | EP6: 136 | EQ6: 137 | ER6: 138 | ES6: 139 | ET6: 140 | EU6: 141 | EV6: 142 | EW6: 143 | EX6: 144 | EY6: 145 | EZ6: 146 | FA6: 147 | FB6: 148 | FC6: 149 | FD6: 150 | FE6: 151 | FF6: 152 | FG6: 153 | FH6: 154 | FI6: 155 | FJ6: 156 | FK6: 157 | FL6: 158 | FM6: 159 | FN6: 160 | FO6: 161 | FP6: 162 | FQ6: 163 | FR6: 164 | FS6: 165 | FT6: 166 | FU6: 167 | FV6: 168 | FW6: 169 | FX6: 170 | FY6: 171 | FZ6: 172 | GA6: 173 | GB6: 174 | GC6: 175 | GD6: 176 | GE6: 177 | GF6: 178 | GG6: 179 | GH6: 180 | GI6: 181 | GJ6: 182 | GK6: 183 | GL6: 184 | GM6: 185 | GN6: 186 | GO6: =GO$17 -> 187 | GP6: 188 | GQ6: 189 | GR6: 190 | GS6: 191 | GT6: 192 | GU6: 193 | GV6: 194 | GW6: 195 | GX6: 196 | GY6: 197 | GZ6: 198 | HA6: 199 | HB6: 200 | HC6: 201 | HD6: 202 | HE6: 203 | HF6: 204 | HG6: 205 | HH6: 206 | HI6: 207 | HJ6: 208 | HK6: 209 | HL6: 210 | HM6: 211 | HN6: 212 | HO6: 213 | HP6: 214 | HQ6: 215 | HR6: 216 | HS6: 217 | HT6: 218 | HU6: 219 | HV6: 220 | HW6: 221 | HX6: 222 | HY6: 223 | HZ6: 224 | IA6: 225 | IB6: 226 | IC6: 227 | ID6: 228 | IE6: 229 | IF6: 230 | IG6: 231 | IH6: 232 | II6: 233 | IJ6: 234 | IK6: 235 | IL6: 236 | IM6: 237 | IN6: 238 | IO6: 239 | IP6: 240 | IQ6: 241 | IR6: 242 | IS6: 243 | IT6: 244 | IU6: 245 | IV6: 246 | IW6: 247 | IX6: 248 | IY6: 249 | IZ6: 250 | JA6: =JA$17 -> 251 | JB6: 252 | JC6: 253 | JD6: 254 | JE6: 255 | JF6: 256 | JG6: 257 | JH6: 258 | JI6: 259 | JJ6: 260 | JK6: 261 | JL6: 262 | JM6: 263 | JN6: 264 | JO6: 265 | JP6: 266 | JQ6: 267 | JR6: 268 | JS6: 269 | JT6: 270 | JU6: 271 | JV6: 272 | JW6: 273 | JX6: 274 | JY6: 275 | JZ6: 276 | KA6: 277 | KB6: 278 | KC6: 279 | KD6: 280 | KE6: 281 | KF6: 282 | KG6: 283 | KH6: 284 | KI6: 285 | KJ6: 286 | KK6: 287 | KL6: 288 | KM6: 289 | KN6: 290 | KO6: 291 | KP6: 292 | KQ6: 293 | KR6: 294 | KS6: 295 | KT6: 296 | KU6: 297 | KV6: 298 | KW6: 299 | KX6: 300 | KY6: 301 | KZ6: 302 | LA6: 303 | LB6: 304 | LC6: 305 | LD6: 306 | LE6: 307 | LF6: 308 | LG6: 309 | LH6: 310 | LI6: 311 | LJ6: 312 | LK6: 313 | LL6: 314 | LM6: =LM$17 -> 315 | LN6: 316 | LO6: 317 | LP6: 318 | LQ6: 319 | LR6: 320 | LS6: 321 | LT6: 322 | LU6: 323 | LV6: 324 | LW6: 325 | LX6: 326 | LY6: 327 | LZ6: 328 | MA6: 329 | MB6: 330 | MC6: 331 | MD6: 332 | ME6: 333 | MF6: 334 | MG6: 335 | MH6: 336 | MI6: 337 | MJ6: 338 | MK6: 339 | ML6: 340 | MM6: 341 | MN6: 342 | MO6: 343 | MP6: 344 | MQ6: 345 | MR6: 346 | MS6: 347 | MT6: 348 | MU6: 349 | MV6: 350 | MW6: 351 | MX6: 352 | MY6: 353 | MZ6: 354 | NA6: 355 | NB6: 356 | NC6: 357 | ND6: 358 | NE6: 359 | NF6: 360 | NG6: 361 | NH6: 362 | NI6: 363 | NJ6: 364 | NK6: 365 | NL6: 366 | NM6: 367 | NN6: 368 | NO6: 369 | NP6: 370 | NQ6: 371 | NR6: 372 | NS6: 373 | NT6: 374 | NU6: 375 | NV6: 376 | NW6: 377 | NX6: 378 | NY6: =NY$17 -> 379 | NZ6: 380 | OA6: 381 | OB6: 382 | OC6: 383 | OD6: 384 | OE6: 385 | OF6: 386 | OG6: 387 | OH6: 388 | OI6: 389 | OJ6: 390 | OK6: 391 | OL6: 392 | OM6: 393 | ON6: 394 | OO6: 395 | OP6: 396 | OQ6: 397 | OR6: 398 | OS6: 399 | OT6: 400 | OU6: 401 | OV6: 402 | OW6: 403 | OX6: 404 | OY6: 405 | OZ6: 406 | PA6: 407 | PB6: 408 | PC6: 409 | PD6: 410 | PE6: 411 | PF6: 412 | PG6: 413 | PH6: 414 | PI6: 415 | PJ6: 416 | PK6: 417 | PL6: 418 | PM6: 419 | PN6: 420 | PO6: 421 | PP6: 422 | PQ6: 423 | PR6: 424 | PS6: 425 | PT6: 426 | PU6: 427 | PV6: 428 | PW6: 429 | PX6: 430 | PY6: 431 | PZ6: 432 | QA6: 433 | QB6: 434 | QC6: 435 | QD6: 436 | QE6: 437 | QF6: 438 | QG6: 439 | QH6: 440 | QI6: 441 | QJ6: 442 | QK6: =QK$17 -> 443 | QL6: 444 | QM6: 445 | QN6: 446 | QO6: 447 | QP6: 448 | QQ6: 449 | QR6: 450 | QS6: 451 | QT6: 452 | QU6: 453 | QV6: 454 | QW6: 455 | QX6: 456 | QY6: 457 | QZ6: 458 | RA6: 459 | RB6: 460 | RC6: 461 | RD6: 462 | RE6: 463 | RF6: 464 | RG6: 465 | RH6: 466 | RI6: 467 | RJ6: 468 | RK6: 469 | RL6: 470 | RM6: 471 | RN6: 472 | RO6: 473 | RP6: 474 | RQ6: 475 | RR6: 476 | RS6: 477 | RT6: 478 | RU6: 479 | RV6: 480 | RW6: 481 | RX6: 482 | RY6: 483 | RZ6: 484 | SA6: 485 | SB6: 486 | SC6: 487 | SD6: 488 | SE6: 489 | SF6: 490 | SG6: 491 | SH6: 492 | SI6: 493 | SJ6: 494 | SK6: 495 | SL6: 496 | SM6: 497 | SN6: 498 | SO6: 499 | SP6: 500 | SQ6: 501 | SR6: 502 | SS6: 503 | ST6: 504 | SU6: 505 | SV6: 506 | SW6: =SW$17 -> 507 | SX6: 508 | SY6: 509 | SZ6: 510 | TA6: 511 | TB6: 512 | TC6: 513 | TD6: 514 | TE6: 515 | TF6: 516 | TG6: 517 | TH6: 518 | TI6: 519 | TJ6: 520 | TK6: 521 | TL6: 522 | TM6: 523 | TN6: 524 | TO6: 525 | TP6: 526 | TQ6: 527 | TR6: 528 | TS6: 529 | TT6: 530 | TU6: 531 | TV6: 532 | TW6: 533 | TX6: 534 | TY6: 535 | TZ6: 536 | UA6: 537 | UB6: 538 | UC6: 539 | UD6: 540 | UE6: 541 | UF6: 542 | UG6: 543 | UH6: 544 | UI6: 545 | UJ6: 546 | UK6: 547 | UL6: 548 | UM6: 549 | UN6: 550 | UO6: 551 | UP6: 552 | UQ6: 553 | UR6: 554 | US6: 555 | UT6: 556 | UU6: 557 | UV6: 558 | UW6: 559 | UX6: 560 | UY6: 561 | UZ6: 562 | VA6: 563 | VB6: 564 | VC6: 565 | VD6: 566 | VE6: 567 | VF6: 568 | VG6: 569 | VH6: 570 | VI6: =VI$17 -> 571 | VJ6: 572 | VK6: 573 | VL6: 574 | VM6: 575 | VN6: 576 | VO6: 577 | VP6: 578 | VQ6: 579 | VR6: 580 | VS6: 581 | VT6: 582 | VU6: 583 | VV6: 584 | VW6: 585 | VX6: 586 | VY6: 587 | VZ6: 588 | WA6: 589 | WB6: 590 | WC6: 591 | WD6: 592 | WE6: 593 | WF6: 594 | WG6: 595 | WH6: 596 | WI6: 597 | WJ6: 598 | WK6: 599 | WL6: 600 | WM6: 601 | WN6: 602 | WO6: 603 | WP6: 604 | WQ6: 605 | WR6: 606 | WS6: 607 | WT6: 608 | WU6: 609 | WV6: 610 | WW6: 611 | WX6: 612 | WY6: 613 | WZ6: 614 | XA6: 615 | XB6: 616 | XC6: 617 | XD6: 618 | XE6: 619 | XF6: 620 | XG6: 621 | XH6: 622 | XI6: 623 | XJ6: 624 | XK6: 625 | XL6: 626 | XM6: 627 | XN6: 628 | XO6: 629 | XP6: 630 | XQ6: 631 | XR6: 632 | XS6: 633 | XT6: 634 | XU6: =XU$17 -> 635 | XV6: 636 | XW6: 637 | XX6: 638 | XY6: 639 | XZ6: 640 | YA6: 641 | YB6: 642 | YC6: 643 | YD6: 644 | YE6: 645 | YF6: 646 | YG6: 647 | YH6: 648 | YI6: 649 | YJ6: 650 | YK6: 651 | YL6: 652 | YM6: 653 | YN6: 654 | YO6: 655 | YP6: 656 | YQ6: 657 | YR6: 658 | YS6: 659 | YT6: 660 | YU6: 661 | YV6: 662 | YW6: 663 | YX6: 664 | YY6: 665 | YZ6: 666 | ZA6: 667 | ZB6: 668 | ZC6: 669 | ZD6: 670 | ZE6: 671 | ZF6: 672 | ZG6: 673 | ZH6: 674 | ZI6: 675 | ZJ6: 676 | ZK6: 677 | ZL6: 678 | ZM6: 679 | ZN6: 680 | ZO6: 681 | ZP6: 682 | ZQ6: 683 | ZR6: 684 | ZS6: 685 | ZT6: 686 | ZU6: 687 | ZV6: 688 | ZW6: 689 | ZX6: 690 | ZY6: 691 | ZZ6: 692 | AAA6: 693 | AAB6: 694 | AAC6: 695 | AAD6: 696 | AAE6: 697 | AAF6: 698 | AAG6: =AAG$17 -> 699 | AAH6: 700 | AAI6: 701 | AAJ6: 702 | AAK6: 703 | AAL6: 704 | AAM6: 705 | AAN6: 706 | AAO6: 707 | AAP6: 708 | AAQ6: 709 | AAR6: 710 | AAS6: 711 | AAT6: 712 | AAU6: 713 | AAV6: 714 | AAW6: 715 | AAX6: 716 | AAY6: 717 | AAZ6: 718 | ABA6: 719 | ABB6: 720 | ABC6: 721 | ABD6: 722 | ABE6: 723 | ABF6: 724 | ABG6: 725 | ABH6: 726 | ABI6: 727 | ABJ6: 728 | ABK6: 729 | ABL6: 730 | ABM6: 731 | ABN6: 732 | ABO6: 733 | ABP6: 734 | ABQ6: 735 | ABR6: 736 | ABS6: 737 | ABT6: 738 | ABU6: 739 | ABV6: 740 | ABW6: 741 | ABX6: 742 | ABY6: 743 | ABZ6: 744 | ACA6: 745 | ACB6: 746 | ACC6: 747 | ACD6: 748 | ACE6: 749 | ACF6: 750 | ACG6: 751 | ACH6: 752 | ACI6: 753 | ACJ6: 754 | ACK6: 755 | ACL6: 756 | ACM6: 757 | ACN6: 758 | ACO6: 759 | ACP6: 760 | ACQ6: 761 | ACR6: 762 | ACS6: =ACS$17 -> 763 | ACT6: 764 | ACU6: 765 | ACV6: 766 | ACW6: 767 | ACX6: 768 | ACY6: 769 | ACZ6: 770 | ADA6: 771 | ADB6: 772 | ADC6: 773 | ADD6: 774 | ADE6: 775 | ADF6: 776 | ADG6: 777 | ADH6: 778 | ADI6: 779 | ADJ6: 780 | ADK6: 781 | ADL6: 782 | ADM6: 783 | ADN6: 784 | ADO6: 785 | ADP6: 786 | ADQ6: 787 | ADR6: 788 | ADS6: 789 | ADT6: 790 | ADU6: 791 | ADV6: 792 | ADW6: 793 | ADX6: 794 | ADY6: 795 | ADZ6: 796 | AEA6: 797 | AEB6: 798 | AEC6: 799 | AED6: 800 | AEE6: 801 | AEF6: 802 | AEG6: 803 | AEH6: 804 | AEI6: 805 | AEJ6: 806 | AEK6: 807 | AEL6: 808 | AEM6: 809 | AEN6: 810 | AEO6: 811 | AEP6: 812 | AEQ6: 813 | AER6: 814 | AES6: 815 | AET6: 816 | AEU6: 817 | AEV6: 818 | AEW6: 819 | AEX6: 820 | AEY6: 821 | AEZ6: 822 | AFA6: 823 | AFB6: 824 | AFC6: 825 | AFD6: 826 | AFE6: =AFE$17 -> 827 | AFF6: 828 | AFG6: 829 | AFH6: 830 | AFI6: 831 | AFJ6: 832 | AFK6: 833 | AFL6: 834 | AFM6: 835 | AFN6: 836 | AFO6: 837 | AFP6: 838 | AFQ6: 839 | AFR6: 840 | AFS6: 841 | AFT6: 842 | AFU6: 843 | AFV6: 844 | AFW6: 845 | AFX6: 846 | AFY6: 847 | AFZ6: 848 | AGA6: 849 | AGB6: 850 | AGC6: 851 | AGD6: 852 | AGE6: 853 | AGF6: 854 | AGG6: 855 | AGH6: 856 | AGI6: 857 | AGJ6: 858 | AGK6: 859 | AGL6: 860 | AGM6: 861 | AGN6: 862 | AGO6: 863 | AGP6: 864 | AGQ6: 865 | AGR6: 866 | AGS6: 867 | AGT6: 868 | AGU6: 869 | AGV6: 870 | AGW6: 871 | AGX6: 872 | AGY6: 873 | AGZ6: 874 | AHA6: 875 | AHB6: 876 | AHC6: 877 | AHD6: 878 | AHE6: 879 | AHF6: 880 | AHG6: 881 | AHH6: 882 | AHI6: 883 | AHJ6: 884 | AHK6: 885 | AHL6: 886 | AHM6: 887 | AHN6: 888 | AHO6: 889 | AHP6: 890 | AHQ6: =AHQ$17 -> 891 | AHR6: 892 | AHS6: 893 | AHT6: 894 | AHU6: 895 | AHV6: 896 | AHW6: 897 | AHX6: 898 | AHY6: 899 | AHZ6: 900 | AIA6: 901 | AIB6: 902 | AIC6: 903 | AID6: 904 | AIE6: 905 | AIF6: 906 | AIG6: 907 | AIH6: 908 | AII6: 909 | AIJ6: 910 | AIK6: 911 | AIL6: 912 | AIM6: 913 | AIN6: 914 | AIO6: 915 | AIP6: 916 | AIQ6: 917 | AIR6: 918 | AIS6: 919 | AIT6: 920 | AIU6: 921 | AIV6: 922 | AIW6: 923 | AIX6: 924 | AIY6: 925 | AIZ6: 926 | AJA6: 927 | AJB6: 928 | AJC6: 929 | AJD6: 930 | AJE6: 931 | AJF6: 932 | AJG6: 933 | AJH6: 934 | AJI6: 935 | AJJ6: 936 | AJK6: 937 | AJL6: 938 | AJM6: 939 | AJN6: 940 | AJO6: 941 | AJP6: 942 | AJQ6: 943 | AJR6: 944 | AJS6: 945 | AJT6: 946 | AJU6: 947 | AJV6: 948 | AJW6: 949 | AJX6: 950 | AJY6: 951 | AJZ6: 952 | AKA6: 953 | AKB6: 954 | AKC6: =AKC$17 -> 955 | AKD6: 956 | AKE6: 957 | AKF6: 958 | AKG6: 959 | AKH6: 960
D8: Input | E8: Constant | F8: Unit | G8: Source | H8: Comment | I8: Total
A10: TIMING
B12: MODEL TIMELINE
C14: Model timeline
D16: First column flag
D17: Model column counter | F17: counter | K17: =J17 + 1 -> 1 | L17: =K17 + 1 -> 2 | M17: =L17 + 1 -> 3 | N17: =M17 + 1 -> 4 | O17: =N17 + 1 -> 5 | P17: =O17 + 1 -> 6 | Q17: =P17 + 1 -> 7 | R17: =Q17 + 1 -> 8 | S17: =R17 + 1 -> 9 | T17: =S17 + 1 -> 10 | U17: =T17 + 1 -> 11 | V17: =U17 + 1 -> 12 | W17: =V17 + 1 -> 13 | X17: =W17 + 1 -> 14 | Y17: =X17 + 1 -> 15 | Z17: =Y17 + 1 -> 16 | AA17: =Z17 + 1 -> 17 | AB17: =AA17 + 1 -> 18 | AC17: =AB17 + 1 -> 19 | AD17: =AC17 + 1 -> 20 | AE17: =AD17 + 1 -> 21 | AF17: =AE17 + 1 -> 22 | AG17: =AF17 + 1 -> 23 | AH17: =AG17 + 1 -> 24 | AI17: =AH17 + 1 -> 25 | AJ17: =AI17 + 1 -> 26 | AK17: =AJ17 + 1 -> 27 | AL17: =AK17 + 1 -> 28 | AM17: =AL17 + 1 -> 29 | AN17: =AM17 + 1 -> 30 | AO17: =AN17 + 1 -> 31 | AP17: =AO17 + 1 -> 32 | AQ17: =AP17 + 1 -> 33 | AR17: =AQ17 + 1 -> 34 | AS17: =AR17 + 1 -> 35 | AT17: =AS17 + 1 -> 36 | AU17: =AT17 + 1 -> 37 | AV17: =AU17 + 1 -> 38 | AW17: =AV17 + 1 -> 39 | AX17: =AW17 + 1 -> 40 | AY17: =AX17 + 1 -> 41 | AZ17: =AY17 + 1 -> 42 | BA17: =AZ17 + 1 -> 43 | BB17: =BA17 + 1 -> 44 | BC17: =BB17 + 1 -> 45 | BD17: =BC17 + 1 -> 46 | BE17: =BD17 + 1 -> 47 | BF17: =BE17 + 1 -> 48 | BG17: =BF17 + 1 -> 49 | BH17: =BG17 + 1 -> 50 | BI17: =BH17 + 1 -> 51 | BJ17: =BI17 + 1 -> 52 | BK17: =BJ17 + 1 -> 53 | BL17: =BK17 + 1 -> 54 | BM17: =BL17 + 1 -> 55 | BN17: =BM17 + 1 -> 56 | BO17: =BN17 + 1 -> 57 | BP17: =BO17 + 1 -> 58 | BQ17: =BP17 + 1 -> 59 | BR17: =BQ17 + 1 -> 60 | BS17: =BR17 + 1 -> 61 | BT17: =BS17 + 1 -> 62 | BU17: =BT17 + 1 -> 63 | BV17: =BU17 + 1 -> 64 | BW17: =BV17 + 1 -> 65 | BX17: =BW17 + 1 -> 66 | BY17: =BX17 + 1 -> 67 | BZ17: =BY17 + 1 -> 68 | CA17: =BZ17 + 1 -> 69 | CB17: =CA17 + 1 -> 70 | CC17: =CB17 + 1 -> 71 | CD17: =CC17 + 1 -> 72 | CE17: =CD17 + 1 -> 73 | CF17: =CE17 + 1 -> 74 | CG17: =CF17 + 1 -> 75 | CH17: =CG17 + 1 -> 76 | CI17: =CH17 + 1 -> 77 | CJ17: =CI17 + 1 -> 78 | CK17: =CJ17 + 1 -> 79 | CL17: =CK17 + 1 -> 80 | CM17: =CL17 + 1 -> 81 | CN17: =CM17 + 1 -> 82 | CO17: =CN17 + 1 -> 83 | CP17: =CO17 + 1 -> 84 | CQ17: =CP17 + 1 -> 85 | CR17: =CQ17 + 1 -> 86 | CS17: =CR17 + 1 -> 87 | CT17: =CS17 + 1 -> 88 | CU17: =CT17 + 1 -> 89 | CV17: =CU17 + 1 -> 90 | CW17: =CV17 + 1 -> 91 | CX17: =CW17 + 1 -> 92 | CY17: =CX17 + 1 -> 93 | CZ17: =CY17 + 1 -> 94 | DA17: =CZ17 + 1 -> 95 | DB17: =DA17 + 1 -> 96 | DC17: =DB17 + 1 -> 97 | DD17: =DC17 + 1 -> 98 | DE17: =DD17 + 1 -> 99 | DF17: =DE17 + 1 -> 100 | DG17: =DF17 + 1 -> 101 | DH17: =DG17 + 1 -> 102 | DI17: =DH17 + 1 -> 103 | DJ17: =DI17 + 1 -> 104 | DK17: =DJ17 + 1 -> 105 | DL17: =DK17 + 1 -> 106 | DM17: =DL17 + 1 -> 107 | DN17: =DM17 + 1 -> 108 | DO17: =DN17 + 1 -> 109 | DP17: =DO17 + 1 -> 110 | DQ17: =DP17 + 1 -> 111 | DR17: =DQ17 + 1 -> 112 | DS17: =DR17 + 1 -> 113 | DT17: =DS17 + 1 -> 114 | DU17: =DT17 + 1 -> 115 | DV17: =DU17 + 1 -> 116 | DW17: =DV17 + 1 -> 117 | DX17: =DW17 + 1 -> 118 | DY17: =DX17 + 1 -> 119 | DZ17: =DY17 + 1 -> 120 | EA17: =DZ17 + 1 -> 121 | EB17: =EA17 + 1 -> 122 | EC17: =EB17 + 1 -> 123 | ED17: =EC17 + 1 -> 124 | EE17: =ED17 + 1 -> 125 | EF17: =EE17 + 1 -> 126 | EG17: =EF17 + 1 -> 127 | EH17: =EG17 + 1 -> 128 | EI17: =EH17 + 1 -> 129 | EJ17: =EI17 + 1 -> 130 | EK17: =EJ17 + 1 -> 131 | EL17: =EK17 + 1 -> 132 | EM17: =EL17 + 1 -> 133 | EN17: =EM17 + 1 -> 134 | EO17: =EN17 + 1 -> 135 | EP17: =EO17 + 1 -> 136 | EQ17: =EP17 + 1 -> 137 | ER17: =EQ17 + 1 -> 138 | ES17: =ER17 + 1 -> 139 | ET17: =ES17 + 1 -> 140 | EU17: =ET17 + 1 -> 141 | EV17: =EU17 + 1 -> 142 | EW17: =EV17 + 1 -> 143 | EX17: =EW17 + 1 -> 144 | EY17: =EX17 + 1 -> 145 | EZ17: =EY17 + 1 -> 146 | FA17: =EZ17 + 1 -> 147 | FB17: =FA17 + 1 -> 148 | FC17: =FB17 + 1 -> 149 | FD17: =FC17 + 1 -> 150 | FE17: =FD17 + 1 -> 151 | FF17: =FE17 + 1 -> 152 | FG17: =FF17 + 1 -> 153 | FH17: =FG17 + 1 -> 154 | FI17: =FH17 + 1 -> 155 | FJ17: =FI17 + 1 -> 156 | FK17: =FJ17 + 1 -> 157 | FL17: =FK17 + 1 -> 158 | FM17: =FL17 + 1 -> 159 | FN17: =FM17 + 1 -> 160 | FO17: =FN17 + 1 -> 161 | FP17: =FO17 + 1 -> 162 | FQ17: =FP17 + 1 -> 163 | FR17: =FQ17 + 1 -> 164 | FS17: =FR17 + 1 -> 165 | FT17: =FS17 + 1 -> 166 | FU17: =FT17 + 1 -> 167 | FV17: =FU17 + 1 -> 168 | FW17: =FV17 + 1 -> 169 | FX17: =FW17 + 1 -> 170 | FY17: =FX17 + 1 -> 171 | FZ17: =FY17 + 1 -> 172 | GA17: =FZ17 + 1 -> 173 | GB17: =GA17 + 1 -> 174 | GC17: =GB17 + 1 -> 175 | GD17: =GC17 + 1 -> 176 | GE17: =GD17 + 1 -> 177 | GF17: =GE17 + 1 -> 178 | GG17: =GF17 + 1 -> 179 | GH17: =GG17 + 1 -> 180 | GI17: =GH17 + 1 -> 181 | GJ17: =GI17 + 1 -> 182 | GK17: =GJ17 + 1 -> 183 | GL17: =GK17 + 1 -> 184 | GM17: =GL17 + 1 -> 185 | GN17: =GM17 + 1 -> 186 | GO17: =GN17 + 1 -> 187 | GP17: =GO17 + 1 -> 188 | GQ17: =GP17 + 1 -> 189 | GR17: =GQ17 + 1 -> 190 | GS17: =GR17 + 1 -> 191 | GT17: =GS17 + 1 -> 192 | GU17: =GT17 + 1 -> 193 | GV17: =GU17 + 1 -> 194 | GW17: =GV17 + 1 -> 195 | GX17: =GW17 + 1 -> 196 | GY17: =GX17 + 1 -> 197 | GZ17: =GY17 + 1 -> 198 | HA17: =GZ17 + 1 -> 199 | HB17: =HA17 + 1 -> 200 | HC17: =HB17 + 1 -> 201 | HD17: =HC17 + 1 -> 202 | HE17: =HD17 + 1 -> 203 | HF17: =HE17 + 1 -> 204 | HG17: =HF17 + 1 -> 205 | HH17: =HG17 + 1 -> 206 | HI17: =HH17 + 1 -> 207 | HJ17: =HI17 + 1 -> 208 | HK17: =HJ17 + 1 -> 209 | HL17: =HK17 + 1 -> 210 | HM17: =HL17 + 1 -> 211 | HN17: =HM17 + 1 -> 212 | HO17: =HN17 + 1 -> 213 | HP17: =HO17 + 1 -> 214 | HQ17: =HP17 + 1 -> 215 | HR17: =HQ17 + 1 -> 216 | HS17: =HR17 + 1 -> 217 | HT17: =HS17 + 1 -> 218 | HU17: =HT17 + 1 -> 219 | HV17: =HU17 + 1 -> 220 | HW17: =HV17 + 1 -> 221 | HX17: =HW17 + 1 -> 222 | HY17: =HX17 + 1 -> 223 | HZ17: =HY17 + 1 -> 224 | IA17: =HZ17 + 1 -> 225 | IB17: =IA17 + 1 -> 226 | IC17: =IB17 + 1 -> 227 | ID17: =IC17 + 1 -> 228 | IE17: =ID17 + 1 -> 229 | IF17: =IE17 + 1 -> 230 | IG17: =IF17 + 1 -> 231 | IH17: =IG17 + 1 -> 232 | II17: =IH17 + 1 -> 233 | IJ17: =II17 + 1 -> 234 | IK17: =IJ17 + 1 -> 235 | IL17: =IK17 + 1 -> 236 | IM17: =IL17 + 1 -> 237 | IN17: =IM17 + 1 -> 238 | IO17: =IN17 + 1 -> 239 | IP17: =IO17 + 1 -> 240 | IQ17: =IP17 + 1 -> 241 | IR17: =IQ17 + 1 -> 242 | IS17: =IR17 + 1 -> 243 | IT17: =IS17 + 1 -> 244 | IU17: =IT17 + 1 -> 245 | IV17: =IU17 + 1 -> 246 | IW17: =IV17 + 1 -> 247 | IX17: =IW17 + 1 -> 248 | IY17: =IX17 + 1 -> 249 | IZ17: =IY17 + 1 -> 250 | JA17: =IZ17 + 1 -> 251 | JB17: =JA17 + 1 -> 252 | JC17: =JB17 + 1 -> 253 | JD17: =JC17 + 1 -> 254 | JE17: =JD17 + 1 -> 255 | JF17: =JE17 + 1 -> 256 | JG17: =JF17 + 1 -> 257 | JH17: =JG17 + 1 -> 258 | JI17: =JH17 + 1 -> 259 | JJ17: =JI17 + 1 -> 260 | JK17: =JJ17 + 1 -> 261 | JL17: =JK17 + 1 -> 262 | JM17: =JL17 + 1 -> 263 | JN17: =JM17 + 1 -> 264 | JO17: =JN17 + 1 -> 265 | JP17: =JO17 + 1 -> 266 | JQ17: =JP17 + 1 -> 267 | JR17: =JQ17 + 1 -> 268 | JS17: =JR17 + 1 -> 269 | JT17: =JS17 + 1 -> 270 | JU17: =JT17 + 1 -> 271 | JV17: =JU17 + 1 -> 272 | JW17: =JV17 + 1 -> 273 | JX17: =JW17 + 1 -> 274 | JY17: =JX17 + 1 -> 275 | JZ17: =JY17 + 1 -> 276 | KA17: =JZ17 + 1 -> 277 | KB17: =KA17 + 1 -> 278 | KC17: =KB17 + 1 -> 279 | KD17: =KC17 + 1 -> 280 | KE17: =KD17 + 1 -> 281 | KF17: =KE17 + 1 -> 282 | KG17: =KF17 + 1 -> 283 | KH17: =KG17 + 1 -> 284 | KI17: =KH17 + 1 -> 285 | KJ17: =KI17 + 1 -> 286 | KK17: =KJ17 + 1 -> 287 | KL17: =KK17 + 1 -> 288 | KM17: =KL17 + 1 -> 289 | KN17: =KM17 + 1 -> 290 | KO17: =KN17 + 1 -> 291 | KP17: =KO17 + 1 -> 292 | KQ17: =KP17 + 1 -> 293 | KR17: =KQ17 + 1 -> 294 | KS17: =KR17 + 1 -> 295 | KT17: =KS17 + 1 -> 296 | KU17: =KT17 + 1 -> 297 | KV17: =KU17 + 1 -> 298 | KW17: =KV17 + 1 -> 299 | KX17: =KW17 + 1 -> 300 | KY17: =KX17 + 1 -> 301 | KZ17: =KY17 + 1 -> 302 | LA17: =KZ17 + 1 -> 303 | LB17: =LA17 + 1 -> 304 | LC17: =LB17 + 1 -> 305 | LD17: =LC17 + 1 -> 306 | LE17: =LD17 + 1 -> 307 | LF17: =LE17 + 1 -> 308 | LG17: =LF17 + 1 -> 309 | LH17: =LG17 + 1 -> 310 | LI17: =LH17 + 1 -> 311 | LJ17: =LI17 + 1 -> 312 | LK17: =LJ17 + 1 -> 313 | LL17: =LK17 + 1 -> 314 | LM17: =LL17 + 1 -> 315 | LN17: =LM17 + 1 -> 316 | LO17: =LN17 + 1 -> 317 | LP17: =LO17 + 1 -> 318 | LQ17: =LP17 + 1 -> 319 | LR17: =LQ17 + 1 -> 320 | LS17: =LR17 + 1 -> 321 | LT17: =LS17 + 1 -> 322 | LU17: =LT17 + 1 -> 323 | LV17: =LU17 + 1 -> 324 | LW17: =LV17 + 1 -> 325 | LX17: =LW17 + 1 -> 326 | LY17: =LX17 + 1 -> 327 | LZ17: =LY17 + 1 -> 328 | MA17: =LZ17 + 1 -> 329 | MB17: =MA17 + 1 -> 330 | MC17: =MB17 + 1 -> 331 | MD17: =MC17 + 1 -> 332 | ME17: =MD17 + 1 -> 333 | MF17: =ME17 + 1 -> 334 | MG17: =MF17 + 1 -> 335 | MH17: =MG17 + 1 -> 336 | MI17: =MH17 + 1 -> 337 | MJ17: =MI17 + 1 -> 338 | MK17: =MJ17 + 1 -> 339 | ML17: =MK17 + 1 -> 340 | MM17: =ML17 + 1 -> 341 | MN17: =MM17 + 1 -> 342 | MO17: =MN17 + 1 -> 343 | MP17: =MO17 + 1 -> 344 | MQ17: =MP17 + 1 -> 345 | MR17: =MQ17 + 1 -> 346 | MS17: =MR17 + 1 -> 347 | MT17: =MS17 + 1 -> 348 | MU17: =MT17 + 1 -> 349 | MV17: =MU17 + 1 -> 350 | MW17: =MV17 + 1 -> 351 | MX17: =MW17 + 1 -> 352 | MY17: =MX17 + 1 -> 353 | MZ17: =MY17 + 1 -> 354 | NA17: =MZ17 + 1 -> 355 | NB17: =NA17 + 1 -> 356 | NC17: =NB17 + 1 -> 357 | ND17: =NC17 + 1 -> 358 | NE17: =ND17 + 1 -> 359 | NF17: =NE17 + 1 -> 360 | NG17: =NF17 + 1 -> 361 | NH17: =NG17 + 1 -> 362 | NI17: =NH17 + 1 -> 363 | NJ17: =NI17 + 1 -> 364 | NK17: =NJ17 + 1 -> 365 | NL17: =NK17 + 1 -> 366 | NM17: =NL17 + 1 -> 367 | NN17: =NM17 + 1 -> 368 | NO17: =NN17 + 1 -> 369 | NP17: =NO17 + 1 -> 370 | NQ17: =NP17 + 1 -> 371 | NR17: =NQ17 + 1 -> 372 | NS17: =NR17 + 1 -> 373 | NT17: =NS17 + 1 -> 374 | NU17: =NT17 + 1 -> 375 | NV17: =NU17 + 1 -> 376 | NW17: =NV17 + 1 -> 377 | NX17: =NW17 + 1 -> 378 | NY17: =NX17 + 1 -> 379 | NZ17: =NY17 + 1 -> 380 | OA17: =NZ17 + 1 -> 381 | OB17: =OA17 + 1 -> 382 | OC17: =OB17 + 1 -> 383 | OD17: =OC17 + 1 -> 384 | OE17: =OD17 + 1 -> 385 | OF17: =OE17 + 1 -> 386 | OG17: =OF17 + 1 -> 387 | OH17: =OG17 + 1 -> 388 | OI17: =OH17 + 1 -> 389 | OJ17: =OI17 + 1 -> 390 | OK17: =OJ17 + 1 -> 391 | OL17: =OK17 + 1 -> 392 | OM17: =OL17 + 1 -> 393 | ON17: =OM17 + 1 -> 394 | OO17: =ON17 + 1 -> 395 | OP17: =OO17 + 1 -> 396 | OQ17: =OP17 + 1 -> 397 | OR17: =OQ17 + 1 -> 398 | OS17: =OR17 + 1 -> 399 | OT17: =OS17 + 1 -> 400 | OU17: =OT17 + 1 -> 401 | OV17: =OU17 + 1 -> 402 | OW17: =OV17 + 1 -> 403 | OX17: =OW17 + 1 -> 404 | OY17: =OX17 + 1 -> 405 | OZ17: =OY17 + 1 -> 406 | PA17: =OZ17 + 1 -> 407 | PB17: =PA17 + 1 -> 408 | PC17: =PB17 + 1 -> 409 | PD17: =PC17 + 1 -> 410 | PE17: =PD17 + 1 -> 411 | PF17: =PE17 + 1 -> 412 | PG17: =PF17 + 1 -> 413 | PH17: =PG17 + 1 -> 414 | PI17: =PH17 + 1 -> 415 | PJ17: =PI17 + 1 -> 416 | PK17: =PJ17 + 1 -> 417 | PL17: =PK17 + 1 -> 418 | PM17: =PL17 + 1 -> 419 | PN17: =PM17 + 1 -> 420 | PO17: =PN17 + 1 -> 421 | PP17: =PO17 + 1 -> 422 | PQ17: =PP17 + 1 -> 423 | PR17: =PQ17 + 1 -> 424 | PS17: =PR17 + 1 -> 425 | PT17: =PS17 + 1 -> 426 | PU17: =PT17 + 1 -> 427 | PV17: =PU17 + 1 -> 428 | PW17: =PV17 + 1 -> 429 | PX17: =PW17 + 1 -> 430 | PY17: =PX17 + 1 -> 431 | PZ17: =PY17 + 1 -> 432 | QA17: =PZ17 + 1 -> 433 | QB17: =QA17 + 1 -> 434 | QC17: =QB17 + 1 -> 435 | QD17: =QC17 + 1 -> 436 | QE17: =QD17 + 1 -> 437 | QF17: =QE17 + 1 -> 438 | QG17: =QF17 + 1 -> 439 | QH17: =QG17 + 1 -> 440 | QI17: =QH17 + 1 -> 441 | QJ17: =QI17 + 1 -> 442 | QK17: =QJ17 + 1 -> 443 | QL17: =QK17 + 1 -> 444 | QM17: =QL17 + 1 -> 445 | QN17: =QM17 + 1 -> 446 | QO17: =QN17 + 1 -> 447 | QP17: =QO17 + 1 -> 448 | QQ17: =QP17 + 1 -> 449 | QR17: =QQ17 + 1 -> 450 | QS17: =QR17 + 1 -> 451 | QT17: =QS17 + 1 -> 452 | QU17: =QT17 + 1 -> 453 | QV17: =QU17 + 1 -> 454 | QW17: =QV17 + 1 -> 455 | QX17: =QW17 + 1 -> 456 | QY17: =QX17 + 1 -> 457 | QZ17: =QY17 + 1 -> 458 | RA17: =QZ17 + 1 -> 459 | RB17: =RA17 + 1 -> 460 | RC17: =RB17 + 1 -> 461 | RD17: =RC17 + 1 -> 462 | RE17: =RD17 + 1 -> 463 | RF17: =RE17 + 1 -> 464 | RG17: =RF17 + 1 -> 465 | RH17: =RG17 + 1 -> 466 | RI17: =RH17 + 1 -> 467 | RJ17: =RI17 + 1 -> 468 | RK17: =RJ17 + 1 -> 469 | RL17: =RK17 + 1 -> 470 | RM17: =RL17 + 1 -> 471 | RN17: =RM17 + 1 -> 472 | RO17: =RN17 + 1 -> 473 | RP17: =RO17 + 1 -> 474 | RQ17: =RP17 + 1 -> 475 | RR17: =RQ17 + 1 -> 476 | RS17: =RR17 + 1 -> 477 | RT17: =RS17 + 1 -> 478 | RU17: =RT17 + 1 -> 479 | RV17: =RU17 + 1 -> 480 | RW17: =RV17 + 1 -> 481 | RX17: =RW17 + 1 -> 482 | RY17: =RX17 + 1 -> 483 | RZ17: =RY17 + 1 -> 484 | SA17: =RZ17 + 1 -> 485 | SB17: =SA17 + 1 -> 486 | SC17: =SB17 + 1 -> 487 | SD17: =SC17 + 1 -> 488 | SE17: =SD17 + 1 -> 489 | SF17: =SE17 + 1 -> 490 | SG17: =SF17 + 1 -> 491 | SH17: =SG17 + 1 -> 492 | SI17: =SH17 + 1 -> 493 | SJ17: =SI17 + 1 -> 494 | SK17: =SJ17 + 1 -> 495 | SL17: =SK17 + 1 -> 496 | SM17: =SL17 + 1 -> 497 | SN17: =SM17 + 1 -> 498 | SO17: =SN17 + 1 -> 499 | SP17: =SO17 + 1 -> 500 | SQ17: =SP17 + 1 -> 501 | SR17: =SQ17 + 1 -> 502 | SS17: =SR17 + 1 -> 503 | ST17: =SS17 + 1 -> 504 | SU17: =ST17 + 1 -> 505 | SV17: =SU17 + 1 -> 506 | SW17: =SV17 + 1 -> 507 | SX17: =SW17 + 1 -> 508 | SY17: =SX17 + 1 -> 509 | SZ17: =SY17 + 1 -> 510 | TA17: =SZ17 + 1 -> 511 | TB17: =TA17 + 1 -> 512 | TC17: =TB17 + 1 -> 513 | TD17: =TC17 + 1 -> 514 | TE17: =TD17 + 1 -> 515 | TF17: =TE17 + 1 -> 516 | TG17: =TF17 + 1 -> 517 | TH17: =TG17 + 1 -> 518 | TI17: =TH17 + 1 -> 519 | TJ17: =TI17 + 1 -> 520 | TK17: =TJ17 + 1 -> 521 | TL17: =TK17 + 1 -> 522 | TM17: =TL17 + 1 -> 523 | TN17: =TM17 + 1 -> 524 | TO17: =TN17 + 1 -> 525 | TP17: =TO17 + 1 -> 526 | TQ17: =TP17 + 1 -> 527 | TR17: =TQ17 + 1 -> 528 | TS17: =TR17 + 1 -> 529 | TT17: =TS17 + 1 -> 530 | TU17: =TT17 + 1 -> 531 | TV17: =TU17 + 1 -> 532 | TW17: =TV17 + 1 -> 533 | TX17: =TW17 + 1 -> 534 | TY17: =TX17 + 1 -> 535 | TZ17: =TY17 + 1 -> 536 | UA17: =TZ17 + 1 -> 537 | UB17: =UA17 + 1 -> 538 | UC17: =UB17 + 1 -> 539 | UD17: =UC17 + 1 -> 540 | UE17: =UD17 + 1 -> 541 | UF17: =UE17 + 1 -> 542 | UG17: =UF17 + 1 -> 543 | UH17: =UG17 + 1 -> 544 | UI17: =UH17 + 1 -> 545 | UJ17: =UI17 + 1 -> 546 | UK17: =UJ17 + 1 -> 547 | UL17: =UK17 + 1 -> 548 | UM17: =UL17 + 1 -> 549 | UN17: =UM17 + 1 -> 550 | UO17: =UN17 + 1 -> 551 | UP17: =UO17 + 1 -> 552 | UQ17: =UP17 + 1 -> 553 | UR17: =UQ17 + 1 -> 554 | US17: =UR17 + 1 -> 555 | UT17: =US17 + 1 -> 556 | UU17: =UT17 + 1 -> 557 | UV17: =UU17 + 1 -> 558 | UW17: =UV17 + 1 -> 559 | UX17: =UW17 + 1 -> 560 | UY17: =UX17 + 1 -> 561 | UZ17: =UY17 + 1 -> 562 | VA17: =UZ17 + 1 -> 563 | VB17: =VA17 + 1 -> 564 | VC17: =VB17 + 1 -> 565 | VD17: =VC17 + 1 -> 566 | VE17: =VD17 + 1 -> 567 | VF17: =VE17 + 1 -> 568 | VG17: =VF17 + 1 -> 569 | VH17: =VG17 + 1 -> 570 | VI17: =VH17 + 1 -> 571 | VJ17: =VI17 + 1 -> 572 | VK17: =VJ17 + 1 -> 573 | VL17: =VK17 + 1 -> 574 | VM17: =VL17 + 1 -> 575 | VN17: =VM17 + 1 -> 576 | VO17: =VN17 + 1 -> 577 | VP17: =VO17 + 1 -> 578 | VQ17: =VP17 + 1 -> 579 | VR17: =VQ17 + 1 -> 580 | VS17: =VR17 + 1 -> 581 | VT17: =VS17 + 1 -> 582 | VU17: =VT17 + 1 -> 583 | VV17: =VU17 + 1 -> 584 | VW17: =VV17 + 1 -> 585 | VX17: =VW17 + 1 -> 586 | VY17: =VX17 + 1 -> 587 | VZ17: =VY17 + 1 -> 588 | WA17: =VZ17 + 1 -> 589 | WB17: =WA17 + 1 -> 590 | WC17: =WB17 + 1 -> 591 | WD17: =WC17 + 1 -> 592 | WE17: =WD17 + 1 -> 593 | WF17: =WE17 + 1 -> 594 | WG17: =WF17 + 1 -> 595 | WH17: =WG17 + 1 -> 596 | WI17: =WH17 + 1 -> 597 | WJ17: =WI17 + 1 -> 598 | WK17: =WJ17 + 1 -> 599 | WL17: =WK17 + 1 -> 600 | WM17: =WL17 + 1 -> 601 | WN17: =WM17 + 1 -> 602 | WO17: =WN17 + 1 -> 603 | WP17: =WO17 + 1 -> 604 | WQ17: =WP17 + 1 -> 605 | WR17: =WQ17 + 1 -> 606 | WS17: =WR17 + 1 -> 607 | WT17: =WS17 + 1 -> 608 | WU17: =WT17 + 1 -> 609 | WV17: =WU17 + 1 -> 610 | WW17: =WV17 + 1 -> 611 | WX17: =WW17 + 1 -> 612 | WY17: =WX17 + 1 -> 613 | WZ17: =WY17 + 1 -> 614 | XA17: =WZ17 + 1 -> 615 | XB17: =XA17 + 1 -> 616 | XC17: =XB17 + 1 -> 617 | XD17: =XC17 + 1 -> 618 | XE17: =XD17 + 1 -> 619 | XF17: =XE17 + 1 -> 620 | XG17: =XF17 + 1 -> 621 | XH17: =XG17 + 1 -> 622 | XI17: =XH17 + 1 -> 623 | XJ17: =XI17 + 1 -> 624 | XK17: =XJ17 + 1 -> 625 | XL17: =XK17 + 1 -> 626 | XM17: =XL17 + 1 -> 627 | XN17: =XM17 + 1 -> 628 | XO17: =XN17 + 1 -> 629 | XP17: =XO17 + 1 -> 630 | XQ17: =XP17 + 1 -> 631 | XR17: =XQ17 + 1 -> 632 | XS17: =XR17 + 1 -> 633 | XT17: =XS17 + 1 -> 634 | XU17: =XT17 + 1 -> 635 | XV17: =XU17 + 1 -> 636 | XW17: =XV17 + 1 -> 637 | XX17: =XW17 + 1 -> 638 | XY17: =XX17 + 1 -> 639 | XZ17: =XY17 + 1 -> 640 | YA17: =XZ17 + 1 -> 641 | YB17: =YA17 + 1 -> 642 | YC17: =YB17 + 1 -> 643 | YD17: =YC17 + 1 -> 644 | YE17: =YD17 + 1 -> 645 | YF17: =YE17 + 1 -> 646 | YG17: =YF17 + 1 -> 647 | YH17: =YG17 + 1 -> 648 | YI17: =YH17 + 1 -> 649 | YJ17: =YI17 + 1 -> 650 | YK17: =YJ17 + 1 -> 651 | YL17: =YK17 + 1 -> 652 | YM17: =YL17 + 1 -> 653 | YN17: =YM17 + 1 -> 654 | YO17: =YN17 + 1 -> 655 | YP17: =YO17 + 1 -> 656 | YQ17: =YP17 + 1 -> 657 | YR17: =YQ17 + 1 -> 658 | YS17: =YR17 + 1 -> 659 | YT17: =YS17 + 1 -> 660 | YU17: =YT17 + 1 -> 661 | YV17: =YU17 + 1 -> 662 | YW17: =YV17 + 1 -> 663 | YX17: =YW17 + 1 -> 664 | YY17: =YX17 + 1 -> 665 | YZ17: =YY17 + 1 -> 666 | ZA17: =YZ17 + 1 -> 667 | ZB17: =ZA17 + 1 -> 668 | ZC17: =ZB17 + 1 -> 669 | ZD17: =ZC17 + 1 -> 670 | ZE17: =ZD17 + 1 -> 671 | ZF17: =ZE17 + 1 -> 672 | ZG17: =ZF17 + 1 -> 673 | ZH17: =ZG17 + 1 -> 674 | ZI17: =ZH17 + 1 -> 675 | ZJ17: =ZI17 + 1 -> 676 | ZK17: =ZJ17 + 1 -> 677 | ZL17: =ZK17 + 1 -> 678 | ZM17: =ZL17 + 1 -> 679 | ZN17: =ZM17 + 1 -> 680 | ZO17: =ZN17 + 1 -> 681 | ZP17: =ZO17 + 1 -> 682 | ZQ17: =ZP17 + 1 -> 683 | ZR17: =ZQ17 + 1 -> 684 | ZS17: =ZR17 + 1 -> 685 | ZT17: =ZS17 + 1 -> 686 | ZU17: =ZT17 + 1 -> 687 | ZV17: =ZU17 + 1 -> 688 | ZW17: =ZV17 + 1 -> 689 | ZX17: =ZW17 + 1 -> 690 | ZY17: =ZX17 + 1 -> 691 | ZZ17: =ZY17 + 1 -> 692 | AAA17: =ZZ17 + 1 -> 693 | AAB17: =AAA17 + 1 -> 694 | AAC17: =AAB17 + 1 -> 695 | AAD17: =AAC17 + 1 -> 696 | AAE17: =AAD17 + 1 -> 697 | AAF17: =AAE17 + 1 -> 698 | AAG17: =AAF17 + 1 -> 699 | AAH17: =AAG17 + 1 -> 700 | AAI17: =AAH17 + 1 -> 701 | AAJ17: =AAI17 + 1 -> 702 | AAK17: =AAJ17 + 1 -> 703 | AAL17: =AAK17 + 1 -> 704 | AAM17: =AAL17 + 1 -> 705 | AAN17: =AAM17 + 1 -> 706 | AAO17: =AAN17 + 1 -> 707 | AAP17: =AAO17 + 1 -> 708 | AAQ17: =AAP17 + 1 -> 709 | AAR17: =AAQ17 + 1 -> 710 | AAS17: =AAR17 + 1 -> 711 | AAT17: =AAS17 + 1 -> 712 | AAU17: =AAT17 + 1 -> 713 | AAV17: =AAU17 + 1 -> 714 | AAW17: =AAV17 + 1 -> 715 | AAX17: =AAW17 + 1 -> 716 | AAY17: =AAX17 + 1 -> 717 | AAZ17: =AAY17 + 1 -> 718 | ABA17: =AAZ17 + 1 -> 719 | ABB17: =ABA17 + 1 -> 720 | ABC17: =ABB17 + 1 -> 721 | ABD17: =ABC17 + 1 -> 722 | ABE17: =ABD17 + 1 -> 723 | ABF17: =ABE17 + 1 -> 724 | ABG17: =ABF17 + 1 -> 725 | ABH17: =ABG17 + 1 -> 726 | ABI17: =ABH17 + 1 -> 727 | ABJ17: =ABI17 + 1 -> 728 | ABK17: =ABJ17 + 1 -> 729 | ABL17: =ABK17 + 1 -> 730 | ABM17: =ABL17 + 1 -> 731 | ABN17: =ABM17 + 1 -> 732 | ABO17: =ABN17 + 1 -> 733 | ABP17: =ABO17 + 1 -> 734 | ABQ17: =ABP17 + 1 -> 735 | ABR17: =ABQ17 + 1 -> 736 | ABS17: =ABR17 + 1 -> 737 | ABT17: =ABS17 + 1 -> 738 | ABU17: =ABT17 + 1 -> 739 | ABV17: =ABU17 + 1 -> 740 | ABW17: =ABV17 + 1 -> 741 | ABX17: =ABW17 + 1 -> 742 | ABY17: =ABX17 + 1 -> 743 | ABZ17: =ABY17 + 1 -> 744 | ACA17: =ABZ17 + 1 -> 745 | ACB17: =ACA17 + 1 -> 746 | ACC17: =ACB17 + 1 -> 747 | ACD17: =ACC17 + 1 -> 748 | ACE17: =ACD17 + 1 -> 749 | ACF17: =ACE17 + 1 -> 750 | ACG17: =ACF17 + 1 -> 751 | ACH17: =ACG17 + 1 -> 752 | ACI17: =ACH17 + 1 -> 753 | ACJ17: =ACI17 + 1 -> 754 | ACK17: =ACJ17 + 1 -> 755 | ACL17: =ACK17 + 1 -> 756 | ACM17: =ACL17 + 1 -> 757 | ACN17: =ACM17 + 1 -> 758 | ACO17: =ACN17 + 1 -> 759 | ACP17: =ACO17 + 1 -> 760 | ACQ17: =ACP17 + 1 -> 761 | ACR17: =ACQ17 + 1 -> 762 | ACS17: =ACR17 + 1 -> 763 | ACT17: =ACS17 + 1 -> 764 | ACU17: =ACT17 + 1 -> 765 | ACV17: =ACU17 + 1 -> 766 | ACW17: =ACV17 + 1 -> 767 | ACX17: =ACW17 + 1 -> 768 | ACY17: =ACX17 + 1 -> 769 | ACZ17: =ACY17 + 1 -> 770 | ADA17: =ACZ17 + 1 -> 771 | ADB17: =ADA17 + 1 -> 772 | ADC17: =ADB17 + 1 -> 773 | ADD17: =ADC17 + 1 -> 774 | ADE17: =ADD17 + 1 -> 775 | ADF17: =ADE17 + 1 -> 776 | ADG17: =ADF17 + 1 -> 777 | ADH17: =ADG17 + 1 -> 778 | ADI17: =ADH17 + 1 -> 779 | ADJ17: =ADI17 + 1 -> 780 | ADK17: =ADJ17 + 1 -> 781 | ADL17: =ADK17 + 1 -> 782 | ADM17: =ADL17 + 1 -> 783 | ADN17: =ADM17 + 1 -> 784 | ADO17: =ADN17 + 1 -> 785 | ADP17: =ADO17 + 1 -> 786 | ADQ17: =ADP17 + 1 -> 787 | ADR17: =ADQ17 + 1 -> 788 | ADS17: =ADR17 + 1 -> 789 | ADT17: =ADS17 + 1 -> 790 | ADU17: =ADT17 + 1 -> 791 | ADV17: =ADU17 + 1 -> 792 | ADW17: =ADV17 + 1 -> 793 | ADX17: =ADW17 + 1 -> 794 | ADY17: =ADX17 + 1 -> 795 | ADZ17: =ADY17 + 1 -> 796 | AEA17: =ADZ17 + 1 -> 797 | AEB17: =AEA17 + 1 -> 798 | AEC17: =AEB17 + 1 -> 799 | AED17: =AEC17 + 1 -> 800 | AEE17: =AED17 + 1 -> 801 | AEF17: =AEE17 + 1 -> 802 | AEG17: =AEF17 + 1 -> 803 | AEH17: =AEG17 + 1 -> 804 | AEI17: =AEH17 + 1 -> 805 | AEJ17: =AEI17 + 1 -> 806 | AEK17: =AEJ17 + 1 -> 807 | AEL17: =AEK17 + 1 -> 808 | AEM17: =AEL17 + 1 -> 809 | AEN17: =AEM17 + 1 -> 810 | AEO17: =AEN17 + 1 -> 811 | AEP17: =AEO17 + 1 -> 812 | AEQ17: =AEP17 + 1 -> 813 | AER17: =AEQ17 + 1 -> 814 | AES17: =AER17 + 1 -> 815 | AET17: =AES17 + 1 -> 816 | AEU17: =AET17 + 1 -> 817 | AEV17: =AEU17 + 1 -> 818 | AEW17: =AEV17 + 1 -> 819 | AEX17: =AEW17 + 1 -> 820 | AEY17: =AEX17 + 1 -> 821 | AEZ17: =AEY17 + 1 -> 822 | AFA17: =AEZ17 + 1 -> 823 | AFB17: =AFA17 + 1 -> 824 | AFC17: =AFB17 + 1 -> 825 | AFD17: =AFC17 + 1 -> 826 | AFE17: =AFD17 + 1 -> 827 | AFF17: =AFE17 + 1 -> 828 | AFG17: =AFF17 + 1 -> 829 | AFH17: =AFG17 + 1 -> 830 | AFI17: =AFH17 + 1 -> 831 | AFJ17: =AFI17 + 1 -> 832 | AFK17: =AFJ17 + 1 -> 833 | AFL17: =AFK17 + 1 -> 834 | AFM17: =AFL17 + 1 -> 835 | AFN17: =AFM17 + 1 -> 836 | AFO17: =AFN17 + 1 -> 837 | AFP17: =AFO17 + 1 -> 838 | AFQ17: =AFP17 + 1 -> 839 | AFR17: =AFQ17 + 1 -> 840 | AFS17: =AFR17 + 1 -> 841 | AFT17: =AFS17 + 1 -> 842 | AFU17: =AFT17 + 1 -> 843 | AFV17: =AFU17 + 1 -> 844 | AFW17: =AFV17 + 1 -> 845 | AFX17: =AFW17 + 1 -> 846 | AFY17: =AFX17 + 1 -> 847 | AFZ17: =AFY17 + 1 -> 848 | AGA17: =AFZ17 + 1 -> 849 | AGB17: =AGA17 + 1 -> 850 | AGC17: =AGB17 + 1 -> 851 | AGD17: =AGC17 + 1 -> 852 | AGE17: =AGD17 + 1 -> 853 | AGF17: =AGE17 + 1 -> 854 | AGG17: =AGF17 + 1 -> 855 | AGH17: =AGG17 + 1 -> 856 | AGI17: =AGH17 + 1 -> 857 | AGJ17: =AGI17 + 1 -> 858 | AGK17: =AGJ17 + 1 -> 859 | AGL17: =AGK17 + 1 -> 860 | AGM17: =AGL17 + 1 -> 861 | AGN17: =AGM17 + 1 -> 862 | AGO17: =AGN17 + 1 -> 863 | AGP17: =AGO17 + 1 -> 864 | AGQ17: =AGP17 + 1 -> 865 | AGR17: =AGQ17 + 1 -> 866 | AGS17: =AGR17 + 1 -> 867 | AGT17: =AGS17 + 1 -> 868 | AGU17: =AGT17 + 1 -> 869 | AGV17: =AGU17 + 1 -> 870 | AGW17: =AGV17 + 1 -> 871 | AGX17: =AGW17 + 1 -> 872 | AGY17: =AGX17 + 1 -> 873 | AGZ17: =AGY17 + 1 -> 874 | AHA17: =AGZ17 + 1 -> 875 | AHB17: =AHA17 + 1 -> 876 | AHC17: =AHB17 + 1 -> 877 | AHD17: =AHC17 + 1 -> 878 | AHE17: =AHD17 + 1 -> 879 | AHF17: =AHE17 + 1 -> 880 | AHG17: =AHF17 + 1 -> 881 | AHH17: =AHG17 + 1 -> 882 | AHI17: =AHH17 + 1 -> 883 | AHJ17: =AHI17 + 1 -> 884 | AHK17: =AHJ17 + 1 -> 885 | AHL17: =AHK17 + 1 -> 886 | AHM17: =AHL17 + 1 -> 887 | AHN17: =AHM17 + 1 -> 888 | AHO17: =AHN17 + 1 -> 889 | AHP17: =AHO17 + 1 -> 890 | AHQ17: =AHP17 + 1 -> 891 | AHR17: =AHQ17 + 1 -> 892 | AHS17: =AHR17 + 1 -> 893 | AHT17: =AHS17 + 1 -> 894 | AHU17: =AHT17 + 1 -> 895 | AHV17: =AHU17 + 1 -> 896 | AHW17: =AHV17 + 1 -> 897 | AHX17: =AHW17 + 1 -> 898 | AHY17: =AHX17 + 1 -> 899 | AHZ17: =AHY17 + 1 -> 900 | AIA17: =AHZ17 + 1 -> 901 | AIB17: =AIA17 + 1 -> 902 | AIC17: =AIB17 + 1 -> 903 | AID17: =AIC17 + 1 -> 904 | AIE17: =AID17 + 1 -> 905 | AIF17: =AIE17 + 1 -> 906 | AIG17: =AIF17 + 1 -> 907 | AIH17: =AIG17 + 1 -> 908 | AII17: =AIH17 + 1 -> 909 | AIJ17: =AII17 + 1 -> 910 | AIK17: =AIJ17 + 1 -> 911 | AIL17: =AIK17 + 1 -> 912 | AIM17: =AIL17 + 1 -> 913 | AIN17: =AIM17 + 1 -> 914 | AIO17: =AIN17 + 1 -> 915 | AIP17: =AIO17 + 1 -> 916 | AIQ17: =AIP17 + 1 -> 917 | AIR17: =AIQ17 + 1 -> 918 | AIS17: =AIR17 + 1 -> 919 | AIT17: =AIS17 + 1 -> 920 | AIU17: =AIT17 + 1 -> 921 | AIV17: =AIU17 + 1 -> 922 | AIW17: =AIV17 + 1 -> 923 | AIX17: =AIW17 + 1 -> 924 | AIY17: =AIX17 + 1 -> 925 | AIZ17: =AIY17 + 1 -> 926 | AJA17: =AIZ17 + 1 -> 927 | AJB17: =AJA17 + 1 -> 928 | AJC17: =AJB17 + 1 -> 929 | AJD17: =AJC17 + 1 -> 930 | AJE17: =AJD17 + 1 -> 931 | AJF17: =AJE17 + 1 -> 932 | AJG17: =AJF17 + 1 -> 933 | AJH17: =AJG17 + 1 -> 934 | AJI17: =AJH17 + 1 -> 935 | AJJ17: =AJI17 + 1 -> 936 | AJK17: =AJJ17 + 1 -> 937 | AJL17: =AJK17 + 1 -> 938 | AJM17: =AJL17 + 1 -> 939 | AJN17: =AJM17 + 1 -> 940 | AJO17: =AJN17 + 1 -> 941 | AJP17: =AJO17 + 1 -> 942 | AJQ17: =AJP17 + 1 -> 943 | AJR17: =AJQ17 + 1 -> 944 | AJS17: =AJR17 + 1 -> 945 | AJT17: =AJS17 + 1 -> 946 | AJU17: =AJT17 + 1 -> 947 | AJV17: =AJU17 + 1 -> 948 | AJW17: =AJV17 + 1 -> 949 | AJX17: =AJW17 + 1 -> 950 | AJY17: =AJX17 + 1 -> 951 | AJZ17: =AJY17 + 1 -> 952 | AKA17: =AJZ17 + 1 -> 953 | AKB17: =AKA17 + 1 -> 954 | AKC17: =AKB17 + 1 -> 955 | AKD17: =AKC17 + 1 -> 956 | AKE17: =AKD17 + 1 -> 957 | AKF17: =AKE17 + 1 -> 958 | AKG17: =AKF17 + 1 -> 959 | AKH17: =AKG17 + 1 -> 960
D19: =D$17 -> Model column counter | E19: =E$17 -> 0 | F19: counter | G19: 0 | H19: 0 | I19: 0 | J19: 0 | K19: 1 | L19: =L$17 -> 2 | M19: 3 | N19: 4 | O19: 5 | P19: 6 | Q19: 7 | R19: 8 | S19: 9 | T19: 10 | U19: 11 | V19: 12 | W19: 13 | X19: 14 | Y19: 15 | Z19: 16 | AA19: 17 | AB19: 18 | AC19: 19 | AD19: 20 | AE19: 21 | AF19: 22 | AG19: 23 | AH19: 24 | AI19: 25 | AJ19: 26 | AK19: 27 | AL19: 28 | AM19: 29 | AN19: 30 | AO19: 31 | AP19: 32 | AQ19: 33 | AR19: 34 | AS19: 35 | AT19: 36 | AU19: 37 | AV19: 38 | AW19: 39 | AX19: 40 | AY19: 41 | AZ19: 42 | BA19: 43 | BB19: 44 | BC19: 45 | BD19: 46 | BE19: 47 | BF19: 48 | BG19: 49 | BH19: 50 | BI19: 51 | BJ19: 52 | BK19: 53 | BL19: 54 | BM19: 55 | BN19: 56 | BO19: 57 | BP19: 58 | BQ19: 59 | BR19: 60 | BS19: 61 | BT19: 62 | BU19: 63 | BV19: 64 | BW19: 65 | BX19: =BX$17 -> 66 | BY19: 67 | BZ19: 68 | CA19: 69 | CB19: 70 | CC19: 71 | CD19: 72 | CE19: 73 | CF19: 74 | CG19: 75 | CH19: 76 | CI19: 77 | CJ19: 78 | CK19: 79 | CL19: 80 | CM19: 81 | CN19: 82 | CO19: 83 | CP19: 84 | CQ19: 85 | CR19: 86 | CS19: 87 | CT19: 88 | CU19: 89 | CV19: 90 | CW19: 91 | CX19: 92 | CY19: 93 | CZ19: 94 | DA19: 95 | DB19: 96 | DC19: 97 | DD19: 98 | DE19: 99 | DF19: 100 | DG19: 101 | DH19: 102 | DI19: 103 | DJ19: 104 | DK19: 105 | DL19: 106 | DM19: 107 | DN19: 108 | DO19: 109 | DP19: 110 | DQ19: 111 | DR19: 112 | DS19: 113 | DT19: 114 | DU19: 115 | DV19: 116 | DW19: 117 | DX19: 118 | DY19: 119 | DZ19: 120 | EA19: 121 | EB19: 122 | EC19: 123 | ED19: 124 | EE19: 125 | EF19: 126 | EG19: 127 | EH19: 128 | EI19: 129 | EJ19: =EJ$17 -> 130 | EK19: 131 | EL19: 132 | EM19: 133 | EN19: 134 | EO19: 135 | EP19: 136 | EQ19: 137 | ER19: 138 | ES19: 139 | ET19: 140 | EU19: 141 | EV19: 142 | EW19: 143 | EX19: 144 | EY19: 145 | EZ19: 146 | FA19: 147 | FB19: 148 | FC19: 149 | FD19: 150 | FE19: 151 | FF19: 152 | FG19: 153 | FH19: 154 | FI19: 155 | FJ19: 156 | FK19: 157 | FL19: 158 | FM19: 159 | FN19: 160 | FO19: 161 | FP19: 162 | FQ19: 163 | FR19: 164 | FS19: 165 | FT19: 166 | FU19: 167 | FV19: 168 | FW19: 169 | FX19: 170 | FY19: 171 | FZ19: 172 | GA19: 173 | GB19: 174 | GC19: 175 | GD19: 176 | GE19: 177 | GF19: 178 | GG19: 179 | GH19: 180 | GI19: 181 | GJ19: 182 | GK19: 183 | GL19: 184 | GM19: 185 | GN19: 186 | GO19: 187 | GP19: 188 | GQ19: 189 | GR19: 190 | GS19: 191 | GT19: 192 | GU19: 193 | GV19: =GV$17 -> 194 | GW19: 195 | GX19: 196 | GY19: 197 | GZ19: 198 | HA19: 199 | HB19: 200 | HC19: 201 | HD19: 202 | HE19: 203 | HF19: 204 | HG19: 205 | HH19: 206 | HI19: 207 | HJ19: 208 | HK19: 209 | HL19: 210 | HM19: 211 | HN19: 212 | HO19: 213 | HP19: 214 | HQ19: 215 | HR19: 216 | HS19: 217 | HT19: 218 | HU19: 219 | HV19: 220 | HW19: 221 | HX19: 222 | HY19: 223 | HZ19: 224 | IA19: 225 | IB19: 226 | IC19: 227 | ID19: 228 | IE19: 229 | IF19: 230 | IG19: 231 | IH19: 232 | II19: 233 | IJ19: 234 | IK19: 235 | IL19: 236 | IM19: 237 | IN19: 238 | IO19: 239 | IP19: 240 | IQ19: 241 | IR19: 242 | IS19: 243 | IT19: 244 | IU19: 245 | IV19: 246 | IW19: 247 | IX19: 248 | IY19: 249 | IZ19: 250 | JA19: 251 | JB19: 252 | JC19: 253 | JD19: 254 | JE19: 255 | JF19: 256 | JG19: 257 | JH19: =JH$17 -> 258 | JI19: 259 | JJ19: 260 | JK19: 261 | JL19: 262 | JM19: 263 | JN19: 264 | JO19: 265 | JP19: 266 | JQ19: 267 | JR19: 268 | JS19: 269 | JT19: 270 | JU19: 271 | JV19: 272 | JW19: 273 | JX19: 274 | JY19: 275 | JZ19: 276 | KA19: 277 | KB19: 278 | KC19: 279 | KD19: 280 | KE19: 281 | KF19: 282 | KG19: 283 | KH19: 284 | KI19: 285 | KJ19: 286 | KK19: 287 | KL19: 288 | KM19: 289 | KN19: 290 | KO19: 291 | KP19: 292 | KQ19: 293 | KR19: 294 | KS19: 295 | KT19: 296 | KU19: 297 | KV19: 298 | KW19: 299 | KX19: 300 | KY19: 301 | KZ19: 302 | LA19: 303 | LB19: 304 | LC19: 305 | LD19: 306 | LE19: 307 | LF19: 308 | LG19: 309 | LH19: 310 | LI19: 311 | LJ19: 312 | LK19: 313 | LL19: 314 | LM19: 315 | LN19: 316 | LO19: 317 | LP19: 318 | LQ19: 319 | LR19: 320 | LS19: 321 | LT19: =LT$17 -> 322 | LU19: 323 | LV19: 324 | LW19: 325 | LX19: 326 | LY19: 327 | LZ19: 328 | MA19: 329 | MB19: 330 | MC19: 331 | MD19: 332 | ME19: 333 | MF19: 334 | MG19: 335 | MH19: 336 | MI19: 337 | MJ19: 338 | MK19: 339 | ML19: 340 | MM19: 341 | MN19: 342 | MO19: 343 | MP19: 344 | MQ19: 345 | MR19: 346 | MS19: 347 | MT19: 348 | MU19: 349 | MV19: 350 | MW19: 351 | MX19: 352 | MY19: 353 | MZ19: 354 | NA19: 355 | NB19: 356 | NC19: 357 | ND19: 358 | NE19: 359 | NF19: 360 | NG19: 361 | NH19: 362 | NI19: 363 | NJ19: 364 | NK19: 365 | NL19: 366 | NM19: 367 | NN19: 368 | NO19: 369 | NP19: 370 | NQ19: 371 | NR19: 372 | NS19: 373 | NT19: 374 | NU19: 375 | NV19: 376 | NW19: 377 | NX19: 378 | NY19: 379 | NZ19: 380 | OA19: 381 | OB19: 382 | OC19: 383 | OD19: 384 | OE19: 385 | OF19: =OF$17 -> 386 | OG19: 387 | OH19: 388 | OI19: 389 | OJ19: 390 | OK19: 391 | OL19: 392 | OM19: 393 | ON19: 394 | OO19: 395 | OP19: 396 | OQ19: 397 | OR19: 398 | OS19: 399 | OT19: 400 | OU19: 401 | OV19: 402 | OW19: 403 | OX19: 404 | OY19: 405 | OZ19: 406 | PA19: 407 | PB19: 408 | PC19: 409 | PD19: 410 | PE19: 411 | PF19: 412 | PG19: 413 | PH19: 414 | PI19: 415 | PJ19: 416 | PK19: 417 | PL19: 418 | PM19: 419 | PN19: 420 | PO19: 421 | PP19: 422 | PQ19: 423 | PR19: 424 | PS19: 425 | PT19: 426 | PU19: 427 | PV19: 428 | PW19: 429 | PX19: 430 | PY19: 431 | PZ19: 432 | QA19: 433 | QB19: 434 | QC19: 435 | QD19: 436 | QE19: 437 | QF19: 438 | QG19: 439 | QH19: 440 | QI19: 441 | QJ19: 442 | QK19: 443 | QL19: 444 | QM19: 445 | QN19: 446 | QO19: 447 | QP19: 448 | QQ19: 449 | QR19: =QR$17 -> 450 | QS19: 451 | QT19: 452 | QU19: 453 | QV19: 454 | QW19: 455 | QX19: 456 | QY19: 457 | QZ19: 458 | RA19: 459 | RB19: 460 | RC19: 461 | RD19: 462 | RE19: 463 | RF19: 464 | RG19: 465 | RH19: 466 | RI19: 467 | RJ19: 468 | RK19: 469 | RL19: 470 | RM19: 471 | RN19: 472 | RO19: 473 | RP19: 474 | RQ19: 475 | RR19: 476 | RS19: 477 | RT19: 478 | RU19: 479 | RV19: 480 | RW19: 481 | RX19: 482 | RY19: 483 | RZ19: 484 | SA19: 485 | SB19: 486 | SC19: 487 | SD19: 488 | SE19: 489 | SF19: 490 | SG19: 491 | SH19: 492 | SI19: 493 | SJ19: 494 | SK19: 495 | SL19: 496 | SM19: 497 | SN19: 498 | SO19: 499 | SP19: 500 | SQ19: 501 | SR19: 502 | SS19: 503 | ST19: 504 | SU19: 505 | SV19: 506 | SW19: 507 | SX19: 508 | SY19: 509 | SZ19: 510 | TA19: 511 | TB19: 512 | TC19: 513 | TD19: =TD$17 -> 514 | TE19: 515 | TF19: 516 | TG19: 517 | TH19: 518 | TI19: 519 | TJ19: 520 | TK19: 521 | TL19: 522 | TM19: 523 | TN19: 524 | TO19: 525 | TP19: 526 | TQ19: 527 | TR19: 528 | TS19: 529 | TT19: 530 | TU19: 531 | TV19: 532 | TW19: 533 | TX19: 534 | TY19: 535 | TZ19: 536 | UA19: 537 | UB19: 538 | UC19: 539 | UD19: 540 | UE19: 541 | UF19: 542 | UG19: 543 | UH19: 544 | UI19: 545 | UJ19: 546 | UK19: 547 | UL19: 548 | UM19: 549 | UN19: 550 | UO19: 551 | UP19: 552 | UQ19: 553 | UR19: 554 | US19: 555 | UT19: 556 | UU19: 557 | UV19: 558 | UW19: 559 | UX19: 560 | UY19: 561 | UZ19: 562 | VA19: 563 | VB19: 564 | VC19: 565 | VD19: 566 | VE19: 567 | VF19: 568 | VG19: 569 | VH19: 570 | VI19: 571 | VJ19: 572 | VK19: 573 | VL19: 574 | VM19: 575 | VN19: 576 | VO19: 577 | VP19: =VP$17 -> 578 | VQ19: 579 | VR19: 580 | VS19: 581 | VT19: 582 | VU19: 583 | VV19: 584 | VW19: 585 | VX19: 586 | VY19: 587 | VZ19: 588 | WA19: 589 | WB19: 590 | WC19: 591 | WD19: 592 | WE19: 593 | WF19: 594 | WG19: 595 | WH19: 596 | WI19: 597 | WJ19: 598 | WK19: 599 | WL19: 600 | WM19: 601 | WN19: 602 | WO19: 603 | WP19: 604 | WQ19: 605 | WR19: 606 | WS19: 607 | WT19: 608 | WU19: 609 | WV19: 610 | WW19: 611 | WX19: 612 | WY19: 613 | WZ19: 614 | XA19: 615 | XB19: 616 | XC19: 617 | XD19: 618 | XE19: 619 | XF19: 620 | XG19: 621 | XH19: 622 | XI19: 623 | XJ19: 624 | XK19: 625 | XL19: 626 | XM19: 627 | XN19: 628 | XO19: 629 | XP19: 630 | XQ19: 631 | XR19: 632 | XS19: 633 | XT19: 634 | XU19: 635 | XV19: 636 | XW19: 637 | XX19: 638 | XY19: 639 | XZ19: 640 | YA19: 641 | YB19: =YB$17 -> 642 | YC19: 643 | YD19: 644 | YE19: 645 | YF19: 646 | YG19: 647 | YH19: 648 | YI19: 649 | YJ19: 650 | YK19: 651 | YL19: 652 | YM19: 653 | YN19: 654 | YO19: 655 | YP19: 656 | YQ19: 657 | YR19: 658 | YS19: 659 | YT19: 660 | YU19: 661 | YV19: 662 | YW19: 663 | YX19: 664 | YY19: 665 | YZ19: 666 | ZA19: 667 | ZB19: 668 | ZC19: 669 | ZD19: 670 | ZE19: 671 | ZF19: 672 | ZG19: 673 | ZH19: 674 | ZI19: 675 | ZJ19: 676 | ZK19: 677 | ZL19: 678 | ZM19: 679 | ZN19: 680 | ZO19: 681 | ZP19: 682 | ZQ19: 683 | ZR19: 684 | ZS19: 685 | ZT19: 686 | ZU19: 687 | ZV19: 688 | ZW19: 689 | ZX19: 690 | ZY19: 691 | ZZ19: 692 | AAA19: 693 | AAB19: 694 | AAC19: 695 | AAD19: 696 | AAE19: 697 | AAF19: 698 | AAG19: 699 | AAH19: 700 | AAI19: 701 | AAJ19: 702 | AAK19: 703 | AAL19: 704 | AAM19: 705 | AAN19: =AAN$17 -> 706 | AAO19: 707 | AAP19: 708 | AAQ19: 709 | AAR19: 710 | AAS19: 711 | AAT19: 712 | AAU19: 713 | AAV19: 714 | AAW19: 715 | AAX19: 716 | AAY19: 717 | AAZ19: 718 | ABA19: 719 | ABB19: 720 | ABC19: 721 | ABD19: 722 | ABE19: 723 | ABF19: 724 | ABG19: 725 | ABH19: 726 | ABI19: 727 | ABJ19: 728 | ABK19: 729 | ABL19: 730 | ABM19: 731 | ABN19: 732 | ABO19: 733 | ABP19: 734 | ABQ19: 735 | ABR19: 736 | ABS19: 737 | ABT19: 738 | ABU19: 739 | ABV19: 740 | ABW19: 741 | ABX19: 742 | ABY19: 743 | ABZ19: 744 | ACA19: 745 | ACB19: 746 | ACC19: 747 | ACD19: 748 | ACE19: 749 | ACF19: 750 | ACG19: 751 | ACH19: 752 | ACI19: 753 | ACJ19: 754 | ACK19: 755 | ACL19: 756 | ACM19: 757 | ACN19: 758 | ACO19: 759 | ACP19: 760 | ACQ19: 761 | ACR19: 762 | ACS19: 763 | ACT19: 764 | ACU19: 765 | ACV19: 766 | ACW19: 767 | ACX19: 768 | ACY19: 769 | ACZ19: =ACZ$17 -> 770 | ADA19: 771 | ADB19: 772 | ADC19: 773 | ADD19: 774 | ADE19: 775 | ADF19: 776 | ADG19: 777 | ADH19: 778 | ADI19: 779 | ADJ19: 780 | ADK19: 781 | ADL19: 782 | ADM19: 783 | ADN19: 784 | ADO19: 785 | ADP19: 786 | ADQ19: 787 | ADR19: 788 | ADS19: 789 | ADT19: 790 | ADU19: 791 | ADV19: 792 | ADW19: 793 | ADX19: 794 | ADY19: 795 | ADZ19: 796 | AEA19: 797 | AEB19: 798 | AEC19: 799 | AED19: 800 | AEE19: 801 | AEF19: 802 | AEG19: 803 | AEH19: 804 | AEI19: 805 | AEJ19: 806 | AEK19: 807 | AEL19: 808 | AEM19: 809 | AEN19: 810 | AEO19: 811 | AEP19: 812 | AEQ19: 813 | AER19: 814 | AES19: 815 | AET19: 816 | AEU19: 817 | AEV19: 818 | AEW19: 819 | AEX19: 820 | AEY19: 821 | AEZ19: 822 | AFA19: 823 | AFB19: 824 | AFC19: 825 | AFD19: 826 | AFE19: 827 | AFF19: 828 | AFG19: 829 | AFH19: 830 | AFI19: 831 | AFJ19: 832 | AFK19: 833 | AFL19: =AFL$17 -> 834 | AFM19: 835 | AFN19: 836 | AFO19: 837 | AFP19: 838 | AFQ19: 839 | AFR19: 840 | AFS19: 841 | AFT19: 842 | AFU19: 843 | AFV19: 844 | AFW19: 845 | AFX19: 846 | AFY19: 847 | AFZ19: 848 | AGA19: 849 | AGB19: 850 | AGC19: 851 | AGD19: 852 | AGE19: 853 | AGF19: 854 | AGG19: 855 | AGH19: 856 | AGI19: 857 | AGJ19: 858 | AGK19: 859 | AGL19: 860 | AGM19: 861 | AGN19: 862 | AGO19: 863 | AGP19: 864 | AGQ19: 865 | AGR19: 866 | AGS19: 867 | AGT19: 868 | AGU19: 869 | AGV19: 870 | AGW19: 871 | AGX19: 872 | AGY19: 873 | AGZ19: 874 | AHA19: 875 | AHB19: 876 | AHC19: 877 | AHD19: 878 | AHE19: 879 | AHF19: 880 | AHG19: 881 | AHH19: 882 | AHI19: 883 | AHJ19: 884 | AHK19: 885 | AHL19: 886 | AHM19: 887 | AHN19: 888 | AHO19: 889 | AHP19: 890 | AHQ19: 891 | AHR19: 892 | AHS19: 893 | AHT19: 894 | AHU19: 895 | AHV19: 896 | AHW19: 897 | AHX19: =AHX$17 -> 898 | AHY19: 899 | AHZ19: 900 | AIA19: 901 | AIB19: 902 | AIC19: 903 | AID19: 904 | AIE19: 905 | AIF19: 906 | AIG19: 907 | AIH19: 908 | AII19: 909 | AIJ19: 910 | AIK19: 911 | AIL19: 912 | AIM19: 913 | AIN19: 914 | AIO19: 915 | AIP19: 916 | AIQ19: 917 | AIR19: 918 | AIS19: 919 | AIT19: 920 | AIU19: 921 | AIV19: 922 | AIW19: 923 | AIX19: 924 | AIY19: 925 | AIZ19: 926 | AJA19: 927 | AJB19: 928 | AJC19: 929 | AJD19: 930 | AJE19: 931 | AJF19: 932 | AJG19: 933 | AJH19: 934 | AJI19: 935 | AJJ19: 936 | AJK19: 937 | AJL19: 938 | AJM19: 939 | AJN19: 940 | AJO19: 941 | AJP19: 942 | AJQ19: 943 | AJR19: 944 | AJS19: 945 | AJT19: 946 | AJU19: 947 | AJV19: 948 | AJW19: 949 | AJX19: 950 | AJY19: 951 | AJZ19: 952 | AKA19: 953 | AKB19: 954 | AKC19: 955 | AKD19: 956 | AKE19: 957 | AKF19: 958 | AKG19: 959 | AKH19: 960
D20: First column flag | F20: counter | I20: =SUM(K20:AKH20) -> 1 | K20: =IF( K19 = 1, 1, 0 ) -> 1 | L20: =IF( L19 = 1, 1, 0 ) -> 0 | M20: 0 | N20: 0 | O20: 0 | P20: 0 | Q20: 0 | R20: 0 | S20: 0 | T20: 0 | U20: 0 | V20: 0 | W20: 0 | X20: 0 | Y20: 0 | Z20: 0 | AA20: 0 | AB20: 0 | AC20: 0 | AD20: 0 | AE20: 0 | AF20: 0 | AG20: 0 | AH20: 0 | AI20: 0 | AJ20: 0 | AK20: 0 | AL20: 0 | AM20: 0 | AN20: 0 | AO20: 0 | AP20: 0 | AQ20: 0 | AR20: 0 | AS20: 0 | AT20: 0 | AU20: 0 | AV20: 0 | AW20: 0 | AX20: 0 | AY20: 0 | AZ20: 0 | BA20: 0 | BB20: 0 | BC20: 0 | BD20: 0 | BE20: 0 | BF20: 0 | BG20: 0 | BH20: 0 | BI20: 0 | BJ20: 0 | BK20: 0 | BL20: 0 | BM20: 0 | BN20: 0 | BO20: 0 | BP20: 0 | BQ20: 0 | BR20: 0 | BS20: 0 | BT20: 0 | BU20: 0 | BV20: 0 | BW20: 0 | BX20: =IF( BX19 = 1, 1, 0 ) -> 0 | BY20: 0 | BZ20: 0 | CA20: 0 | CB20: 0 | CC20: 0 | CD20: 0 | CE20: 0 | CF20: 0 | CG20: 0 | CH20: 0 | CI20: 0 | CJ20: 0 | CK20: 0 | CL20: 0 | CM20: 0 | CN20: 0 | CO20: 0 | CP20: 0 | CQ20: 0 | CR20: 0 | CS20: 0 | CT20: 0 | CU20: 0 | CV20: 0 | CW20: 0 | CX20: 0 | CY20: 0 | CZ20: 0 | DA20: 0 | DB20: 0 | DC20: 0 | DD20: 0 | DE20: 0 | DF20: 0 | DG20: 0 | DH20: 0 | DI20: 0 | DJ20: 0 | DK20: 0 | DL20: 0 | DM20: 0 | DN20: 0 | DO20: 0 | DP20: 0 | DQ20: 0 | DR20: 0 | DS20: 0 | DT20: 0 | DU20: 0 | DV20: 0 | DW20: 0 | DX20: 0 | DY20: 0 | DZ20: 0 | EA20: 0 | EB20: 0 | EC20: 0 | ED20: 0 | EE20: 0 | EF20: 0 | EG20: 0 | EH20: 0 | EI20: 0 | EJ20: =IF( EJ19 = 1, 1, 0 ) -> 0 | EK20: 0 | EL20: 0 | EM20: 0 | EN20: 0 | EO20: 0 | EP20: 0 | EQ20: 0 | ER20: 0 | ES20: 0 | ET20: 0 | EU20: 0 | EV20: 0 | EW20: 0 | EX20: 0 | EY20: 0 | EZ20: 0 | FA20: 0 | FB20: 0 | FC20: 0 | FD20: 0 | FE20: 0 | FF20: 0 | FG20: 0 | FH20: 0 | FI20: 0 | FJ20: 0 | FK20: 0 | FL20: 0 | FM20: 0 | FN20: 0 | FO20: 0 | FP20: 0 | FQ20: 0 | FR20: 0 | FS20: 0 | FT20: 0 | FU20: 0 | FV20: 0 | FW20: 0 | FX20: 0 | FY20: 0 | FZ20: 0 | GA20: 0 | GB20: 0 | GC20: 0 | GD20: 0 | GE20: 0 | GF20: 0 | GG20: 0 | GH20: 0 | GI20: 0 | GJ20: 0 | GK20: 0 | GL20: 0 | GM20: 0 | GN20: 0 | GO20: 0 | GP20: 0 | GQ20: 0 | GR20: 0 | GS20: 0 | GT20: 0 | GU20: 0 | GV20: =IF( GV19 = 1, 1, 0 ) -> 0 | GW20: 0 | GX20: 0 | GY20: 0 | GZ20: 0 | HA20: 0 | HB20: 0 | HC20: 0 | HD20: 0 | HE20: 0 | HF20: 0 | HG20: 0 | HH20: 0 | HI20: 0 | HJ20: 0 | HK20: 0 | HL20: 0 | HM20: 0 | HN20: 0 | HO20: 0 | HP20: 0 | HQ20: 0 | HR20: 0 | HS20: 0 | HT20: 0 | HU20: 0 | HV20: 0 | HW20: 0 | HX20: 0 | HY20: 0 | HZ20: 0 | IA20: 0 | IB20: 0 | IC20: 0 | ID20: 0 | IE20: 0 | IF20: 0 | IG20: 0 | IH20: 0 | II20: 0 | IJ20: 0 | IK20: 0 | IL20: 0 | IM20: 0 | IN20: 0 | IO20: 0 | IP20: 0 | IQ20: 0 | IR20: 0 | IS20: 0 | IT20: 0 | IU20: 0 | IV20: 0 | IW20: 0 | IX20: 0 | IY20: 0 | IZ20: 0 | JA20: 0 | JB20: 0 | JC20: 0 | JD20: 0 | JE20: 0 | JF20: 0 | JG20: 0 | JH20: =IF( JH19 = 1, 1, 0 ) -> 0 | JI20: 0 | JJ20: 0 | JK20: 0 | JL20: 0 | JM20: 0 | JN20: 0 | JO20: 0 | JP20: 0 | JQ20: 0 | JR20: 0 | JS20: 0 | JT20: 0 | JU20: 0 | JV20: 0 | JW20: 0 | JX20: 0 | JY20: 0 | JZ20: 0 | KA20: 0 | KB20: 0 | KC20: 0 | KD20: 0 | KE20: 0 | KF20: 0 | KG20: 0 | KH20: 0 | KI20: 0 | KJ20: 0 | KK20: 0 | KL20: 0 | KM20: 0 | KN20: 0 | KO20: 0 | KP20: 0 | KQ20: 0 | KR20: 0 | KS20: 0 | KT20: 0 | KU20: 0 | KV20: 0 | KW20: 0 | KX20: 0 | KY20: 0 | KZ20: 0 | LA20: 0 | LB20: 0 | LC20: 0 | LD20: 0 | LE20: 0 | LF20: 0 | LG20: 0 | LH20: 0 | LI20: 0 | LJ20: 0 | LK20: 0 | LL20: 0 | LM20: 0 | LN20: 0 | LO20: 0 | LP20: 0 | LQ20: 0 | LR20: 0 | LS20: 0 | LT20: =IF( LT19 = 1, 1, 0 ) -> 0 | LU20: 0 | LV20: 0 | LW20: 0 | LX20: 0 | LY20: 0 | LZ20: 0 | MA20: 0 | MB20: 0 | MC20: 0 | MD20: 0 | ME20: 0 | MF20: 0 | MG20: 0 | MH20: 0 | MI20: 0 | MJ20: 0 | MK20: 0 | ML20: 0 | MM20: 0 | MN20: 0 | MO20: 0 | MP20: 0 | MQ20: 0 | MR20: 0 | MS20: 0 | MT20: 0 | MU20: 0 | MV20: 0 | MW20: 0 | MX20: 0 | MY20: 0 | MZ20: 0 | NA20: 0 | NB20: 0 | NC20: 0 | ND20: 0 | NE20: 0 | NF20: 0 | NG20: 0 | NH20: 0 | NI20: 0 | NJ20: 0 | NK20: 0 | NL20: 0 | NM20: 0 | NN20: 0 | NO20: 0 | NP20: 0 | NQ20: 0 | NR20: 0 | NS20: 0 | NT20: 0 | NU20: 0 | NV20: 0 | NW20: 0 | NX20: 0 | NY20: 0 | NZ20: 0 | OA20: 0 | OB20: 0 | OC20: 0 | OD20: 0 | OE20: 0 | OF20: =IF( OF19 = 1, 1, 0 ) -> 0 | OG20: 0 | OH20: 0 | OI20: 0 | OJ20: 0 | OK20: 0 | OL20: 0 | OM20: 0 | ON20: 0 | OO20: 0 | OP20: 0 | OQ20: 0 | OR20: 0 | OS20: 0 | OT20: 0 | OU20: 0 | OV20: 0 | OW20: 0 | OX20: 0 | OY20: 0 | OZ20: 0 | PA20: 0 | PB20: 0 | PC20: 0 | PD20: 0 | PE20: 0 | PF20: 0 | PG20: 0 | PH20: 0 | PI20: 0 | PJ20: 0 | PK20: 0 | PL20: 0 | PM20: 0 | PN20: 0 | PO20: 0 | PP20: 0 | PQ20: 0 | PR20: 0 | PS20: 0 | PT20: 0 | PU20: 0 | PV20: 0 | PW20: 0 | PX20: 0 | PY20: 0 | PZ20: 0 | QA20: 0 | QB20: 0 | QC20: 0 | QD20: 0 | QE20: 0 | QF20: 0 | QG20: 0 | QH20: 0 | QI20: 0 | QJ20: 0 | QK20: 0 | QL20: 0 | QM20: 0 | QN20: 0 | QO20: 0 | QP20: 0 | QQ20: 0 | QR20: =IF( QR19 = 1, 1, 0 ) -> 0 | QS20: 0 | QT20: 0 | QU20: 0 | QV20: 0 | QW20: 0 | QX20: 0 | QY20: 0 | QZ20: 0 | RA20: 0 | RB20: 0 | RC20: 0 | RD20: 0 | RE20: 0 | RF20: 0 | RG20: 0 | RH20: 0 | RI20: 0 | RJ20: 0 | RK20: 0 | RL20: 0 | RM20: 0 | RN20: 0 | RO20: 0 | RP20: 0 | RQ20: 0 | RR20: 0 | RS20: 0 | RT20: 0 | RU20: 0 | RV20: 0 | RW20: 0 | RX20: 0 | RY20: 0 | RZ20: 0 | SA20: 0 | SB20: 0 | SC20: 0 | SD20: 0 | SE20: 0 | SF20: 0 | SG20: 0 | SH20: 0 | SI20: 0 | SJ20: 0 | SK20: 0 | SL20: 0 | SM20: 0 | SN20: 0 | SO20: 0 | SP20: 0 | SQ20: 0 | SR20: 0 | SS20: 0 | ST20: 0 | SU20: 0 | SV20: 0 | SW20: 0 | SX20: 0 | SY20: 0 | SZ20: 0 | TA20: 0 | TB20: 0 | TC20: 0 | TD20: =IF( TD19 = 1, 1, 0 ) -> 0 | TE20: 0 | TF20: 0 | TG20: 0 | TH20: 0 | TI20: 0 | TJ20: 0 | TK20: 0 | TL20: 0 | TM20: 0 | TN20: 0 | TO20: 0 | TP20: 0 | TQ20: 0 | TR20: 0 | TS20: 0 | TT20: 0 | TU20: 0 | TV20: 0 | TW20: 0 | TX20: 0 | TY20: 0 | TZ20: 0 | UA20: 0 | UB20: 0 | UC20: 0 | UD20: 0 | UE20: 0 | UF20: 0 | UG20: 0 | UH20: 0 | UI20: 0 | UJ20: 0 | UK20: 0 | UL20: 0 | UM20: 0 | UN20: 0 | UO20: 0 | UP20: 0 | UQ20: 0 | UR20: 0 | US20: 0 | UT20: 0 | UU20: 0 | UV20: 0 | UW20: 0 | UX20: 0 | UY20: 0 | UZ20: 0 | VA20: 0 | VB20: 0 | VC20: 0 | VD20: 0 | VE20: 0 | VF20: 0 | VG20: 0 | VH20: 0 | VI20: 0 | VJ20: 0 | VK20: 0 | VL20: 0 | VM20: 0 | VN20: 0 | VO20: 0 | VP20: =IF( VP19 = 1, 1, 0 ) -> 0 | VQ20: 0 | VR20: 0 | VS20: 0 | VT20: 0 | VU20: 0 | VV20: 0 | VW20: 0 | VX20: 0 | VY20: 0 | VZ20: 0 | WA20: 0 | WB20: 0 | WC20: 0 | WD20: 0 | WE20: 0 | WF20: 0 | WG20: 0 | WH20: 0 | WI20: 0 | WJ20: 0 | WK20: 0 | WL20: 0 | WM20: 0 | WN20: 0 | WO20: 0 | WP20: 0 | WQ20: 0 | WR20: 0 | WS20: 0 | WT20: 0 | WU20: 0 | WV20: 0 | WW20: 0 | WX20: 0 | WY20: 0 | WZ20: 0 | XA20: 0 | XB20: 0 | XC20: 0 | XD20: 0 | XE20: 0 | XF20: 0 | XG20: 0 | XH20: 0 | XI20: 0 | XJ20: 0 | XK20: 0 | XL20: 0 | XM20: 0 | XN20: 0 | XO20: 0 | XP20: 0 | XQ20: 0 | XR20: 0 | XS20: 0 | XT20: 0 | XU20: 0 | XV20: 0 | XW20: 0 | XX20: 0 | XY20: 0 | XZ20: 0 | YA20: 0 | YB20: =IF( YB19 = 1, 1, 0 ) -> 0 | YC20: 0 | YD20: 0 | YE20: 0 | YF20: 0 | YG20: 0 | YH20: 0 | YI20: 0 | YJ20: 0 | YK20: 0 | YL20: 0 | YM20: 0 | YN20: 0 | YO20: 0 | YP20: 0 | YQ20: 0 | YR20: 0 | YS20: 0 | YT20: 0 | YU20: 0 | YV20: 0 | YW20: 0 | YX20: 0 | YY20: 0 | YZ20: 0 | ZA20: 0 | ZB20: 0 | ZC20: 0 | ZD20: 0 | ZE20: 0 | ZF20: 0 | ZG20: 0 | ZH20: 0 | ZI20: 0 | ZJ20: 0 | ZK20: 0 | ZL20: 0 | ZM20: 0 | ZN20: 0 | ZO20: 0 | ZP20: 0 | ZQ20: 0 | ZR20: 0 | ZS20: 0 | ZT20: 0 | ZU20: 0 | ZV20: 0 | ZW20: 0 | ZX20: 0 | ZY20: 0 | ZZ20: 0 | AAA20: 0 | AAB20: 0 | AAC20: 0 | AAD20: 0 | AAE20: 0 | AAF20: 0 | AAG20: 0 | AAH20: 0 | AAI20: 0 | AAJ20: 0 | AAK20: 0 | AAL20: 0 | AAM20: 0 | AAN20: =IF( AAN19 = 1, 1, 0 ) -> 0 | AAO20: 0 | AAP20: 0 | AAQ20: 0 | AAR20: 0 | AAS20: 0 | AAT20: 0 | AAU20: 0 | AAV20: 0 | AAW20: 0 | AAX20: 0 | AAY20: 0 | AAZ20: 0 | ABA20: 0 | ABB20: 0 | ABC20: 0 | ABD20: 0 | ABE20: 0 | ABF20: 0 | ABG20: 0 | ABH20: 0 | ABI20: 0 | ABJ20: 0 | ABK20: 0 | ABL20: 0 | ABM20: 0 | ABN20: 0 | ABO20: 0 | ABP20: 0 | ABQ20: 0 | ABR20: 0 | ABS20: 0 | ABT20: 0 | ABU20: 0 | ABV20: 0 | ABW20: 0 | ABX20: 0 | ABY20: 0 | ABZ20: 0 | ACA20: 0 | ACB20: 0 | ACC20: 0 | ACD20: 0 | ACE20: 0 | ACF20: 0 | ACG20: 0 | ACH20: 0 | ACI20: 0 | ACJ20: 0 | ACK20: 0 | ACL20: 0 | ACM20: 0 | ACN20: 0 | ACO20: 0 | ACP20: 0 | ACQ20: 0 | ACR20: 0 | ACS20: 0 | ACT20: 0 | ACU20: 0 | ACV20: 0 | ACW20: 0 | ACX20: 0 | ACY20: 0 | ACZ20: =IF( ACZ19 = 1, 1, 0 ) -> 0 | ADA20: 0 | ADB20: 0 | ADC20: 0 | ADD20: 0 | ADE20: 0 | ADF20: 0 | ADG20: 0 | ADH20: 0 | ADI20: 0 | ADJ20: 0 | ADK20: 0 | ADL20: 0 | ADM20: 0 | ADN20: 0 | ADO20: 0 | ADP20: 0 | ADQ20: 0 | ADR20: 0 | ADS20: 0 | ADT20: 0 | ADU20: 0 | ADV20: 0 | ADW20: 0 | ADX20: 0 | ADY20: 0 | ADZ20: 0 | AEA20: 0 | AEB20: 0 | AEC20: 0 | AED20: 0 | AEE20: 0 | AEF20: 0 | AEG20: 0 | AEH20: 0 | AEI20: 0 | AEJ20: 0 | AEK20: 0 | AEL20: 0 | AEM20: 0 | AEN20: 0 | AEO20: 0 | AEP20: 0 | AEQ20: 0 | AER20: 0 | AES20: 0 | AET20: 0 | AEU20: 0 | AEV20: 0 | AEW20: 0 | AEX20: 0 | AEY20: 0 | AEZ20: 0 | AFA20: 0 | AFB20: 0 | AFC20: 0 | AFD20: 0 | AFE20: 0 | AFF20: 0 | AFG20: 0 | AFH20: 0 | AFI20: 0 | AFJ20: 0 | AFK20: 0 | AFL20: =IF( AFL19 = 1, 1, 0 ) -> 0 | AFM20: 0 | AFN20: 0 | AFO20: 0 | AFP20: 0 | AFQ20: 0 | AFR20: 0 | AFS20: 0 | AFT20: 0 | AFU20: 0 | AFV20: 0 | AFW20: 0 | AFX20: 0 | AFY20: 0 | AFZ20: 0 | AGA20: 0 | AGB20: 0 | AGC20: 0 | AGD20: 0 | AGE20: 0 | AGF20: 0 | AGG20: 0 | AGH20: 0 | AGI20: 0 | AGJ20: 0 | AGK20: 0 | AGL20: 0 | AGM20: 0 | AGN20: 0 | AGO20: 0 | AGP20: 0 | AGQ20: 0 | AGR20: 0 | AGS20: 0 | AGT20: 0 | AGU20: 0 | AGV20: 0 | AGW20: 0 | AGX20: 0 | AGY20: 0 | AGZ20: 0 | AHA20: 0 | AHB20: 0 | AHC20: 0 | AHD20: 0 | AHE20: 0 | AHF20: 0 | AHG20: 0 | AHH20: 0 | AHI20: 0 | AHJ20: 0 | AHK20: 0 | AHL20: 0 | AHM20: 0 | AHN20: 0 | AHO20: 0 | AHP20: 0 | AHQ20: 0 | AHR20: 0 | AHS20: 0 | AHT20: 0 | AHU20: 0 | AHV20: 0 | AHW20: 0 | AHX20: =IF( AHX19 = 1, 1, 0 ) -> 0 | AHY20: 0 | AHZ20: 0 | AIA20: 0 | AIB20: 0 | AIC20: 0 | AID20: 0 | AIE20: 0 | AIF20: 0 | AIG20: 0 | AIH20: 0 | AII20: 0 | AIJ20: 0 | AIK20: 0 | AIL20: 0 | AIM20: 0 | AIN20: 0 | AIO20: 0 | AIP20: 0 | AIQ20: 0 | AIR20: 0 | AIS20: 0 | AIT20: 0 | AIU20: 0 | AIV20: 0 | AIW20: 0 | AIX20: 0 | AIY20: 0 | AIZ20: 0 | AJA20: 0 | AJB20: 0 | AJC20: 0 | AJD20: 0 | AJE20: 0 | AJF20: 0 | AJG20: 0 | AJH20: 0 | AJI20: 0 | AJJ20: 0 | AJK20: 0 | AJL20: 0 | AJM20: 0 | AJN20: 0 | AJO20: 0 | AJP20: 0 | AJQ20: 0 | AJR20: 0 | AJS20: 0 | AJT20: 0 | AJU20: 0 | AJV20: 0 | AJW20: 0 | AJX20: 0 | AJY20: 0 | AJZ20: 0 | AKA20: 0 | AKB20: 0 | AKC20: 0 | AKD20: 0 | AKE20: 0 | AKF20: 0 | AKG20: 0 | AKH20: 0
D22: Model period beginning
D23: =InpC!D$12 -> Model start date | E23: =InpC!E$12 -> 2024-01-01 | F23: =InpC!F$12 -> date
D24: =InpC!D$13 -> Months per period | E24: =InpC!E$13 -> 12 | F24: =InpC!F$13 -> months
D25: =D$20 -> First column flag | E25: =E$20 -> 0 | F25: counter | G25: 0 | H25: 0 | I25: 1 | J25: 0 | K25: 1 | L25: 0 | M25: 0 | N25: 0 | O25: 0 | P25: 0 | Q25: 0 | R25: 0 | S25: 0 | T25: 0 | U25: 0 | V25: 0 | W25: 0 | X25: 0 | Y25: 0 | Z25: 0 | AA25: 0 | AB25: 0 | AC25: 0 | AD25: 0 | AE25: 0 | AF25: 0 | AG25: 0 | AH25: 0 | AI25: 0 | AJ25: 0 | AK25: 0 | AL25: 0 | AM25: 0 | AN25: 0 | AO25: 0 | AP25: 0 | AQ25: 0 | AR25: 0 | AS25: 0 | AT25: 0 | AU25: 0 | AV25: 0 | AW25: 0 | AX25: 0 | AY25: 0 | AZ25: 0 | BA25: 0 | BB25: 0 | BC25: 0 | BD25: 0 | BE25: 0 | BF25: 0 | BG25: 0 | BH25: 0 | BI25: 0 | BJ25: 0 | BK25: 0 | BL25: 0 | BM25: 0 | BN25: 0 | BO25: 0 | BP25: 0 | BQ25: =BQ$20 -> 0 | BR25: 0 | BS25: 0 | BT25: 0 | BU25: 0 | BV25: 0 | BW25: 0 | BX25: 0 | BY25: 0 | BZ25: 0 | CA25: 0 | CB25: 0 | CC25: 0 | CD25: 0 | CE25: 0 | CF25: 0 | CG25: 0 | CH25: 0 | CI25: 0 | CJ25: 0 | CK25: 0 | CL25: 0 | CM25: 0 | CN25: 0 | CO25: 0 | CP25: 0 | CQ25: 0 | CR25: 0 | CS25: 0 | CT25: 0 | CU25: 0 | CV25: 0 | CW25: 0 | CX25: 0 | CY25: 0 | CZ25: 0 | DA25: 0 | DB25: 0 | DC25: 0 | DD25: 0 | DE25: 0 | DF25: 0 | DG25: 0 | DH25: 0 | DI25: 0 | DJ25: 0 | DK25: 0 | DL25: 0 | DM25: 0 | DN25: 0 | DO25: 0 | DP25: 0 | DQ25: 0 | DR25: 0 | DS25: 0 | DT25: 0 | DU25: 0 | DV25: 0 | DW25: 0 | DX25: 0 | DY25: 0 | DZ25: 0 | EA25: 0 | EB25: 0 | EC25: =EC$20 -> 0 | ED25: 0 | EE25: 0 | EF25: 0 | EG25: 0 | EH25: 0 | EI25: 0 | EJ25: 0 | EK25: 0 | EL25: 0 | EM25: 0 | EN25: 0 | EO25: 0 | EP25: 0 | EQ25: 0 | ER25: 0 | ES25: 0 | ET25: 0 | EU25: 0 | EV25: 0 | EW25: 0 | EX25: 0 | EY25: 0 | EZ25: 0 | FA25: 0 | FB25: 0 | FC25: 0 | FD25: 0 | FE25: 0 | FF25: 0 | FG25: 0 | FH25: 0 | FI25: 0 | FJ25: 0 | FK25: 0 | FL25: 0 | FM25: 0 | FN25: 0 | FO25: 0 | FP25: 0 | FQ25: 0 | FR25: 0 | FS25: 0 | FT25: 0 | FU25: 0 | FV25: 0 | FW25: 0 | FX25: 0 | FY25: 0 | FZ25: 0 | GA25: 0 | GB25: 0 | GC25: 0 | GD25: 0 | GE25: 0 | GF25: 0 | GG25: 0 | GH25: 0 | GI25: 0 | GJ25: 0 | GK25: 0 | GL25: 0 | GM25: 0 | GN25: 0 | GO25: =GO$20 -> 0 | GP25: 0 | GQ25: 0 | GR25: 0 | GS25: 0 | GT25: 0 | GU25: 0 | GV25: 0 | GW25: 0 | GX25: 0 | GY25: 0 | GZ25: 0 | HA25: 0 | HB25: 0 | HC25: 0 | HD25: 0 | HE25: 0 | HF25: 0 | HG25: 0 | HH25: 0 | HI25: 0 | HJ25: 0 | HK25: 0 | HL25: 0 | HM25: 0 | HN25: 0 | HO25: 0 | HP25: 0 | HQ25: 0 | HR25: 0 | HS25: 0 | HT25: 0 | HU25: 0 | HV25: 0 | HW25: 0 | HX25: 0 | HY25: 0 | HZ25: 0 | IA25: 0 | IB25: 0 | IC25: 0 | ID25: 0 | IE25: 0 | IF25: 0 | IG25: 0 | IH25: 0 | II25: 0 | IJ25: 0 | IK25: 0 | IL25: 0 | IM25: 0 | IN25: 0 | IO25: 0 | IP25: 0 | IQ25: 0 | IR25: 0 | IS25: 0 | IT25: 0 | IU25: 0 | IV25: 0 | IW25: 0 | IX25: 0 | IY25: 0 | IZ25: 0 | JA25: =JA$20 -> 0 | JB25: 0 | JC25: 0 | JD25: 0 | JE25: 0 | JF25: 0 | JG25: 0 | JH25: 0 | JI25: 0 | JJ25: 0 | JK25: 0 | JL25: 0 | JM25: 0 | JN25: 0 | JO25: 0 | JP25: 0 | JQ25: 0 | JR25: 0 | JS25: 0 | JT25: 0 | JU25: 0 | JV25: 0 | JW25: 0 | JX25: 0 | JY25: 0 | JZ25: 0 | KA25: 0 | KB25: 0 | KC25: 0 | KD25: 0 | KE25: 0 | KF25: 0 | KG25: 0 | KH25: 0 | KI25: 0 | KJ25: 0 | KK25: 0 | KL25: 0 | KM25: 0 | KN25: 0 | KO25: 0 | KP25: 0 | KQ25: 0 | KR25: 0 | KS25: 0 | KT25: 0 | KU25: 0 | KV25: 0 | KW25: 0 | KX25: 0 | KY25: 0 | KZ25: 0 | LA25: 0 | LB25: 0 | LC25: 0 | LD25: 0 | LE25: 0 | LF25: 0 | LG25: 0 | LH25: 0 | LI25: 0 | LJ25: 0 | LK25: 0 | LL25: 0 | LM25: =LM$20 -> 0 | LN25: 0 | LO25: 0 | LP25: 0 | LQ25: 0 | LR25: 0 | LS25: 0 | LT25: 0 | LU25: 0 | LV25: 0 | LW25: 0 | LX25: 0 | LY25: 0 | LZ25: 0 | MA25: 0 | MB25: 0 | MC25: 0 | MD25: 0 | ME25: 0 | MF25: 0 | MG25: 0 | MH25: 0 | MI25: 0 | MJ25: 0 | MK25: 0 | ML25: 0 | MM25: 0 | MN25: 0 | MO25: 0 | MP25: 0 | MQ25: 0 | MR25: 0 | MS25: 0 | MT25: 0 | MU25: 0 | MV25: 0 | MW25: 0 | MX25: 0 | MY25: 0 | MZ25: 0 | NA25: 0 | NB25: 0 | NC25: 0 | ND25: 0 | NE25: 0 | NF25: 0 | NG25: 0 | NH25: 0 | NI25: 0 | NJ25: 0 | NK25: 0 | NL25: 0 | NM25: 0 | NN25: 0 | NO25: 0 | NP25: 0 | NQ25: 0 | NR25: 0 | NS25: 0 | NT25: 0 | NU25: 0 | NV25: 0 | NW25: 0 | NX25: 0 | NY25: =NY$20 -> 0 | NZ25: 0 | OA25: 0 | OB25: 0 | OC25: 0 | OD25: 0 | OE25: 0 | OF25: 0 | OG25: 0 | OH25: 0 | OI25: 0 | OJ25: 0 | OK25: 0 | OL25: 0 | OM25: 0 | ON25: 0 | OO25: 0 | OP25: 0 | OQ25: 0 | OR25: 0 | OS25: 0 | OT25: 0 | OU25: 0 | OV25: 0 | OW25: 0 | OX25: 0 | OY25: 0 | OZ25: 0 | PA25: 0 | PB25: 0 | PC25: 0 | PD25: 0 | PE25: 0 | PF25: 0 | PG25: 0 | PH25: 0 | PI25: 0 | PJ25: 0 | PK25: 0 | PL25: 0 | PM25: 0 | PN25: 0 | PO25: 0 | PP25: 0 | PQ25: 0 | PR25: 0 | PS25: 0 | PT25: 0 | PU25: 0 | PV25: 0 | PW25: 0 | PX25: 0 | PY25: 0 | PZ25: 0 | QA25: 0 | QB25: 0 | QC25: 0 | QD25: 0 | QE25: 0 | QF25: 0 | QG25: 0 | QH25: 0 | QI25: 0 | QJ25: 0 | QK25: =QK$20 -> 0 | QL25: 0 | QM25: 0 | QN25: 0 | QO25: 0 | QP25: 0 | QQ25: 0 | QR25: 0 | QS25: 0 | QT25: 0 | QU25: 0 | QV25: 0 | QW25: 0 | QX25: 0 | QY25: 0 | QZ25: 0 | RA25: 0 | RB25: 0 | RC25: 0 | RD25: 0 | RE25: 0 | RF25: 0 | RG25: 0 | RH25: 0 | RI25: 0 | RJ25: 0 | RK25: 0 | RL25: 0 | RM25: 0 | RN25: 0 | RO25: 0 | RP25: 0 | RQ25: 0 | RR25: 0 | RS25: 0 | RT25: 0 | RU25: 0 | RV25: 0 | RW25: 0 | RX25: 0 | RY25: 0 | RZ25: 0 | SA25: 0 | SB25: 0 | SC25: 0 | SD25: 0 | SE25: 0 | SF25: 0 | SG25: 0 | SH25: 0 | SI25: 0 | SJ25: 0 | SK25: 0 | SL25: 0 | SM25: 0 | SN25: 0 | SO25: 0 | SP25: 0 | SQ25: 0 | SR25: 0 | SS25: 0 | ST25: 0 | SU25: 0 | SV25: 0 | SW25: =SW$20 -> 0 | SX25: 0 | SY25: 0 | SZ25: 0 | TA25: 0 | TB25: 0 | TC25: 0 | TD25: 0 | TE25: 0 | TF25: 0 | TG25: 0 | TH25: 0 | TI25: 0 | TJ25: 0 | TK25: 0 | TL25: 0 | TM25: 0 | TN25: 0 | TO25: 0 | TP25: 0 | TQ25: 0 | TR25: 0 | TS25: 0 | TT25: 0 | TU25: 0 | TV25: 0 | TW25: 0 | TX25: 0 | TY25: 0 | TZ25: 0 | UA25: 0 | UB25: 0 | UC25: 0 | UD25: 0 | UE25: 0 | UF25: 0 | UG25: 0 | UH25: 0 | UI25: 0 | UJ25: 0 | UK25: 0 | UL25: 0 | UM25: 0 | UN25: 0 | UO25: 0 | UP25: 0 | UQ25: 0 | UR25: 0 | US25: 0 | UT25: 0 | UU25: 0 | UV25: 0 | UW25: 0 | UX25: 0 | UY25: 0 | UZ25: 0 | VA25: 0 | VB25: 0 | VC25: 0 | VD25: 0 | VE25: 0 | VF25: 0 | VG25: 0 | VH25: 0 | VI25: =VI$20 -> 0 | VJ25: 0 | VK25: 0 | VL25: 0 | VM25: 0 | VN25: 0 | VO25: 0 | VP25: 0 | VQ25: 0 | VR25: 0 | VS25: 0 | VT25: 0 | VU25: 0 | VV25: 0 | VW25: 0 | VX25: 0 | VY25: 0 | VZ25: 0 | WA25: 0 | WB25: 0 | WC25: 0 | WD25: 0 | WE25: 0 | WF25: 0 | WG25: 0 | WH25: 0 | WI25: 0 | WJ25: 0 | WK25: 0 | WL25: 0 | WM25: 0 | WN25: 0 | WO25: 0 | WP25: 0 | WQ25: 0 | WR25: 0 | WS25: 0 | WT25: 0 | WU25: 0 | WV25: 0 | WW25: 0 | WX25: 0 | WY25: 0 | WZ25: 0 | XA25: 0 | XB25: 0 | XC25: 0 | XD25: 0 | XE25: 0 | XF25: 0 | XG25: 0 | XH25: 0 | XI25: 0 | XJ25: 0 | XK25: 0 | XL25: 0 | XM25: 0 | XN25: 0 | XO25: 0 | XP25: 0 | XQ25: 0 | XR25: 0 | XS25: 0 | XT25: 0 | XU25: =XU$20 -> 0 | XV25: 0 | XW25: 0 | XX25: 0 | XY25: 0 | XZ25: 0 | YA25: 0 | YB25: 0 | YC25: 0 | YD25: 0 | YE25: 0 | YF25: 0 | YG25: 0 | YH25: 0 | YI25: 0 | YJ25: 0 | YK25: 0 | YL25: 0 | YM25: 0 | YN25: 0 | YO25: 0 | YP25: 0 | YQ25: 0 | YR25: 0 | YS25: 0 | YT25: 0 | YU25: 0 | YV25: 0 | YW25: 0 | YX25: 0 | YY25: 0 | YZ25: 0 | ZA25: 0 | ZB25: 0 | ZC25: 0 | ZD25: 0 | ZE25: 0 | ZF25: 0 | ZG25: 0 | ZH25: 0 | ZI25: 0 | ZJ25: 0 | ZK25: 0 | ZL25: 0 | ZM25: 0 | ZN25: 0 | ZO25: 0 | ZP25: 0 | ZQ25: 0 | ZR25: 0 | ZS25: 0 | ZT25: 0 | ZU25: 0 | ZV25: 0 | ZW25: 0 | ZX25: 0 | ZY25: 0 | ZZ25: 0 | AAA25: 0 | AAB25: 0 | AAC25: 0 | AAD25: 0 | AAE25: 0 | AAF25: 0 | AAG25: =AAG$20 -> 0 | AAH25: 0 | AAI25: 0 | AAJ25: 0 | AAK25: 0 | AAL25: 0 | AAM25: 0 | AAN25: 0 | AAO25: 0 | AAP25: 0 | AAQ25: 0 | AAR25: 0 | AAS25: 0 | AAT25: 0 | AAU25: 0 | AAV25: 0 | AAW25: 0 | AAX25: 0 | AAY25: 0 | AAZ25: 0 | ABA25: 0 | ABB25: 0 | ABC25: 0 | ABD25: 0 | ABE25: 0 | ABF25: 0 | ABG25: 0 | ABH25: 0 | ABI25: 0 | ABJ25: 0 | ABK25: 0 | ABL25: 0 | ABM25: 0 | ABN25: 0 | ABO25: 0 | ABP25: 0 | ABQ25: 0 | ABR25: 0 | ABS25: 0 | ABT25: 0 | ABU25: 0 | ABV25: 0 | ABW25: 0 | ABX25: 0 | ABY25: 0 | ABZ25: 0 | ACA25: 0 | ACB25: 0 | ACC25: 0 | ACD25: 0 | ACE25: 0 | ACF25: 0 | ACG25: 0 | ACH25: 0 | ACI25: 0 | ACJ25: 0 | ACK25: 0 | ACL25: 0 | ACM25: 0 | ACN25: 0 | ACO25: 0 | ACP25: 0 | ACQ25: 0 | ACR25: 0 | ACS25: =ACS$20 -> 0 | ACT25: 0 | ACU25: 0 | ACV25: 0 | ACW25: 0 | ACX25: 0 | ACY25: 0 | ACZ25: 0 | ADA25: 0 | ADB25: 0 | ADC25: 0 | ADD25: 0 | ADE25: 0 | ADF25: 0 | ADG25: 0 | ADH25: 0 | ADI25: 0 | ADJ25: 0 | ADK25: 0 | ADL25: 0 | ADM25: 0 | ADN25: 0 | ADO25: 0 | ADP25: 0 | ADQ25: 0 | ADR25: 0 | ADS25: 0 | ADT25: 0 | ADU25: 0 | ADV25: 0 | ADW25: 0 | ADX25: 0 | ADY25: 0 | ADZ25: 0 | AEA25: 0 | AEB25: 0 | AEC25: 0 | AED25: 0 | AEE25: 0 | AEF25: 0 | AEG25: 0 | AEH25: 0 | AEI25: 0 | AEJ25: 0 | AEK25: 0 | AEL25: 0 | AEM25: 0 | AEN25: 0 | AEO25: 0 | AEP25: 0 | AEQ25: 0 | AER25: 0 | AES25: 0 | AET25: 0 | AEU25: 0 | AEV25: 0 | AEW25: 0 | AEX25: 0 | AEY25: 0 | AEZ25: 0 | AFA25: 0 | AFB25: 0 | AFC25: 0 | AFD25: 0 | AFE25: =AFE$20 -> 0 | AFF25: 0 | AFG25: 0 | AFH25: 0 | AFI25: 0 | AFJ25: 0 | AFK25: 0 | AFL25: 0 | AFM25: 0 | AFN25: 0 | AFO25: 0 | AFP25: 0 | AFQ25: 0 | AFR25: 0 | AFS25: 0 | AFT25: 0 | AFU25: 0 | AFV25: 0 | AFW25: 0 | AFX25: 0 | AFY25: 0 | AFZ25: 0 | AGA25: 0 | AGB25: 0 | AGC25: 0 | AGD25: 0 | AGE25: 0 | AGF25: 0 | AGG25: 0 | AGH25: 0 | AGI25: 0 | AGJ25: 0 | AGK25: 0 | AGL25: 0 | AGM25: 0 | AGN25: 0 | AGO25: 0 | AGP25: 0 | AGQ25: 0 | AGR25: 0 | AGS25: 0 | AGT25: 0 | AGU25: 0 | AGV25: 0 | AGW25: 0 | AGX25: 0 | AGY25: 0 | AGZ25: 0 | AHA25: 0 | AHB25: 0 | AHC25: 0 | AHD25: 0 | AHE25: 0 | AHF25: 0 | AHG25: 0 | AHH25: 0 | AHI25: 0 | AHJ25: 0 | AHK25: 0 | AHL25: 0 | AHM25: 0 | AHN25: 0 | AHO25: 0 | AHP25: 0 | AHQ25: =AHQ$20 -> 0 | AHR25: 0 | AHS25: 0 | AHT25: 0 | AHU25: 0 | AHV25: 0 | AHW25: 0 | AHX25: 0 | AHY25: 0 | AHZ25: 0 | AIA25: 0 | AIB25: 0 | AIC25: 0 | AID25: 0 | AIE25: 0 | AIF25: 0 | AIG25: 0 | AIH25: 0 | AII25: 0 | AIJ25: 0 | AIK25: 0 | AIL25: 0 | AIM25: 0 | AIN25: 0 | AIO25: 0 | AIP25: 0 | AIQ25: 0 | AIR25: 0 | AIS25: 0 | AIT25: 0 | AIU25: 0 | AIV25: 0 | AIW25: 0 | AIX25: 0 | AIY25: 0 | AIZ25: 0 | AJA25: 0 | AJB25: 0 | AJC25: 0 | AJD25: 0 | AJE25: 0 | AJF25: 0 | AJG25: 0 | AJH25: 0 | AJI25: 0 | AJJ25: 0 | AJK25: 0 | AJL25: 0 | AJM25: 0 | AJN25: 0 | AJO25: 0 | AJP25: 0 | AJQ25: 0 | AJR25: 0 | AJS25: 0 | AJT25: 0 | AJU25: 0 | AJV25: 0 | AJW25: 0 | AJX25: 0 | AJY25: 0 | AJZ25: 0 | AKA25: 0 | AKB25: 0 | AKC25: =AKC$20 -> 0 | AKD25: 0 | AKE25: 0 | AKF25: 0 | AKG25: 0 | AKH25: 0
D26: Model period beginning | F26: date | K26: =IF( K25 = 1, $E23, DATE( YEAR( J26 ), MONTH( J26 ) + $E24, DAY( J26 ) ) ) -> 2024-01-01 | L26: =IF( L25 = 1, $E23, DATE( YEAR( K26 ), MONTH( K26 ) + $E24, DAY( K26 ) ) ) -> 2025-01-01 | M26: 2026-01-01 | N26: 2027-01-01 | O26: 2028-01-01 | P26: 2029-01-01 | Q26: 2030-01-01 | R26: 2031-01-01 | S26: 2032-01-01 | T26: 2033-01-01 | U26: 2034-01-01 | V26: 2035-01-01 | W26: 2036-01-01 | X26: 2037-01-01 | Y26: 2038-01-01 | Z26: 2039-01-01 | AA26: 2040-01-01 | AB26: 2041-01-01 | AC26: 2042-01-01 | AD26: 2043-01-01 | AE26: 2044-01-01 | AF26: 2045-01-01 | AG26: 2046-01-01 | AH26: 2047-01-01 | AI26: 2048-01-01 | AJ26: 2049-01-01 | AK26: 2050-01-01 | AL26: 2051-01-01 | AM26: 2052-01-01 | AN26: 2053-01-01 | AO26: 2054-01-01 | AP26: 2055-01-01 | AQ26: 2056-01-01 | AR26: 2057-01-01 | AS26: 2058-01-01 | AT26: 2059-01-01 | AU26: 2060-01-01 | AV26: 2061-01-01 | AW26: 2062-01-01 | AX26: 2063-01-01 | AY26: 2064-01-01 | AZ26: 2065-01-01 | BA26: 2066-01-01 | BB26: 2067-01-01 | BC26: 2068-01-01 | BD26: 2069-01-01 | BE26: 2070-01-01 | BF26: 2071-01-01 | BG26: 2072-01-01 | BH26: 2073-01-01 | BI26: 2074-01-01 | BJ26: 2075-01-01 | BK26: 2076-01-01 | BL26: 2077-01-01 | BM26: 2078-01-01 | BN26: 2079-01-01 | BO26: 2080-01-01 | BP26: 2081-01-01 | BQ26: 2082-01-01 | BR26: 2083-01-01 | BS26: 2084-01-01 | BT26: 2085-01-01 | BU26: 2086-01-01 | BV26: 2087-01-01 | BW26: 2088-01-01 | BX26: =IF( BX25 = 1, $E23, DATE( YEAR( BW26 ), MONTH( BW26 ) + $E24, DAY( BW26 ) ) ) -> 2089-01-01 | BY26: 2090-01-01 | BZ26: 2091-01-01 | CA26: 2092-01-01 | CB26: 2093-01-01 | CC26: 2094-01-01 | CD26: 2095-01-01 | CE26: 2096-01-01 | CF26: 2097-01-01 | CG26: 2098-01-01 | CH26: 2099-01-01 | CI26: 2100-01-01 | CJ26: 2101-01-01 | CK26: 2102-01-01 | CL26: 2103-01-01 | CM26: 2104-01-01 | CN26: 2105-01-01 | CO26: 2106-01-01 | CP26: 2107-01-01 | CQ26: 2108-01-01 | CR26: 2109-01-01 | CS26: 2110-01-01 | CT26: 2111-01-01 | CU26: 2112-01-01 | CV26: 2113-01-01 | CW26: 2114-01-01 | CX26: 2115-01-01 | CY26: 2116-01-01 | CZ26: 2117-01-01 | DA26: 2118-01-01 | DB26: 2119-01-01 | DC26: 2120-01-01 | DD26: 2121-01-01 | DE26: 2122-01-01 | DF26: 2123-01-01 | DG26: 2124-01-01 | DH26: 2125-01-01 | DI26: 2126-01-01 | DJ26: 2127-01-01 | DK26: 2128-01-01 | DL26: 2129-01-01 | DM26: 2130-01-01 | DN26: 2131-01-01 | DO26: 2132-01-01 | DP26: 2133-01-01 | DQ26: 2134-01-01 | DR26: 2135-01-01 | DS26: 2136-01-01 | DT26: 2137-01-01 | DU26: 2138-01-01 | DV26: 2139-01-01 | DW26: 2140-01-01 | DX26: 2141-01-01 | DY26: 2142-01-01 | DZ26: 2143-01-01 | EA26: 2144-01-01 | EB26: 2145-01-01 | EC26: 2146-01-01 | ED26: 2147-01-01 | EE26: 2148-01-01 | EF26: 2149-01-01 | EG26: 2150-01-01 | EH26: 2151-01-01 | EI26: 2152-01-01 | EJ26: =IF( EJ25 = 1, $E23, DATE( YEAR( EI26 ), MONTH( EI26 ) + $E24, DAY( EI26 ) ) ) -> 2153-01-01 | EK26: 2154-01-01 | EL26: 2155-01-01 | EM26: 2156-01-01 | EN26: 2157-01-01 | EO26: 2158-01-01 | EP26: 2159-01-01 | EQ26: 2160-01-01 | ER26: 2161-01-01 | ES26: 2162-01-01 | ET26: 2163-01-01 | EU26: 2164-01-01 | EV26: 2165-01-01 | EW26: 2166-01-01 | EX26: 2167-01-01 | EY26: 2168-01-01 | EZ26: 2169-01-01 | FA26: 2170-01-01 | FB26: 2171-01-01 | FC26: 2172-01-01 | FD26: 2173-01-01 | FE26: 2174-01-01 | FF26: 2175-01-01 | FG26: 2176-01-01 | FH26: 2177-01-01 | FI26: 2178-01-01 | FJ26: 2179-01-01 | FK26: 2180-01-01 | FL26: 2181-01-01 | FM26: 2182-01-01 | FN26: 2183-01-01 | FO26: 2184-01-01 | FP26: 2185-01-01 | FQ26: 2186-01-01 | FR26: 2187-01-01 | FS26: 2188-01-01 | FT26: 2189-01-01 | FU26: 2190-01-01 | FV26: 2191-01-01 | FW26: 2192-01-01 | FX26: 2193-01-01 | FY26: 2194-01-01 | FZ26: 2195-01-01 | GA26: 2196-01-01 | GB26: 2197-01-01 | GC26: 2198-01-01 | GD26: 2199-01-01 | GE26: 2200-01-01 | GF26: 2201-01-01 | GG26: 2202-01-01 | GH26: 2203-01-01 | GI26: 2204-01-01 | GJ26: 2205-01-01 | GK26: 2206-01-01 | GL26: 2207-01-01 | GM26: 2208-01-01 | GN26: 2209-01-01 | GO26: 2210-01-01 | GP26: 2211-01-01 | GQ26: 2212-01-01 | GR26: 2213-01-01 | GS26: 2214-01-01 | GT26: 2215-01-01 | GU26: 2216-01-01 | GV26: =IF( GV25 = 1, $E23, DATE( YEAR( GU26 ), MONTH( GU26 ) + $E24, DAY( GU26 ) ) ) -> 2217-01-01 | GW26: 2218-01-01 | GX26: 2219-01-01 | GY26: 2220-01-01 | GZ26: 2221-01-01 | HA26: 2222-01-01 | HB26: 2223-01-01 | HC26: 2224-01-01 | HD26: 2225-01-01 | HE26: 2226-01-01 | HF26: 2227-01-01 | HG26: 2228-01-01 | HH26: 2229-01-01 | HI26: 2230-01-01 | HJ26: 2231-01-01 | HK26: 2232-01-01 | HL26: 2233-01-01 | HM26: 2234-01-01 | HN26: 2235-01-01 | HO26: 2236-01-01 | HP26: 2237-01-01 | HQ26: 2238-01-01 | HR26: 2239-01-01 | HS26: 2240-01-01 | HT26: 2241-01-01 | HU26: 2242-01-01 | HV26: 2243-01-01 | HW26: 2244-01-01 | HX26: 2245-01-01 | HY26: 2246-01-01 | HZ26: 2247-01-01 | IA26: 2248-01-01 | IB26: 2249-01-01 | IC26: 2250-01-01 | ID26: 2251-01-01 | IE26: 2252-01-01 | IF26: 2253-01-01 | IG26: 2254-01-01 | IH26: 2255-01-01 | II26: 2256-01-01 | IJ26: 2257-01-01 | IK26: 2258-01-01 | IL26: 2259-01-01 | IM26: 2260-01-01 | IN26: 2261-01-01 | IO26: 2262-01-01 | IP26: 2263-01-01 | IQ26: 2264-01-01 | IR26: 2265-01-01 | IS26: 2266-01-01 | IT26: 2267-01-01 | IU26: 2268-01-01 | IV26: 2269-01-01 | IW26: 2270-01-01 | IX26: 2271-01-01 | IY26: 2272-01-01 | IZ26: 2273-01-01 | JA26: 2274-01-01 | JB26: 2275-01-01 | JC26: 2276-01-01 | JD26: 2277-01-01 | JE26: 2278-01-01 | JF26: 2279-01-01 | JG26: 2280-01-01 | JH26: =IF( JH25 = 1, $E23, DATE( YEAR( JG26 ), MONTH( JG26 ) + $E24, DAY( JG26 ) ) ) -> 2281-01-01 | JI26: 2282-01-01 | JJ26: 2283-01-01 | JK26: 2284-01-01 | JL26: 2285-01-01 | JM26: 2286-01-01 | JN26: 2287-01-01 | JO26: 2288-01-01 | JP26: 2289-01-01 | JQ26: 2290-01-01 | JR26: 2291-01-01 | JS26: 2292-01-01 | JT26: 2293-01-01 | JU26: 2294-01-01 | JV26: 2295-01-01 | JW26: 2296-01-01 | JX26: 2297-01-01 | JY26: 2298-01-01 | JZ26: 2299-01-01 | KA26: 2300-01-01 | KB26: 2301-01-01 | KC26: 2302-01-01 | KD26: 2303-01-01 | KE26: 2304-01-01 | KF26: 2305-01-01 | KG26: 2306-01-01 | KH26: 2307-01-01 | KI26: 2308-01-01 | KJ26: 2309-01-01 | KK26: 2310-01-01 | KL26: 2311-01-01 | KM26: 2312-01-01 | KN26: 2313-01-01 | KO26: 2314-01-01 | KP26: 2315-01-01 | KQ26: 2316-01-01 | KR26: 2317-01-01 | KS26: 2318-01-01 | KT26: 2319-01-01 | KU26: 2320-01-01 | KV26: 2321-01-01 | KW26: 2322-01-01 | KX26: 2323-01-01 | KY26: 2324-01-01 | KZ26: 2325-01-01 | LA26: 2326-01-01 | LB26: 2327-01-01 | LC26: 2328-01-01 | LD26: 2329-01-01 | LE26: 2330-01-01 | LF26: 2331-01-01 | LG26: 2332-01-01 | LH26: 2333-01-01 | LI26: 2334-01-01 | LJ26: 2335-01-01 | LK26: 2336-01-01 | LL26: 2337-01-01 | LM26: 2338-01-01 | LN26: 2339-01-01 | LO26: 2340-01-01 | LP26: 2341-01-01 | LQ26: 2342-01-01 | LR26: 2343-01-01 | LS26: 2344-01-01 | LT26: =IF( LT25 = 1, $E23, DATE( YEAR( LS26 ), MONTH( LS26 ) + $E24, DAY( LS26 ) ) ) -> 2345-01-01 | LU26: 2346-01-01 | LV26: 2347-01-01 | LW26: 2348-01-01 | LX26: 2349-01-01 | LY26: 2350-01-01 | LZ26: 2351-01-01 | MA26: 2352-01-01 | MB26: 2353-01-01 | MC26: 2354-01-01 | MD26: 2355-01-01 | ME26: 2356-01-01 | MF26: 2357-01-01 | MG26: 2358-01-01 | MH26: 2359-01-01 | MI26: 2360-01-01 | MJ26: 2361-01-01 | MK26: 2362-01-01 | ML26: 2363-01-01 | MM26: 2364-01-01 | MN26: 2365-01-01 | MO26: 2366-01-01 | MP26: 2367-01-01 | MQ26: 2368-01-01 | MR26: 2369-01-01 | MS26: 2370-01-01 | MT26: 2371-01-01 | MU26: 2372-01-01 | MV26: 2373-01-01 | MW26: 2374-01-01 | MX26: 2375-01-01 | MY26: 2376-01-01 | MZ26: 2377-01-01 | NA26: 2378-01-01 | NB26: 2379-01-01 | NC26: 2380-01-01 | ND26: 2381-01-01 | NE26: 2382-01-01 | NF26: 2383-01-01 | NG26: 2384-01-01 | NH26: 2385-01-01 | NI26: 2386-01-01 | NJ26: 2387-01-01 | NK26: 2388-01-01 | NL26: 2389-01-01 | NM26: 2390-01-01 | NN26: 2391-01-01 | NO26: 2392-01-01 | NP26: 2393-01-01 | NQ26: 2394-01-01 | NR26: 2395-01-01 | NS26: 2396-01-01 | NT26: 2397-01-01 | NU26: 2398-01-01 | NV26: 2399-01-01 | NW26: 2400-01-01 | NX26: 2401-01-01 | NY26: 2402-01-01 | NZ26: 2403-01-01 | OA26: 2404-01-01 | OB26: 2405-01-01 | OC26: 2406-01-01 | OD26: 2407-01-01 | OE26: 2408-01-01 | OF26: =IF( OF25 = 1, $E23, DATE( YEAR( OE26 ), MONTH( OE26 ) + $E24, DAY( OE26 ) ) ) -> 2409-01-01 | OG26: 2410-01-01 | OH26: 2411-01-01 | OI26: 2412-01-01 | OJ26: 2413-01-01 | OK26: 2414-01-01 | OL26: 2415-01-01 | OM26: 2416-01-01 | ON26: 2417-01-01 | OO26: 2418-01-01 | OP26: 2419-01-01 | OQ26: 2420-01-01 | OR26: 2421-01-01 | OS26: 2422-01-01 | OT26: 2423-01-01 | OU26: 2424-01-01 | OV26: 2425-01-01 | OW26: 2426-01-01 | OX26: 2427-01-01 | OY26: 2428-01-01 | OZ26: 2429-01-01 | PA26: 2430-01-01 | PB26: 2431-01-01 | PC26: 2432-01-01 | PD26: 2433-01-01 | PE26: 2434-01-01 | PF26: 2435-01-01 | PG26: 2436-01-01 | PH26: 2437-01-01 | PI26: 2438-01-01 | PJ26: 2439-01-01 | PK26: 2440-01-01 | PL26: 2441-01-01 | PM26: 2442-01-01 | PN26: 2443-01-01 | PO26: 2444-01-01 | PP26: 2445-01-01 | PQ26: 2446-01-01 | PR26: 2447-01-01 | PS26: 2448-01-01 | PT26: 2449-01-01 | PU26: 2450-01-01 | PV26: 2451-01-01 | PW26: 2452-01-01 | PX26: 2453-01-01 | PY26: 2454-01-01 | PZ26: 2455-01-01 | QA26: 2456-01-01 | QB26: 2457-01-01 | QC26: 2458-01-01 | QD26: 2459-01-01 | QE26: 2460-01-01 | QF26: 2461-01-01 | QG26: 2462-01-01 | QH26: 2463-01-01 | QI26: 2464-01-01 | QJ26: 2465-01-01 | QK26: 2466-01-01 | QL26: 2467-01-01 | QM26: 2468-01-01 | QN26: 2469-01-01 | QO26: 2470-01-01 | QP26: 2471-01-01 | QQ26: 2472-01-01 | QR26: =IF( QR25 = 1, $E23, DATE( YEAR( QQ26 ), MONTH( QQ26 ) + $E24, DAY( QQ26 ) ) ) -> 2473-01-01 | QS26: 2474-01-01 | QT26: 2475-01-01 | QU26: 2476-01-01 | QV26: 2477-01-01 | QW26: 2478-01-01 | QX26: 2479-01-01 | QY26: 2480-01-01 | QZ26: 2481-01-01 | RA26: 2482-01-01 | RB26: 2483-01-01 | RC26: 2484-01-01 | RD26: 2485-01-01 | RE26: 2486-01-01 | RF26: 2487-01-01 | RG26: 2488-01-01 | RH26: 2489-01-01 | RI26: 2490-01-01 | RJ26: 2491-01-01 | RK26: 2492-01-01 | RL26: 2493-01-01 | RM26: 2494-01-01 | RN26: 2495-01-01 | RO26: 2496-01-01 | RP26: 2497-01-01 | RQ26: 2498-01-01 | RR26: 2499-01-01 | RS26: 2500-01-01 | RT26: 2501-01-01 | RU26: 2502-01-01 | RV26: 2503-01-01 | RW26: 2504-01-01 | RX26: 2505-01-01 | RY26: 2506-01-01 | RZ26: 2507-01-01 | SA26: 2508-01-01 | SB26: 2509-01-01 | SC26: 2510-01-01 | SD26: 2511-01-01 | SE26: 2512-01-01 | SF26: 2513-01-01 | SG26: 2514-01-01 | SH26: 2515-01-01 | SI26: 2516-01-01 | SJ26: 2517-01-01 | SK26: 2518-01-01 | SL26: 2519-01-01 | SM26: 2520-01-01 | SN26: 2521-01-01 | SO26: 2522-01-01 | SP26: 2523-01-01 | SQ26: 2524-01-01 | SR26: 2525-01-01 | SS26: 2526-01-01 | ST26: 2527-01-01 | SU26: 2528-01-01 | SV26: 2529-01-01 | SW26: 2530-01-01 | SX26: 2531-01-01 | SY26: 2532-01-01 | SZ26: 2533-01-01 | TA26: 2534-01-01 | TB26: 2535-01-01 | TC26: 2536-01-01 | TD26: =IF( TD25 = 1, $E23, DATE( YEAR( TC26 ), MONTH( TC26 ) + $E24, DAY( TC26 ) ) ) -> 2537-01-01 | TE26: 2538-01-01 | TF26: 2539-01-01 | TG26: 2540-01-01 | TH26: 2541-01-01 | TI26: 2542-01-01 | TJ26: 2543-01-01 | TK26: 2544-01-01 | TL26: 2545-01-01 | TM26: 2546-01-01 | TN26: 2547-01-01 | TO26: 2548-01-01 | TP26: 2549-01-01 | TQ26: 2550-01-01 | TR26: 2551-01-01 | TS26: 2552-01-01 | TT26: 2553-01-01 | TU26: 2554-01-01 | TV26: 2555-01-01 | TW26: 2556-01-01 | TX26: 2557-01-01 | TY26: 2558-01-01 | TZ26: 2559-01-01 | UA26: 2560-01-01 | UB26: 2561-01-01 | UC26: 2562-01-01 | UD26: 2563-01-01 | UE26: 2564-01-01 | UF26: 2565-01-01 | UG26: 2566-01-01 | UH26: 2567-01-01 | UI26: 2568-01-01 | UJ26: 2569-01-01 | UK26: 2570-01-01 | UL26: 2571-01-01 | UM26: 2572-01-01 | UN26: 2573-01-01 | UO26: 2574-01-01 | UP26: 2575-01-01 | UQ26: 2576-01-01 | UR26: 2577-01-01 | US26: 2578-01-01 | UT26: 2579-01-01 | UU26: 2580-01-01 | UV26: 2581-01-01 | UW26: 2582-01-01 | UX26: 2583-01-01 | UY26: 2584-01-01 | UZ26: 2585-01-01 | VA26: 2586-01-01 | VB26: 2587-01-01 | VC26: 2588-01-01 | VD26: 2589-01-01 | VE26: 2590-01-01 | VF26: 2591-01-01 | VG26: 2592-01-01 | VH26: 2593-01-01 | VI26: 2594-01-01 | VJ26: 2595-01-01 | VK26: 2596-01-01 | VL26: 2597-01-01 | VM26: 2598-01-01 | VN26: 2599-01-01 | VO26: 2600-01-01 | VP26: =IF( VP25 = 1, $E23, DATE( YEAR( VO26 ), MONTH( VO26 ) + $E24, DAY( VO26 ) ) ) -> 2601-01-01 | VQ26: 2602-01-01 | VR26: 2603-01-01 | VS26: 2604-01-01 | VT26: 2605-01-01 | VU26: 2606-01-01 | VV26: 2607-01-01 | VW26: 2608-01-01 | VX26: 2609-01-01 | VY26: 2610-01-01 | VZ26: 2611-01-01 | WA26: 2612-01-01 | WB26: 2613-01-01 | WC26: 2614-01-01 | WD26: 2615-01-01 | WE26: 2616-01-01 | WF26: 2617-01-01 | WG26: 2618-01-01 | WH26: 2619-01-01 | WI26: 2620-01-01 | WJ26: 2621-01-01 | WK26: 2622-01-01 | WL26: 2623-01-01 | WM26: 2624-01-01 | WN26: 2625-01-01 | WO26: 2626-01-01 | WP26: 2627-01-01 | WQ26: 2628-01-01 | WR26: 2629-01-01 | WS26: 2630-01-01 | WT26: 2631-01-01 | WU26: 2632-01-01 | WV26: 2633-01-01 | WW26: 2634-01-01 | WX26: 2635-01-01 | WY26: 2636-01-01 | WZ26: 2637-01-01 | XA26: 2638-01-01 | XB26: 2639-01-01 | XC26: 2640-01-01 | XD26: 2641-01-01 | XE26: 2642-01-01 | XF26: 2643-01-01 | XG26: 2644-01-01 | XH26: 2645-01-01 | XI26: 2646-01-01 | XJ26: 2647-01-01 | XK26: 2648-01-01 | XL26: 2649-01-01 | XM26: 2650-01-01 | XN26: 2651-01-01 | XO26: 2652-01-01 | XP26: 2653-01-01 | XQ26: 2654-01-01 | XR26: 2655-01-01 | XS26: 2656-01-01 | XT26: 2657-01-01 | XU26: 2658-01-01 | XV26: 2659-01-01 | XW26: 2660-01-01 | XX26: 2661-01-01 | XY26: 2662-01-01 | XZ26: 2663-01-01 | YA26: 2664-01-01 | YB26: =IF( YB25 = 1, $E23, DATE( YEAR( YA26 ), MONTH( YA26 ) + $E24, DAY( YA26 ) ) ) -> 2665-01-01 | YC26: 2666-01-01 | YD26: 2667-01-01 | YE26: 2668-01-01 | YF26: 2669-01-01 | YG26: 2670-01-01 | YH26: 2671-01-01 | YI26: 2672-01-01 | YJ26: 2673-01-01 | YK26: 2674-01-01 | YL26: 2675-01-01 | YM26: 2676-01-01 | YN26: 2677-01-01 | YO26: 2678-01-01 | YP26: 2679-01-01 | YQ26: 2680-01-01 | YR26: 2681-01-01 | YS26: 2682-01-01 | YT26: 2683-01-01 | YU26: 2684-01-01 | YV26: 2685-01-01 | YW26: 2686-01-01 | YX26: 2687-01-01 | YY26: 2688-01-01 | YZ26: 2689-01-01 | ZA26: 2690-01-01 | ZB26: 2691-01-01 | ZC26: 2692-01-01 | ZD26: 2693-01-01 | ZE26: 2694-01-01 | ZF26: 2695-01-01 | ZG26: 2696-01-01 | ZH26: 2697-01-01 | ZI26: 2698-01-01 | ZJ26: 2699-01-01 | ZK26: 2700-01-01 | ZL26: 2701-01-01 | ZM26: 2702-01-01 | ZN26: 2703-01-01 | ZO26: 2704-01-01 | ZP26: 2705-01-01 | ZQ26: 2706-01-01 | ZR26: 2707-01-01 | ZS26: 2708-01-01 | ZT26: 2709-01-01 | ZU26: 2710-01-01 | ZV26: 2711-01-01 | ZW26: 2712-01-01 | ZX26: 2713-01-01 | ZY26: 2714-01-01 | ZZ26: 2715-01-01 | AAA26: 2716-01-01 | AAB26: 2717-01-01 | AAC26: 2718-01-01 | AAD26: 2719-01-01 | AAE26: 2720-01-01 | AAF26: 2721-01-01 | AAG26: 2722-01-01 | AAH26: 2723-01-01 | AAI26: 2724-01-01 | AAJ26: 2725-01-01 | AAK26: 2726-01-01 | AAL26: 2727-01-01 | AAM26: 2728-01-01 | AAN26: =IF( AAN25 = 1, $E23, DATE( YEAR( AAM26 ), MONTH( AAM26 ) + $E24, DAY( AAM26 ) ) ) -> 2729-01-01 | AAO26: 2730-01-01 | AAP26: 2731-01-01 | AAQ26: 2732-01-01 | AAR26: 2733-01-01 | AAS26: 2734-01-01 | AAT26: 2735-01-01 | AAU26: 2736-01-01 | AAV26: 2737-01-01 | AAW26: 2738-01-01 | AAX26: 2739-01-01 | AAY26: 2740-01-01 | AAZ26: 2741-01-01 | ABA26: 2742-01-01 | ABB26: 2743-01-01 | ABC26: 2744-01-01 | ABD26: 2745-01-01 | ABE26: 2746-01-01 | ABF26: 2747-01-01 | ABG26: 2748-01-01 | ABH26: 2749-01-01 | ABI26: 2750-01-01 | ABJ26: 2751-01-01 | ABK26: 2752-01-01 | ABL26: 2753-01-01 | ABM26: 2754-01-01 | ABN26: 2755-01-01 | ABO26: 2756-01-01 | ABP26: 2757-01-01 | ABQ26: 2758-01-01 | ABR26: 2759-01-01 | ABS26: 2760-01-01 | ABT26: 2761-01-01 | ABU26: 2762-01-01 | ABV26: 2763-01-01 | ABW26: 2764-01-01 | ABX26: 2765-01-01 | ABY26: 2766-01-01 | ABZ26: 2767-01-01 | ACA26: 2768-01-01 | ACB26: 2769-01-01 | ACC26: 2770-01-01 | ACD26: 2771-01-01 | ACE26: 2772-01-01 | ACF26: 2773-01-01 | ACG26: 2774-01-01 | ACH26: 2775-01-01 | ACI26: 2776-01-01 | ACJ26: 2777-01-01 | ACK26: 2778-01-01 | ACL26: 2779-01-01 | ACM26: 2780-01-01 | ACN26: 2781-01-01 | ACO26: 2782-01-01 | ACP26: 2783-01-01 | ACQ26: 2784-01-01 | ACR26: 2785-01-01 | ACS26: 2786-01-01 | ACT26: 2787-01-01 | ACU26: 2788-01-01 | ACV26: 2789-01-01 | ACW26: 2790-01-01 | ACX26: 2791-01-01 | ACY26: 2792-01-01 | ACZ26: =IF( ACZ25 = 1, $E23, DATE( YEAR( ACY26 ), MONTH( ACY26 ) + $E24, DAY( ACY26 ) ) ) -> 2793-01-01 | ADA26: 2794-01-01 | ADB26: 2795-01-01 | ADC26: 2796-01-01 | ADD26: 2797-01-01 | ADE26: 2798-01-01 | ADF26: 2799-01-01 | ADG26: 2800-01-01 | ADH26: 2801-01-01 | ADI26: 2802-01-01 | ADJ26: 2803-01-01 | ADK26: 2804-01-01 | ADL26: 2805-01-01 | ADM26: 2806-01-01 | ADN26: 2807-01-01 | ADO26: 2808-01-01 | ADP26: 2809-01-01 | ADQ26: 2810-01-01 | ADR26: 2811-01-01 | ADS26: 2812-01-01 | ADT26: 2813-01-01 | ADU26: 2814-01-01 | ADV26: 2815-01-01 | ADW26: 2816-01-01 | ADX26: 2817-01-01 | ADY26: 2818-01-01 | ADZ26: 2819-01-01 | AEA26: 2820-01-01 | AEB26: 2821-01-01 | AEC26: 2822-01-01 | AED26: 2823-01-01 | AEE26: 2824-01-01 | AEF26: 2825-01-01 | AEG26: 2826-01-01 | AEH26: 2827-01-01 | AEI26: 2828-01-01 | AEJ26: 2829-01-01 | AEK26: 2830-01-01 | AEL26: 2831-01-01 | AEM26: 2832-01-01 | AEN26: 2833-01-01 | AEO26: 2834-01-01 | AEP26: 2835-01-01 | AEQ26: 2836-01-01 | AER26: 2837-01-01 | AES26: 2838-01-01 | AET26: 2839-01-01 | AEU26: 2840-01-01 | AEV26: 2841-01-01 | AEW26: 2842-01-01 | AEX26: 2843-01-01 | AEY26: 2844-01-01 | AEZ26: 2845-01-01 | AFA26: 2846-01-01 | AFB26: 2847-01-01 | AFC26: 2848-01-01 | AFD26: 2849-01-01 | AFE26: 2850-01-01 | AFF26: 2851-01-01 | AFG26: 2852-01-01 | AFH26: 2853-01-01 | AFI26: 2854-01-01 | AFJ26: 2855-01-01 | AFK26: 2856-01-01 | AFL26: =IF( AFL25 = 1, $E23, DATE( YEAR( AFK26 ), MONTH( AFK26 ) + $E24, DAY( AFK26 ) ) ) -> 2857-01-01 | AFM26: 2858-01-01 | AFN26: 2859-01-01 | AFO26: 2860-01-01 | AFP26: 2861-01-01 | AFQ26: 2862-01-01 | AFR26: 2863-01-01 | AFS26: 2864-01-01 | AFT26: 2865-01-01 | AFU26: 2866-01-01 | AFV26: 2867-01-01 | AFW26: 2868-01-01 | AFX26: 2869-01-01 | AFY26: 2870-01-01 | AFZ26: 2871-01-01 | AGA26: 2872-01-01 | AGB26: 2873-01-01 | AGC26: 2874-01-01 | AGD26: 2875-01-01 | AGE26: 2876-01-01 | AGF26: 2877-01-01 | AGG26: 2878-01-01 | AGH26: 2879-01-01 | AGI26: 2880-01-01 | AGJ26: 2881-01-01 | AGK26: 2882-01-01 | AGL26: 2883-01-01 | AGM26: 2884-01-01 | AGN26: 2885-01-01 | AGO26: 2886-01-01 | AGP26: 2887-01-01 | AGQ26: 2888-01-01 | AGR26: 2889-01-01 | AGS26: 2890-01-01 | AGT26: 2891-01-01 | AGU26: 2892-01-01 | AGV26: 2893-01-01 | AGW26: 2894-01-01 | AGX26: 2895-01-01 | AGY26: 2896-01-01 | AGZ26: 2897-01-01 | AHA26: 2898-01-01 | AHB26: 2899-01-01 | AHC26: 2900-01-01 | AHD26: 2901-01-01 | AHE26: 2902-01-01 | AHF26: 2903-01-01 | AHG26: 2904-01-01 | AHH26: 2905-01-01 | AHI26: 2906-01-01 | AHJ26: 2907-01-01 | AHK26: 2908-01-01 | AHL26: 2909-01-01 | AHM26: 2910-01-01 | AHN26: 2911-01-01 | AHO26: 2912-01-01 | AHP26: 2913-01-01 | AHQ26: 2914-01-01 | AHR26: 2915-01-01 | AHS26: 2916-01-01 | AHT26: 2917-01-01 | AHU26: 2918-01-01 | AHV26: 2919-01-01 | AHW26: 2920-01-01 | AHX26: =IF( AHX25 = 1, $E23, DATE( YEAR( AHW26 ), MONTH( AHW26 ) + $E24, DAY( AHW26 ) ) ) -> 2921-01-01 | AHY26: 2922-01-01 | AHZ26: 2923-01-01 | AIA26: 2924-01-01 | AIB26: 2925-01-01 | AIC26: 2926-01-01 | AID26: 2927-01-01 | AIE26: 2928-01-01 | AIF26: 2929-01-01 | AIG26: 2930-01-01 | AIH26: 2931-01-01 | AII26: 2932-01-01 | AIJ26: 2933-01-01 | AIK26: 2934-01-01 | AIL26: 2935-01-01 | AIM26: 2936-01-01 | AIN26: 2937-01-01 | AIO26: 2938-01-01 | AIP26: 2939-01-01 | AIQ26: 2940-01-01 | AIR26: 2941-01-01 | AIS26: 2942-01-01 | AIT26: 2943-01-01 | AIU26: 2944-01-01 | AIV26: 2945-01-01 | AIW26: 2946-01-01 | AIX26: 2947-01-01 | AIY26: 2948-01-01 | AIZ26: 2949-01-01 | AJA26: 2950-01-01 | AJB26: 2951-01-01 | AJC26: 2952-01-01 | AJD26: 2953-01-01 | AJE26: 2954-01-01 | AJF26: 2955-01-01 | AJG26: 2956-01-01 | AJH26: 2957-01-01 | AJI26: 2958-01-01 | AJJ26: 2959-01-01 | AJK26: 2960-01-01 | AJL26: 2961-01-01 | AJM26: 2962-01-01 | AJN26: 2963-01-01 | AJO26: 2964-01-01 | AJP26: 2965-01-01 | AJQ26: 2966-01-01 | AJR26: 2967-01-01 | AJS26: 2968-01-01 | AJT26: 2969-01-01 | AJU26: 2970-01-01 | AJV26: 2971-01-01 | AJW26: 2972-01-01 | AJX26: 2973-01-01 | AJY26: 2974-01-01 | AJZ26: 2975-01-01 | AKA26: 2976-01-01 | AKB26: 2977-01-01 | AKC26: 2978-01-01 | AKD26: 2979-01-01 | AKE26: 2980-01-01 | AKF26: 2981-01-01 | AKG26: 2982-01-01 | AKH26: 2983-01-01
D28: Model period ending
D29: =InpC!D$13 -> Months per period | E29: =InpC!E$13 -> 12 | F29: =InpC!F$13 -> months
D30: =D$26 -> Model period beginning | E30: 0 | F30: date | G30: 0 | H30: 0 | I30: 0 | J30: 0 | K30: 2024-01-01 | L30: =L$26 -> 2025-01-01 | M30: 2026-01-01 | N30: 2027-01-01 | O30: 2028-01-01 | P30: 2029-01-01 | Q30: 2030-01-01 | R30: 2031-01-01 | S30: 2032-01-01 | T30: 2033-01-01 | U30: 2034-01-01 | V30: 2035-01-01 | W30: 2036-01-01 | X30: 2037-01-01 | Y30: 2038-01-01 | Z30: 2039-01-01 | AA30: 2040-01-01 | AB30: 2041-01-01 | AC30: 2042-01-01 | AD30: 2043-01-01 | AE30: 2044-01-01 | AF30: 2045-01-01 | AG30: 2046-01-01 | AH30: 2047-01-01 | AI30: 2048-01-01 | AJ30: 2049-01-01 | AK30: 2050-01-01 | AL30: 2051-01-01 | AM30: 2052-01-01 | AN30: 2053-01-01 | AO30: 2054-01-01 | AP30: 2055-01-01 | AQ30: 2056-01-01 | AR30: 2057-01-01 | AS30: 2058-01-01 | AT30: 2059-01-01 | AU30: 2060-01-01 | AV30: 2061-01-01 | AW30: 2062-01-01 | AX30: 2063-01-01 | AY30: 2064-01-01 | AZ30: 2065-01-01 | BA30: 2066-01-01 | BB30: 2067-01-01 | BC30: 2068-01-01 | BD30: 2069-01-01 | BE30: 2070-01-01 | BF30: 2071-01-01 | BG30: 2072-01-01 | BH30: 2073-01-01 | BI30: 2074-01-01 | BJ30: 2075-01-01 | BK30: 2076-01-01 | BL30: 2077-01-01 | BM30: 2078-01-01 | BN30: 2079-01-01 | BO30: 2080-01-01 | BP30: 2081-01-01 | BQ30: 2082-01-01 | BR30: 2083-01-01 | BS30: 2084-01-01 | BT30: 2085-01-01 | BU30: 2086-01-01 | BV30: 2087-01-01 | BW30: 2088-01-01 | BX30: =BX$26 -> 2089-01-01 | BY30: 2090-01-01 | BZ30: 2091-01-01 | CA30: 2092-01-01 | CB30: 2093-01-01 | CC30: 2094-01-01 | CD30: 2095-01-01 | CE30: 2096-01-01 | CF30: 2097-01-01 | CG30: 2098-01-01 | CH30: 2099-01-01 | CI30: 2100-01-01 | CJ30: 2101-01-01 | CK30: 2102-01-01 | CL30: 2103-01-01 | CM30: 2104-01-01 | CN30: 2105-01-01 | CO30: 2106-01-01 | CP30: 2107-01-01 | CQ30: 2108-01-01 | CR30: 2109-01-01 | CS30: 2110-01-01 | CT30: 2111-01-01 | CU30: 2112-01-01 | CV30: 2113-01-01 | CW30: 2114-01-01 | CX30: 2115-01-01 | CY30: 2116-01-01 | CZ30: 2117-01-01 | DA30: 2118-01-01 | DB30: 2119-01-01 | DC30: 2120-01-01 | DD30: 2121-01-01 | DE30: 2122-01-01 | DF30: 2123-01-01 | DG30: 2124-01-01 | DH30: 2125-01-01 | DI30: 2126-01-01 | DJ30: 2127-01-01 | DK30: 2128-01-01 | DL30: 2129-01-01 | DM30: 2130-01-01 | DN30: 2131-01-01 | DO30: 2132-01-01 | DP30: 2133-01-01 | DQ30: 2134-01-01 | DR30: 2135-01-01 | DS30: 2136-01-01 | DT30: 2137-01-01 | DU30: 2138-01-01 | DV30: 2139-01-01 | DW30: 2140-01-01 | DX30: 2141-01-01 | DY30: 2142-01-01 | DZ30: 2143-01-01 | EA30: 2144-01-01 | EB30: 2145-01-01 | EC30: 2146-01-01 | ED30: 2147-01-01 | EE30: 2148-01-01 | EF30: 2149-01-01 | EG30: 2150-01-01 | EH30: 2151-01-01 | EI30: 2152-01-01 | EJ30: =EJ$26 -> 2153-01-01 | EK30: 2154-01-01 | EL30: 2155-01-01 | EM30: 2156-01-01 | EN30: 2157-01-01 | EO30: 2158-01-01 | EP30: 2159-01-01 | EQ30: 2160-01-01 | ER30: 2161-01-01 | ES30: 2162-01-01 | ET30: 2163-01-01 | EU30: 2164-01-01 | EV30: 2165-01-01 | EW30: 2166-01-01 | EX30: 2167-01-01 | EY30: 2168-01-01 | EZ30: 2169-01-01 | FA30: 2170-01-01 | FB30: 2171-01-01 | FC30: 2172-01-01 | FD30: 2173-01-01 | FE30: 2174-01-01 | FF30: 2175-01-01 | FG30: 2176-01-01 | FH30: 2177-01-01 | FI30: 2178-01-01 | FJ30: 2179-01-01 | FK30: 2180-01-01 | FL30: 2181-01-01 | FM30: 2182-01-01 | FN30: 2183-01-01 | FO30: 2184-01-01 | FP30: 2185-01-01 | FQ30: 2186-01-01 | FR30: 2187-01-01 | FS30: 2188-01-01 | FT30: 2189-01-01 | FU30: 2190-01-01 | FV30: 2191-01-01 | FW30: 2192-01-01 | FX30: 2193-01-01 | FY30: 2194-01-01 | FZ30: 2195-01-01 | GA30: 2196-01-01 | GB30: 2197-01-01 | GC30: 2198-01-01 | GD30: 2199-01-01 | GE30: 2200-01-01 | GF30: 2201-01-01 | GG30: 2202-01-01 | GH30: 2203-01-01 | GI30: 2204-01-01 | GJ30: 2205-01-01 | GK30: 2206-01-01 | GL30: 2207-01-01 | GM30: 2208-01-01 | GN30: 2209-01-01 | GO30: 2210-01-01 | GP30: 2211-01-01 | GQ30: 2212-01-01 | GR30: 2213-01-01 | GS30: 2214-01-01 | GT30: 2215-01-01 | GU30: 2216-01-01 | GV30: =GV$26 -> 2217-01-01 | GW30: 2218-01-01 | GX30: 2219-01-01 | GY30: 2220-01-01 | GZ30: 2221-01-01 | HA30: 2222-01-01 | HB30: 2223-01-01 | HC30: 2224-01-01 | HD30: 2225-01-01 | HE30: 2226-01-01 | HF30: 2227-01-01 | HG30: 2228-01-01 | HH30: 2229-01-01 | HI30: 2230-01-01 | HJ30: 2231-01-01 | HK30: 2232-01-01 | HL30: 2233-01-01 | HM30: 2234-01-01 | HN30: 2235-01-01 | HO30: 2236-01-01 | HP30: 2237-01-01 | HQ30: 2238-01-01 | HR30: 2239-01-01 | HS30: 2240-01-01 | HT30: 2241-01-01 | HU30: 2242-01-01 | HV30: 2243-01-01 | HW30: 2244-01-01 | HX30: 2245-01-01 | HY30: 2246-01-01 | HZ30: 2247-01-01 | IA30: 2248-01-01 | IB30: 2249-01-01 | IC30: 2250-01-01 | ID30: 2251-01-01 | IE30: 2252-01-01 | IF30: 2253-01-01 | IG30: 2254-01-01 | IH30: 2255-01-01 | II30: 2256-01-01 | IJ30: 2257-01-01 | IK30: 2258-01-01 | IL30: 2259-01-01 | IM30: 2260-01-01 | IN30: 2261-01-01 | IO30: 2262-01-01 | IP30: 2263-01-01 | IQ30: 2264-01-01 | IR30: 2265-01-01 | IS30: 2266-01-01 | IT30: 2267-01-01 | IU30: 2268-01-01 | IV30: 2269-01-01 | IW30: 2270-01-01 | IX30: 2271-01-01 | IY30: 2272-01-01 | IZ30: 2273-01-01 | JA30: 2274-01-01 | JB30: 2275-01-01 | JC30: 2276-01-01 | JD30: 2277-01-01 | JE30: 2278-01-01 | JF30: 2279-01-01 | JG30: 2280-01-01 | JH30: =JH$26 -> 2281-01-01 | JI30: 2282-01-01 | JJ30: 2283-01-01 | JK30: 2284-01-01 | JL30: 2285-01-01 | JM30: 2286-01-01 | JN30: 2287-01-01 | JO30: 2288-01-01 | JP30: 2289-01-01 | JQ30: 2290-01-01 | JR30: 2291-01-01 | JS30: 2292-01-01 | JT30: 2293-01-01 | JU30: 2294-01-01 | JV30: 2295-01-01 | JW30: 2296-01-01 | JX30: 2297-01-01 | JY30: 2298-01-01 | JZ30: 2299-01-01 | KA30: 2300-01-01 | KB30: 2301-01-01 | KC30: 2302-01-01 | KD30: 2303-01-01 | KE30: 2304-01-01 | KF30: 2305-01-01 | KG30: 2306-01-01 | KH30: 2307-01-01 | KI30: 2308-01-01 | KJ30: 2309-01-01 | KK30: 2310-01-01 | KL30: 2311-01-01 | KM30: 2312-01-01 | KN30: 2313-01-01 | KO30: 2314-01-01 | KP30: 2315-01-01 | KQ30: 2316-01-01 | KR30: 2317-01-01 | KS30: 2318-01-01 | KT30: 2319-01-01 | KU30: 2320-01-01 | KV30: 2321-01-01 | KW30: 2322-01-01 | KX30: 2323-01-01 | KY30: 2324-01-01 | KZ30: 2325-01-01 | LA30: 2326-01-01 | LB30: 2327-01-01 | LC30: 2328-01-01 | LD30: 2329-01-01 | LE30: 2330-01-01 | LF30: 2331-01-01 | LG30: 2332-01-01 | LH30: 2333-01-01 | LI30: 2334-01-01 | LJ30: 2335-01-01 | LK30: 2336-01-01 | LL30: 2337-01-01 | LM30: 2338-01-01 | LN30: 2339-01-01 | LO30: 2340-01-01 | LP30: 2341-01-01 | LQ30: 2342-01-01 | LR30: 2343-01-01 | LS30: 2344-01-01 | LT30: =LT$26 -> 2345-01-01 | LU30: 2346-01-01 | LV30: 2347-01-01 | LW30: 2348-01-01 | LX30: 2349-01-01 | LY30: 2350-01-01 | LZ30: 2351-01-01 | MA30: 2352-01-01 | MB30: 2353-01-01 | MC30: 2354-01-01 | MD30: 2355-01-01 | ME30: 2356-01-01 | MF30: 2357-01-01 | MG30: 2358-01-01 | MH30: 2359-01-01 | MI30: 2360-01-01 | MJ30: 2361-01-01 | MK30: 2362-01-01 | ML30: 2363-01-01 | MM30: 2364-01-01 | MN30: 2365-01-01 | MO30: 2366-01-01 | MP30: 2367-01-01 | MQ30: 2368-01-01 | MR30: 2369-01-01 | MS30: 2370-01-01 | MT30: 2371-01-01 | MU30: 2372-01-01 | MV30: 2373-01-01 | MW30: 2374-01-01 | MX30: 2375-01-01 | MY30: 2376-01-01 | MZ30: 2377-01-01 | NA30: 2378-01-01 | NB30: 2379-01-01 | NC30: 2380-01-01 | ND30: 2381-01-01 | NE30: 2382-01-01 | NF30: 2383-01-01 | NG30: 2384-01-01 | NH30: 2385-01-01 | NI30: 2386-01-01 | NJ30: 2387-01-01 | NK30: 2388-01-01 | NL30: 2389-01-01 | NM30: 2390-01-01 | NN30: 2391-01-01 | NO30: 2392-01-01 | NP30: 2393-01-01 | NQ30: 2394-01-01 | NR30: 2395-01-01 | NS30: 2396-01-01 | NT30: 2397-01-01 | NU30: 2398-01-01 | NV30: 2399-01-01 | NW30: 2400-01-01 | NX30: 2401-01-01 | NY30: 2402-01-01 | NZ30: 2403-01-01 | OA30: 2404-01-01 | OB30: 2405-01-01 | OC30: 2406-01-01 | OD30: 2407-01-01 | OE30: 2408-01-01 | OF30: =OF$26 -> 2409-01-01 | OG30: 2410-01-01 | OH30: 2411-01-01 | OI30: 2412-01-01 | OJ30: 2413-01-01 | OK30: 2414-01-01 | OL30: 2415-01-01 | OM30: 2416-01-01 | ON30: 2417-01-01 | OO30: 2418-01-01 | OP30: 2419-01-01 | OQ30: 2420-01-01 | OR30: 2421-01-01 | OS30: 2422-01-01 | OT30: 2423-01-01 | OU30: 2424-01-01 | OV30: 2425-01-01 | OW30: 2426-01-01 | OX30: 2427-01-01 | OY30: 2428-01-01 | OZ30: 2429-01-01 | PA30: 2430-01-01 | PB30: 2431-01-01 | PC30: 2432-01-01 | PD30: 2433-01-01 | PE30: 2434-01-01 | PF30: 2435-01-01 | PG30: 2436-01-01 | PH30: 2437-01-01 | PI30: 2438-01-01 | PJ30: 2439-01-01 | PK30: 2440-01-01 | PL30: 2441-01-01 | PM30: 2442-01-01 | PN30: 2443-01-01 | PO30: 2444-01-01 | PP30: 2445-01-01 | PQ30: 2446-01-01 | PR30: 2447-01-01 | PS30: 2448-01-01 | PT30: 2449-01-01 | PU30: 2450-01-01 | PV30: 2451-01-01 | PW30: 2452-01-01 | PX30: 2453-01-01 | PY30: 2454-01-01 | PZ30: 2455-01-01 | QA30: 2456-01-01 | QB30: 2457-01-01 | QC30: 2458-01-01 | QD30: 2459-01-01 | QE30: 2460-01-01 | QF30: 2461-01-01 | QG30: 2462-01-01 | QH30: 2463-01-01 | QI30: 2464-01-01 | QJ30: 2465-01-01 | QK30: 2466-01-01 | QL30: 2467-01-01 | QM30: 2468-01-01 | QN30: 2469-01-01 | QO30: 2470-01-01 | QP30: 2471-01-01 | QQ30: 2472-01-01 | QR30: =QR$26 -> 2473-01-01 | QS30: 2474-01-01 | QT30: 2475-01-01 | QU30: 2476-01-01 | QV30: 2477-01-01 | QW30: 2478-01-01 | QX30: 2479-01-01 | QY30: 2480-01-01 | QZ30: 2481-01-01 | RA30: 2482-01-01 | RB30: 2483-01-01 | RC30: 2484-01-01 | RD30: 2485-01-01 | RE30: 2486-01-01 | RF30: 2487-01-01 | RG30: 2488-01-01 | RH30: 2489-01-01 | RI30: 2490-01-01 | RJ30: 2491-01-01 | RK30: 2492-01-01 | RL30: 2493-01-01 | RM30: 2494-01-01 | RN30: 2495-01-01 | RO30: 2496-01-01 | RP30: 2497-01-01 | RQ30: 2498-01-01 | RR30: 2499-01-01 | RS30: 2500-01-01 | RT30: 2501-01-01 | RU30: 2502-01-01 | RV30: 2503-01-01 | RW30: 2504-01-01 | RX30: 2505-01-01 | RY30: 2506-01-01 | RZ30: 2507-01-01 | SA30: 2508-01-01 | SB30: 2509-01-01 | SC30: 2510-01-01 | SD30: 2511-01-01 | SE30: 2512-01-01 | SF30: 2513-01-01 | SG30: 2514-01-01 | SH30: 2515-01-01 | SI30: 2516-01-01 | SJ30: 2517-01-01 | SK30: 2518-01-01 | SL30: 2519-01-01 | SM30: 2520-01-01 | SN30: 2521-01-01 | SO30: 2522-01-01 | SP30: 2523-01-01 | SQ30: 2524-01-01 | SR30: 2525-01-01 | SS30: 2526-01-01 | ST30: 2527-01-01 | SU30: 2528-01-01 | SV30: 2529-01-01 | SW30: 2530-01-01 | SX30: 2531-01-01 | SY30: 2532-01-01 | SZ30: 2533-01-01 | TA30: 2534-01-01 | TB30: 2535-01-01 | TC30: 2536-01-01 | TD30: =TD$26 -> 2537-01-01 | TE30: 2538-01-01 | TF30: 2539-01-01 | TG30: 2540-01-01 | TH30: 2541-01-01 | TI30: 2542-01-01 | TJ30: 2543-01-01 | TK30: 2544-01-01 | TL30: 2545-01-01 | TM30: 2546-01-01 | TN30: 2547-01-01 | TO30: 2548-01-01 | TP30: 2549-01-01 | TQ30: 2550-01-01 | TR30: 2551-01-01 | TS30: 2552-01-01 | TT30: 2553-01-01 | TU30: 2554-01-01 | TV30: 2555-01-01 | TW30: 2556-01-01 | TX30: 2557-01-01 | TY30: 2558-01-01 | TZ30: 2559-01-01 | UA30: 2560-01-01 | UB30: 2561-01-01 | UC30: 2562-01-01 | UD30: 2563-01-01 | UE30: 2564-01-01 | UF30: 2565-01-01 | UG30: 2566-01-01 | UH30: 2567-01-01 | UI30: 2568-01-01 | UJ30: 2569-01-01 | UK30: 2570-01-01 | UL30: 2571-01-01 | UM30: 2572-01-01 | UN30: 2573-01-01 | UO30: 2574-01-01 | UP30: 2575-01-01 | UQ30: 2576-01-01 | UR30: 2577-01-01 | US30: 2578-01-01 | UT30: 2579-01-01 | UU30: 2580-01-01 | UV30: 2581-01-01 | UW30: 2582-01-01 | UX30: 2583-01-01 | UY30: 2584-01-01 | UZ30: 2585-01-01 | VA30: 2586-01-01 | VB30: 2587-01-01 | VC30: 2588-01-01 | VD30: 2589-01-01 | VE30: 2590-01-01 | VF30: 2591-01-01 | VG30: 2592-01-01 | VH30: 2593-01-01 | VI30: 2594-01-01 | VJ30: 2595-01-01 | VK30: 2596-01-01 | VL30: 2597-01-01 | VM30: 2598-01-01 | VN30: 2599-01-01 | VO30: 2600-01-01 | VP30: =VP$26 -> 2601-01-01 | VQ30: 2602-01-01 | VR30: 2603-01-01 | VS30: 2604-01-01 | VT30: 2605-01-01 | VU30: 2606-01-01 | VV30: 2607-01-01 | VW30: 2608-01-01 | VX30: 2609-01-01 | VY30: 2610-01-01 | VZ30: 2611-01-01 | WA30: 2612-01-01 | WB30: 2613-01-01 | WC30: 2614-01-01 | WD30: 2615-01-01 | WE30: 2616-01-01 | WF30: 2617-01-01 | WG30: 2618-01-01 | WH30: 2619-01-01 | WI30: 2620-01-01 | WJ30: 2621-01-01 | WK30: 2622-01-01 | WL30: 2623-01-01 | WM30: 2624-01-01 | WN30: 2625-01-01 | WO30: 2626-01-01 | WP30: 2627-01-01 | WQ30: 2628-01-01 | WR30: 2629-01-01 | WS30: 2630-01-01 | WT30: 2631-01-01 | WU30: 2632-01-01 | WV30: 2633-01-01 | WW30: 2634-01-01 | WX30: 2635-01-01 | WY30: 2636-01-01 | WZ30: 2637-01-01 | XA30: 2638-01-01 | XB30: 2639-01-01 | XC30: 2640-01-01 | XD30: 2641-01-01 | XE30: 2642-01-01 | XF30: 2643-01-01 | XG30: 2644-01-01 | XH30: 2645-01-01 | XI30: 2646-01-01 | XJ30: 2647-01-01 | XK30: 2648-01-01 | XL30: 2649-01-01 | XM30: 2650-01-01 | XN30: 2651-01-01 | XO30: 2652-01-01 | XP30: 2653-01-01 | XQ30: 2654-01-01 | XR30: 2655-01-01 | XS30: 2656-01-01 | XT30: 2657-01-01 | XU30: 2658-01-01 | XV30: 2659-01-01 | XW30: 2660-01-01 | XX30: 2661-01-01 | XY30: 2662-01-01 | XZ30: 2663-01-01 | YA30: 2664-01-01 | YB30: =YB$26 -> 2665-01-01 | YC30: 2666-01-01 | YD30: 2667-01-01 | YE30: 2668-01-01 | YF30: 2669-01-01 | YG30: 2670-01-01 | YH30: 2671-01-01 | YI30: 2672-01-01 | YJ30: 2673-01-01 | YK30: 2674-01-01 | YL30: 2675-01-01 | YM30: 2676-01-01 | YN30: 2677-01-01 | YO30: 2678-01-01 | YP30: 2679-01-01 | YQ30: 2680-01-01 | YR30: 2681-01-01 | YS30: 2682-01-01 | YT30: 2683-01-01 | YU30: 2684-01-01 | YV30: 2685-01-01 | YW30: 2686-01-01 | YX30: 2687-01-01 | YY30: 2688-01-01 | YZ30: 2689-01-01 | ZA30: 2690-01-01 | ZB30: 2691-01-01 | ZC30: 2692-01-01 | ZD30: 2693-01-01 | ZE30: 2694-01-01 | ZF30: 2695-01-01 | ZG30: 2696-01-01 | ZH30: 2697-01-01 | ZI30: 2698-01-01 | ZJ30: 2699-01-01 | ZK30: 2700-01-01 | ZL30: 2701-01-01 | ZM30: 2702-01-01 | ZN30: 2703-01-01 | ZO30: 2704-01-01 | ZP30: 2705-01-01 | ZQ30: 2706-01-01 | ZR30: 2707-01-01 | ZS30: 2708-01-01 | ZT30: 2709-01-01 | ZU30: 2710-01-01 | ZV30: 2711-01-01 | ZW30: 2712-01-01 | ZX30: 2713-01-01 | ZY30: 2714-01-01 | ZZ30: 2715-01-01 | AAA30: 2716-01-01 | AAB30: 2717-01-01 | AAC30: 2718-01-01 | AAD30: 2719-01-01 | AAE30: 2720-01-01 | AAF30: 2721-01-01 | AAG30: 2722-01-01 | AAH30: 2723-01-01 | AAI30: 2724-01-01 | AAJ30: 2725-01-01 | AAK30: 2726-01-01 | AAL30: 2727-01-01 | AAM30: 2728-01-01 | AAN30: =AAN$26 -> 2729-01-01 | AAO30: 2730-01-01 | AAP30: 2731-01-01 | AAQ30: 2732-01-01 | AAR30: 2733-01-01 | AAS30: 2734-01-01 | AAT30: 2735-01-01 | AAU30: 2736-01-01 | AAV30: 2737-01-01 | AAW30: 2738-01-01 | AAX30: 2739-01-01 | AAY30: 2740-01-01 | AAZ30: 2741-01-01 | ABA30: 2742-01-01 | ABB30: 2743-01-01 | ABC30: 2744-01-01 | ABD30: 2745-01-01 | ABE30: 2746-01-01 | ABF30: 2747-01-01 | ABG30: 2748-01-01 | ABH30: 2749-01-01 | ABI30: 2750-01-01 | ABJ30: 2751-01-01 | ABK30: 2752-01-01 | ABL30: 2753-01-01 | ABM30: 2754-01-01 | ABN30: 2755-01-01 | ABO30: 2756-01-01 | ABP30: 2757-01-01 | ABQ30: 2758-01-01 | ABR30: 2759-01-01 | ABS30: 2760-01-01 | ABT30: 2761-01-01 | ABU30: 2762-01-01 | ABV30: 2763-01-01 | ABW30: 2764-01-01 | ABX30: 2765-01-01 | ABY30: 2766-01-01 | ABZ30: 2767-01-01 | ACA30: 2768-01-01 | ACB30: 2769-01-01 | ACC30: 2770-01-01 | ACD30: 2771-01-01 | ACE30: 2772-01-01 | ACF30: 2773-01-01 | ACG30: 2774-01-01 | ACH30: 2775-01-01 | ACI30: 2776-01-01 | ACJ30: 2777-01-01 | ACK30: 2778-01-01 | ACL30: 2779-01-01 | ACM30: 2780-01-01 | ACN30: 2781-01-01 | ACO30: 2782-01-01 | ACP30: 2783-01-01 | ACQ30: 2784-01-01 | ACR30: 2785-01-01 | ACS30: 2786-01-01 | ACT30: 2787-01-01 | ACU30: 2788-01-01 | ACV30: 2789-01-01 | ACW30: 2790-01-01 | ACX30: 2791-01-01 | ACY30: 2792-01-01 | ACZ30: =ACZ$26 -> 2793-01-01 | ADA30: 2794-01-01 | ADB30: 2795-01-01 | ADC30: 2796-01-01 | ADD30: 2797-01-01 | ADE30: 2798-01-01 | ADF30: 2799-01-01 | ADG30: 2800-01-01 | ADH30: 2801-01-01 | ADI30: 2802-01-01 | ADJ30: 2803-01-01 | ADK30: 2804-01-01 | ADL30: 2805-01-01 | ADM30: 2806-01-01 | ADN30: 2807-01-01 | ADO30: 2808-01-01 | ADP30: 2809-01-01 | ADQ30: 2810-01-01 | ADR30: 2811-01-01 | ADS30: 2812-01-01 | ADT30: 2813-01-01 | ADU30: 2814-01-01 | ADV30: 2815-01-01 | ADW30: 2816-01-01 | ADX30: 2817-01-01 | ADY30: 2818-01-01 | ADZ30: 2819-01-01 | AEA30: 2820-01-01 | AEB30: 2821-01-01 | AEC30: 2822-01-01 | AED30: 2823-01-01 | AEE30: 2824-01-01 | AEF30: 2825-01-01 | AEG30: 2826-01-01 | AEH30: 2827-01-01 | AEI30: 2828-01-01 | AEJ30: 2829-01-01 | AEK30: 2830-01-01 | AEL30: 2831-01-01 | AEM30: 2832-01-01 | AEN30: 2833-01-01 | AEO30: 2834-01-01 | AEP30: 2835-01-01 | AEQ30: 2836-01-01 | AER30: 2837-01-01 | AES30: 2838-01-01 | AET30: 2839-01-01 | AEU30: 2840-01-01 | AEV30: 2841-01-01 | AEW30: 2842-01-01 | AEX30: 2843-01-01 | AEY30: 2844-01-01 | AEZ30: 2845-01-01 | AFA30: 2846-01-01 | AFB30: 2847-01-01 | AFC30: 2848-01-01 | AFD30: 2849-01-01 | AFE30: 2850-01-01 | AFF30: 2851-01-01 | AFG30: 2852-01-01 | AFH30: 2853-01-01 | AFI30: 2854-01-01 | AFJ30: 2855-01-01 | AFK30: 2856-01-01 | AFL30: =AFL$26 -> 2857-01-01 | AFM30: 2858-01-01 | AFN30: 2859-01-01 | AFO30: 2860-01-01 | AFP30: 2861-01-01 | AFQ30: 2862-01-01 | AFR30: 2863-01-01 | AFS30: 2864-01-01 | AFT30: 2865-01-01 | AFU30: 2866-01-01 | AFV30: 2867-01-01 | AFW30: 2868-01-01 | AFX30: 2869-01-01 | AFY30: 2870-01-01 | AFZ30: 2871-01-01 | AGA30: 2872-01-01 | AGB30: 2873-01-01 | AGC30: 2874-01-01 | AGD30: 2875-01-01 | AGE30: 2876-01-01 | AGF30: 2877-01-01 | AGG30: 2878-01-01 | AGH30: 2879-01-01 | AGI30: 2880-01-01 | AGJ30: 2881-01-01 | AGK30: 2882-01-01 | AGL30: 2883-01-01 | AGM30: 2884-01-01 | AGN30: 2885-01-01 | AGO30: 2886-01-01 | AGP30: 2887-01-01 | AGQ30: 2888-01-01 | AGR30: 2889-01-01 | AGS30: 2890-01-01 | AGT30: 2891-01-01 | AGU30: 2892-01-01 | AGV30: 2893-01-01 | AGW30: 2894-01-01 | AGX30: 2895-01-01 | AGY30: 2896-01-01 | AGZ30: 2897-01-01 | AHA30: 2898-01-01 | AHB30: 2899-01-01 | AHC30: 2900-01-01 | AHD30: 2901-01-01 | AHE30: 2902-01-01 | AHF30: 2903-01-01 | AHG30: 2904-01-01 | AHH30: 2905-01-01 | AHI30: 2906-01-01 | AHJ30: 2907-01-01 | AHK30: 2908-01-01 | AHL30: 2909-01-01 | AHM30: 2910-01-01 | AHN30: 2911-01-01 | AHO30: 2912-01-01 | AHP30: 2913-01-01 | AHQ30: 2914-01-01 | AHR30: 2915-01-01 | AHS30: 2916-01-01 | AHT30: 2917-01-01 | AHU30: 2918-01-01 | AHV30: 2919-01-01 | AHW30: 2920-01-01 | AHX30: =AHX$26 -> 2921-01-01 | AHY30: 2922-01-01 | AHZ30: 2923-01-01 | AIA30: 2924-01-01 | AIB30: 2925-01-01 | AIC30: 2926-01-01 | AID30: 2927-01-01 | AIE30: 2928-01-01 | AIF30: 2929-01-01 | AIG30: 2930-01-01 | AIH30: 2931-01-01 | AII30: 2932-01-01 | AIJ30: 2933-01-01 | AIK30: 2934-01-01 | AIL30: 2935-01-01 | AIM30: 2936-01-01 | AIN30: 2937-01-01 | AIO30: 2938-01-01 | AIP30: 2939-01-01 | AIQ30: 2940-01-01 | AIR30: 2941-01-01 | AIS30: 2942-01-01 | AIT30: 2943-01-01 | AIU30: 2944-01-01 | AIV30: 2945-01-01 | AIW30: 2946-01-01 | AIX30: 2947-01-01 | AIY30: 2948-01-01 | AIZ30: 2949-01-01 | AJA30: 2950-01-01 | AJB30: 2951-01-01 | AJC30: 2952-01-01 | AJD30: 2953-01-01 | AJE30: 2954-01-01 | AJF30: 2955-01-01 | AJG30: 2956-01-01 | AJH30: 2957-01-01 | AJI30: 2958-01-01 | AJJ30: 2959-01-01 | AJK30: 2960-01-01 | AJL30: 2961-01-01 | AJM30: 2962-01-01 | AJN30: 2963-01-01 | AJO30: 2964-01-01 | AJP30: 2965-01-01 | AJQ30: 2966-01-01 | AJR30: 2967-01-01 | AJS30: 2968-01-01 | AJT30: 2969-01-01 | AJU30: 2970-01-01 | AJV30: 2971-01-01 | AJW30: 2972-01-01 | AJX30: 2973-01-01 | AJY30: 2974-01-01 | AJZ30: 2975-01-01 | AKA30: 2976-01-01 | AKB30: 2977-01-01 | AKC30: 2978-01-01 | AKD30: 2979-01-01 | AKE30: 2980-01-01 | AKF30: 2981-01-01 | AKG30: 2982-01-01 | AKH30: 2983-01-01
D31: Model period ending | F31: date | K31: =DATE( YEAR( K30 ), MONTH( K30 ) + $E29, DAY( K30 ) - 1 ) -> 2024-12-31 | L31: =DATE( YEAR( L30 ), MONTH( L30 ) + $E29, DAY( L30 ) - 1 ) -> 2025-12-31 | M31: 2026-12-31 | N31: 2027-12-31 | O31: 2028-12-31 | P31: 2029-12-31 | Q31: 2030-12-31 | R31: 2031-12-31 | S31: 2032-12-31 | T31: 2033-12-31 | U31: 2034-12-31 | V31: 2035-12-31 | W31: 2036-12-31 | X31: 2037-12-31 | Y31: 2038-12-31 | Z31: 2039-12-31 | AA31: 2040-12-31 | AB31: 2041-12-31 | AC31: 2042-12-31 | AD31: 2043-12-31 | AE31: 2044-12-31 | AF31: 2045-12-31 | AG31: 2046-12-31 | AH31: 2047-12-31 | AI31: 2048-12-31 | AJ31: 2049-12-31 | AK31: 2050-12-31 | AL31: 2051-12-31 | AM31: 2052-12-31 | AN31: 2053-12-31 | AO31: 2054-12-31 | AP31: 2055-12-31 | AQ31: 2056-12-31 | AR31: 2057-12-31 | AS31: 2058-12-31 | AT31: 2059-12-31 | AU31: 2060-12-31 | AV31: 2061-12-31 | AW31: 2062-12-31 | AX31: 2063-12-31 | AY31: 2064-12-31 | AZ31: 2065-12-31 | BA31: 2066-12-31 | BB31: 2067-12-31 | BC31: 2068-12-31 | BD31: 2069-12-31 | BE31: 2070-12-31 | BF31: 2071-12-31 | BG31: 2072-12-31 | BH31: 2073-12-31 | BI31: 2074-12-31 | BJ31: 2075-12-31 | BK31: 2076-12-31 | BL31: 2077-12-31 | BM31: 2078-12-31 | BN31: 2079-12-31 | BO31: 2080-12-31 | BP31: 2081-12-31 | BQ31: 2082-12-31 | BR31: 2083-12-31 | BS31: 2084-12-31 | BT31: 2085-12-31 | BU31: 2086-12-31 | BV31: 2087-12-31 | BW31: 2088-12-31 | BX31: =DATE( YEAR( BX30 ), MONTH( BX30 ) + $E29, DAY( BX30 ) - 1 ) -> 2089-12-31 | BY31: 2090-12-31 | BZ31: 2091-12-31 | CA31: 2092-12-31 | CB31: 2093-12-31 | CC31: 2094-12-31 | CD31: 2095-12-31 | CE31: 2096-12-31 | CF31: 2097-12-31 | CG31: 2098-12-31 | CH31: 2099-12-31 | CI31: 2100-12-31 | CJ31: 2101-12-31 | CK31: 2102-12-31 | CL31: 2103-12-31 | CM31: 2104-12-31 | CN31: 2105-12-31 | CO31: 2106-12-31 | CP31: 2107-12-31 | CQ31: 2108-12-31 | CR31: 2109-12-31 | CS31: 2110-12-31 | CT31: 2111-12-31 | CU31: 2112-12-31 | CV31: 2113-12-31 | CW31: 2114-12-31 | CX31: 2115-12-31 | CY31: 2116-12-31 | CZ31: 2117-12-31 | DA31: 2118-12-31 | DB31: 2119-12-31 | DC31: 2120-12-31 | DD31: 2121-12-31 | DE31: 2122-12-31 | DF31: 2123-12-31 | DG31: 2124-12-31 | DH31: 2125-12-31 | DI31: 2126-12-31 | DJ31: 2127-12-31 | DK31: 2128-12-31 | DL31: 2129-12-31 | DM31: 2130-12-31 | DN31: 2131-12-31 | DO31: 2132-12-31 | DP31: 2133-12-31 | DQ31: 2134-12-31 | DR31: 2135-12-31 | DS31: 2136-12-31 | DT31: 2137-12-31 | DU31: 2138-12-31 | DV31: 2139-12-31 | DW31: 2140-12-31 | DX31: 2141-12-31 | DY31: 2142-12-31 | DZ31: 2143-12-31 | EA31: 2144-12-31 | EB31: 2145-12-31 | EC31: 2146-12-31 | ED31: 2147-12-31 | EE31: 2148-12-31 | EF31: 2149-12-31 | EG31: 2150-12-31 | EH31: 2151-12-31 | EI31: 2152-12-31 | EJ31: =DATE( YEAR( EJ30 ), MONTH( EJ30 ) + $E29, DAY( EJ30 ) - 1 ) -> 2153-12-31 | EK31: 2154-12-31 | EL31: 2155-12-31 | EM31: 2156-12-31 | EN31: 2157-12-31 | EO31: 2158-12-31 | EP31: 2159-12-31 | EQ31: 2160-12-31 | ER31: 2161-12-31 | ES31: 2162-12-31 | ET31: 2163-12-31 | EU31: 2164-12-31 | EV31: 2165-12-31 | EW31: 2166-12-31 | EX31: 2167-12-31 | EY31: 2168-12-31 | EZ31: 2169-12-31 | FA31: 2170-12-31 | FB31: 2171-12-31 | FC31: 2172-12-31 | FD31: 2173-12-31 | FE31: 2174-12-31 | FF31: 2175-12-31 | FG31: 2176-12-31 | FH31: 2177-12-31 | FI31: 2178-12-31 | FJ31: 2179-12-31 | FK31: 2180-12-31 | FL31: 2181-12-31 | FM31: 2182-12-31 | FN31: 2183-12-31 | FO31: 2184-12-31 | FP31: 2185-12-31 | FQ31: 2186-12-31 | FR31: 2187-12-31 | FS31: 2188-12-31 | FT31: 2189-12-31 | FU31: 2190-12-31 | FV31: 2191-12-31 | FW31: 2192-12-31 | FX31: 2193-12-31 | FY31: 2194-12-31 | FZ31: 2195-12-31 | GA31: 2196-12-31 | GB31: 2197-12-31 | GC31: 2198-12-31 | GD31: 2199-12-31 | GE31: 2200-12-31 | GF31: 2201-12-31 | GG31: 2202-12-31 | GH31: 2203-12-31 | GI31: 2204-12-31 | GJ31: 2205-12-31 | GK31: 2206-12-31 | GL31: 2207-12-31 | GM31: 2208-12-31 | GN31: 2209-12-31 | GO31: 2210-12-31 | GP31: 2211-12-31 | GQ31: 2212-12-31 | GR31: 2213-12-31 | GS31: 2214-12-31 | GT31: 2215-12-31 | GU31: 2216-12-31 | GV31: =DATE( YEAR( GV30 ), MONTH( GV30 ) + $E29, DAY( GV30 ) - 1 ) -> 2217-12-31 | GW31: 2218-12-31 | GX31: 2219-12-31 | GY31: 2220-12-31 | GZ31: 2221-12-31 | HA31: 2222-12-31 | HB31: 2223-12-31 | HC31: 2224-12-31 | HD31: 2225-12-31 | HE31: 2226-12-31 | HF31: 2227-12-31 | HG31: 2228-12-31 | HH31: 2229-12-31 | HI31: 2230-12-31 | HJ31: 2231-12-31 | HK31: 2232-12-31 | HL31: 2233-12-31 | HM31: 2234-12-31 | HN31: 2235-12-31 | HO31: 2236-12-31 | HP31: 2237-12-31 | HQ31: 2238-12-31 | HR31: 2239-12-31 | HS31: 2240-12-31 | HT31: 2241-12-31 | HU31: 2242-12-31 | HV31: 2243-12-31 | HW31: 2244-12-31 | HX31: 2245-12-31 | HY31: 2246-12-31 | HZ31: 2247-12-31 | IA31: 2248-12-31 | IB31: 2249-12-31 | IC31: 2250-12-31 | ID31: 2251-12-31 | IE31: 2252-12-31 | IF31: 2253-12-31 | IG31: 2254-12-31 | IH31: 2255-12-31 | II31: 2256-12-31 | IJ31: 2257-12-31 | IK31: 2258-12-31 | IL31: 2259-12-31 | IM31: 2260-12-31 | IN31: 2261-12-31 | IO31: 2262-12-31 | IP31: 2263-12-31 | IQ31: 2264-12-31 | IR31: 2265-12-31 | IS31: 2266-12-31 | IT31: 2267-12-31 | IU31: 2268-12-31 | IV31: 2269-12-31 | IW31: 2270-12-31 | IX31: 2271-12-31 | IY31: 2272-12-31 | IZ31: 2273-12-31 | JA31: 2274-12-31 | JB31: 2275-12-31 | JC31: 2276-12-31 | JD31: 2277-12-31 | JE31: 2278-12-31 | JF31: 2279-12-31 | JG31: 2280-12-31 | JH31: =DATE( YEAR( JH30 ), MONTH( JH30 ) + $E29, DAY( JH30 ) - 1 ) -> 2281-12-31 | JI31: 2282-12-31 | JJ31: 2283-12-31 | JK31: 2284-12-31 | JL31: 2285-12-31 | JM31: 2286-12-31 | JN31: 2287-12-31 | JO31: 2288-12-31 | JP31: 2289-12-31 | JQ31: 2290-12-31 | JR31: 2291-12-31 | JS31: 2292-12-31 | JT31: 2293-12-31 | JU31: 2294-12-31 | JV31: 2295-12-31 | JW31: 2296-12-31 | JX31: 2297-12-31 | JY31: 2298-12-31 | JZ31: 2299-12-31 | KA31: 2300-12-31 | KB31: 2301-12-31 | KC31: 2302-12-31 | KD31: 2303-12-31 | KE31: 2304-12-31 | KF31: 2305-12-31 | KG31: 2306-12-31 | KH31: 2307-12-31 | KI31: 2308-12-31 | KJ31: 2309-12-31 | KK31: 2310-12-31 | KL31: 2311-12-31 | KM31: 2312-12-31 | KN31: 2313-12-31 | KO31: 2314-12-31 | KP31: 2315-12-31 | KQ31: 2316-12-31 | KR31: 2317-12-31 | KS31: 2318-12-31 | KT31: 2319-12-31 | KU31: 2320-12-31 | KV31: 2321-12-31 | KW31: 2322-12-31 | KX31: 2323-12-31 | KY31: 2324-12-31 | KZ31: 2325-12-31 | LA31: 2326-12-31 | LB31: 2327-12-31 | LC31: 2328-12-31 | LD31: 2329-12-31 | LE31: 2330-12-31 | LF31: 2331-12-31 | LG31: 2332-12-31 | LH31: 2333-12-31 | LI31: 2334-12-31 | LJ31: 2335-12-31 | LK31: 2336-12-31 | LL31: 2337-12-31 | LM31: 2338-12-31 | LN31: 2339-12-31 | LO31: 2340-12-31 | LP31: 2341-12-31 | LQ31: 2342-12-31 | LR31: 2343-12-31 | LS31: 2344-12-31 | LT31: =DATE( YEAR( LT30 ), MONTH( LT30 ) + $E29, DAY( LT30 ) - 1 ) -> 2345-12-31 | LU31: 2346-12-31 | LV31: 2347-12-31 | LW31: 2348-12-31 | LX31: 2349-12-31 | LY31: 2350-12-31 | LZ31: 2351-12-31 | MA31: 2352-12-31 | MB31: 2353-12-31 | MC31: 2354-12-31 | MD31: 2355-12-31 | ME31: 2356-12-31 | MF31: 2357-12-31 | MG31: 2358-12-31 | MH31: 2359-12-31 | MI31: 2360-12-31 | MJ31: 2361-12-31 | MK31: 2362-12-31 | ML31: 2363-12-31 | MM31: 2364-12-31 | MN31: 2365-12-31 | MO31: 2366-12-31 | MP31: 2367-12-31 | MQ31: 2368-12-31 | MR31: 2369-12-31 | MS31: 2370-12-31 | MT31: 2371-12-31 | MU31: 2372-12-31 | MV31: 2373-12-31 | MW31: 2374-12-31 | MX31: 2375-12-31 | MY31: 2376-12-31 | MZ31: 2377-12-31 | NA31: 2378-12-31 | NB31: 2379-12-31 | NC31: 2380-12-31 | ND31: 2381-12-31 | NE31: 2382-12-31 | NF31: 2383-12-31 | NG31: 2384-12-31 | NH31: 2385-12-31 | NI31: 2386-12-31 | NJ31: 2387-12-31 | NK31: 2388-12-31 | NL31: 2389-12-31 | NM31: 2390-12-31 | NN31: 2391-12-31 | NO31: 2392-12-31 | NP31: 2393-12-31 | NQ31: 2394-12-31 | NR31: 2395-12-31 | NS31: 2396-12-31 | NT31: 2397-12-31 | NU31: 2398-12-31 | NV31: 2399-12-31 | NW31: 2400-12-31 | NX31: 2401-12-31 | NY31: 2402-12-31 | NZ31: 2403-12-31 | OA31: 2404-12-31 | OB31: 2405-12-31 | OC31: 2406-12-31 | OD31: 2407-12-31 | OE31: 2408-12-31 | OF31: =DATE( YEAR( OF30 ), MONTH( OF30 ) + $E29, DAY( OF30 ) - 1 ) -> 2409-12-31 | OG31: 2410-12-31 | OH31: 2411-12-31 | OI31: 2412-12-31 | OJ31: 2413-12-31 | OK31: 2414-12-31 | OL31: 2415-12-31 | OM31: 2416-12-31 | ON31: 2417-12-31 | OO31: 2418-12-31 | OP31: 2419-12-31 | OQ31: 2420-12-31 | OR31: 2421-12-31 | OS31: 2422-12-31 | OT31: 2423-12-31 | OU31: 2424-12-31 | OV31: 2425-12-31 | OW31: 2426-12-31 | OX31: 2427-12-31 | OY31: 2428-12-31 | OZ31: 2429-12-31 | PA31: 2430-12-31 | PB31: 2431-12-31 | PC31: 2432-12-31 | PD31: 2433-12-31 | PE31: 2434-12-31 | PF31: 2435-12-31 | PG31: 2436-12-31 | PH31: 2437-12-31 | PI31: 2438-12-31 | PJ31: 2439-12-31 | PK31: 2440-12-31 | PL31: 2441-12-31 | PM31: 2442-12-31 | PN31: 2443-12-31 | PO31: 2444-12-31 | PP31: 2445-12-31 | PQ31: 2446-12-31 | PR31: 2447-12-31 | PS31: 2448-12-31 | PT31: 2449-12-31 | PU31: 2450-12-31 | PV31: 2451-12-31 | PW31: 2452-12-31 | PX31: 2453-12-31 | PY31: 2454-12-31 | PZ31: 2455-12-31 | QA31: 2456-12-31 | QB31: 2457-12-31 | QC31: 2458-12-31 | QD31: 2459-12-31 | QE31: 2460-12-31 | QF31: 2461-12-31 | QG31: 2462-12-31 | QH31: 2463-12-31 | QI31: 2464-12-31 | QJ31: 2465-12-31 | QK31: 2466-12-31 | QL31: 2467-12-31 | QM31: 2468-12-31 | QN31: 2469-12-31 | QO31: 2470-12-31 | QP31: 2471-12-31 | QQ31: 2472-12-31 | QR31: =DATE( YEAR( QR30 ), MONTH( QR30 ) + $E29, DAY( QR30 ) - 1 ) -> 2473-12-31 | QS31: 2474-12-31 | QT31: 2475-12-31 | QU31: 2476-12-31 | QV31: 2477-12-31 | QW31: 2478-12-31 | QX31: 2479-12-31 | QY31: 2480-12-31 | QZ31: 2481-12-31 | RA31: 2482-12-31 | RB31: 2483-12-31 | RC31: 2484-12-31 | RD31: 2485-12-31 | RE31: 2486-12-31 | RF31: 2487-12-31 | RG31: 2488-12-31 | RH31: 2489-12-31 | RI31: 2490-12-31 | RJ31: 2491-12-31 | RK31: 2492-12-31 | RL31: 2493-12-31 | RM31: 2494-12-31 | RN31: 2495-12-31 | RO31: 2496-12-31 | RP31: 2497-12-31 | RQ31: 2498-12-31 | RR31: 2499-12-31 | RS31: 2500-12-31 | RT31: 2501-12-31 | RU31: 2502-12-31 | RV31: 2503-12-31 | RW31: 2504-12-31 | RX31: 2505-12-31 | RY31: 2506-12-31 | RZ31: 2507-12-31 | SA31: 2508-12-31 | SB31: 2509-12-31 | SC31: 2510-12-31 | SD31: 2511-12-31 | SE31: 2512-12-31 | SF31: 2513-12-31 | SG31: 2514-12-31 | SH31: 2515-12-31 | SI31: 2516-12-31 | SJ31: 2517-12-31 | SK31: 2518-12-31 | SL31: 2519-12-31 | SM31: 2520-12-31 | SN31: 2521-12-31 | SO31: 2522-12-31 | SP31: 2523-12-31 | SQ31: 2524-12-31 | SR31: 2525-12-31 | SS31: 2526-12-31 | ST31: 2527-12-31 | SU31: 2528-12-31 | SV31: 2529-12-31 | SW31: 2530-12-31 | SX31: 2531-12-31 | SY31: 2532-12-31 | SZ31: 2533-12-31 | TA31: 2534-12-31 | TB31: 2535-12-31 | TC31: 2536-12-31 | TD31: =DATE( YEAR( TD30 ), MONTH( TD30 ) + $E29, DAY( TD30 ) - 1 ) -> 2537-12-31 | TE31: 2538-12-31 | TF31: 2539-12-31 | TG31: 2540-12-31 | TH31: 2541-12-31 | TI31: 2542-12-31 | TJ31: 2543-12-31 | TK31: 2544-12-31 | TL31: 2545-12-31 | TM31: 2546-12-31 | TN31: 2547-12-31 | TO31: 2548-12-31 | TP31: 2549-12-31 | TQ31: 2550-12-31 | TR31: 2551-12-31 | TS31: 2552-12-31 | TT31: 2553-12-31 | TU31: 2554-12-31 | TV31: 2555-12-31 | TW31: 2556-12-31 | TX31: 2557-12-31 | TY31: 2558-12-31 | TZ31: 2559-12-31 | UA31: 2560-12-31 | UB31: 2561-12-31 | UC31: 2562-12-31 | UD31: 2563-12-31 | UE31: 2564-12-31 | UF31: 2565-12-31 | UG31: 2566-12-31 | UH31: 2567-12-31 | UI31: 2568-12-31 | UJ31: 2569-12-31 | UK31: 2570-12-31 | UL31: 2571-12-31 | UM31: 2572-12-31 | UN31: 2573-12-31 | UO31: 2574-12-31 | UP31: 2575-12-31 | UQ31: 2576-12-31 | UR31: 2577-12-31 | US31: 2578-12-31 | UT31: 2579-12-31 | UU31: 2580-12-31 | UV31: 2581-12-31 | UW31: 2582-12-31 | UX31: 2583-12-31 | UY31: 2584-12-31 | UZ31: 2585-12-31 | VA31: 2586-12-31 | VB31: 2587-12-31 | VC31: 2588-12-31 | VD31: 2589-12-31 | VE31: 2590-12-31 | VF31: 2591-12-31 | VG31: 2592-12-31 | VH31: 2593-12-31 | VI31: 2594-12-31 | VJ31: 2595-12-31 | VK31: 2596-12-31 | VL31: 2597-12-31 | VM31: 2598-12-31 | VN31: 2599-12-31 | VO31: 2600-12-31 | VP31: =DATE( YEAR( VP30 ), MONTH( VP30 ) + $E29, DAY( VP30 ) - 1 ) -> 2601-12-31 | VQ31: 2602-12-31 | VR31: 2603-12-31 | VS31: 2604-12-31 | VT31: 2605-12-31 | VU31: 2606-12-31 | VV31: 2607-12-31 | VW31: 2608-12-31 | VX31: 2609-12-31 | VY31: 2610-12-31 | VZ31: 2611-12-31 | WA31: 2612-12-31 | WB31: 2613-12-31 | WC31: 2614-12-31 | WD31: 2615-12-31 | WE31: 2616-12-31 | WF31: 2617-12-31 | WG31: 2618-12-31 | WH31: 2619-12-31 | WI31: 2620-12-31 | WJ31: 2621-12-31 | WK31: 2622-12-31 | WL31: 2623-12-31 | WM31: 2624-12-31 | WN31: 2625-12-31 | WO31: 2626-12-31 | WP31: 2627-12-31 | WQ31: 2628-12-31 | WR31: 2629-12-31 | WS31: 2630-12-31 | WT31: 2631-12-31 | WU31: 2632-12-31 | WV31: 2633-12-31 | WW31: 2634-12-31 | WX31: 2635-12-31 | WY31: 2636-12-31 | WZ31: 2637-12-31 | XA31: 2638-12-31 | XB31: 2639-12-31 | XC31: 2640-12-31 | XD31: 2641-12-31 | XE31: 2642-12-31 | XF31: 2643-12-31 | XG31: 2644-12-31 | XH31: 2645-12-31 | XI31: 2646-12-31 | XJ31: 2647-12-31 | XK31: 2648-12-31 | XL31: 2649-12-31 | XM31: 2650-12-31 | XN31: 2651-12-31 | XO31: 2652-12-31 | XP31: 2653-12-31 | XQ31: 2654-12-31 | XR31: 2655-12-31 | XS31: 2656-12-31 | XT31: 2657-12-31 | XU31: 2658-12-31 | XV31: 2659-12-31 | XW31: 2660-12-31 | XX31: 2661-12-31 | XY31: 2662-12-31 | XZ31: 2663-12-31 | YA31: 2664-12-31 | YB31: =DATE( YEAR( YB30 ), MONTH( YB30 ) + $E29, DAY( YB30 ) - 1 ) -> 2665-12-31 | YC31: 2666-12-31 | YD31: 2667-12-31 | YE31: 2668-12-31 | YF31: 2669-12-31 | YG31: 2670-12-31 | YH31: 2671-12-31 | YI31: 2672-12-31 | YJ31: 2673-12-31 | YK31: 2674-12-31 | YL31: 2675-12-31 | YM31: 2676-12-31 | YN31: 2677-12-31 | YO31: 2678-12-31 | YP31: 2679-12-31 | YQ31: 2680-12-31 | YR31: 2681-12-31 | YS31: 2682-12-31 | YT31: 2683-12-31 | YU31: 2684-12-31 | YV31: 2685-12-31 | YW31: 2686-12-31 | YX31: 2687-12-31 | YY31: 2688-12-31 | YZ31: 2689-12-31 | ZA31: 2690-12-31 | ZB31: 2691-12-31 | ZC31: 2692-12-31 | ZD31: 2693-12-31 | ZE31: 2694-12-31 | ZF31: 2695-12-31 | ZG31: 2696-12-31 | ZH31: 2697-12-31 | ZI31: 2698-12-31 | ZJ31: 2699-12-31 | ZK31: 2700-12-31 | ZL31: 2701-12-31 | ZM31: 2702-12-31 | ZN31: 2703-12-31 | ZO31: 2704-12-31 | ZP31: 2705-12-31 | ZQ31: 2706-12-31 | ZR31: 2707-12-31 | ZS31: 2708-12-31 | ZT31: 2709-12-31 | ZU31: 2710-12-31 | ZV31: 2711-12-31 | ZW31: 2712-12-31 | ZX31: 2713-12-31 | ZY31: 2714-12-31 | ZZ31: 2715-12-31 | AAA31: 2716-12-31 | AAB31: 2717-12-31 | AAC31: 2718-12-31 | AAD31: 2719-12-31 | AAE31: 2720-12-31 | AAF31: 2721-12-31 | AAG31: 2722-12-31 | AAH31: 2723-12-31 | AAI31: 2724-12-31 | AAJ31: 2725-12-31 | AAK31: 2726-12-31 | AAL31: 2727-12-31 | AAM31: 2728-12-31 | AAN31: =DATE( YEAR( AAN30 ), MONTH( AAN30 ) + $E29, DAY( AAN30 ) - 1 ) -> 2729-12-31 | AAO31: 2730-12-31 | AAP31: 2731-12-31 | AAQ31: 2732-12-31 | AAR31: 2733-12-31 | AAS31: 2734-12-31 | AAT31: 2735-12-31 | AAU31: 2736-12-31 | AAV31: 2737-12-31 | AAW31: 2738-12-31 | AAX31: 2739-12-31 | AAY31: 2740-12-31 | AAZ31: 2741-12-31 | ABA31: 2742-12-31 | ABB31: 2743-12-31 | ABC31: 2744-12-31 | ABD31: 2745-12-31 | ABE31: 2746-12-31 | ABF31: 2747-12-31 | ABG31: 2748-12-31 | ABH31: 2749-12-31 | ABI31: 2750-12-31 | ABJ31: 2751-12-31 | ABK31: 2752-12-31 | ABL31: 2753-12-31 | ABM31: 2754-12-31 | ABN31: 2755-12-31 | ABO31: 2756-12-31 | ABP31: 2757-12-31 | ABQ31: 2758-12-31 | ABR31: 2759-12-31 | ABS31: 2760-12-31 | ABT31: 2761-12-31 | ABU31: 2762-12-31 | ABV31: 2763-12-31 | ABW31: 2764-12-31 | ABX31: 2765-12-31 | ABY31: 2766-12-31 | ABZ31: 2767-12-31 | ACA31: 2768-12-31 | ACB31: 2769-12-31 | ACC31: 2770-12-31 | ACD31: 2771-12-31 | ACE31: 2772-12-31 | ACF31: 2773-12-31 | ACG31: 2774-12-31 | ACH31: 2775-12-31 | ACI31: 2776-12-31 | ACJ31: 2777-12-31 | ACK31: 2778-12-31 | ACL31: 2779-12-31 | ACM31: 2780-12-31 | ACN31: 2781-12-31 | ACO31: 2782-12-31 | ACP31: 2783-12-31 | ACQ31: 2784-12-31 | ACR31: 2785-12-31 | ACS31: 2786-12-31 | ACT31: 2787-12-31 | ACU31: 2788-12-31 | ACV31: 2789-12-31 | ACW31: 2790-12-31 | ACX31: 2791-12-31 | ACY31: 2792-12-31 | ACZ31: =DATE( YEAR( ACZ30 ), MONTH( ACZ30 ) + $E29, DAY( ACZ30 ) - 1 ) -> 2793-12-31 | ADA31: 2794-12-31 | ADB31: 2795-12-31 | ADC31: 2796-12-31 | ADD31: 2797-12-31 | ADE31: 2798-12-31 | ADF31: 2799-12-31 | ADG31: 2800-12-31 | ADH31: 2801-12-31 | ADI31: 2802-12-31 | ADJ31: 2803-12-31 | ADK31: 2804-12-31 | ADL31: 2805-12-31 | ADM31: 2806-12-31 | ADN31: 2807-12-31 | ADO31: 2808-12-31 | ADP31: 2809-12-31 | ADQ31: 2810-12-31 | ADR31: 2811-12-31 | ADS31: 2812-12-31 | ADT31: 2813-12-31 | ADU31: 2814-12-31 | ADV31: 2815-12-31 | ADW31: 2816-12-31 | ADX31: 2817-12-31 | ADY31: 2818-12-31 | ADZ31: 2819-12-31 | AEA31: 2820-12-31 | AEB31: 2821-12-31 | AEC31: 2822-12-31 | AED31: 2823-12-31 | AEE31: 2824-12-31 | AEF31: 2825-12-31 | AEG31: 2826-12-31 | AEH31: 2827-12-31 | AEI31: 2828-12-31 | AEJ31: 2829-12-31 | AEK31: 2830-12-31 | AEL31: 2831-12-31 | AEM31: 2832-12-31 | AEN31: 2833-12-31 | AEO31: 2834-12-31 | AEP31: 2835-12-31 | AEQ31: 2836-12-31 | AER31: 2837-12-31 | AES31: 2838-12-31 | AET31: 2839-12-31 | AEU31: 2840-12-31 | AEV31: 2841-12-31 | AEW31: 2842-12-31 | AEX31: 2843-12-31 | AEY31: 2844-12-31 | AEZ31: 2845-12-31 | AFA31: 2846-12-31 | AFB31: 2847-12-31 | AFC31: 2848-12-31 | AFD31: 2849-12-31 | AFE31: 2850-12-31 | AFF31: 2851-12-31 | AFG31: 2852-12-31 | AFH31: 2853-12-31 | AFI31: 2854-12-31 | AFJ31: 2855-12-31 | AFK31: 2856-12-31 | AFL31: =DATE( YEAR( AFL30 ), MONTH( AFL30 ) + $E29, DAY( AFL30 ) - 1 ) -> 2857-12-31 | AFM31: 2858-12-31 | AFN31: 2859-12-31 | AFO31: 2860-12-31 | AFP31: 2861-12-31 | AFQ31: 2862-12-31 | AFR31: 2863-12-31 | AFS31: 2864-12-31 | AFT31: 2865-12-31 | AFU31: 2866-12-31 | AFV31: 2867-12-31 | AFW31: 2868-12-31 | AFX31: 2869-12-31 | AFY31: 2870-12-31 | AFZ31: 2871-12-31 | AGA31: 2872-12-31 | AGB31: 2873-12-31 | AGC31: 2874-12-31 | AGD31: 2875-12-31 | AGE31: 2876-12-31 | AGF31: 2877-12-31 | AGG31: 2878-12-31 | AGH31: 2879-12-31 | AGI31: 2880-12-31 | AGJ31: 2881-12-31 | AGK31: 2882-12-31 | AGL31: 2883-12-31 | AGM31: 2884-12-31 | AGN31: 2885-12-31 | AGO31: 2886-12-31 | AGP31: 2887-12-31 | AGQ31: 2888-12-31 | AGR31: 2889-12-31 | AGS31: 2890-12-31 | AGT31: 2891-12-31 | AGU31: 2892-12-31 | AGV31: 2893-12-31 | AGW31: 2894-12-31 | AGX31: 2895-12-31 | AGY31: 2896-12-31 | AGZ31: 2897-12-31 | AHA31: 2898-12-31 | AHB31: 2899-12-31 | AHC31: 2900-12-31 | AHD31: 2901-12-31 | AHE31: 2902-12-31 | AHF31: 2903-12-31 | AHG31: 2904-12-31 | AHH31: 2905-12-31 | AHI31: 2906-12-31 | AHJ31: 2907-12-31 | AHK31: 2908-12-31 | AHL31: 2909-12-31 | AHM31: 2910-12-31 | AHN31: 2911-12-31 | AHO31: 2912-12-31 | AHP31: 2913-12-31 | AHQ31: 2914-12-31 | AHR31: 2915-12-31 | AHS31: 2916-12-31 | AHT31: 2917-12-31 | AHU31: 2918-12-31 | AHV31: 2919-12-31 | AHW31: 2920-12-31 | AHX31: =DATE( YEAR( AHX30 ), MONTH( AHX30 ) + $E29, DAY( AHX30 ) - 1 ) -> 2921-12-31 | AHY31: 2922-12-31 | AHZ31: 2923-12-31 | AIA31: 2924-12-31 | AIB31: 2925-12-31 | AIC31: 2926-12-31 | AID31: 2927-12-31 | AIE31: 2928-12-31 | AIF31: 2929-12-31 | AIG31: 2930-12-31 | AIH31: 2931-12-31 | AII31: 2932-12-31 | AIJ31: 2933-12-31 | AIK31: 2934-12-31 | AIL31: 2935-12-31 | AIM31: 2936-12-31 | AIN31: 2937-12-31 | AIO31: 2938-12-31 | AIP31: 2939-12-31 | AIQ31: 2940-12-31 | AIR31: 2941-12-31 | AIS31: 2942-12-31 | AIT31: 2943-12-31 | AIU31: 2944-12-31 | AIV31: 2945-12-31 | AIW31: 2946-12-31 | AIX31: 2947-12-31 | AIY31: 2948-12-31 | AIZ31: 2949-12-31 | AJA31: 2950-12-31 | AJB31: 2951-12-31 | AJC31: 2952-12-31 | AJD31: 2953-12-31 | AJE31: 2954-12-31 | AJF31: 2955-12-31 | AJG31: 2956-12-31 | AJH31: 2957-12-31 | AJI31: 2958-12-31 | AJJ31: 2959-12-31 | AJK31: 2960-12-31 | AJL31: 2961-12-31 | AJM31: 2962-12-31 | AJN31: 2963-12-31 | AJO31: 2964-12-31 | AJP31: 2965-12-31 | AJQ31: 2966-12-31 | AJR31: 2967-12-31 | AJS31: 2968-12-31 | AJT31: 2969-12-31 | AJU31: 2970-12-31 | AJV31: 2971-12-31 | AJW31: 2972-12-31 | AJX31: 2973-12-31 | AJY31: 2974-12-31 | AJZ31: 2975-12-31 | AKA31: 2976-12-31 | AKB31: 2977-12-31 | AKC31: 2978-12-31 | AKD31: 2979-12-31 | AKE31: 2980-12-31 | AKF31: 2981-12-31 | AKG31: 2982-12-31 | AKH31: 2983-12-31
D33: Model period days
D34: =D$26 -> Model period beginning | E34: 0 | F34: date | G34: 0 | H34: 0 | I34: 0 | J34: 0 | K34: 2024-01-01 | L34: =L$26 -> 2025-01-01 | M34: 2026-01-01 | N34: 2027-01-01 | O34: 2028-01-01 | P34: 2029-01-01 | Q34: 2030-01-01 | R34: 2031-01-01 | S34: 2032-01-01 | T34: 2033-01-01 | U34: 2034-01-01 | V34: 2035-01-01 | W34: 2036-01-01 | X34: 2037-01-01 | Y34: 2038-01-01 | Z34: 2039-01-01 | AA34: 2040-01-01 | AB34: 2041-01-01 | AC34: 2042-01-01 | AD34: 2043-01-01 | AE34: 2044-01-01 | AF34: 2045-01-01 | AG34: 2046-01-01 | AH34: 2047-01-01 | AI34: 2048-01-01 | AJ34: 2049-01-01 | AK34: 2050-01-01 | AL34: 2051-01-01 | AM34: 2052-01-01 | AN34: 2053-01-01 | AO34: 2054-01-01 | AP34: 2055-01-01 | AQ34: 2056-01-01 | AR34: 2057-01-01 | AS34: 2058-01-01 | AT34: 2059-01-01 | AU34: 2060-01-01 | AV34: 2061-01-01 | AW34: 2062-01-01 | AX34: 2063-01-01 | AY34: 2064-01-01 | AZ34: 2065-01-01 | BA34: 2066-01-01 | BB34: 2067-01-01 | BC34: 2068-01-01 | BD34: 2069-01-01 | BE34: 2070-01-01 | BF34: 2071-01-01 | BG34: 2072-01-01 | BH34: 2073-01-01 | BI34: 2074-01-01 | BJ34: 2075-01-01 | BK34: 2076-01-01 | BL34: 2077-01-01 | BM34: 2078-01-01 | BN34: 2079-01-01 | BO34: 2080-01-01 | BP34: 2081-01-01 | BQ34: 2082-01-01 | BR34: 2083-01-01 | BS34: 2084-01-01 | BT34: 2085-01-01 | BU34: 2086-01-01 | BV34: 2087-01-01 | BW34: 2088-01-01 | BX34: =BX$26 -> 2089-01-01 | BY34: 2090-01-01 | BZ34: 2091-01-01 | CA34: 2092-01-01 | CB34: 2093-01-01 | CC34: 2094-01-01 | CD34: 2095-01-01 | CE34: 2096-01-01 | CF34: 2097-01-01 | CG34: 2098-01-01 | CH34: 2099-01-01 | CI34: 2100-01-01 | CJ34: 2101-01-01 | CK34: 2102-01-01 | CL34: 2103-01-01 | CM34: 2104-01-01 | CN34: 2105-01-01 | CO34: 2106-01-01 | CP34: 2107-01-01 | CQ34: 2108-01-01 | CR34: 2109-01-01 | CS34: 2110-01-01 | CT34: 2111-01-01 | CU34: 2112-01-01 | CV34: 2113-01-01 | CW34: 2114-01-01 | CX34: 2115-01-01 | CY34: 2116-01-01 | CZ34: 2117-01-01 | DA34: 2118-01-01 | DB34: 2119-01-01 | DC34: 2120-01-01 | DD34: 2121-01-01 | DE34: 2122-01-01 | DF34: 2123-01-01 | DG34: 2124-01-01 | DH34: 2125-01-01 | DI34: 2126-01-01 | DJ34: 2127-01-01 | DK34: 2128-01-01 | DL34: 2129-01-01 | DM34: 2130-01-01 | DN34: 2131-01-01 | DO34: 2132-01-01 | DP34: 2133-01-01 | DQ34: 2134-01-01 | DR34: 2135-01-01 | DS34: 2136-01-01 | DT34: 2137-01-01 | DU34: 2138-01-01 | DV34: 2139-01-01 | DW34: 2140-01-01 | DX34: 2141-01-01 | DY34: 2142-01-01 | DZ34: 2143-01-01 | EA34: 2144-01-01 | EB34: 2145-01-01 | EC34: 2146-01-01 | ED34: 2147-01-01 | EE34: 2148-01-01 | EF34: 2149-01-01 | EG34: 2150-01-01 | EH34: 2151-01-01 | EI34: 2152-01-01 | EJ34: =EJ$26 -> 2153-01-01 | EK34: 2154-01-01 | EL34: 2155-01-01 | EM34: 2156-01-01 | EN34: 2157-01-01 | EO34: 2158-01-01 | EP34: 2159-01-01 | EQ34: 2160-01-01 | ER34: 2161-01-01 | ES34: 2162-01-01 | ET34: 2163-01-01 | EU34: 2164-01-01 | EV34: 2165-01-01 | EW34: 2166-01-01 | EX34: 2167-01-01 | EY34: 2168-01-01 | EZ34: 2169-01-01 | FA34: 2170-01-01 | FB34: 2171-01-01 | FC34: 2172-01-01 | FD34: 2173-01-01 | FE34: 2174-01-01 | FF34: 2175-01-01 | FG34: 2176-01-01 | FH34: 2177-01-01 | FI34: 2178-01-01 | FJ34: 2179-01-01 | FK34: 2180-01-01 | FL34: 2181-01-01 | FM34: 2182-01-01 | FN34: 2183-01-01 | FO34: 2184-01-01 | FP34: 2185-01-01 | FQ34: 2186-01-01 | FR34: 2187-01-01 | FS34: 2188-01-01 | FT34: 2189-01-01 | FU34: 2190-01-01 | FV34: 2191-01-01 | FW34: 2192-01-01 | FX34: 2193-01-01 | FY34: 2194-01-01 | FZ34: 2195-01-01 | GA34: 2196-01-01 | GB34: 2197-01-01 | GC34: 2198-01-01 | GD34: 2199-01-01 | GE34: 2200-01-01 | GF34: 2201-01-01 | GG34: 2202-01-01 | GH34: 2203-01-01 | GI34: 2204-01-01 | GJ34: 2205-01-01 | GK34: 2206-01-01 | GL34: 2207-01-01 | GM34: 2208-01-01 | GN34: 2209-01-01 | GO34: 2210-01-01 | GP34: 2211-01-01 | GQ34: 2212-01-01 | GR34: 2213-01-01 | GS34: 2214-01-01 | GT34: 2215-01-01 | GU34: 2216-01-01 | GV34: =GV$26 -> 2217-01-01 | GW34: 2218-01-01 | GX34: 2219-01-01 | GY34: 2220-01-01 | GZ34: 2221-01-01 | HA34: 2222-01-01 | HB34: 2223-01-01 | HC34: 2224-01-01 | HD34: 2225-01-01 | HE34: 2226-01-01 | HF34: 2227-01-01 | HG34: 2228-01-01 | HH34: 2229-01-01 | HI34: 2230-01-01 | HJ34: 2231-01-01 | HK34: 2232-01-01 | HL34: 2233-01-01 | HM34: 2234-01-01 | HN34: 2235-01-01 | HO34: 2236-01-01 | HP34: 2237-01-01 | HQ34: 2238-01-01 | HR34: 2239-01-01 | HS34: 2240-01-01 | HT34: 2241-01-01 | HU34: 2242-01-01 | HV34: 2243-01-01 | HW34: 2244-01-01 | HX34: 2245-01-01 | HY34: 2246-01-01 | HZ34: 2247-01-01 | IA34: 2248-01-01 | IB34: 2249-01-01 | IC34: 2250-01-01 | ID34: 2251-01-01 | IE34: 2252-01-01 | IF34: 2253-01-01 | IG34: 2254-01-01 | IH34: 2255-01-01 | II34: 2256-01-01 | IJ34: 2257-01-01 | IK34: 2258-01-01 | IL34: 2259-01-01 | IM34: 2260-01-01 | IN34: 2261-01-01 | IO34: 2262-01-01 | IP34: 2263-01-01 | IQ34: 2264-01-01 | IR34: 2265-01-01 | IS34: 2266-01-01 | IT34: 2267-01-01 | IU34: 2268-01-01 | IV34: 2269-01-01 | IW34: 2270-01-01 | IX34: 2271-01-01 | IY34: 2272-01-01 | IZ34: 2273-01-01 | JA34: 2274-01-01 | JB34: 2275-01-01 | JC34: 2276-01-01 | JD34: 2277-01-01 | JE34: 2278-01-01 | JF34: 2279-01-01 | JG34: 2280-01-01 | JH34: =JH$26 -> 2281-01-01 | JI34: 2282-01-01 | JJ34: 2283-01-01 | JK34: 2284-01-01 | JL34: 2285-01-01 | JM34: 2286-01-01 | JN34: 2287-01-01 | JO34: 2288-01-01 | JP34: 2289-01-01 | JQ34: 2290-01-01 | JR34: 2291-01-01 | JS34: 2292-01-01 | JT34: 2293-01-01 | JU34: 2294-01-01 | JV34: 2295-01-01 | JW34: 2296-01-01 | JX34: 2297-01-01 | JY34: 2298-01-01 | JZ34: 2299-01-01 | KA34: 2300-01-01 | KB34: 2301-01-01 | KC34: 2302-01-01 | KD34: 2303-01-01 | KE34: 2304-01-01 | KF34: 2305-01-01 | KG34: 2306-01-01 | KH34: 2307-01-01 | KI34: 2308-01-01 | KJ34: 2309-01-01 | KK34: 2310-01-01 | KL34: 2311-01-01 | KM34: 2312-01-01 | KN34: 2313-01-01 | KO34: 2314-01-01 | KP34: 2315-01-01 | KQ34: 2316-01-01 | KR34: 2317-01-01 | KS34: 2318-01-01 | KT34: 2319-01-01 | KU34: 2320-01-01 | KV34: 2321-01-01 | KW34: 2322-01-01 | KX34: 2323-01-01 | KY34: 2324-01-01 | KZ34: 2325-01-01 | LA34: 2326-01-01 | LB34: 2327-01-01 | LC34: 2328-01-01 | LD34: 2329-01-01 | LE34: 2330-01-01 | LF34: 2331-01-01 | LG34: 2332-01-01 | LH34: 2333-01-01 | LI34: 2334-01-01 | LJ34: 2335-01-01 | LK34: 2336-01-01 | LL34: 2337-01-01 | LM34: 2338-01-01 | LN34: 2339-01-01 | LO34: 2340-01-01 | LP34: 2341-01-01 | LQ34: 2342-01-01 | LR34: 2343-01-01 | LS34: 2344-01-01 | LT34: =LT$26 -> 2345-01-01 | LU34: 2346-01-01 | LV34: 2347-01-01 | LW34: 2348-01-01 | LX34: 2349-01-01 | LY34: 2350-01-01 | LZ34: 2351-01-01 | MA34: 2352-01-01 | MB34: 2353-01-01 | MC34: 2354-01-01 | MD34: 2355-01-01 | ME34: 2356-01-01 | MF34: 2357-01-01 | MG34: 2358-01-01 | MH34: 2359-01-01 | MI34: 2360-01-01 | MJ34: 2361-01-01 | MK34: 2362-01-01 | ML34: 2363-01-01 | MM34: 2364-01-01 | MN34: 2365-01-01 | MO34: 2366-01-01 | MP34: 2367-01-01 | MQ34: 2368-01-01 | MR34: 2369-01-01 | MS34: 2370-01-01 | MT34: 2371-01-01 | MU34: 2372-01-01 | MV34: 2373-01-01 | MW34: 2374-01-01 | MX34: 2375-01-01 | MY34: 2376-01-01 | MZ34: 2377-01-01 | NA34: 2378-01-01 | NB34: 2379-01-01 | NC34: 2380-01-01 | ND34: 2381-01-01 | NE34: 2382-01-01 | NF34: 2383-01-01 | NG34: 2384-01-01 | NH34: 2385-01-01 | NI34: 2386-01-01 | NJ34: 2387-01-01 | NK34: 2388-01-01 | NL34: 2389-01-01 | NM34: 2390-01-01 | NN34: 2391-01-01 | NO34: 2392-01-01 | NP34: 2393-01-01 | NQ34: 2394-01-01 | NR34: 2395-01-01 | NS34: 2396-01-01 | NT34: 2397-01-01 | NU34: 2398-01-01 | NV34: 2399-01-01 | NW34: 2400-01-01 | NX34: 2401-01-01 | NY34: 2402-01-01 | NZ34: 2403-01-01 | OA34: 2404-01-01 | OB34: 2405-01-01 | OC34: 2406-01-01 | OD34: 2407-01-01 | OE34: 2408-01-01 | OF34: =OF$26 -> 2409-01-01 | OG34: 2410-01-01 | OH34: 2411-01-01 | OI34: 2412-01-01 | OJ34: 2413-01-01 | OK34: 2414-01-01 | OL34: 2415-01-01 | OM34: 2416-01-01 | ON34: 2417-01-01 | OO34: 2418-01-01 | OP34: 2419-01-01 | OQ34: 2420-01-01 | OR34: 2421-01-01 | OS34: 2422-01-01 | OT34: 2423-01-01 | OU34: 2424-01-01 | OV34: 2425-01-01 | OW34: 2426-01-01 | OX34: 2427-01-01 | OY34: 2428-01-01 | OZ34: 2429-01-01 | PA34: 2430-01-01 | PB34: 2431-01-01 | PC34: 2432-01-01 | PD34: 2433-01-01 | PE34: 2434-01-01 | PF34: 2435-01-01 | PG34: 2436-01-01 | PH34: 2437-01-01 | PI34: 2438-01-01 | PJ34: 2439-01-01 | PK34: 2440-01-01 | PL34: 2441-01-01 | PM34: 2442-01-01 | PN34: 2443-01-01 | PO34: 2444-01-01 | PP34: 2445-01-01 | PQ34: 2446-01-01 | PR34: 2447-01-01 | PS34: 2448-01-01 | PT34: 2449-01-01 | PU34: 2450-01-01 | PV34: 2451-01-01 | PW34: 2452-01-01 | PX34: 2453-01-01 | PY34: 2454-01-01 | PZ34: 2455-01-01 | QA34: 2456-01-01 | QB34: 2457-01-01 | QC34: 2458-01-01 | QD34: 2459-01-01 | QE34: 2460-01-01 | QF34: 2461-01-01 | QG34: 2462-01-01 | QH34: 2463-01-01 | QI34: 2464-01-01 | QJ34: 2465-01-01 | QK34: 2466-01-01 | QL34: 2467-01-01 | QM34: 2468-01-01 | QN34: 2469-01-01 | QO34: 2470-01-01 | QP34: 2471-01-01 | QQ34: 2472-01-01 | QR34: =QR$26 -> 2473-01-01 | QS34: 2474-01-01 | QT34: 2475-01-01 | QU34: 2476-01-01 | QV34: 2477-01-01 | QW34: 2478-01-01 | QX34: 2479-01-01 | QY34: 2480-01-01 | QZ34: 2481-01-01 | RA34: 2482-01-01 | RB34: 2483-01-01 | RC34: 2484-01-01 | RD34: 2485-01-01 | RE34: 2486-01-01 | RF34: 2487-01-01 | RG34: 2488-01-01 | RH34: 2489-01-01 | RI34: 2490-01-01 | RJ34: 2491-01-01 | RK34: 2492-01-01 | RL34: 2493-01-01 | RM34: 2494-01-01 | RN34: 2495-01-01 | RO34: 2496-01-01 | RP34: 2497-01-01 | RQ34: 2498-01-01 | RR34: 2499-01-01 | RS34: 2500-01-01 | RT34: 2501-01-01 | RU34: 2502-01-01 | RV34: 2503-01-01 | RW34: 2504-01-01 | RX34: 2505-01-01 | RY34: 2506-01-01 | RZ34: 2507-01-01 | SA34: 2508-01-01 | SB34: 2509-01-01 | SC34: 2510-01-01 | SD34: 2511-01-01 | SE34: 2512-01-01 | SF34: 2513-01-01 | SG34: 2514-01-01 | SH34: 2515-01-01 | SI34: 2516-01-01 | SJ34: 2517-01-01 | SK34: 2518-01-01 | SL34: 2519-01-01 | SM34: 2520-01-01 | SN34: 2521-01-01 | SO34: 2522-01-01 | SP34: 2523-01-01 | SQ34: 2524-01-01 | SR34: 2525-01-01 | SS34: 2526-01-01 | ST34: 2527-01-01 | SU34: 2528-01-01 | SV34: 2529-01-01 | SW34: 2530-01-01 | SX34: 2531-01-01 | SY34: 2532-01-01 | SZ34: 2533-01-01 | TA34: 2534-01-01 | TB34: 2535-01-01 | TC34: 2536-01-01 | TD34: =TD$26 -> 2537-01-01 | TE34: 2538-01-01 | TF34: 2539-01-01 | TG34: 2540-01-01 | TH34: 2541-01-01 | TI34: 2542-01-01 | TJ34: 2543-01-01 | TK34: 2544-01-01 | TL34: 2545-01-01 | TM34: 2546-01-01 | TN34: 2547-01-01 | TO34: 2548-01-01 | TP34: 2549-01-01 | TQ34: 2550-01-01 | TR34: 2551-01-01 | TS34: 2552-01-01 | TT34: 2553-01-01 | TU34: 2554-01-01 | TV34: 2555-01-01 | TW34: 2556-01-01 | TX34: 2557-01-01 | TY34: 2558-01-01 | TZ34: 2559-01-01 | UA34: 2560-01-01 | UB34: 2561-01-01 | UC34: 2562-01-01 | UD34: 2563-01-01 | UE34: 2564-01-01 | UF34: 2565-01-01 | UG34: 2566-01-01 | UH34: 2567-01-01 | UI34: 2568-01-01 | UJ34: 2569-01-01 | UK34: 2570-01-01 | UL34: 2571-01-01 | UM34: 2572-01-01 | UN34: 2573-01-01 | UO34: 2574-01-01 | UP34: 2575-01-01 | UQ34: 2576-01-01 | UR34: 2577-01-01 | US34: 2578-01-01 | UT34: 2579-01-01 | UU34: 2580-01-01 | UV34: 2581-01-01 | UW34: 2582-01-01 | UX34: 2583-01-01 | UY34: 2584-01-01 | UZ34: 2585-01-01 | VA34: 2586-01-01 | VB34: 2587-01-01 | VC34: 2588-01-01 | VD34: 2589-01-01 | VE34: 2590-01-01 | VF34: 2591-01-01 | VG34: 2592-01-01 | VH34: 2593-01-01 | VI34: 2594-01-01 | VJ34: 2595-01-01 | VK34: 2596-01-01 | VL34: 2597-01-01 | VM34: 2598-01-01 | VN34: 2599-01-01 | VO34: 2600-01-01 | VP34: =VP$26 -> 2601-01-01 | VQ34: 2602-01-01 | VR34: 2603-01-01 | VS34: 2604-01-01 | VT34: 2605-01-01 | VU34: 2606-01-01 | VV34: 2607-01-01 | VW34: 2608-01-01 | VX34: 2609-01-01 | VY34: 2610-01-01 | VZ34: 2611-01-01 | WA34: 2612-01-01 | WB34: 2613-01-01 | WC34: 2614-01-01 | WD34: 2615-01-01 | WE34: 2616-01-01 | WF34: 2617-01-01 | WG34: 2618-01-01 | WH34: 2619-01-01 | WI34: 2620-01-01 | WJ34: 2621-01-01 | WK34: 2622-01-01 | WL34: 2623-01-01 | WM34: 2624-01-01 | WN34: 2625-01-01 | WO34: 2626-01-01 | WP34: 2627-01-01 | WQ34: 2628-01-01 | WR34: 2629-01-01 | WS34: 2630-01-01 | WT34: 2631-01-01 | WU34: 2632-01-01 | WV34: 2633-01-01 | WW34: 2634-01-01 | WX34: 2635-01-01 | WY34: 2636-01-01 | WZ34: 2637-01-01 | XA34: 2638-01-01 | XB34: 2639-01-01 | XC34: 2640-01-01 | XD34: 2641-01-01 | XE34: 2642-01-01 | XF34: 2643-01-01 | XG34: 2644-01-01 | XH34: 2645-01-01 | XI34: 2646-01-01 | XJ34: 2647-01-01 | XK34: 2648-01-01 | XL34: 2649-01-01 | XM34: 2650-01-01 | XN34: 2651-01-01 | XO34: 2652-01-01 | XP34: 2653-01-01 | XQ34: 2654-01-01 | XR34: 2655-01-01 | XS34: 2656-01-01 | XT34: 2657-01-01 | XU34: 2658-01-01 | XV34: 2659-01-01 | XW34: 2660-01-01 | XX34: 2661-01-01 | XY34: 2662-01-01 | XZ34: 2663-01-01 | YA34: 2664-01-01 | YB34: =YB$26 -> 2665-01-01 | YC34: 2666-01-01 | YD34: 2667-01-01 | YE34: 2668-01-01 | YF34: 2669-01-01 | YG34: 2670-01-01 | YH34: 2671-01-01 | YI34: 2672-01-01 | YJ34: 2673-01-01 | YK34: 2674-01-01 | YL34: 2675-01-01 | YM34: 2676-01-01 | YN34: 2677-01-01 | YO34: 2678-01-01 | YP34: 2679-01-01 | YQ34: 2680-01-01 | YR34: 2681-01-01 | YS34: 2682-01-01 | YT34: 2683-01-01 | YU34: 2684-01-01 | YV34: 2685-01-01 | YW34: 2686-01-01 | YX34: 2687-01-01 | YY34: 2688-01-01 | YZ34: 2689-01-01 | ZA34: 2690-01-01 | ZB34: 2691-01-01 | ZC34: 2692-01-01 | ZD34: 2693-01-01 | ZE34: 2694-01-01 | ZF34: 2695-01-01 | ZG34: 2696-01-01 | ZH34: 2697-01-01 | ZI34: 2698-01-01 | ZJ34: 2699-01-01 | ZK34: 2700-01-01 | ZL34: 2701-01-01 | ZM34: 2702-01-01 | ZN34: 2703-01-01 | ZO34: 2704-01-01 | ZP34: 2705-01-01 | ZQ34: 2706-01-01 | ZR34: 2707-01-01 | ZS34: 2708-01-01 | ZT34: 2709-01-01 | ZU34: 2710-01-01 | ZV34: 2711-01-01 | ZW34: 2712-01-01 | ZX34: 2713-01-01 | ZY34: 2714-01-01 | ZZ34: 2715-01-01 | AAA34: 2716-01-01 | AAB34: 2717-01-01 | AAC34: 2718-01-01 | AAD34: 2719-01-01 | AAE34: 2720-01-01 | AAF34: 2721-01-01 | AAG34: 2722-01-01 | AAH34: 2723-01-01 | AAI34: 2724-01-01 | AAJ34: 2725-01-01 | AAK34: 2726-01-01 | AAL34: 2727-01-01 | AAM34: 2728-01-01 | AAN34: =AAN$26 -> 2729-01-01 | AAO34: 2730-01-01 | AAP34: 2731-01-01 | AAQ34: 2732-01-01 | AAR34: 2733-01-01 | AAS34: 2734-01-01 | AAT34: 2735-01-01 | AAU34: 2736-01-01 | AAV34: 2737-01-01 | AAW34: 2738-01-01 | AAX34: 2739-01-01 | AAY34: 2740-01-01 | AAZ34: 2741-01-01 | ABA34: 2742-01-01 | ABB34: 2743-01-01 | ABC34: 2744-01-01 | ABD34: 2745-01-01 | ABE34: 2746-01-01 | ABF34: 2747-01-01 | ABG34: 2748-01-01 | ABH34: 2749-01-01 | ABI34: 2750-01-01 | ABJ34: 2751-01-01 | ABK34: 2752-01-01 | ABL34: 2753-01-01 | ABM34: 2754-01-01 | ABN34: 2755-01-01 | ABO34: 2756-01-01 | ABP34: 2757-01-01 | ABQ34: 2758-01-01 | ABR34: 2759-01-01 | ABS34: 2760-01-01 | ABT34: 2761-01-01 | ABU34: 2762-01-01 | ABV34: 2763-01-01 | ABW34: 2764-01-01 | ABX34: 2765-01-01 | ABY34: 2766-01-01 | ABZ34: 2767-01-01 | ACA34: 2768-01-01 | ACB34: 2769-01-01 | ACC34: 2770-01-01 | ACD34: 2771-01-01 | ACE34: 2772-01-01 | ACF34: 2773-01-01 | ACG34: 2774-01-01 | ACH34: 2775-01-01 | ACI34: 2776-01-01 | ACJ34: 2777-01-01 | ACK34: 2778-01-01 | ACL34: 2779-01-01 | ACM34: 2780-01-01 | ACN34: 2781-01-01 | ACO34: 2782-01-01 | ACP34: 2783-01-01 | ACQ34: 2784-01-01 | ACR34: 2785-01-01 | ACS34: 2786-01-01 | ACT34: 2787-01-01 | ACU34: 2788-01-01 | ACV34: 2789-01-01 | ACW34: 2790-01-01 | ACX34: 2791-01-01 | ACY34: 2792-01-01 | ACZ34: =ACZ$26 -> 2793-01-01 | ADA34: 2794-01-01 | ADB34: 2795-01-01 | ADC34: 2796-01-01 | ADD34: 2797-01-01 | ADE34: 2798-01-01 | ADF34: 2799-01-01 | ADG34: 2800-01-01 | ADH34: 2801-01-01 | ADI34: 2802-01-01 | ADJ34: 2803-01-01 | ADK34: 2804-01-01 | ADL34: 2805-01-01 | ADM34: 2806-01-01 | ADN34: 2807-01-01 | ADO34: 2808-01-01 | ADP34: 2809-01-01 | ADQ34: 2810-01-01 | ADR34: 2811-01-01 | ADS34: 2812-01-01 | ADT34: 2813-01-01 | ADU34: 2814-01-01 | ADV34: 2815-01-01 | ADW34: 2816-01-01 | ADX34: 2817-01-01 | ADY34: 2818-01-01 | ADZ34: 2819-01-01 | AEA34: 2820-01-01 | AEB34: 2821-01-01 | AEC34: 2822-01-01 | AED34: 2823-01-01 | AEE34: 2824-01-01 | AEF34: 2825-01-01 | AEG34: 2826-01-01 | AEH34: 2827-01-01 | AEI34: 2828-01-01 | AEJ34: 2829-01-01 | AEK34: 2830-01-01 | AEL34: 2831-01-01 | AEM34: 2832-01-01 | AEN34: 2833-01-01 | AEO34: 2834-01-01 | AEP34: 2835-01-01 | AEQ34: 2836-01-01 | AER34: 2837-01-01 | AES34: 2838-01-01 | AET34: 2839-01-01 | AEU34: 2840-01-01 | AEV34: 2841-01-01 | AEW34: 2842-01-01 | AEX34: 2843-01-01 | AEY34: 2844-01-01 | AEZ34: 2845-01-01 | AFA34: 2846-01-01 | AFB34: 2847-01-01 | AFC34: 2848-01-01 | AFD34: 2849-01-01 | AFE34: 2850-01-01 | AFF34: 2851-01-01 | AFG34: 2852-01-01 | AFH34: 2853-01-01 | AFI34: 2854-01-01 | AFJ34: 2855-01-01 | AFK34: 2856-01-01 | AFL34: =AFL$26 -> 2857-01-01 | AFM34: 2858-01-01 | AFN34: 2859-01-01 | AFO34: 2860-01-01 | AFP34: 2861-01-01 | AFQ34: 2862-01-01 | AFR34: 2863-01-01 | AFS34: 2864-01-01 | AFT34: 2865-01-01 | AFU34: 2866-01-01 | AFV34: 2867-01-01 | AFW34: 2868-01-01 | AFX34: 2869-01-01 | AFY34: 2870-01-01 | AFZ34: 2871-01-01 | AGA34: 2872-01-01 | AGB34: 2873-01-01 | AGC34: 2874-01-01 | AGD34: 2875-01-01 | AGE34: 2876-01-01 | AGF34: 2877-01-01 | AGG34: 2878-01-01 | AGH34: 2879-01-01 | AGI34: 2880-01-01 | AGJ34: 2881-01-01 | AGK34: 2882-01-01 | AGL34: 2883-01-01 | AGM34: 2884-01-01 | AGN34: 2885-01-01 | AGO34: 2886-01-01 | AGP34: 2887-01-01 | AGQ34: 2888-01-01 | AGR34: 2889-01-01 | AGS34: 2890-01-01 | AGT34: 2891-01-01 | AGU34: 2892-01-01 | AGV34: 2893-01-01 | AGW34: 2894-01-01 | AGX34: 2895-01-01 | AGY34: 2896-01-01 | AGZ34: 2897-01-01 | AHA34: 2898-01-01 | AHB34: 2899-01-01 | AHC34: 2900-01-01 | AHD34: 2901-01-01 | AHE34: 2902-01-01 | AHF34: 2903-01-01 | AHG34: 2904-01-01 | AHH34: 2905-01-01 | AHI34: 2906-01-01 | AHJ34: 2907-01-01 | AHK34: 2908-01-01 | AHL34: 2909-01-01 | AHM34: 2910-01-01 | AHN34: 2911-01-01 | AHO34: 2912-01-01 | AHP34: 2913-01-01 | AHQ34: 2914-01-01 | AHR34: 2915-01-01 | AHS34: 2916-01-01 | AHT34: 2917-01-01 | AHU34: 2918-01-01 | AHV34: 2919-01-01 | AHW34: 2920-01-01 | AHX34: =AHX$26 -> 2921-01-01 | AHY34: 2922-01-01 | AHZ34: 2923-01-01 | AIA34: 2924-01-01 | AIB34: 2925-01-01 | AIC34: 2926-01-01 | AID34: 2927-01-01 | AIE34: 2928-01-01 | AIF34: 2929-01-01 | AIG34: 2930-01-01 | AIH34: 2931-01-01 | AII34: 2932-01-01 | AIJ34: 2933-01-01 | AIK34: 2934-01-01 | AIL34: 2935-01-01 | AIM34: 2936-01-01 | AIN34: 2937-01-01 | AIO34: 2938-01-01 | AIP34: 2939-01-01 | AIQ34: 2940-01-01 | AIR34: 2941-01-01 | AIS34: 2942-01-01 | AIT34: 2943-01-01 | AIU34: 2944-01-01 | AIV34: 2945-01-01 | AIW34: 2946-01-01 | AIX34: 2947-01-01 | AIY34: 2948-01-01 | AIZ34: 2949-01-01 | AJA34: 2950-01-01 | AJB34: 2951-01-01 | AJC34: 2952-01-01 | AJD34: 2953-01-01 | AJE34: 2954-01-01 | AJF34: 2955-01-01 | AJG34: 2956-01-01 | AJH34: 2957-01-01 | AJI34: 2958-01-01 | AJJ34: 2959-01-01 | AJK34: 2960-01-01 | AJL34: 2961-01-01 | AJM34: 2962-01-01 | AJN34: 2963-01-01 | AJO34: 2964-01-01 | AJP34: 2965-01-01 | AJQ34: 2966-01-01 | AJR34: 2967-01-01 | AJS34: 2968-01-01 | AJT34: 2969-01-01 | AJU34: 2970-01-01 | AJV34: 2971-01-01 | AJW34: 2972-01-01 | AJX34: 2973-01-01 | AJY34: 2974-01-01 | AJZ34: 2975-01-01 | AKA34: 2976-01-01 | AKB34: 2977-01-01 | AKC34: 2978-01-01 | AKD34: 2979-01-01 | AKE34: 2980-01-01 | AKF34: 2981-01-01 | AKG34: 2982-01-01 | AKH34: 2983-01-01
D35: =D$31 -> Model period ending | E35: 0 | F35: date | G35: 0 | H35: 0 | I35: 0 | J35: 0 | K35: 2024-12-31 | L35: =L$31 -> 2025-12-31 | M35: 2026-12-31 | N35: 2027-12-31 | O35: 2028-12-31 | P35: 2029-12-31 | Q35: 2030-12-31 | R35: 2031-12-31 | S35: 2032-12-31 | T35: 2033-12-31 | U35: 2034-12-31 | V35: 2035-12-31 | W35: 2036-12-31 | X35: 2037-12-31 | Y35: 2038-12-31 | Z35: 2039-12-31 | AA35: 2040-12-31 | AB35: 2041-12-31 | AC35: 2042-12-31 | AD35: 2043-12-31 | AE35: 2044-12-31 | AF35: 2045-12-31 | AG35: 2046-12-31 | AH35: 2047-12-31 | AI35: 2048-12-31 | AJ35: 2049-12-31 | AK35: 2050-12-31 | AL35: 2051-12-31 | AM35: 2052-12-31 | AN35: 2053-12-31 | AO35: 2054-12-31 | AP35: 2055-12-31 | AQ35: 2056-12-31 | AR35: 2057-12-31 | AS35: 2058-12-31 | AT35: 2059-12-31 | AU35: 2060-12-31 | AV35: 2061-12-31 | AW35: 2062-12-31 | AX35: 2063-12-31 | AY35: 2064-12-31 | AZ35: 2065-12-31 | BA35: 2066-12-31 | BB35: 2067-12-31 | BC35: 2068-12-31 | BD35: 2069-12-31 | BE35: 2070-12-31 | BF35: 2071-12-31 | BG35: 2072-12-31 | BH35: 2073-12-31 | BI35: 2074-12-31 | BJ35: 2075-12-31 | BK35: 2076-12-31 | BL35: 2077-12-31 | BM35: 2078-12-31 | BN35: 2079-12-31 | BO35: 2080-12-31 | BP35: 2081-12-31 | BQ35: 2082-12-31 | BR35: 2083-12-31 | BS35: 2084-12-31 | BT35: 2085-12-31 | BU35: 2086-12-31 | BV35: 2087-12-31 | BW35: 2088-12-31 | BX35: =BX$31 -> 2089-12-31 | BY35: 2090-12-31 | BZ35: 2091-12-31 | CA35: 2092-12-31 | CB35: 2093-12-31 | CC35: 2094-12-31 | CD35: 2095-12-31 | CE35: 2096-12-31 | CF35: 2097-12-31 | CG35: 2098-12-31 | CH35: 2099-12-31 | CI35: 2100-12-31 | CJ35: 2101-12-31 | CK35: 2102-12-31 | CL35: 2103-12-31 | CM35: 2104-12-31 | CN35: 2105-12-31 | CO35: 2106-12-31 | CP35: 2107-12-31 | CQ35: 2108-12-31 | CR35: 2109-12-31 | CS35: 2110-12-31 | CT35: 2111-12-31 | CU35: 2112-12-31 | CV35: 2113-12-31 | CW35: 2114-12-31 | CX35: 2115-12-31 | CY35: 2116-12-31 | CZ35: 2117-12-31 | DA35: 2118-12-31 | DB35: 2119-12-31 | DC35: 2120-12-31 | DD35: 2121-12-31 | DE35: 2122-12-31 | DF35: 2123-12-31 | DG35: 2124-12-31 | DH35: 2125-12-31 | DI35: 2126-12-31 | DJ35: 2127-12-31 | DK35: 2128-12-31 | DL35: 2129-12-31 | DM35: 2130-12-31 | DN35: 2131-12-31 | DO35: 2132-12-31 | DP35: 2133-12-31 | DQ35: 2134-12-31 | DR35: 2135-12-31 | DS35: 2136-12-31 | DT35: 2137-12-31 | DU35: 2138-12-31 | DV35: 2139-12-31 | DW35: 2140-12-31 | DX35: 2141-12-31 | DY35: 2142-12-31 | DZ35: 2143-12-31 | EA35: 2144-12-31 | EB35: 2145-12-31 | EC35: 2146-12-31 | ED35: 2147-12-31 | EE35: 2148-12-31 | EF35: 2149-12-31 | EG35: 2150-12-31 | EH35: 2151-12-31 | EI35: 2152-12-31 | EJ35: =EJ$31 -> 2153-12-31 | EK35: 2154-12-31 | EL35: 2155-12-31 | EM35: 2156-12-31 | EN35: 2157-12-31 | EO35: 2158-12-31 | EP35: 2159-12-31 | EQ35: 2160-12-31 | ER35: 2161-12-31 | ES35: 2162-12-31 | ET35: 2163-12-31 | EU35: 2164-12-31 | EV35: 2165-12-31 | EW35: 2166-12-31 | EX35: 2167-12-31 | EY35: 2168-12-31 | EZ35: 2169-12-31 | FA35: 2170-12-31 | FB35: 2171-12-31 | FC35: 2172-12-31 | FD35: 2173-12-31 | FE35: 2174-12-31 | FF35: 2175-12-31 | FG35: 2176-12-31 | FH35: 2177-12-31 | FI35: 2178-12-31 | FJ35: 2179-12-31 | FK35: 2180-12-31 | FL35: 2181-12-31 | FM35: 2182-12-31 | FN35: 2183-12-31 | FO35: 2184-12-31 | FP35: 2185-12-31 | FQ35: 2186-12-31 | FR35: 2187-12-31 | FS35: 2188-12-31 | FT35: 2189-12-31 | FU35: 2190-12-31 | FV35: 2191-12-31 | FW35: 2192-12-31 | FX35: 2193-12-31 | FY35: 2194-12-31 | FZ35: 2195-12-31 | GA35: 2196-12-31 | GB35: 2197-12-31 | GC35: 2198-12-31 | GD35: 2199-12-31 | GE35: 2200-12-31 | GF35: 2201-12-31 | GG35: 2202-12-31 | GH35: 2203-12-31 | GI35: 2204-12-31 | GJ35: 2205-12-31 | GK35: 2206-12-31 | GL35: 2207-12-31 | GM35: 2208-12-31 | GN35: 2209-12-31 | GO35: 2210-12-31 | GP35: 2211-12-31 | GQ35: 2212-12-31 | GR35: 2213-12-31 | GS35: 2214-12-31 | GT35: 2215-12-31 | GU35: 2216-12-31 | GV35: =GV$31 -> 2217-12-31 | GW35: 2218-12-31 | GX35: 2219-12-31 | GY35: 2220-12-31 | GZ35: 2221-12-31 | HA35: 2222-12-31 | HB35: 2223-12-31 | HC35: 2224-12-31 | HD35: 2225-12-31 | HE35: 2226-12-31 | HF35: 2227-12-31 | HG35: 2228-12-31 | HH35: 2229-12-31 | HI35: 2230-12-31 | HJ35: 2231-12-31 | HK35: 2232-12-31 | HL35: 2233-12-31 | HM35: 2234-12-31 | HN35: 2235-12-31 | HO35: 2236-12-31 | HP35: 2237-12-31 | HQ35: 2238-12-31 | HR35: 2239-12-31 | HS35: 2240-12-31 | HT35: 2241-12-31 | HU35: 2242-12-31 | HV35: 2243-12-31 | HW35: 2244-12-31 | HX35: 2245-12-31 | HY35: 2246-12-31 | HZ35: 2247-12-31 | IA35: 2248-12-31 | IB35: 2249-12-31 | IC35: 2250-12-31 | ID35: 2251-12-31 | IE35: 2252-12-31 | IF35: 2253-12-31 | IG35: 2254-12-31 | IH35: 2255-12-31 | II35: 2256-12-31 | IJ35: 2257-12-31 | IK35: 2258-12-31 | IL35: 2259-12-31 | IM35: 2260-12-31 | IN35: 2261-12-31 | IO35: 2262-12-31 | IP35: 2263-12-31 | IQ35: 2264-12-31 | IR35: 2265-12-31 | IS35: 2266-12-31 | IT35: 2267-12-31 | IU35: 2268-12-31 | IV35: 2269-12-31 | IW35: 2270-12-31 | IX35: 2271-12-31 | IY35: 2272-12-31 | IZ35: 2273-12-31 | JA35: 2274-12-31 | JB35: 2275-12-31 | JC35: 2276-12-31 | JD35: 2277-12-31 | JE35: 2278-12-31 | JF35: 2279-12-31 | JG35: 2280-12-31 | JH35: =JH$31 -> 2281-12-31 | JI35: 2282-12-31 | JJ35: 2283-12-31 | JK35: 2284-12-31 | JL35: 2285-12-31 | JM35: 2286-12-31 | JN35: 2287-12-31 | JO35: 2288-12-31 | JP35: 2289-12-31 | JQ35: 2290-12-31 | JR35: 2291-12-31 | JS35: 2292-12-31 | JT35: 2293-12-31 | JU35: 2294-12-31 | JV35: 2295-12-31 | JW35: 2296-12-31 | JX35: 2297-12-31 | JY35: 2298-12-31 | JZ35: 2299-12-31 | KA35: 2300-12-31 | KB35: 2301-12-31 | KC35: 2302-12-31 | KD35: 2303-12-31 | KE35: 2304-12-31 | KF35: 2305-12-31 | KG35: 2306-12-31 | KH35: 2307-12-31 | KI35: 2308-12-31 | KJ35: 2309-12-31 | KK35: 2310-12-31 | KL35: 2311-12-31 | KM35: 2312-12-31 | KN35: 2313-12-31 | KO35: 2314-12-31 | KP35: 2315-12-31 | KQ35: 2316-12-31 | KR35: 2317-12-31 | KS35: 2318-12-31 | KT35: 2319-12-31 | KU35: 2320-12-31 | KV35: 2321-12-31 | KW35: 2322-12-31 | KX35: 2323-12-31 | KY35: 2324-12-31 | KZ35: 2325-12-31 | LA35: 2326-12-31 | LB35: 2327-12-31 | LC35: 2328-12-31 | LD35: 2329-12-31 | LE35: 2330-12-31 | LF35: 2331-12-31 | LG35: 2332-12-31 | LH35: 2333-12-31 | LI35: 2334-12-31 | LJ35: 2335-12-31 | LK35: 2336-12-31 | LL35: 2337-12-31 | LM35: 2338-12-31 | LN35: 2339-12-31 | LO35: 2340-12-31 | LP35: 2341-12-31 | LQ35: 2342-12-31 | LR35: 2343-12-31 | LS35: 2344-12-31 | LT35: =LT$31 -> 2345-12-31 | LU35: 2346-12-31 | LV35: 2347-12-31 | LW35: 2348-12-31 | LX35: 2349-12-31 | LY35: 2350-12-31 | LZ35: 2351-12-31 | MA35: 2352-12-31 | MB35: 2353-12-31 | MC35: 2354-12-31 | MD35: 2355-12-31 | ME35: 2356-12-31 | MF35: 2357-12-31 | MG35: 2358-12-31 | MH35: 2359-12-31 | MI35: 2360-12-31 | MJ35: 2361-12-31 | MK35: 2362-12-31 | ML35: 2363-12-31 | MM35: 2364-12-31 | MN35: 2365-12-31 | MO35: 2366-12-31 | MP35: 2367-12-31 | MQ35: 2368-12-31 | MR35: 2369-12-31 | MS35: 2370-12-31 | MT35: 2371-12-31 | MU35: 2372-12-31 | MV35: 2373-12-31 | MW35: 2374-12-31 | MX35: 2375-12-31 | MY35: 2376-12-31 | MZ35: 2377-12-31 | NA35: 2378-12-31 | NB35: 2379-12-31 | NC35: 2380-12-31 | ND35: 2381-12-31 | NE35: 2382-12-31 | NF35: 2383-12-31 | NG35: 2384-12-31 | NH35: 2385-12-31 | NI35: 2386-12-31 | NJ35: 2387-12-31 | NK35: 2388-12-31 | NL35: 2389-12-31 | NM35: 2390-12-31 | NN35: 2391-12-31 | NO35: 2392-12-31 | NP35: 2393-12-31 | NQ35: 2394-12-31 | NR35: 2395-12-31 | NS35: 2396-12-31 | NT35: 2397-12-31 | NU35: 2398-12-31 | NV35: 2399-12-31 | NW35: 2400-12-31 | NX35: 2401-12-31 | NY35: 2402-12-31 | NZ35: 2403-12-31 | OA35: 2404-12-31 | OB35: 2405-12-31 | OC35: 2406-12-31 | OD35: 2407-12-31 | OE35: 2408-12-31 | OF35: =OF$31 -> 2409-12-31 | OG35: 2410-12-31 | OH35: 2411-12-31 | OI35: 2412-12-31 | OJ35: 2413-12-31 | OK35: 2414-12-31 | OL35: 2415-12-31 | OM35: 2416-12-31 | ON35: 2417-12-31 | OO35: 2418-12-31 | OP35: 2419-12-31 | OQ35: 2420-12-31 | OR35: 2421-12-31 | OS35: 2422-12-31 | OT35: 2423-12-31 | OU35: 2424-12-31 | OV35: 2425-12-31 | OW35: 2426-12-31 | OX35: 2427-12-31 | OY35: 2428-12-31 | OZ35: 2429-12-31 | PA35: 2430-12-31 | PB35: 2431-12-31 | PC35: 2432-12-31 | PD35: 2433-12-31 | PE35: 2434-12-31 | PF35: 2435-12-31 | PG35: 2436-12-31 | PH35: 2437-12-31 | PI35: 2438-12-31 | PJ35: 2439-12-31 | PK35: 2440-12-31 | PL35: 2441-12-31 | PM35: 2442-12-31 | PN35: 2443-12-31 | PO35: 2444-12-31 | PP35: 2445-12-31 | PQ35: 2446-12-31 | PR35: 2447-12-31 | PS35: 2448-12-31 | PT35: 2449-12-31 | PU35: 2450-12-31 | PV35: 2451-12-31 | PW35: 2452-12-31 | PX35: 2453-12-31 | PY35: 2454-12-31 | PZ35: 2455-12-31 | QA35: 2456-12-31 | QB35: 2457-12-31 | QC35: 2458-12-31 | QD35: 2459-12-31 | QE35: 2460-12-31 | QF35: 2461-12-31 | QG35: 2462-12-31 | QH35: 2463-12-31 | QI35: 2464-12-31 | QJ35: 2465-12-31 | QK35: 2466-12-31 | QL35: 2467-12-31 | QM35: 2468-12-31 | QN35: 2469-12-31 | QO35: 2470-12-31 | QP35: 2471-12-31 | QQ35: 2472-12-31 | QR35: =QR$31 -> 2473-12-31 | QS35: 2474-12-31 | QT35: 2475-12-31 | QU35: 2476-12-31 | QV35: 2477-12-31 | QW35: 2478-12-31 | QX35: 2479-12-31 | QY35: 2480-12-31 | QZ35: 2481-12-31 | RA35: 2482-12-31 | RB35: 2483-12-31 | RC35: 2484-12-31 | RD35: 2485-12-31 | RE35: 2486-12-31 | RF35: 2487-12-31 | RG35: 2488-12-31 | RH35: 2489-12-31 | RI35: 2490-12-31 | RJ35: 2491-12-31 | RK35: 2492-12-31 | RL35: 2493-12-31 | RM35: 2494-12-31 | RN35: 2495-12-31 | RO35: 2496-12-31 | RP35: 2497-12-31 | RQ35: 2498-12-31 | RR35: 2499-12-31 | RS35: 2500-12-31 | RT35: 2501-12-31 | RU35: 2502-12-31 | RV35: 2503-12-31 | RW35: 2504-12-31 | RX35: 2505-12-31 | RY35: 2506-12-31 | RZ35: 2507-12-31 | SA35: 2508-12-31 | SB35: 2509-12-31 | SC35: 2510-12-31 | SD35: 2511-12-31 | SE35: 2512-12-31 | SF35: 2513-12-31 | SG35: 2514-12-31 | SH35: 2515-12-31 | SI35: 2516-12-31 | SJ35: 2517-12-31 | SK35: 2518-12-31 | SL35: 2519-12-31 | SM35: 2520-12-31 | SN35: 2521-12-31 | SO35: 2522-12-31 | SP35: 2523-12-31 | SQ35: 2524-12-31 | SR35: 2525-12-31 | SS35: 2526-12-31 | ST35: 2527-12-31 | SU35: 2528-12-31 | SV35: 2529-12-31 | SW35: 2530-12-31 | SX35: 2531-12-31 | SY35: 2532-12-31 | SZ35: 2533-12-31 | TA35: 2534-12-31 | TB35: 2535-12-31 | TC35: 2536-12-31 | TD35: =TD$31 -> 2537-12-31 | TE35: 2538-12-31 | TF35: 2539-12-31 | TG35: 2540-12-31 | TH35: 2541-12-31 | TI35: 2542-12-31 | TJ35: 2543-12-31 | TK35: 2544-12-31 | TL35: 2545-12-31 | TM35: 2546-12-31 | TN35: 2547-12-31 | TO35: 2548-12-31 | TP35: 2549-12-31 | TQ35: 2550-12-31 | TR35: 2551-12-31 | TS35: 2552-12-31 | TT35: 2553-12-31 | TU35: 2554-12-31 | TV35: 2555-12-31 | TW35: 2556-12-31 | TX35: 2557-12-31 | TY35: 2558-12-31 | TZ35: 2559-12-31 | UA35: 2560-12-31 | UB35: 2561-12-31 | UC35: 2562-12-31 | UD35: 2563-12-31 | UE35: 2564-12-31 | UF35: 2565-12-31 | UG35: 2566-12-31 | UH35: 2567-12-31 | UI35: 2568-12-31 | UJ35: 2569-12-31 | UK35: 2570-12-31 | UL35: 2571-12-31 | UM35: 2572-12-31 | UN35: 2573-12-31 | UO35: 2574-12-31 | UP35: 2575-12-31 | UQ35: 2576-12-31 | UR35: 2577-12-31 | US35: 2578-12-31 | UT35: 2579-12-31 | UU35: 2580-12-31 | UV35: 2581-12-31 | UW35: 2582-12-31 | UX35: 2583-12-31 | UY35: 2584-12-31 | UZ35: 2585-12-31 | VA35: 2586-12-31 | VB35: 2587-12-31 | VC35: 2588-12-31 | VD35: 2589-12-31 | VE35: 2590-12-31 | VF35: 2591-12-31 | VG35: 2592-12-31 | VH35: 2593-12-31 | VI35: 2594-12-31 | VJ35: 2595-12-31 | VK35: 2596-12-31 | VL35: 2597-12-31 | VM35: 2598-12-31 | VN35: 2599-12-31 | VO35: 2600-12-31 | VP35: =VP$31 -> 2601-12-31 | VQ35: 2602-12-31 | VR35: 2603-12-31 | VS35: 2604-12-31 | VT35: 2605-12-31 | VU35: 2606-12-31 | VV35: 2607-12-31 | VW35: 2608-12-31 | VX35: 2609-12-31 | VY35: 2610-12-31 | VZ35: 2611-12-31 | WA35: 2612-12-31 | WB35: 2613-12-31 | WC35: 2614-12-31 | WD35: 2615-12-31 | WE35: 2616-12-31 | WF35: 2617-12-31 | WG35: 2618-12-31 | WH35: 2619-12-31 | WI35: 2620-12-31 | WJ35: 2621-12-31 | WK35: 2622-12-31 | WL35: 2623-12-31 | WM35: 2624-12-31 | WN35: 2625-12-31 | WO35: 2626-12-31 | WP35: 2627-12-31 | WQ35: 2628-12-31 | WR35: 2629-12-31 | WS35: 2630-12-31 | WT35: 2631-12-31 | WU35: 2632-12-31 | WV35: 2633-12-31 | WW35: 2634-12-31 | WX35: 2635-12-31 | WY35: 2636-12-31 | WZ35: 2637-12-31 | XA35: 2638-12-31 | XB35: 2639-12-31 | XC35: 2640-12-31 | XD35: 2641-12-31 | XE35: 2642-12-31 | XF35: 2643-12-31 | XG35: 2644-12-31 | XH35: 2645-12-31 | XI35: 2646-12-31 | XJ35: 2647-12-31 | XK35: 2648-12-31 | XL35: 2649-12-31 | XM35: 2650-12-31 | XN35: 2651-12-31 | XO35: 2652-12-31 | XP35: 2653-12-31 | XQ35: 2654-12-31 | XR35: 2655-12-31 | XS35: 2656-12-31 | XT35: 2657-12-31 | XU35: 2658-12-31 | XV35: 2659-12-31 | XW35: 2660-12-31 | XX35: 2661-12-31 | XY35: 2662-12-31 | XZ35: 2663-12-31 | YA35: 2664-12-31 | YB35: =YB$31 -> 2665-12-31 | YC35: 2666-12-31 | YD35: 2667-12-31 | YE35: 2668-12-31 | YF35: 2669-12-31 | YG35: 2670-12-31 | YH35: 2671-12-31 | YI35: 2672-12-31 | YJ35: 2673-12-31 | YK35: 2674-12-31 | YL35: 2675-12-31 | YM35: 2676-12-31 | YN35: 2677-12-31 | YO35: 2678-12-31 | YP35: 2679-12-31 | YQ35: 2680-12-31 | YR35: 2681-12-31 | YS35: 2682-12-31 | YT35: 2683-12-31 | YU35: 2684-12-31 | YV35: 2685-12-31 | YW35: 2686-12-31 | YX35: 2687-12-31 | YY35: 2688-12-31 | YZ35: 2689-12-31 | ZA35: 2690-12-31 | ZB35: 2691-12-31 | ZC35: 2692-12-31 | ZD35: 2693-12-31 | ZE35: 2694-12-31 | ZF35: 2695-12-31 | ZG35: 2696-12-31 | ZH35: 2697-12-31 | ZI35: 2698-12-31 | ZJ35: 2699-12-31 | ZK35: 2700-12-31 | ZL35: 2701-12-31 | ZM35: 2702-12-31 | ZN35: 2703-12-31 | ZO35: 2704-12-31 | ZP35: 2705-12-31 | ZQ35: 2706-12-31 | ZR35: 2707-12-31 | ZS35: 2708-12-31 | ZT35: 2709-12-31 | ZU35: 2710-12-31 | ZV35: 2711-12-31 | ZW35: 2712-12-31 | ZX35: 2713-12-31 | ZY35: 2714-12-31 | ZZ35: 2715-12-31 | AAA35: 2716-12-31 | AAB35: 2717-12-31 | AAC35: 2718-12-31 | AAD35: 2719-12-31 | AAE35: 2720-12-31 | AAF35: 2721-12-31 | AAG35: 2722-12-31 | AAH35: 2723-12-31 | AAI35: 2724-12-31 | AAJ35: 2725-12-31 | AAK35: 2726-12-31 | AAL35: 2727-12-31 | AAM35: 2728-12-31 | AAN35: =AAN$31 -> 2729-12-31 | AAO35: 2730-12-31 | AAP35: 2731-12-31 | AAQ35: 2732-12-31 | AAR35: 2733-12-31 | AAS35: 2734-12-31 | AAT35: 2735-12-31 | AAU35: 2736-12-31 | AAV35: 2737-12-31 | AAW35: 2738-12-31 | AAX35: 2739-12-31 | AAY35: 2740-12-31 | AAZ35: 2741-12-31 | ABA35: 2742-12-31 | ABB35: 2743-12-31 | ABC35: 2744-12-31 | ABD35: 2745-12-31 | ABE35: 2746-12-31 | ABF35: 2747-12-31 | ABG35: 2748-12-31 | ABH35: 2749-12-31 | ABI35: 2750-12-31 | ABJ35: 2751-12-31 | ABK35: 2752-12-31 | ABL35: 2753-12-31 | ABM35: 2754-12-31 | ABN35: 2755-12-31 | ABO35: 2756-12-31 | ABP35: 2757-12-31 | ABQ35: 2758-12-31 | ABR35: 2759-12-31 | ABS35: 2760-12-31 | ABT35: 2761-12-31 | ABU35: 2762-12-31 | ABV35: 2763-12-31 | ABW35: 2764-12-31 | ABX35: 2765-12-31 | ABY35: 2766-12-31 | ABZ35: 2767-12-31 | ACA35: 2768-12-31 | ACB35: 2769-12-31 | ACC35: 2770-12-31 | ACD35: 2771-12-31 | ACE35: 2772-12-31 | ACF35: 2773-12-31 | ACG35: 2774-12-31 | ACH35: 2775-12-31 | ACI35: 2776-12-31 | ACJ35: 2777-12-31 | ACK35: 2778-12-31 | ACL35: 2779-12-31 | ACM35: 2780-12-31 | ACN35: 2781-12-31 | ACO35: 2782-12-31 | ACP35: 2783-12-31 | ACQ35: 2784-12-31 | ACR35: 2785-12-31 | ACS35: 2786-12-31 | ACT35: 2787-12-31 | ACU35: 2788-12-31 | ACV35: 2789-12-31 | ACW35: 2790-12-31 | ACX35: 2791-12-31 | ACY35: 2792-12-31 | ACZ35: =ACZ$31 -> 2793-12-31 | ADA35: 2794-12-31 | ADB35: 2795-12-31 | ADC35: 2796-12-31 | ADD35: 2797-12-31 | ADE35: 2798-12-31 | ADF35: 2799-12-31 | ADG35: 2800-12-31 | ADH35: 2801-12-31 | ADI35: 2802-12-31 | ADJ35: 2803-12-31 | ADK35: 2804-12-31 | ADL35: 2805-12-31 | ADM35: 2806-12-31 | ADN35: 2807-12-31 | ADO35: 2808-12-31 | ADP35: 2809-12-31 | ADQ35: 2810-12-31 | ADR35: 2811-12-31 | ADS35: 2812-12-31 | ADT35: 2813-12-31 | ADU35: 2814-12-31 | ADV35: 2815-12-31 | ADW35: 2816-12-31 | ADX35: 2817-12-31 | ADY35: 2818-12-31 | ADZ35: 2819-12-31 | AEA35: 2820-12-31 | AEB35: 2821-12-31 | AEC35: 2822-12-31 | AED35: 2823-12-31 | AEE35: 2824-12-31 | AEF35: 2825-12-31 | AEG35: 2826-12-31 | AEH35: 2827-12-31 | AEI35: 2828-12-31 | AEJ35: 2829-12-31 | AEK35: 2830-12-31 | AEL35: 2831-12-31 | AEM35: 2832-12-31 | AEN35: 2833-12-31 | AEO35: 2834-12-31 | AEP35: 2835-12-31 | AEQ35: 2836-12-31 | AER35: 2837-12-31 | AES35: 2838-12-31 | AET35: 2839-12-31 | AEU35: 2840-12-31 | AEV35: 2841-12-31 | AEW35: 2842-12-31 | AEX35: 2843-12-31 | AEY35: 2844-12-31 | AEZ35: 2845-12-31 | AFA35: 2846-12-31 | AFB35: 2847-12-31 | AFC35: 2848-12-31 | AFD35: 2849-12-31 | AFE35: 2850-12-31 | AFF35: 2851-12-31 | AFG35: 2852-12-31 | AFH35: 2853-12-31 | AFI35: 2854-12-31 | AFJ35: 2855-12-31 | AFK35: 2856-12-31 | AFL35: =AFL$31 -> 2857-12-31 | AFM35: 2858-12-31 | AFN35: 2859-12-31 | AFO35: 2860-12-31 | AFP35: 2861-12-31 | AFQ35: 2862-12-31 | AFR35: 2863-12-31 | AFS35: 2864-12-31 | AFT35: 2865-12-31 | AFU35: 2866-12-31 | AFV35: 2867-12-31 | AFW35: 2868-12-31 | AFX35: 2869-12-31 | AFY35: 2870-12-31 | AFZ35: 2871-12-31 | AGA35: 2872-12-31 | AGB35: 2873-12-31 | AGC35: 2874-12-31 | AGD35: 2875-12-31 | AGE35: 2876-12-31 | AGF35: 2877-12-31 | AGG35: 2878-12-31 | AGH35: 2879-12-31 | AGI35: 2880-12-31 | AGJ35: 2881-12-31 | AGK35: 2882-12-31 | AGL35: 2883-12-31 | AGM35: 2884-12-31 | AGN35: 2885-12-31 | AGO35: 2886-12-31 | AGP35: 2887-12-31 | AGQ35: 2888-12-31 | AGR35: 2889-12-31 | AGS35: 2890-12-31 | AGT35: 2891-12-31 | AGU35: 2892-12-31 | AGV35: 2893-12-31 | AGW35: 2894-12-31 | AGX35: 2895-12-31 | AGY35: 2896-12-31 | AGZ35: 2897-12-31 | AHA35: 2898-12-31 | AHB35: 2899-12-31 | AHC35: 2900-12-31 | AHD35: 2901-12-31 | AHE35: 2902-12-31 | AHF35: 2903-12-31 | AHG35: 2904-12-31 | AHH35: 2905-12-31 | AHI35: 2906-12-31 | AHJ35: 2907-12-31 | AHK35: 2908-12-31 | AHL35: 2909-12-31 | AHM35: 2910-12-31 | AHN35: 2911-12-31 | AHO35: 2912-12-31 | AHP35: 2913-12-31 | AHQ35: 2914-12-31 | AHR35: 2915-12-31 | AHS35: 2916-12-31 | AHT35: 2917-12-31 | AHU35: 2918-12-31 | AHV35: 2919-12-31 | AHW35: 2920-12-31 | AHX35: =AHX$31 -> 2921-12-31 | AHY35: 2922-12-31 | AHZ35: 2923-12-31 | AIA35: 2924-12-31 | AIB35: 2925-12-31 | AIC35: 2926-12-31 | AID35: 2927-12-31 | AIE35: 2928-12-31 | AIF35: 2929-12-31 | AIG35: 2930-12-31 | AIH35: 2931-12-31 | AII35: 2932-12-31 | AIJ35: 2933-12-31 | AIK35: 2934-12-31 | AIL35: 2935-12-31 | AIM35: 2936-12-31 | AIN35: 2937-12-31 | AIO35: 2938-12-31 | AIP35: 2939-12-31 | AIQ35: 2940-12-31 | AIR35: 2941-12-31 | AIS35: 2942-12-31 | AIT35: 2943-12-31 | AIU35: 2944-12-31 | AIV35: 2945-12-31 | AIW35: 2946-12-31 | AIX35: 2947-12-31 | AIY35: 2948-12-31 | AIZ35: 2949-12-31 | AJA35: 2950-12-31 | AJB35: 2951-12-31 | AJC35: 2952-12-31 | AJD35: 2953-12-31 | AJE35: 2954-12-31 | AJF35: 2955-12-31 | AJG35: 2956-12-31 | AJH35: 2957-12-31 | AJI35: 2958-12-31 | AJJ35: 2959-12-31 | AJK35: 2960-12-31 | AJL35: 2961-12-31 | AJM35: 2962-12-31 | AJN35: 2963-12-31 | AJO35: 2964-12-31 | AJP35: 2965-12-31 | AJQ35: 2966-12-31 | AJR35: 2967-12-31 | AJS35: 2968-12-31 | AJT35: 2969-12-31 | AJU35: 2970-12-31 | AJV35: 2971-12-31 | AJW35: 2972-12-31 | AJX35: 2973-12-31 | AJY35: 2974-12-31 | AJZ35: 2975-12-31 | AKA35: 2976-12-31 | AKB35: 2977-12-31 | AKC35: 2978-12-31 | AKD35: 2979-12-31 | AKE35: 2980-12-31 | AKF35: 2981-12-31 | AKG35: 2982-12-31 | AKH35: 2983-12-31
D36: Model period days | F36: days | K36: =K35 - K34 -> 365 | L36: =L35 - L34 -> 364 | M36: 364 | N36: 364 | O36: 365 | P36: 364 | Q36: 364 | R36: 364 | S36: 365 | T36: 364 | U36: 364 | V36: 364 | W36: 365 | X36: 364 | Y36: 364 | Z36: 364 | AA36: 365 | AB36: 364 | AC36: 364 | AD36: 364 | AE36: 365 | AF36: 364 | AG36: 364 | AH36: 364 | AI36: 365 | AJ36: 364 | AK36: 364 | AL36: 364 | AM36: 365 | AN36: 364 | AO36: 364 | AP36: 364 | AQ36: 365 | AR36: 364 | AS36: 364 | AT36: 364 | AU36: 365 | AV36: 364 | AW36: 364 | AX36: 364 | AY36: 365 | AZ36: 364 | BA36: 364 | BB36: 364 | BC36: 365 | BD36: 364 | BE36: 364 | BF36: 364 | BG36: 365 | BH36: 364 | BI36: 364 | BJ36: 364 | BK36: 365 | BL36: 364 | BM36: 364 | BN36: 364 | BO36: 365 | BP36: 364 | BQ36: 364 | BR36: 364 | BS36: 365 | BT36: 364 | BU36: 364 | BV36: 364 | BW36: 365 | BX36: =BX35 - BX34 -> 364 | BY36: 364 | BZ36: 364 | CA36: 365 | CB36: 364 | CC36: 364 | CD36: 364 | CE36: 365 | CF36: 364 | CG36: 364 | CH36: 364 | CI36: 364 | CJ36: 364 | CK36: 364 | CL36: 364 | CM36: 365 | CN36: 364 | CO36: 364 | CP36: 364 | CQ36: 365 | CR36: 364 | CS36: 364 | CT36: 364 | CU36: 365 | CV36: 364 | CW36: 364 | CX36: 364 | CY36: 365 | CZ36: 364 | DA36: 364 | DB36: 364 | DC36: 365 | DD36: 364 | DE36: 364 | DF36: 364 | DG36: 365 | DH36: 364 | DI36: 364 | DJ36: 364 | DK36: 365 | DL36: 364 | DM36: 364 | DN36: 364 | DO36: 365 | DP36: 364 | DQ36: 364 | DR36: 364 | DS36: 365 | DT36: 364 | DU36: 364 | DV36: 364 | DW36: 365 | DX36: 364 | DY36: 364 | DZ36: 364 | EA36: 365 | EB36: 364 | EC36: 364 | ED36: 364 | EE36: 365 | EF36: 364 | EG36: 364 | EH36: 364 | EI36: 365 | EJ36: =EJ35 - EJ34 -> 364 | EK36: 364 | EL36: 364 | EM36: 365 | EN36: 364 | EO36: 364 | EP36: 364 | EQ36: 365 | ER36: 364 | ES36: 364 | ET36: 364 | EU36: 365 | EV36: 364 | EW36: 364 | EX36: 364 | EY36: 365 | EZ36: 364 | FA36: 364 | FB36: 364 | FC36: 365 | FD36: 364 | FE36: 364 | FF36: 364 | FG36: 365 | FH36: 364 | FI36: 364 | FJ36: 364 | FK36: 365 | FL36: 364 | FM36: 364 | FN36: 364 | FO36: 365 | FP36: 364 | FQ36: 364 | FR36: 364 | FS36: 365 | FT36: 364 | FU36: 364 | FV36: 364 | FW36: 365 | FX36: 364 | FY36: 364 | FZ36: 364 | GA36: 365 | GB36: 364 | GC36: 364 | GD36: 364 | GE36: 364 | GF36: 364 | GG36: 364 | GH36: 364 | GI36: 365 | GJ36: 364 | GK36: 364 | GL36: 364 | GM36: 365 | GN36: 364 | GO36: 364 | GP36: 364 | GQ36: 365 | GR36: 364 | GS36: 364 | GT36: 364 | GU36: 365 | GV36: =GV35 - GV34 -> 364 | GW36: 364 | GX36: 364 | GY36: 365 | GZ36: 364 | HA36: 364 | HB36: 364 | HC36: 365 | HD36: 364 | HE36: 364 | HF36: 364 | HG36: 365 | HH36: 364 | HI36: 364 | HJ36: 364 | HK36: 365 | HL36: 364 | HM36: 364 | HN36: 364 | HO36: 365 | HP36: 364 | HQ36: 364 | HR36: 364 | HS36: 365 | HT36: 364 | HU36: 364 | HV36: 364 | HW36: 365 | HX36: 364 | HY36: 364 | HZ36: 364 | IA36: 365 | IB36: 364 | IC36: 364 | ID36: 364 | IE36: 365 | IF36: 364 | IG36: 364 | IH36: 364 | II36: 365 | IJ36: 364 | IK36: 364 | IL36: 364 | IM36: 365 | IN36: 364 | IO36: 364 | IP36: 364 | IQ36: 365 | IR36: 364 | IS36: 364 | IT36: 364 | IU36: 365 | IV36: 364 | IW36: 364 | IX36: 364 | IY36: 365 | IZ36: 364 | JA36: 364 | JB36: 364 | JC36: 365 | JD36: 364 | JE36: 364 | JF36: 364 | JG36: 365 | JH36: =JH35 - JH34 -> 364 | JI36: 364 | JJ36: 364 | JK36: 365 | JL36: 364 | JM36: 364 | JN36: 364 | JO36: 365 | JP36: 364 | JQ36: 364 | JR36: 364 | JS36: 365 | JT36: 364 | JU36: 364 | JV36: 364 | JW36: 365 | JX36: 364 | JY36: 364 | JZ36: 364 | KA36: 364 | KB36: 364 | KC36: 364 | KD36: 364 | KE36: 365 | KF36: 364 | KG36: 364 | KH36: 364 | KI36: 365 | KJ36: 364 | KK36: 364 | KL36: 364 | KM36: 365 | KN36: 364 | KO36: 364 | KP36: 364 | KQ36: 365 | KR36: 364 | KS36: 364 | KT36: 364 | KU36: 365 | KV36: 364 | KW36: 364 | KX36: 364 | KY36: 365 | KZ36: 364 | LA36: 364 | LB36: 364 | LC36: 365 | LD36: 364 | LE36: 364 | LF36: 364 | LG36: 365 | LH36: 364 | LI36: 364 | LJ36: 364 | LK36: 365 | LL36: 364 | LM36: 364 | LN36: 364 | LO36: 365 | LP36: 364 | LQ36: 364 | LR36: 364 | LS36: 365 | LT36: =LT35 - LT34 -> 364 | LU36: 364 | LV36: 364 | LW36: 365 | LX36: 364 | LY36: 364 | LZ36: 364 | MA36: 365 | MB36: 364 | MC36: 364 | MD36: 364 | ME36: 365 | MF36: 364 | MG36: 364 | MH36: 364 | MI36: 365 | MJ36: 364 | MK36: 364 | ML36: 364 | MM36: 365 | MN36: 364 | MO36: 364 | MP36: 364 | MQ36: 365 | MR36: 364 | MS36: 364 | MT36: 364 | MU36: 365 | MV36: 364 | MW36: 364 | MX36: 364 | MY36: 365 | MZ36: 364 | NA36: 364 | NB36: 364 | NC36: 365 | ND36: 364 | NE36: 364 | NF36: 364 | NG36: 365 | NH36: 364 | NI36: 364 | NJ36: 364 | NK36: 365 | NL36: 364 | NM36: 364 | NN36: 364 | NO36: 365 | NP36: 364 | NQ36: 364 | NR36: 364 | NS36: 365 | NT36: 364 | NU36: 364 | NV36: 364 | NW36: 365 | NX36: 364 | NY36: 364 | NZ36: 364 | OA36: 365 | OB36: 364 | OC36: 364 | OD36: 364 | OE36: 365 | OF36: =OF35 - OF34 -> 364 | OG36: 364 | OH36: 364 | OI36: 365 | OJ36: 364 | OK36: 364 | OL36: 364 | OM36: 365 | ON36: 364 | OO36: 364 | OP36: 364 | OQ36: 365 | OR36: 364 | OS36: 364 | OT36: 364 | OU36: 365 | OV36: 364 | OW36: 364 | OX36: 364 | OY36: 365 | OZ36: 364 | PA36: 364 | PB36: 364 | PC36: 365 | PD36: 364 | PE36: 364 | PF36: 364 | PG36: 365 | PH36: 364 | PI36: 364 | PJ36: 364 | PK36: 365 | PL36: 364 | PM36: 364 | PN36: 364 | PO36: 365 | PP36: 364 | PQ36: 364 | PR36: 364 | PS36: 365 | PT36: 364 | PU36: 364 | PV36: 364 | PW36: 365 | PX36: 364 | PY36: 364 | PZ36: 364 | QA36: 365 | QB36: 364 | QC36: 364 | QD36: 364 | QE36: 365 | QF36: 364 | QG36: 364 | QH36: 364 | QI36: 365 | QJ36: 364 | QK36: 364 | QL36: 364 | QM36: 365 | QN36: 364 | QO36: 364 | QP36: 364 | QQ36: 365 | QR36: =QR35 - QR34 -> 364 | QS36: 364 | QT36: 364 | QU36: 365 | QV36: 364 | QW36: 364 | QX36: 364 | QY36: 365 | QZ36: 364 | RA36: 364 | RB36: 364 | RC36: 365 | RD36: 364 | RE36: 364 | RF36: 364 | RG36: 365 | RH36: 364 | RI36: 364 | RJ36: 364 | RK36: 365 | RL36: 364 | RM36: 364 | RN36: 364 | RO36: 365 | RP36: 364 | RQ36: 364 | RR36: 364 | RS36: 364 | RT36: 364 | RU36: 364 | RV36: 364 | RW36: 365 | RX36: 364 | RY36: 364 | RZ36: 364 | SA36: 365 | SB36: 364 | SC36: 364 | SD36: 364 | SE36: 365 | SF36: 364 | SG36: 364 | SH36: 364 | SI36: 365 | SJ36: 364 | SK36: 364 | SL36: 364 | SM36: 365 | SN36: 364 | SO36: 364 | SP36: 364 | SQ36: 365 | SR36: 364 | SS36: 364 | ST36: 364 | SU36: 365 | SV36: 364 | SW36: 364 | SX36: 364 | SY36: 365 | SZ36: 364 | TA36: 364 | TB36: 364 | TC36: 365 | TD36: =TD35 - TD34 -> 364 | TE36: 364 | TF36: 364 | TG36: 365 | TH36: 364 | TI36: 364 | TJ36: 364 | TK36: 365 | TL36: 364 | TM36: 364 | TN36: 364 | TO36: 365 | TP36: 364 | TQ36: 364 | TR36: 364 | TS36: 365 | TT36: 364 | TU36: 364 | TV36: 364 | TW36: 365 | TX36: 364 | TY36: 364 | TZ36: 364 | UA36: 365 | UB36: 364 | UC36: 364 | UD36: 364 | UE36: 365 | UF36: 364 | UG36: 364 | UH36: 364 | UI36: 365 | UJ36: 364 | UK36: 364 | UL36: 364 | UM36: 365 | UN36: 364 | UO36: 364 | UP36: 364 | UQ36: 365 | UR36: 364 | US36: 364 | UT36: 364 | UU36: 365 | UV36: 364 | UW36: 364 | UX36: 364 | UY36: 365 | UZ36: 364 | VA36: 364 | VB36: 364 | VC36: 365 | VD36: 364 | VE36: 364 | VF36: 364 | VG36: 365 | VH36: 364 | VI36: 364 | VJ36: 364 | VK36: 365 | VL36: 364 | VM36: 364 | VN36: 364 | VO36: 364 | VP36: =VP35 - VP34 -> 364 | VQ36: 364 | VR36: 364 | VS36: 365 | VT36: 364 | VU36: 364 | VV36: 364 | VW36: 365 | VX36: 364 | VY36: 364 | VZ36: 364 | WA36: 365 | WB36: 364 | WC36: 364 | WD36: 364 | WE36: 365 | WF36: 364 | WG36: 364 | WH36: 364 | WI36: 365 | WJ36: 364 | WK36: 364 | WL36: 364 | WM36: 365 | WN36: 364 | WO36: 364 | WP36: 364 | WQ36: 365 | WR36: 364 | WS36: 364 | WT36: 364 | WU36: 365 | WV36: 364 | WW36: 364 | WX36: 364 | WY36: 365 | WZ36: 364 | XA36: 364 | XB36: 364 | XC36: 365 | XD36: 364 | XE36: 364 | XF36: 364 | XG36: 365 | XH36: 364 | XI36: 364 | XJ36: 364 | XK36: 365 | XL36: 364 | XM36: 364 | XN36: 364 | XO36: 365 | XP36: 364 | XQ36: 364 | XR36: 364 | XS36: 365 | XT36: 364 | XU36: 364 | XV36: 364 | XW36: 365 | XX36: 364 | XY36: 364 | XZ36: 364 | YA36: 365 | YB36: =YB35 - YB34 -> 364 | YC36: 364 | YD36: 364 | YE36: 365 | YF36: 364 | YG36: 364 | YH36: 364 | YI36: 365 | YJ36: 364 | YK36: 364 | YL36: 364 | YM36: 365 | YN36: 364 | YO36: 364 | YP36: 364 | YQ36: 365 | YR36: 364 | YS36: 364 | YT36: 364 | YU36: 365 | YV36: 364 | YW36: 364 | YX36: 364 | YY36: 365 | YZ36: 364 | ZA36: 364 | ZB36: 364 | ZC36: 365 | ZD36: 364 | ZE36: 364 | ZF36: 364 | ZG36: 365 | ZH36: 364 | ZI36: 364 | ZJ36: 364 | ZK36: 364 | ZL36: 364 | ZM36: 364 | ZN36: 364 | ZO36: 365 | ZP36: 364 | ZQ36: 364 | ZR36: 364 | ZS36: 365 | ZT36: 364 | ZU36: 364 | ZV36: 364 | ZW36: 365 | ZX36: 364 | ZY36: 364 | ZZ36: 364 | AAA36: 365 | AAB36: 364 | AAC36: 364 | AAD36: 364 | AAE36: 365 | AAF36: 364 | AAG36: 364 | AAH36: 364 | AAI36: 365 | AAJ36: 364 | AAK36: 364 | AAL36: 364 | AAM36: 365 | AAN36: =AAN35 - AAN34 -> 364 | AAO36: 364 | AAP36: 364 | AAQ36: 365 | AAR36: 364 | AAS36: 364 | AAT36: 364 | AAU36: 365 | AAV36: 364 | AAW36: 364 | AAX36: 364 | AAY36: 365 | AAZ36: 364 | ABA36: 364 | ABB36: 364 | ABC36: 365 | ABD36: 364 | ABE36: 364 | ABF36: 364 | ABG36: 365 | ABH36: 364 | ABI36: 364 | ABJ36: 364 | ABK36: 365 | ABL36: 364 | ABM36: 364 | ABN36: 364 | ABO36: 365 | ABP36: 364 | ABQ36: 364 | ABR36: 364 | ABS36: 365 | ABT36: 364 | ABU36: 364 | ABV36: 364 | ABW36: 365 | ABX36: 364 | ABY36: 364 | ABZ36: 364 | ACA36: 365 | ACB36: 364 | ACC36: 364 | ACD36: 364 | ACE36: 365 | ACF36: 364 | ACG36: 364 | ACH36: 364 | ACI36: 365 | ACJ36: 364 | ACK36: 364 | ACL36: 364 | ACM36: 365 | ACN36: 364 | ACO36: 364 | ACP36: 364 | ACQ36: 365 | ACR36: 364 | ACS36: 364 | ACT36: 364 | ACU36: 365 | ACV36: 364 | ACW36: 364 | ACX36: 364 | ACY36: 365 | ACZ36: =ACZ35 - ACZ34 -> 364 | ADA36: 364 | ADB36: 364 | ADC36: 365 | ADD36: 364 | ADE36: 364 | ADF36: 364 | ADG36: 365 | ADH36: 364 | ADI36: 364 | ADJ36: 364 | ADK36: 365 | ADL36: 364 | ADM36: 364 | ADN36: 364 | ADO36: 365 | ADP36: 364 | ADQ36: 364 | ADR36: 364 | ADS36: 365 | ADT36: 364 | ADU36: 364 | ADV36: 364 | ADW36: 365 | ADX36: 364 | ADY36: 364 | ADZ36: 364 | AEA36: 365 | AEB36: 364 | AEC36: 364 | AED36: 364 | AEE36: 365 | AEF36: 364 | AEG36: 364 | AEH36: 364 | AEI36: 365 | AEJ36: 364 | AEK36: 364 | AEL36: 364 | AEM36: 365 | AEN36: 364 | AEO36: 364 | AEP36: 364 | AEQ36: 365 | AER36: 364 | AES36: 364 | AET36: 364 | AEU36: 365 | AEV36: 364 | AEW36: 364 | AEX36: 364 | AEY36: 365 | AEZ36: 364 | AFA36: 364 | AFB36: 364 | AFC36: 365 | AFD36: 364 | AFE36: 364 | AFF36: 364 | AFG36: 365 | AFH36: 364 | AFI36: 364 | AFJ36: 364 | AFK36: 365 | AFL36: =AFL35 - AFL34 -> 364 | AFM36: 364 | AFN36: 364 | AFO36: 365 | AFP36: 364 | AFQ36: 364 | AFR36: 364 | AFS36: 365 | AFT36: 364 | AFU36: 364 | AFV36: 364 | AFW36: 365 | AFX36: 364 | AFY36: 364 | AFZ36: 364 | AGA36: 365 | AGB36: 364 | AGC36: 364 | AGD36: 364 | AGE36: 365 | AGF36: 364 | AGG36: 364 | AGH36: 364 | AGI36: 365 | AGJ36: 364 | AGK36: 364 | AGL36: 364 | AGM36: 365 | AGN36: 364 | AGO36: 364 | AGP36: 364 | AGQ36: 365 | AGR36: 364 | AGS36: 364 | AGT36: 364 | AGU36: 365 | AGV36: 364 | AGW36: 364 | AGX36: 364 | AGY36: 365 | AGZ36: 364 | AHA36: 364 | AHB36: 364 | AHC36: 364 | AHD36: 364 | AHE36: 364 | AHF36: 364 | AHG36: 365 | AHH36: 364 | AHI36: 364 | AHJ36: 364 | AHK36: 365 | AHL36: 364 | AHM36: 364 | AHN36: 364 | AHO36: 365 | AHP36: 364 | AHQ36: 364 | AHR36: 364 | AHS36: 365 | AHT36: 364 | AHU36: 364 | AHV36: 364 | AHW36: 365 | AHX36: =AHX35 - AHX34 -> 364 | AHY36: 364 | AHZ36: 364 | AIA36: 365 | AIB36: 364 | AIC36: 364 | AID36: 364 | AIE36: 365 | AIF36: 364 | AIG36: 364 | AIH36: 364 | AII36: 365 | AIJ36: 364 | AIK36: 364 | AIL36: 364 | AIM36: 365 | AIN36: 364 | AIO36: 364 | AIP36: 364 | AIQ36: 365 | AIR36: 364 | AIS36: 364 | AIT36: 364 | AIU36: 365 | AIV36: 364 | AIW36: 364 | AIX36: 364 | AIY36: 365 | AIZ36: 364 | AJA36: 364 | AJB36: 364 | AJC36: 365 | AJD36: 364 | AJE36: 364 | AJF36: 364 | AJG36: 365 | AJH36: 364 | AJI36: 364 | AJJ36: 364 | AJK36: 365 | AJL36: 364 | AJM36: 364 | AJN36: 364 | AJO36: 365 | AJP36: 364 | AJQ36: 364 | AJR36: 364 | AJS36: 365 | AJT36: 364 | AJU36: 364 | AJV36: 364 | AJW36: 365 | AJX36: 364 | AJY36: 364 | AJZ36: 364 | AKA36: 365 | AKB36: 364 | AKC36: 364 | AKD36: 364 | AKE36: 365 | AKF36: 364 | AKG36: 364 | AKH36: 364
D38: Model period year
